{"text_format":"3","workbook":"xlsx","n_sheets":1,"sheets":["Rev 1"],"not_rendered":{"defined_names":2,"comments":1},"read":"whole","date_system":"1900"}

{"sheet":"Rev 1","index":0,"n_rows":3253,"n_cols":12,"rows_kept":3253}
["COUNTER","ISC","SECTION","BILL",null,"DOC REF","PAY REF","DESCRIPTION","UNIT","QUANTITY","RATE","AMOUNT"]
[{"$nulls":7},"·            The bidder must support their bid offer price with a detailed bill of quantities for ease of evaluation, and work management.  The attached bill of quantities is for information purposes only.  It is the bidder’s responsibility to verify the information included in the bill of quantities supplied and inform the DBSA if they detect discrepancies. "]
[1,21239,1,1,null,"","","SECTION NO. 1: PRELIMINARIES","H1",null,null,{"$f":"L4+L20","v":0}]
[{"$nulls":7},"BILL NO. 1: PROFESSIONAL SERVICE PROVIDERS",{"$nulls":3},{"$f":"L18","v":0}]
[{"$nulls":7},"1.1 Project Manager (Team Leader) Services Fees","Lsum",{"v":1,"d":"1.0"},null,{"$f":"K5*J5","v":0}]
[{"$nulls":7},"1.2 Architect Services Fees","Lsum",{"v":1,"d":"1.0"},null,{"$f":"K6*J6","v":0}]
[{"$nulls":7},"1.3 ICT Networking Infrastructure & Business Continuity Specialist Services Fees","Lsum",{"v":1,"d":"1.0"},null,0]
[{"$nulls":7},"1.4 Quantity Surveyor Services Fees","Lsum",{"v":1,"d":"1.0"},null,0]
[{"$nulls":7},"1.5 Civil Engineer Services Fees","Lsum",{"v":1,"d":"1.0"},null,0]
[{"$nulls":7},"1.6 Structural Engineer Services Fees","Lsum",{"v":1,"d":"1.0"},null,0]
[{"$nulls":7},"1.7 Electrical & Electronics Engineer Services Fees","Lsum",{"v":1,"d":"1.0"},null,0]
[{"$nulls":7},"1.8 Mechanical & Fire Engineer Services Fees","Lsum",{"v":1,"d":"1.0"},null,0]
[{"$nulls":7},"1.9 Construction Health and Safety Agent Services Fees","Lsum",{"v":1,"d":"1.0"},null,0]
[{"$nulls":7},"1.10 Professional Town Planner Services Fees","Lsum",{"v":1,"d":"1.0"},null,0]
[{"$nulls":7},"1.11 Social Development Facilitator Services Fees","Lsum",{"v":1,"d":"1.0"},null,0]
[{"$nulls":7},"Subtotal: Professional Fees",{"$nulls":3},{"$f":"SUM(L5:L15)","v":0}]
[{"$nulls":7},"Disbursements","Lsum",{"v":1,"d":"1.0"}]
[{"$nulls":7},"Subtotal: Professional Fees including disbursements",{"$nulls":3},{"$f":"SUM(L16:L17)","v":0}]
[]
[2,21240,1,1,null,"","","BILL NO. 2: PRELIMINARIES","H1",null,null,{"$f":"SUM(L21:L25)","v":0}]
[230,22471,1,1,null,"","","2.1 Preliminary and General Items",{"$nulls":3},""]
[231,22472,1,1,null,"","","2.1 Fixed Category","Lsum",{"v":1,"d":"1.0"},null,{"$f":"K22*J22","v":0}]
[232,22473,1,1,null,"","","2.2  Value-related Category","Lsum",{"v":1,"d":"1.0"},null,0]
[233,22474,1,1,null,"","","2.3 Time-related Category","Lsum",{"v":1,"d":"1.0"},null,0]
[236,21598,1,1,null,"18","","2.2 Allowance for implementation of CIDB Build Program requirements","Lsum",{"v":1,"d":"1.0"},null,0]
[{"$nulls":7},"2.3 Alllowace for Implementation of contract Health and Safety Specifications","Lsum",{"v":1,"d":"1.0"},null,0]
[238,9634,2,1,null,"31","","SECTION NO. 2 : BUILDERS WORK","H1",null,null,{"$f":"L28+L97+L143+L199+L231+L251+L268+L332+L458+L489+L605+L620+L741+L769+L792+L1000+L1094+L1102+L1134","v":0}]
[239,9702,2,1,null,"31","","BILL NO. 1: ALTERATIONS","H1",null,null,{"$f":"SUM(L29:L96)","v":0}]
[240,9635,2,1,null,"31","","ALTERATIONS (PROVISIONAL) (CPAP WORK GROUP NO. 102 UNLESS OTHERWISE STATED)","H1",null,null,""]
[241,9636,2,1,null,"31","","The Tenderer is referred to the relevant Clauses in the separate document General Preambles for Trades (2017)","",null,null,""]
[242,10388,2,1,null,"","","SUPPLEMENTARY PREAMBLES","H2",null,null,""]
[243,9637,2,1,null,"31","","View site","H3",null,null,""]
[244,9708,2,1,null,"31","","Before submitting his tender the contractor shall visit the site and satisfy himself as to the nature and extent of the work to be done and the value of the materials contained in the buildings or portions of the buildings to be demolished. No claim for any variations of the contract sum in respect of the nature and extent of the work or of inferior or damaged materials will be entertained","",null,null,""]
[245,9709,2,1,null,"31","","Explosives","H3",null,null,""]
[246,9710,2,1,null,"31","","No explosives whatsoever may be used for demolition purposes unless otherwise stated","",null,null,""]
[247,9711,2,1,null,"31","","General","H3",null,null,""]
[248,19368,2,1,null,"","","Prices are to include for carting away from site all materials not specifically mentioned as being stored on site for re-use or handed over to the Employer, and all rubbish, debris, etc., arising from the works.","",null,null,""]
[249,19367,2,1,null,"","","Items described as to be re-used or to be handed over to the Employer are to be carefully dismantled where necessary and stacked on site where directed, and the Contractor will be responsible for their removal and storage until required, and shall make good all items missing, damaged or broken at his own expense.  Unless otherwise described, no materials from the alterations shall be re-used in any new work without the written approval by the principal agent.","",null,null,""]
[250,9712,2,1,null,"31","","The contractor shall carry out the whole of the works with as little mess and noise as possible and with a minimum of disturbance to adjoining premises and their tenants. He shall provide proper protection and provide, erect and remove when directed, any temporary tarpaulins that may be necessary during the progress of the works, all to the satisfaction of the principal agent","",null,null,""]
[251,10404,2,1,null,"31","","Water supply pipes and other piping that may be encountered and found necessary to disconnect or cut, shall be effectually stopped off or grubbed up and removed, and any new connections that may be necessary shall be made with proper fittings, to the satisfaction of the principal agent","",null,null,""]
[252,10405,2,1,null,"31","","Doors, fanlights, fittings, frames, linings, etc which are to be re-used shall be thoroughly overhauled before refixing including taking off, easing and rehanging, cramping up, re-wedging as required and making good cramps, dowels, etc, and easing, oiling, adjusting and repairing ironmongery as necessary, replacing any glass damaged in removal or subsequently and stopping up all nail and screw holes with tinted plastic wood to match timber, unless otherwise described. Re-painting or re-varnishing is given separately","",null,null,""]
[253,10406,2,1,null,"31","","Prices for taking out of doors, windows, etc shall include for removal of all beads, architraves, ironmongery, etc","",null,null,""]
[254,10407,2,1,null,"31","","Prices for taking out and removing doors and frames shall include for removing door stops, cabin hooks, etc and making good floor and wall finishes to match existing","",null,null,""]
[255,10408,2,1,null,"31","","With regard to building up of openings in existing walls, cement screeds and pavings, granolithic, tops of walls, etc, shall be levelled and prepared for raising of brickwork","",null,null,""]
[256,10409,2,1,null,"31","","Making good of finishes shall include making good of the brick and concrete surfaces onto which the new finishes are applied, where necessary","",null,null,""]
[257,10410,2,1,null,"31","","The contractor will be required to take all dimensions affecting the existing buildings on the site and he will be held solely responsible for the accuracy of all such dimensions where used in the manufacture of new items (doors, windows, fittings, etc)","",null,null,""]
[258,10412,2,1,null,"31","","Items described as to be re-used or to be handed over to the Client are to be carefully dismantled where necessary and stacked on site where directed, and the Contractor will be responsible for their removal and storage until required, and shall make good all items missing, damaged or broken at his own expense","",null,null,""]
[259,10413,2,1,null,"31","","Unless otherwise described, no materials from the alterations shall be re-used in any new work without the written approval of the client","",null,null,""]
[260,9639,2,1,null,"32","","Prices are to include for carting away from site all materials not specifically mentioned as being stored on site for re-use or handed over to the client and all rubbish, debris, etc., arising from the alterations, etc., and for making good all work damaged or disturbed to the approval of the client","",null,null,""]
[261,16208,2,1,null,"32","","GENERAL ","H2",null,null,""]
[262,16209,2,1,null,"32.1","","Allow for protecting all existing work liable to suffer damage (i.e. walls, finishes, floors, windows, etc.) during the building operations, alterations, etc., and make good all work damaged with new material to match existing to the approval of the principal agent","Item",{"v":1,"d":"1.00"},null,{"$f":"J51*K51","v":0}]
[263,18392,2,1,null,"32","","TEMPORARY BARRIERS, SCREENS, ETC.","H2",null,null,""]
[264,18393,2,1,null,"","","Temporary barriers, screens, etc. including removal","H3",null,null,""]
[265,18394,2,1,null,"","","Dust screen 2000mm high, of suitable timber framing with HDPE knitted shade cloth stapled on one side, including corners, ends, etc.","m",165,null,{"$f":"J54*K54","v":0}]
[266,16210,2,1,null,"32","","REMOVAL OF EXISTING WORK","H2",null,null,""]
[267,18036,2,1,null,"","","Breaking up and removing reinforced concrete, including cutting off and removing reinforcement","H3",null,null,""]
[268,18037,2,1,null,"","","150mm Thick surface beds","m3",18,null,{"$f":"J57*K57","v":0}]
[269,16211,2,1,null,"","","Breaking down and removing brickwork etc","H3",null,null,""]
[270,16472,2,1,null,"8.2","","Half brick walls","m2",125,null,{"$f":"J59*K59","v":0}]
[271,16642,2,1,null,"","","One brick walls","m2",535,null,{"$f":"J60*K60","v":0}]
[356,17017,2,1,null,"","","Taking out/off and removing sundry metalwork","H3",null,null,""]
[360,37162,2,1,null,"","","Steel palisade fence 2800mm high","m",39,null,{"$f":"J62*K62","v":0}]
[361,37152,2,1,null,"","","Steel ramp size 5580 x 1200mm wide, fixed to concrete or brickwork","No",1,null,0]
[362,36940,2,1,null,"","","Motorized steel entrance gate complete, overall size 4800 x 3000mm high","No",1,null,0]
[363,17018,2,1,null,"","","Steel gate overall size 1500 x 2700mm high bolted to brickwork","No",1,null,0]
[364,17037,2,1,null,"","","Steel gate overall size 5600 x 2600mm high bolted to brickwork","No",1,null,0]
[365,17040,2,1,null,"","","Steel cage overall size 1350 x 2600mm high bolted to brickwork","No",1,null,0]
[366,17061,2,1,null,"","","Steel cage overall size 3100 x 2100mm high bolted to brickwork","No",1,null,0]
[367,17060,2,1,null,"","","Steel cage overall size 6400 x 1300mm high bolted to brickwork","No",2,null,0]
[368,17062,2,1,null,"","","Steel shelves overall size 3500 x 2100mm high bolted to brickwork","No",1,null,0]
[369,17063,2,1,null,"","","Steel shelves overall size 6500 x 2100mm high bolted to brickwork","No",1,null,0]
[370,17042,2,1,null,"","","Vault door overall size 1000 x 1900mm high","No",2,null,0]
[371,17045,2,1,null,"","","Cash deposit box overall size 1200 x 2200mm high bolted to brickwork","No",5,null,0]
[375,17116,2,1,null,"","","Disconnect and remove industrial extractor, overall size 5000 x 1200mm wide","No",1,null,0]
[376,36968,2,1,null,"","","Hacking up/off and removing granolithic, screeds, plaster, etc from concrete or brickwork and preparing surfaces for new screed, plaster, tile finishes, etc","H3",null,null,""]
[377,36969,2,1,null,"","","35mm Screed from floors","m2",4900,null,{"$f":"J76*K76","v":0}]
[378,36970,2,1,null,"","","Internal plaster from walls and columns","m2",6230,null,0]
[384,16988,2,1,null,"","","Taking  out and removing piping, sanitary fittings, etc, including cutting off as necessary, disconnecting  piping from fittings  and  making good floor and wall finishes (making good tiling and paintwork elsewhere measured)","H3",null,null,""]
[385,22314,2,1,null,"","","PVC/copper/steel/cast iron piping not exceeding 50mm external girth diameter","m",100,null,{"$f":"J79*K79","v":0}]
[386,22315,2,1,null,"","","PVC/copper/steel/cast iron piping exceeding 50mm and not exceeding 100mm external girth diameter","m",100,null,0]
[387,22316,2,1,null,"","","PVC/copper/steel/cast iron piping exceeding 100mm and not exceeding 150mm external girth diameter","m",50,null,0]
[398,16228,2,1,null,"92","","PREPARATORY WORK TO EXISTING SURFACES","H2",null,null,""]
[399,16229,2,1,null,"36.49","","Scabble existing concrete floor with a heavy duty floor scabbler, to remove all adhesive from concrete and preparing surfaces to receive new screed","m2",1886,null,{"$f":"J83*K83","v":0}]
[400,19400,2,1,null,"16","","MAKING GOOD EXISTING FINISHES, ETC.","H2",null,null,""]
[401,19406,2,1,null,"","","Making good cement screed","H3",null,null,""]
[402,19407,2,1,null,"","","25mm Thick on floors in patches","m2",10,null,{"$f":"J86*K86","v":0}]
[403,22319,2,1,null,"","","Making good internal cement plaster","H3",null,null,""]
[404,22320,2,1,null,"","","Walls in patches","m2",52,null,{"$f":"J88*K88","v":0}]
[405,22323,2,1,null,"","","Concrete ceilings in patches","m2",82,null,0]
[406,17014,2,1,null,"","","CLEANING OF EXISTING SURFACES","H2",null,null,""]
[407,18398,2,1,null,"","","Cleaning down existing face brick with a high pressure jet/detergent water spray system","H3",null,null,""]
[408,17136,2,1,null,"","","External facebrick walls","m2",{"$f":"4040*0","v":0},null,{"$f":"J92*K92","v":0}]
[409,37141,2,1,null,"","","OPENINGS THROUGH EXISTING WALLS ETC","H2",null,null,""]
[410,37142,2,1,null,"","","Breaking out for and forming plain openings through brick walls, including prestressed concrete lintels, making good cement plaster on both sides and into reveals and with 20 MPa concrete thresholds with steel trowelled finish (making good paintwork elsewhere)","H3",null,null,""]
[411,37143,2,1,null,"","","Opening 2760 x 2600mm high through one brick wall","No",1,null,{"$f":"J95*K95","v":0}]
[413,17142,2,2,null,"","","SECTION NO. 2","H1",null,null,""]
[414,17143,2,2,null,"","","BILL NO. 2: EARTHWORKS","H1",null,null,{"$f":"SUM(L98:L141)","v":0}]
[415,17144,2,2,null,"","","EARTHWORKS (PROVISIONAL) (CPAP WORK GROUP NO. 104 UNLESS OTHERWISE STATED)","H1",null,null,""]
[416,22313,2,2,null,"31","","The Tenderer is referred to the relevant Clauses in the separate document General Preambles for Trades (2017)","",null,null,""]
[417,18403,2,2,null,"","","SUPPLEMENTARY PREAMBLES","H2",null,null,""]
[418,18404,2,2,null,"","","Nature of ground","H3",null,null,""]
[419,18405,2,2,null,"","","The nature of the ground is assumed to be loose sandy material, therefore \"earth\", but possibly interspersed with \"soft rock\" or \"hard rock\"","",null,null,""]
[420,18406,2,2,null,"","","Subterranean water","H3",null,null,""]
[421,18407,2,2,null,"","","No subterranean water is expected. The removal of subterranean water is given separately","",null,null,""]
[422,19371,2,2,null,"","","Working space","H3",null,null,""]
[423,19372,2,2,null,"","","Working space for formwork will only be paid for where specifically required and instructed in writing by the Engineer.","",null,null,""]
[424,19374,2,2,null,"","","No separate item for working space is provided or will be considered where the face of the measured excavation is 750mm or more away from the finished face of the structure. Separate items for working space for the building of brick foundation walls on ordinary concrete wall footings will not be considered.","",null,null,""]
[425,18408,2,2,null,"","","Carting away of excavated material","H3",null,null,""]
[426,18409,2,2,null,"","","Descriptions of carting away of excavated material shall be deemed to include loading excavated material onto trucks directly from the excavations or, alternatively, from stock piles situated on the building site","",null,null,""]
[427,18410,2,2,null,"","","Filling","H3",null,null,""]
[428,18411,2,2,null,"","","References such as \"G1\", \"G2\", etc and \"C1\", \"C2\", etc in descriptions of filling and layer work materials refer to corresponding references in the document \"Guidelines for Road Construction Materials. TRH 14 : 1985\" compiled by the Committee of State Road Authorities and the properties set out therein for each kind shall be applicable to the respective materials described hereinafter","",null,null,""]
[429,18412,2,2,null,"","","Testing","H3",null,null,""]
[430,18413,2,2,null,"","","Prices for filling are to include for all necessary density and other tests","",null,null,""]
[431,17148,2,2,null,"","","EXCAVATION, FILLING, ETC OTHER THAN BULK","H2",null,null,""]
[432,18428,2,2,null,"","","EXCAVATIONS, ETC","H2",null,null,""]
[433,17149,2,2,null,"","","Excavation in earth not exceeding 2m deep","H3",null,null,""]
[434,17150,2,2,null,"","","Holes","m3",3,null,{"$f":"J117*K117","v":0}]
[435,37153,2,2,null,"","","Trenches","m3",6,null,0]
[436,22341,2,2,null,"","","Back excavation of vertical sides of excavations in earth for working space including backfilling compacted to 98% Mod AASHTO density","H3",null,null,""]
[437,22342,2,2,null,"","","Exceeding 500m and not exceeding 1500m deep for placing and removing formwork to walls etc, against excavated face","m2",26,null,{"$f":"J120*K120","v":0}]
[438,17151,2,2,null,"","","Extra over all excavations for carting away","H3",null,null,""]
[439,17152,2,2,null,"","","Surplus material from excavations and/or stock piles on site, to a dumping site to be located by the contractor ","m3",7,null,{"$f":"J122*K122","v":0}]
[440,17153,2,2,null,"","","Risk of collapse of excavations","H3",null,null,""]
[441,17154,2,2,null,"","","Sides of trench and hole excavations not exceeding 1,5m deep ","m2",24,null,{"$f":"J124*K124","v":0}]
[442,17155,2,2,null,"","","Keeping excavations free of water","H3",null,null,""]
[443,17156,2,2,null,"","","Keeping excavations free of all water other than subterranean water","Item",{"v":1,"d":"1.00"},null,{"$f":"J126*K126","v":0}]
[444,18429,2,2,null,"","","FILLING ETC","H2",null,null,""]
[445,17157,2,2,null,"","","G2 Earth filling supplied by the contractor, compacted to 98% Mod AASHTO density","H3",null,null,""]
[446,17158,2,2,null,"","","Backfilling to trenches, holes, etc ","m3",13,null,{"$f":"J129*K129","v":0}]
[447,17159,2,2,null,"","","G7 Earth filling supplied by the contractor, compacted to 98% Mod AASHTO density","H3",null,null,""]
[448,17160,2,2,null,"","","Backfilling to trenches, holes, etc ","m3",4,null,{"$f":"J131*K131","v":0}]
[449,37146,2,2,null,"","","Filling of coarse river sand supplied by the contractor, consolidated","H3",null,null,""]
[450,37147,2,2,null,"","","Under floors etc","m3",11,null,{"$f":"J133*K133","v":0}]
[451,37070,2,2,null,"","","Compaction of ground surfaces","H3",null,null,""]
[452,37071,2,2,null,"","","Compaction of natural or excavated ground surface under floors etc, including scarifying for a depth of 150mm, breaking down oversize material, adding suitable material where necessary and compacting to 98% Mod AASHTO density","m2",81,null,{"$f":"J135*K135","v":0}]
[453,17161,2,2,null,"","","WEED KILLERS, INSECTICIDES, ETC","H2",null,null,""]
[454,17162,2,2,null,"","","Soil insecticide in accordance with SANS 5859","H3",null,null,""]
[455,17163,2,2,null,"","","To bottoms and sides of trenches etc ","m2",68,null,{"$f":"J138*K138","v":0}]
[456,22343,2,2,null,"","","TESTS","H2",null,null,""]
[457,18430,2,2,null,"","","Prescribed tests to determine degree of compaction or other properties of ground or filling","H3",null,null,""]
[458,18431,2,2,null,"","","\"Modified AASHTO Density\" test ","No",8,null,{"$f":"J141*K141","v":0}]
[460,17167,2,3,null,"","","SECTION NO. 2","H1",null,null,""]
[461,17168,2,3,null,"","","BILL NO. 3: CONCRETE, FORMWORK AND REINFORCEMENT","H1",null,null,{"$f":"SUM(L144:L197)","v":0}]
[462,17169,2,3,null,"","","CONCRETE, FORMWORK AND REINFORCEMENT (PROVISIONAL) (CPAP WORK GROUP NO. 110 UNLESS OTHERWISE STATED)","H1",null,null,""]
[463,22324,2,3,null,"31","","The Tenderer is referred to the relevant Clauses in the separate document General Preambles for Trades (2017)","",null,null,""]
[464,18414,2,3,null,"","","SUPPLEMENTARY PREAMBLES","H2",null,null,""]
[465,18415,2,3,null,"","","Cost of tests","H3",null,null,""]
[466,18416,2,3,null,"","","The costs of making, storing and testing of concrete test cubes as required under clause 7 \"Tests\" of SABS 1200 G shall include the cost of providing cube moulds necessary for the purpose, for testing costs and for submitting reports on the tests to the principal agent.  The testing shall be undertaken by an independent firm or institution nominated by the contractor to the approval of the project manager. (Test cubes are measured separately)","",null,null,""]
[467,18421,2,3,null,"","","Formwork","H3",null,null,""]
[468,18422,2,3,null,"","","Descriptions of formwork shall be deemed to include use and waste only (except where described as \"left in\" or \"permanent\"), for fitting together in the required forms, wedging, plumbing and fixing to true angles and surfaces as necessary to ensure easy release during stripping and for reconditioning as necessary before re-use","",null,null,""]
[469,18423,2,3,null,"","","The vertical strutting shall be carried down to such construction as is sufficiently strong to afford the required support without damage and shall remain in position until the newly constructed work is able to support itself","",null,null,""]
[470,22344,2,3,null,"","","Formwork to soffits of slabs, beams, etc shall be deemed to be propped up exceeding 1,5m and not exceeding 3,5m high unless otherwise described","",null,null,""]
[471,18302,2,3,null,"","","UNREINFORCED CONCRETE CAST AGAINST EXCAVATED SURFACES","H2",null,null,""]
[472,18303,2,3,null,"","","15MPa/19mm concrete","H3",null,null,""]
[473,18304,2,3,null,"","","Surface blinding under footings and bases","m3",2,null,{"$f":"J155*K155","v":0}]
[474,17174,2,3,null,"","","REINFORCED CONCRETE CAST AGAINST EXCAVATED SURFACES","H2",null,null,""]
[475,17175,2,3,null,"","","25MPa/19mm concrete","H3",null,null,""]
[476,37154,2,3,null,"","","Strip footings","m3",2,null,{"$f":"J158*K158","v":0}]
[477,17177,2,3,null,"","","Bases ","m3",1,null,0]
[478,17170,2,3,null,"","","REINFORCED CONCRETE CAST ON/IN FORMWORK","H2",null,null,""]
[479,18432,2,3,null,"","","30MPa/19mm concrete","H3",null,null,""]
[480,17173,2,3,null,"","","Surface beds","m3",1,null,{"$f":"J162*K162","v":0}]
[481,17172,2,3,null,"","","30MPa/19mm concrete","H3",null,null,""]
[482,37144,2,3,null,"","","Ramps","m3",6,null,{"$f":"J164*K164","v":0}]
[483,17181,2,3,null,"","","Machine bases","m3",1,null,0]
[484,17178,2,3,null,"","","Isolated beams","m3",1,null,0]
[485,17179,2,3,null,"","","Columns","m3",1,null,0]
[486,18305,2,3,null,"","","TEST CUBES","H2",null,null,""]
[487,18306,2,3,null,"","","Making and testing 150 x 150 x 150mm concrete strength test cube (Provisional)","No",12,null,{"$f":"J169*K169","v":0}]
[488,18307,2,3,null,"","","CONCRETE SUNDRIES","H2",null,null,""]
[489,18308,2,3,null,"","","Finishing top surfaces of concrete smooth with a steel trowel","H3",null,null,""]
[490,18309,2,3,null,"","","Surface beds, slabs, etc","m2",26,null,{"$f":"J172*K172","v":0}]
[491,22345,2,3,null,"","","Tops of beams, walls, etc","m2",1,null,0]
[492,37077,2,3,null,"","","\"Prostruct 616\" or other equal and approved wet to dry concrete adhesive","H3",null,null,""]
[493,37078,2,3,null,"","","Prepare existing concrete surface and apply two-component, solvent-free modified epoxy","m2",9,null,{"$f":"J175*K175","v":0}]
[494,37155,2,3,null,"","","ROUGH FORMWORK (DEGREE OF ACCURACY III) (CPAP WORK GROUP NO. 111 UNLESS OTHERWISE STATED)","H2",null,null,""]
[495,37156,2,3,null,"","","Rough formwork to sides","H3",null,null,""]
[496,37157,2,3,null,"","","Strip footings (Provisional)","m2",7,null,{"$f":"J178*K178","v":0}]
[497,17182,2,3,null,"","","SMOOTH FORMWORK (DEGREE OF ACCURACY II) (CPAP WORK GROUP NO. 111 UNLESS OTHERWISE STATED)","H2",null,null,""]
[498,18310,2,3,null,"","","Smooth formwork to sides","H3",null,null,""]
[499,18312,2,3,null,"","","Rectangular columns","m2",10,null,{"$f":"J181*K181","v":0}]
[500,18311,2,3,null,"","","Edges not exceeding 300mm high","m",37,null,0]
[501,18313,2,3,null,"","","Smooth formwork to sides and soffits","H3",null,null,""]
[502,18314,2,3,null,"","","Isolated beams propped up exceeding 1.5m and not exceeding 3.5m high","m2",10,null,{"$f":"J184*K184","v":0}]
[503,17183,2,3,null,"","","Boxing in smooth formwork to form","H3",null,null,""]
[504,17184,2,3,null,"","","25mm Vertical chamfers at corners","m",55,null,{"$f":"J186*K186","v":0}]
[505,18433,2,3,null,"","","MOVEMENT JOINTS ETC (CPAP WORK GROUP NO. 110 UNLESS OTHERWISE STATED)","H2",null,null,""]
[506,18434,2,3,null,"","","Expansion joints with 10mm polystyrene backing between vertical concrete surfaces, including necessary formwork","H3",null,null,""]
[507,36939,2,3,null,"","","Not exceeding 300mm high to edges of surfaces beds","m",22,null,{"$f":"J189*K189","v":0}]
[508,37073,2,3,null,"","","Saw-cut joints","H3",null,null,""]
[509,37074,2,3,null,"","","6 x 10mm Saw-cut joints in top of concrete","m",35,null,{"$f":"J191*K191","v":0}]
[510,17185,2,3,null,"","","REINFORCEMENT (PROVISIONAL) (CPAP WORK GROUP NO. 114 UNLESS OTHERWISE STATED)","H2",null,null,""]
[511,17186,2,3,null,"","","High tensile steel reinforcement to structural concrete work","H3",null,null,""]
[512,17187,2,3,null,"","","Bars in various diameters","t",{"v":1.5,"d":"1.50"},null,{"$f":"J194*K194","v":0}]
[513,17191,2,3,null,"","","Fabric reinforcement","H3",null,null,""]
[514,17192,2,3,null,"","","Type 193 fabric reinforcement in concrete surface beds etc","m2",82,null,{"$f":"J196*K196","v":0}]
[515,17193,2,3,null,"","","Type 245 fabric reinforcement in concrete slabs etc","m2",10,null,0]
[517,17199,2,4,null,"","","SECTION NO. 2","H1",null,null,""]
[518,17200,2,4,null,"","","BILL NO. 4: MASONRY","H1",null,null,{"$f":"SUM(L200:L229)","v":0}]
[519,17201,2,4,null,"","","MASONRY (PROVISIONAL) (CPAP WORK GROUP NO. 116 UNLESS OTHERWISE STATED)","H1",null,null,""]
[520,22325,2,4,null,"31","","The Tenderer is referred to the relevant Clauses in the separate document General Preambles for Trades (2017)","",null,null,""]
[521,17203,2,4,null,"","","SUPPLEMENTARY PREAMBLES","H2",null,null,""]
[522,17204,2,4,null,"","","Sizes in descriptions","H3",null,null,""]
[523,17205,2,4,null,"","","Where sizes in descriptions are given in brick units, \"one brick\" shall represent the length and \"half brick\" the width of a brick","",null,null,""]
[524,17212,2,4,null,"1","","BRICKWORK","H2",null,null,""]
[525,37158,2,4,null,"","","FOUNDATIONS (PROVISIONAL)","H2",null,null,""]
[526,37159,2,4,null,"","","Brickwork of NFX bricks (14 MPa nominal compressive strength) in class II mortar","H3",null,null,""]
[527,37160,2,4,null,"","","One brick walls","m2",4,null,{"$f":"J208*K208","v":0}]
[528,18436,2,4,null,"","","SUPERSTRUCTURE","H2",null,null,""]
[529,18437,2,4,null,"","","Brickwork of NFP bricks in class II mortar","H3",null,null,""]
[530,17215,2,4,null,"23.3","","Half brick wall","m2",185,null,{"$f":"J211*K211","v":0}]
[531,17216,2,4,null,"","","One brick walls","m2",228,null,0]
[532,17217,2,4,null,"","","230mm Hollow walls of two half brick skins","m2",165,null,0]
[533,17218,2,4,null,"","","BRICKWORK SUNDRIES","H2",null,null,""]
[534,17220,2,4,null,"","","Forming toothings and bonding new brickwork to existing","m2",25,null,{"$f":"J215*K215","v":0}]
[535,18483,2,4,null,"","","Closing 230mm cavities of hollow walls horizontally with one course of brickwork","m",57,null,0]
[536,36956,2,4,null,"","","Bagging of 1:3 cement and sand mixture","H3",null,null,""]
[537,36957,2,4,null,"","","On brick walls, piers, etc","m2",11,null,{"$f":"J218*K218","v":0}]
[538,17224,2,4,null,"","","Joint forming material in movement joints","H3",null,null,""]
[539,22350,2,4,null,"","","10mm Expanded polystyrene built in vertically between brick skins","m2",6,null,{"$f":"J220*K220","v":0}]
[540,37072,2,4,null,"","","10mm Expanded polystyrene built in vertically between brick and concrete surfaces","m2",2,null,0]
[541,17221,2,4,null,"","","2,5mm Galvanised brick reinforcement","H3",null,null,""]
[542,17222,2,4,null,"","","75mm Wide reinforcement built in horizontally","m",741,null,{"$f":"J223*K223","v":0}]
[543,17223,2,4,null,"","","150mm Wide reinforcement built in horizontally","m",1587,null,0]
[544,17226,2,4,null,"","","Prestressed fabricated concrete lintels including necessary temporary supports","H3",null,null,""]
[545,17227,2,4,null,"","","100 x 75mm Lintels in lengths not exceeding 3m ","m",127,null,{"$f":"J226*K226","v":0}]
[546,17230,2,4,null,"","","Galvanised hoop iron cramps, ties, etc","H3",null,null,""]
[547,17231,2,4,null,"","","30 x 1,2mm Wall tie 800mm long with both ends built into brickwork","No",247,null,{"$f":"J228*K228","v":0}]
[548,17232,2,4,null,"","","30 x 1,2mm Wall tie 800mm long with one end shot pinned to concrete and other end built into brickwork ","No",146,null,0]
[550,17234,2,5,null,"","","SECTION NO. 2","H1",null,null,""]
[551,17235,2,5,null,"","","BILL NO. 5: WATERPROOFING","H1",null,null,{"$f":"SUM(L233:L249)","v":0}]
[552,17236,2,5,null,"","","WATERPROOFING (CPAP WORK GROUP NO. 120 UNLESS OTHERWISE STATED)","H1",null,null,""]
[553,22326,2,5,null,"31","","The Tenderer is referred to the relevant Clauses in the separate document General Preambles for Trades (2017)","",null,null,""]
[554,17237,2,5,null,"","","SUPPLEMENTARY PREAMBLES","H2",null,null,""]
[555,17238,2,5,null,"","","Waterproofing","H3",null,null,""]
[556,17239,2,5,null,"","","Waterproofing of roofs, basements, etc shall be laid under a ten year guarantee.  Waterproofing to roofs shall be laid to even falls to outlets etc with necessary ridges, hips and valleys. Descriptions of sheet or membrane waterproofing shall be deemed to include additional labour to turn-ups and turn-downs","",null,null,""]
[557,17240,2,5,null,"","","DAMPPROOFING OF WALLS AND FLOORS","H2",null,null,""]
[558,18438,2,5,null,"","","One layer 375 micron embossed polyethylene dampproof course (SANS 952-1985 type B)","H3",null,null,""]
[559,18439,2,5,null,"","","In walls","m2",33,null,{"$f":"J239*K239","v":0}]
[560,17241,2,5,null,"","","One layer 250 micron green polyethylene waterproof sheeting (SANS 952-1985 type C) sealed at laps with PVC self-adhesive tape","H3",null,null,""]
[561,17242,2,5,null,"","","Under surface beds ","m2",61,null,{"$f":"J241*K241","v":0}]
[562,17247,2,5,null,"","","WATERPROOFING TO ROOFS, ETC,","H2",null,null,""]
[567,18207,2,5,null,"","","PROTECTIVE ROOFING PAINT","H2",null,null,""]
[568,18208,2,5,null,"","","Two coats bituminous aluminium paint","H3",null,null,""]
[569,18209,2,5,null,"","","On waterproofing to roofs","m2",1278,null,{"$f":"J245*K245","v":0}]
[570,17251,2,5,null,"","","WATERSTOPS, SEALING STRIPS, JOINT SEALANTS, ETC","H2",null,null,""]
[571,17252,2,5,null,"","","Polyurethane sealing compound including backing cord, bond breaker, primer, etc","H3",null,null,""]
[573,17253,2,5,null,"","","10 x 10mm In expansion joints on walls","m",222,null,{"$f":"J248*K248","v":0}]
[574,18443,2,5,null,"","","10 x 10mm In expansion joints on floors","m",22,null,0]
[576,19336,2,6,null,"31","","SECTION NO. 2","H1",null,null,""]
[577,19337,2,6,null,"31","","BILL NO. 6: ROOF COVERINGS, ETC.","H1",null,null,{"$f":"SUM(L252:L266)","v":0}]
[578,19338,2,6,null,"","","ROOF COVERINGS, ETC. (PROVISIONAL) (CPAP WORK GROUP NO. 125 UNLESS OTHERWISE STATED)","H1",null,null,""]
[579,22327,2,6,null,"31","","The Tenderer is referred to the relevant Clauses in the separate document General Preambles for Trades (2017)","",null,null,""]
[580,19339,2,6,null,"","","SUPPLEMENTARY PREAMBLES","H2",null,null,""]
[581,19340,2,6,null,"","","Corrugated metal sheeting and accessories","H3",null,null,""]
[582,19341,2,6,null,"","","Roof sheeting systems are to be Manufactured in strict accordance with the Supplier's specifications.","",null,null,""]
[583,19342,2,6,null,"","","Fixing of all roof sheeting is to be in accordance with the Manufacturer's approved Instruction Book.","",null,null,""]
[584,19343,2,6,null,"","","The Manufacturer shall comply with ISO9002 Quality Management System.","",null,null,""]
[585,19344,2,6,null,"","","PROFILED METAL SHEETING AND ACCESSORIES","H2",null,null,""]
[586,19345,2,6,null,"8","","\"Safintra\" or other equal and approved 0,80mm thick 410mm cover Saflok 410® Hazy Grey G4 COLORTECH ALUMINIUM interlocking roof covering, fixed to steel purlins at approximately 1290mm centres and end-span purlins at 1118mm centres (final spacing to be confirmed on site) using SL 410® clips secured to purlins with Stainless Steel or \"Safintra\" or other equal and approved wafer head self-tapping fasteners, all in accordance with the manufacturer`s recommendations.","H3",null,null,""]
[587,19346,2,6,null,"","","Roof covering with pitch not exceeding 25 degrees","m2",960,null,{"$f":"J261*K261","v":0}]
[588,19347,2,6,null,"","","Extra over on roof covering for positive fixing of ends of roof with S-5-K Grip clips","No",50,null,0]
[589,19348,2,6,null,"","","SHEET METAL FLASHINGS, LININGS, COPINGS, ETC.","H2",null,null,""]
[590,19349,2,6,null,"","","0,6mm Aluminium cover flashings","H3",null,null,""]
[591,19350,2,6,null,"","","Cover flashings 600mm girth","m",170,null,{"$f":"J265*K265","v":0}]
[592,19351,2,6,null,"","","Head / side wall flashings 600mm girth","m",170,null,0]
[594,17255,2,7,null,"","","SECTION NO. 2","H1",null,null,""]
[595,17256,2,7,null,"","","BILL NO. 7: CARPENTRY AND JOINERY","H1",null,null,{"$f":"SUM(L269:L330)","v":0}]
[596,17257,2,7,null,"","","CARPENTRY AND JOINERY (PROVISIONAL) (CPAP WORK GROUP NO. 126 UNLESS OTHERWISE STATED)","H1",null,null,""]
[597,22328,2,7,null,"31","","The Tenderer is referred to the relevant Clauses in the separate document General Preambles for Trades (2017)","",null,null,""]
[598,17259,2,7,null,"","","SUPPLEMENTARY PREAMBLES","H2",null,null,""]
[599,17260,2,7,null,"","","Fixing","H3",null,null,""]
[600,17261,2,7,null,"","","Items described as \"nailed\" shall be deemed to be fixed with hardened steel nails or pins, or to be shot-pinned, to brickwork or concrete","",null,null,""]
[601,17262,2,7,null,"","","Items described as \"plugged\" shall be deemed to include screwing to fibre, plastic or metal plugs at not exceeding 500mm centres, and where described as \"bolted\", the bolts have been given elsewhere","",null,null,""]
[602,17263,2,7,null,"","","Joinery","H3",null,null,""]
[603,17264,2,7,null,"","","Descriptions of frames shall be deemed to include frames, transomes, rails, etc","",null,null,""]
[604,17265,2,7,null,"","","Descriptions of hardwood joinery shall be deemed to include sinking and pelleting heads and nuts of bolts","",null,null,""]
[605,17283,2,7,null,"","","SKIRTINGS","H2",null,null,""]
[606,17284,2,7,null,"","","Wrought meranti","H3",null,null,""]
[607,17285,2,7,null,"","","19 x 100mm Bullnose skirtings, plugged","m",2274,null,{"$f":"J280*K280","v":0}]
[608,17286,2,7,null,"","","DOORS ETC","H2",null,null,""]
[609,17293,2,7,null,"","","Meranti hardwood doors hung to timber frames","H3",null,null,""]
[610,17294,2,7,null,"","","40mm Door 762 x 2032mm high","No",14,null,{"$f":"J283*K283","v":0}]
[611,17297,2,7,null,"","","40mm Door 813 x 2032mm high","No",5,null,0]
[612,22353,2,7,null,"","","Extra over for 500 x 300mm framed opening for metal louvre unit (louvre unit elsewhere)","No",15,null,0]
[613,17288,2,7,null,"","","Semi-solid hardwood doors with 3.2mm plain hardboard covering on both sides, hung to timber frames","H3",null,null,""]
[614,17289,2,7,null,"","","40mm Door 624 x 2032mm high","No",10,null,{"$f":"J287*K287","v":0}]
[615,17290,2,7,null,"","","40mm Door 762 x 2032mm high","No",9,null,0]
[616,17291,2,7,null,"","","40mm Door 813 x 2032mm high","No",7,null,0]
[617,17292,2,7,null,"","","40mm Duct door 1230 x 2032mm high","No",20,null,0]
[618,36967,2,7,null,"","","Extra over for 500 x 300mm framed opening for metal louvre unit (louvre unit elsewhere)","No",3,null,0]
[619,17303,2,7,null,"","","Fire doors","H3",null,null,""]
[620,17305,2,7,null,"","","\"Bitcon\" or other equal and approved fire doors hung to steel frames","H3",null,null,""]
[621,18610,2,7,null,"","","Class B fire double door 813 x 2032mm high, with 100 x 300mm clear fire rated glass, including preparing frame for door closers","No",14,null,{"$f":"J294*K294","v":0}]
[622,18611,2,7,null,"","","Class B fire double door 1511 x 2400mm high, each leaf with 100 x 300mm opening with clear fire rated glass, including pressed steel frame for 270mm brick wall and preparing frame for door closers","No",8,null,0]
[623,17308,2,7,null,"","","FRAMED FRAMES ETC","H2",null,null,""]
[624,17310,2,7,null,"","","Meranti hardwood timber","H3",null,null,""]
[625,17312,2,7,null,"","","38 x 76mm Rebated frames","m",200,null,{"$f":"J298*K298","v":0}]
[626,17313,2,7,null,"","","53 x 86mm Rebated frames","m",45,null,0]
[627,18444,2,7,null,"","","BEADS, ARCHITRAVES, SILLS, ETC","H2",null,null,""]
[628,18445,2,7,null,"","","Meranti hardwood timber","H3",null,null,""]
[629,18446,2,7,null,"","","19mm Quadrant beads","m",830,null,{"$f":"J302*K302","v":0}]
[630,17314,2,7,null,"","","PANELLING","H2",null,null,""]
[631,18447,2,7,null,"","","References given in descriptions refer to the respective types of fittings detailed on the architect's drawings numbered 610-04 accompanying these bills of quantities for tender purposes","H4",null,null,""]
[632,17315,2,7,null,"","","Formica laminated boxed slat 100 x 34mm (Colour: Saxon Oak) installed seamlessly onto a 120 x 55mm steel channel parallel flange fixed with ceiling straps onto bulkhead on one side and fixed with chemical anchor onto brickwork on the other side","m",15,null,{"$f":"J305*K305","v":0}]
[633,37002,2,7,null,"","","Supa-wood timber","H3",null,null,""]
[634,37062,2,7,null,"","","78 x 36.5mm Thick supa-wood or other equal and approved timber spacer block fixed to steel lipped channel with an approved adhesive","m",471,null,{"$f":"J307*K307","v":0}]
[635,37003,2,7,null,"","","53 x 10mm Thick supa-wood or other equal and approved timber spacer fixed to existing concrete with an approved adhesive","m",212,null,0]
[636,37004,2,7,null,"","","53 x 8mm Thick supa-wood or other equal and approved timber spacer fixed to steel channel with an approved adhesive","m",630,null,0]
[637,17316,2,7,null,"","","FITTINGS","H2",null,null,""]
[638,17317,2,7,null,"","","CUPBOARDS TO KITCHENS, OFFICES, ETC","H2",null,null,""]
[639,17318,2,7,null,"","","SUPPLEMENTARY PREAMBLES","H2",null,null,""]
[640,17319,2,7,null,"","","General","H3",null,null,""]
[641,17320,2,7,null,"","","The following cupboard fittings have been given as complete units i.e. the components of the units have not been given separately. Descriptions of such units shall, therefore, be deemed to include all components, assembling, housing, notching, glueing, blocking, planting-on and screwing with countersunk screws, edge strips, thermosetting plastic laminate, glass, ironmongery, metalwork, paint or varnish finishes, etc  Prices are to include for all necessary filler pieces against walls etc","",null,null,""]
[642,17321,2,7,null,"","","References","H3",null,null,""]
[643,17322,2,7,null,"","","References given in descriptions refer to the respective types of fittings detailed on the architect's drawings numbered 610-01 to 610-03 accompanying these bills of quantities for tender purposes","H4",null,null,""]
[644,22357,2,7,null,"","","Reception counters, etc","H3",null,null,""]
[645,17323,2,7,null,"","","12mm \"Dupont Corian\" or other equal and approved desk counter overall size 3301 x 800 x 740mm high, colour: Glacier white installed seamlessly on a rubber layer with appropriate adhesive on 50 x 50mm steel support frame. Formica laminate desk apron, overall size 3050 x 1100mm high, colour texture: Saxon Oak laminate installed seamlessly on 16mm superwood on 50 x 50mm steel support frame. Fixing to manufacturer's specification","No",1,null,{"$f":"J318*K318","v":0}]
[646,17325,2,7,null,"","","12mm L- Shaped \"Dupont Corian\" or other equal and approved desk counter overall size 3900 x 600 x 1000mm high, colour: Glacier white installed seamlessly on a rubber layer with appropriate adhesive on 50 x 50mm steel support frame. Formica laminate desk apron, overall size 4158 x 1100mm high, colour texture: Saxon Oak laminate installed seamlessly on 16mm superwood on 50 x 50mm steel support frame. Fixing to manufacturer's specification","No",1,null,0]
[647,17327,2,7,null,"","","Kitchen cupboards etc","H3",null,null,""]
[648,17328,2,7,null,"","","Supa-wood with triple Duco gloss finish with \"Caesarstone\" or other equal and approved counter tops, colour: Raven","H4",null,null,""]
[649,17329,2,7,null,"","","Wall cupboard overall size 900 x 1800mm high with top, sides, bottom, division, shelf, back and one double hinged door","No",5,null,{"$f":"J322*K322","v":0}]
[650,17330,2,7,null,"","","Floor cupboard overall size 3234 x 1000mm high with 30mm \"caesarstone\" or other equal and approved counter top, sides, bottom, division, shelf, back and one single and one double hinged door, four telescopic pull doors, one lift door and two open shelves","No",5,null,0]
[651,17331,2,7,null,"","","Sink cupboard overall size 2542 x 900mm high with 30mm \"caesarstone\" or other equal and approved counter top, sides, bottom, divisions, shelf, back and one single, one double hinged doors, four telescopic pull doors and one lift door (sink elsewhere measured) ","No",5,null,0]
[652,17332,2,7,null,"","","Sink cupboard overall size 3010 x 900mm high with 30mm \"caesarstone\" or other equal and approved counter top, sides, bottom, divisions, shelf, back and one single, one double hinged doors, four telescopic pull doors and one lift door (sink elsewhere measured) ","No",5,null,0]
[653,17333,2,7,null,"","","Sink cupboard overall size 3024 x 900mm high with 30mm \"caesarstone\" or other equal and approved counter top, sides, bottom, divisions, shelf, back and one single, one double hinged doors, four telescopic pull doors and one lift door (sink elsewhere measured) ","No",1,null,0]
[654,18448,2,7,null,"","","\"Caesarstone\" or other equal and approved counter, colour: Raven","H4",null,null,""]
[655,17336,2,7,null,"","","Kitchen counter overall size 1640 x 800 x 1100mm high","No",10,null,{"$f":"J328*K328","v":0}]
[656,17334,2,7,null,"","","Kitchen counter overall size 2308 x 525 x 900mm high","No",1,null,0]
[657,17335,2,7,null,"","","Kitchen counter overall size 2310 x 525 x 1100mm high","No",5,null,0]
[659,17347,2,8,null,"","","SECTION NO. 2","H1",null,null,""]
[660,17348,2,8,null,"1","","BILL NO. 8: CEILINGS, PARTITIONS AND ACCESS FLOORING","H1",null,null,{"$f":"SUM(L333:L456)","v":0}]
[661,17349,2,8,null,"1","","CEILINGS, PARTITIONS AND ACCESS FLOORING (PROVISIONAL) (CPAP WORK GROUP NO. 129 UNLESS OTHERWISE STATED)","H1",null,null,""]
[662,22329,2,8,null,"31","","The Tenderer is referred to the relevant Clauses in the separate document General Preambles for Trades (2017)","",null,null,""]
[663,17351,2,8,null,"","","SUPPLEMENTARY PREAMBLES","H2",null,null,""]
[664,17352,2,8,null,"1","","Fixing","H3",null,null,""]
[665,17353,2,8,null,"1","","Items described as \"nailed\" shall be deemed to be fixed with hardened steel nails or pins, or to be shot-pinned, to brickwork or concrete","",null,null,""]
[666,17354,2,8,null,"","","Items described as \"plugged\" shall be deemed to include screwing to fibre, plastic or metal plugs at not exceeding 500mm centres, and where described as \"bolted\", the bolts have been given elsewhere","",null,null,""]
[667,17355,2,8,null,"","","Ceilings","H3",null,null,""]
[668,17356,2,8,null,"","","Unless otherwise described ceilings shall be deemed to be horizontal","",null,null,""]
[669,17359,2,8,null,"","","Bulkheads","H3",null,null,""]
[670,17360,2,8,null,"","","Bulkheads are defined as those portions of ceilings which are stepped down from the general ceiling level in a particular room or area and which generally occur along the perimeter. Their purpose is either to conceal services or to create architectural features  Bulkheads have only been described as such where they conform to the above definition and where the horizontal or vertical dimensions do not exceed 900mm. Where these dimensions are more than 900mm such portions of ceilings have been included in the appropriate general items of ceilings  Unless otherwise described bulkheads shall be deemed to be horizontal along the length","",null,null,""]
[671,17362,2,8,null,"","","Steel components","H3",null,null,""]
[672,17363,2,8,null,"","","All steel components for ceilings, partitions, etc are to be galvanised in accordance with SANS 121","",null,null,""]
[673,17366,2,8,null,"","","SUSPENDED CEILINGS","H2",null,null,""]
[674,17369,2,8,null,"","","Proprietary suspended ceilings","H3",null,null,""]
[675,17370,2,8,null,"","","Hangers, suspension grids, \"lay-in\" panels, etc are to be in accordance with the manufacturers' recommendations  Electrical light fittings, diffusers, panels etc are generally \"lay-in\" units of the same dimensions as the suspension grid described and allowance must be made in the rates accordingly for their support inclusive of any flexibility in setting out that may be required (ceiling panels have not been deducted and pricing is to take cognisance thereof)","",null,null,""]
[676,17371,2,8,null,"","","Flush plastered skim ceilings","H3",null,null,""]
[677,17372,2,8,null,"","","Ceilings shall comprise 12mm gypsum plasterboard boards screwed to and including screw-up suspension grid consisting of main tees at 1 200mm centres and galvanised steel capped cross tees at 400mm centres and with tape fixed over joints and the whole finished with gypsum plaster trowelled to a smooth polished surface","",null,null,""]
[678,17373,2,8,null,"","","The grid shall be suspended by means of galvanised steel L-section hangers at suitable centres, securely shot-pinned or screwed to concrete, steel or wood","",null,null,""]
[679,17374,2,8,null,"","","Flush plastered gypsum plasterboard suspended bulkheads","H3",null,null,""]
[680,17377,2,8,null,"","","Bulkheads shall comprise galvanised steel studding of 63,5mm top and bottom tracks with vertical studs at maximum 400mm centres, pop-riveted to the top and bottom tracks with similar additional vertical studs as necessary at abutments, ends, etc and covered as described with plasterboard screwed to studding with drywall screws at maximum 300mm centres. Boards shall be butt jointed and finished with tape and jointing compound and the whole finished with gypsum plaster trowelled to a smooth polished surface to the thickness recommended by the manufacturer","",null,null,""]
[681,17380,2,8,null,"","","Descriptions shall be deemed to include any additional studs at ends and intersections, corner beads, cornices at junctions with ceilings, jointing compound, tape, etc","",null,null,""]
[682,17381,2,8,null,"","","\"Knauf AMF\" or other equal and approved 60 minute fire rated Thermatex Fine Stratos square edge white ceiling tiles, size 600 x 600 x 19mm, laid on exposed Ventatec grid system comprising main tees at 1200mm centres and cross tees at 600mm centres at right angles to main tees with 600mm cross tees spaced between 1200mm cross tees at 600mm centres. Main tees suspended by means of butterfly hangers with hooks at 1200mm using approved fixings.  Ceilings to be installed by an approved specialist and in accordance with the manufacturer`s recommendations","H3",null,null,""]
[683,17382,2,8,null,"","","Ceilings suspended not exceeding 1m below concrete soffits","m2",3375,null,{"$f":"J355*K355","v":0}]
[684,17383,2,8,null,"","","Extra over ceiling for opening for 100mm diameter downlighter","No",68,null,0]
[685,17384,2,8,null,"","","Extra over ceiling for opening for 600 x 600mm light fitting ","No",745,null,0]
[686,17385,2,8,null,"","","Extra over ceiling for opening for 600 x 1200mm light fitting ","No",4,null,0]
[687,17386,2,8,null,"","","Extra over ceiling for 600 x 600mm opening for ventilation grille/air conditioning diffuser","No",210,null,0]
[688,36958,2,8,null,"","","\"Knauf AMF\" or other equal and approved 60 minute fire rated Thermatex Acoustic square edge white ceiling tiles, size 600 x 600 x 19mm, laid on exposed Ventatec grid system comprising main tees at 1200mm centres and cross tees at 600mm centres at right angles to main tees with 600mm cross tees spaced between 1200mm cross tees at 600mm centres. Main tees suspended by means of butterfly hangers with hooks at 1200mm using approved fixings.  Ceilings to be installed by an approved specialist and in accordance with the manufacturer`s recommendations","H3",null,null,""]
[689,36959,2,8,null,"","","Ceilings suspended not exceeding 1m below concrete soffits","m2",1075,null,{"$f":"J361*K361","v":0}]
[690,36960,2,8,null,"","","Extra over ceiling for opening for 100mm diameter downlighter","No",29,null,0]
[691,36961,2,8,null,"","","Extra over ceiling for opening for 600 x 600mm light fitting ","No",318,null,0]
[692,36962,2,8,null,"","","Extra over ceiling for opening for 600 x 1200mm light fitting ","No",4,null,0]
[693,36963,2,8,null,"","","Extra over ceiling for 600 x 600mm opening for ventilation grille/air conditioning diffuser","No",90,null,0]
[694,17387,2,8,null,"76","","\"Pelican Systems\" or other equal and approved JUMBO skimmed ceiling system with 12mm thick JUMBO plasterboard fixed at right angles using 25mm Jumbo drywall screws at 150mm centres to JUMBO grid system comprising JUMBO screw up ceiling grid including galvanised main tees at 1200mm centres and cross tees at 600mm centres, all suspended with 25x25mm galvanised angles not exceeding 1200mm centres. Main tees suspended at 1200mm centres by means of 25 x 25 x 0,6mm galvanised steel angle. All joints to be covered with JUMBO fiba tape and the entire surface plastered with 3mm to 6mm thick JUMBO skimming plaster.","H3",null,null,""]
[695,17388,2,8,null,"","","Ceilings suspended not exceeding 1m below concrete soffits","m2",976,null,{"$f":"J367*K367","v":0}]
[696,36964,2,8,null,"","","Horizontal portion of bulkheads 225mm wide, suspended not exceeding 1m below concrete soffits ","m",21,null,0]
[697,17389,2,8,null,"","","Horizontal portion of bulkheads 300mm wide, suspended not exceeding 1m below concrete soffits ","m",183,null,0]
[698,17390,2,8,null,"","","Horizontal portion of bulkheads 325mm wide, suspended not exceeding 1m below concrete soffits ","m",5,null,0]
[699,17391,2,8,null,"","","Horizontal portion of bulkheads 380mm wide, suspended not exceeding 1m below concrete soffits ","m",8,null,0]
[700,17393,2,8,null,"","","Horizontal portion of bulkheads 400mm wide, suspended not exceeding 1m below concrete soffits ","m",120,null,0]
[701,17394,2,8,null,"","","Horizontal portion of bulkheads 420mm wide, suspended not exceeding 1m below concrete soffits ","m",25,null,0]
[702,17395,2,8,null,"","","Horizontal portion of bulkheads 435mm wide, suspended not exceeding 1m below concrete soffits ","m",9,null,0]
[703,17396,2,8,null,"","","Horizontal portion of bulkheads 460mm wide, suspended not exceeding 1m below concrete soffits ","m",33,null,0]
[704,17397,2,8,null,"","","Horizontal portion of bulkheads 480mm wide, suspended not exceeding 1m below concrete soffits ","m",18,null,0]
[705,17398,2,8,null,"","","Horizontal portion of bulkheads 550mm wide, suspended not exceeding 1m below concrete soffits ","m",81,null,0]
[706,17399,2,8,null,"","","Horizontal portion of bulkheads 564mm wide, suspended not exceeding 1m below concrete soffits ","m",5,null,0]
[707,17401,2,8,null,"","","Horizontal portion of bulkheads 600mm wide, suspended not exceeding 1m below concrete soffits ","m",35,null,0]
[708,17402,2,8,null,"","","Horizontal portion of bulkheads 611mm wide, suspended not exceeding 1m below concrete soffits ","m",28,null,0]
[709,17403,2,8,null,"","","Horizontal portion of bulkheads 618mm wide, suspended not exceeding 1m below concrete soffits","m",5,null,0]
[710,17404,2,8,null,"","","Horizontal portion of bulkheads 700mm wide, suspended not exceeding 1m below concrete soffits ","m",36,null,0]
[711,17405,2,8,null,"","","Horizontal portion of bulkheads 760mm wide, suspended not exceeding 1m below concrete soffits ","m",30,null,0]
[712,17406,2,8,null,"","","Horizontal portion of bulkheads 800mm wide, suspended not exceeding 1m below concrete soffits ","m",9,null,0]
[713,17407,2,8,null,"","","Horizontal portion of bulkheads 810mm wide, suspended not exceeding 1m below concrete soffits ","m",5,null,0]
[714,17408,2,8,null,"","","Horizontal portion of bulkheads 820mm wide, suspended not exceeding 1m below concrete soffits ","m",5,null,0]
[715,17409,2,8,null,"","","Horizontal portion of bulkheads 830mm wide, suspended not exceeding 1m below concrete soffits ","m",3,null,0]
[716,36965,2,8,null,"","","Horizontal portion of bulkheads 859mm wide, suspended not exceeding 1m below concrete soffits ","m",18,null,0]
[717,17410,2,8,null,"","","Horizontal portion of bulkheads 895mm wide, suspended not exceeding 1m below concrete soffits ","m",14,null,0]
[718,17411,2,8,null,"","","Horizontal portion of bulkheads 900mm wide, suspended not exceeding 1m below concrete soffits ","m",27,null,0]
[719,36966,2,8,null,"","","Horizontal portion of bulkheads 957mm wide, suspended not exceeding 1m below concrete soffits ","m",4,null,0]
[720,17412,2,8,null,"","","Vertical portion of bulkheads 100mm high, suspended not exceeding 1m below concrete soffits","m",765,null,0]
[721,17413,2,8,null,"","","Extra over ceiling for opening for 100mm diameter downlighter","No",220,null,0]
[722,17414,2,8,null,"","","Extra over ceiling for opening for 600 x 1200mm light fitting","No",10,null,0]
[723,17415,2,8,null,"","","Extra over ceiling for opening for 200 x 1400mm light fitting","No",10,null,0]
[724,17416,2,8,null,"","","Extra over ceiling for 300 x 300mm opening for ventilation grille/air conditioning diffuser","No",5,null,0]
[725,17417,2,8,null,"","","Extra over ceiling for 250mm diameter opening for ventilation grille/air conditioning diffuser","No",30,null,0]
[726,17419,2,8,null,"","","Extra over ceiling for 600 x 600mm opening for ventilation grille/air conditioning diffuser","No",15,null,0]
[727,17420,2,8,null,"76","","Cornices, perimeter trims, etc to suspended ceiling","H3",null,null,""]
[728,17421,2,8,null,"76.11","","\"Knauf AMF\" or other equal and approved shadow line (Code: C-SRW 25)","m",3051,null,{"$f":"J400*K400","v":0}]
[729,17422,2,8,null,"","","Pre-painted shadow line wall trim, pre-drilled 25 x 25mm","m",403,null,0]
[730,22456,2,8,null,"","","FIRE BARRIERS ABOVE CEILINGS","H2",null,null,""]
[731,22459,2,8,null,"","","SUPPLEMENTARY PREAMBLES","H2",null,null,""]
[732,22460,2,8,null,"1","","Construction  The type and thickness of boards, the number of layers and the insulation (if necessary) is to be such as to produce the specified fire rating all in accordance with the manufacturer's recommendation.   Top and bottom edges, abutments, openings, etc., are to be sealed to maintain the fire rating specified.","",null,null,""]
[733,22461,2,8,null,"","","Fire barriers above ceilings with one hour fire rating","H3",null,null,""]
[734,22462,2,8,null,"","","Barriers 1000mm high between suspended ceiling and soffit of concrete slab","m",710,null,{"$f":"J406*K406","v":0}]
[735,17455,2,8,null,"","","PARTITIONS, ETC (CPAP WORK GROUP NO. 138 UNLESS OTHERWISE STATED)","H2",null,null,""]
[736,17458,2,8,null,"","","DRYWALL PARTITIONS","H2",null,null,""]
[737,18449,2,8,null,"","","SUPPLEMENTARY PREAMBLES","H2",null,null,""]
[738,18450,2,8,null,"","","\"Pelican Systems\" or other equal and approved partition systems","H3",null,null,""]
[739,18451,2,8,null,"","","Partitions consisting of 63mm \"Ultra Drywall\" steel studs inserted at 600mm centres into 63mm \"Ultrasteel Drywall\" steel track at top and bottom clad on both sides as described, including additional studs as necessary at abutments, ends, etc. Boards shall be fixed in strict accordance with the manufacturer's instructions and all joints shall be taped and jointed","",null,null,""]
[740,18452,2,8,null,"","","Unless otherwise described rates for partitions shall be deemed to include for standard flat section aluminium skirtings on both sides","",null,null,""]
[741,18453,2,8,null,"","","Wall paper and/or paint and varnish finishes are given elsewhere","",null,null,""]
[742,17463,2,8,null,"","","\"Pelican Systems\" or other equal and approved, Drywall partitioning system with overall thickness of 89mm comprising internal framing formed of 63mm galvanised steel studs fixed at 600mm centres to galvanised steel top and bottom track with 63mm thick fibreglass insulation in cavity of partition, including any additional steel studding necessary at door openings, glazed or other apertures, abutments, ends, corners, etc. and covered with 12mm thick JUMBO Plasterboard in single lengths to suit height, butt jointed and secured to studding with 25mm drywall screws at maximum 300mm centres, the joints taped over and flushed over with jointing compound prepared for painting","H3",null,null,""]
[743,17464,2,8,null,"","","Partitions 2600mm high with bottom track plugged and top track fixed to suspended ceiling tees","m",510,null,{"$f":"J415*K415","v":0}]
[744,17469,2,8,null,"","","Extra over partition 2600mm high for vertical abutment","No",224,null,0]
[745,17470,2,8,null,"","","Extra over partition 2600mm high for corner","No",110,null,0]
[746,17471,2,8,null,"","","Extra over partition 2600mm high for T-intersection","No",69,null,0]
[747,17472,2,8,null,"","","Extra over partition 2600mm high for fair end","No",9,null,0]
[748,37063,2,8,null,"","","\"Pelican Systems\" or other equal and approved, Drywall partitioning system with overall thickness of 89mm comprising internal framing formed of 63mm galvanised steel studs fixed at 600mm centres to galvanised steel top and bottom track with 63mm thick fibreglass insulation in cavity of partition, including any additional steel studding necessary at door openings, glazed or other apertures, abutments, ends, corners, etc. and covered with 12mm thick JUMBO Plasterboard in single lengths to suit height, butt jointed and secured to studding with 25mm drywall screws at maximum 300mm centres, the joints taped over and flushed over with jointing compound prepared for painting","H3",null,null,""]
[749,37064,2,8,null,"","","Partitions 2600mm high overall with JUMBO Plasterboard 2520mm high on one side and 2600mm high on the reverse side, additional 80mm high portion fixed to timber spacer and aluminium end trim (elsewhere measured) including all additional jointing and support material as necessary, with bottom track plugged and top track fixed to suspended ceiling tees (Refer drawing no. 600-03)","m",432,null,{"$f":"J421*K421","v":0}]
[750,22403,2,8,null,"","","Extra over partitions for 40mm semi-solid flush doors with 3.2mm plain hardboard covering on both sides and hardwood edge strips to vertical edges, hung to and including standard pressed steel door frame including additional studding, trimming, etc. to partitions","H3",null,null,""]
[751,22404,2,8,null,"","","Door 813 x 2032mm (ironmongery elsewhere measured)","No",5,null,{"$f":"J423*K423","v":0}]
[752,36945,2,8,null,"","","\"Pelican Systems\" or other equal and approved, Drywall partitioning system with overall thickness of 89mm comprising internal framing formed of 63mm galvanised steel studs fixed at 600mm centres to galvanised steel top and bottom track, including any additional steel studding necessary at door openings, glazed or other apertures, abutments, ends, corners, etc. and covered with 12mm thick JUMBO Plasterboard in single lengths to suit height, butt jointed and secured to studding with 25mm drywall screws at maximum 300mm centres, the joints taped over and flushed over with jointing compound prepared for painting","H3",null,null,""]
[753,36946,2,8,null,"","","Partitions 3305mm high with bottom and top tracks plugged","m",30,null,{"$f":"J425*K425","v":0}]
[754,36947,2,8,null,"","","Extra over partition 3305mm high for vertical abutment","No",20,null,0]
[755,36948,2,8,null,"","","Extra over partition 3305mm high for corner","No",10,null,0]
[756,36951,2,8,null,"","","\"Pelican Systems\" or other equal and approved, acoustic drywall system with thickness of 89mm, compromising internal framing formed of 63mm galvanised steel studs fixed at 600mm centres to galvanised steel top and bottom track with 63mm thick fibreglass insulation in cavity of partition, including any additional steel studding necessary at door openings, glazed or other apertures, abutments, ends, corners, etc. and covered with 12mm thick JUMBO Plasterboard in single lengths to suit height, butt jointed and secured to studding with 25mm drywall screws at maximum 220mm centres, the joints taped over and flushed over with jointing compound prepared for painting","H3",null,null,""]
[757,36952,2,8,null,"","","Partitions 705mm high above shopfronts with bottom and top tracks plugged","m",40,null,{"$f":"J429*K429","v":0}]
[758,36954,2,8,null,"","","Extra over partition 705mm high for corner","No",3,null,0]
[759,36941,2,8,null,"","","\"Pelican Systems\" or other equal and approved, acoustic drywall system with thickness of 89mm, compromising internal framing formed of 63mm galvanised steel studs fixed at 600mm centres to galvanised steel top and bottom track with 63mm thick fibreglass insulation in cavity of partition, including any additional steel studding necessary at door openings, glazed or other apertures, abutments, ends, corners, etc. and covered with 12mm thick JUMBO Plasterboard in single lengths to suit height, butt jointed and secured to studding with 25mm drywall screws at maximum 220mm centres, the joints taped over and flushed over with jointing compound prepared for painting","H3",null,null,""]
[760,36942,2,8,null,"","","Partitions 3305mm high with bottom and top tracks plugged","m",96,null,{"$f":"J432*K432","v":0}]
[761,36943,2,8,null,"",""," Extra over partition 3305mm high for vertical abutment","No",35,null,0]
[762,36944,2,8,null,"","","Extra over partition 3305mm high for corner","No",9,null,0]
[763,36955,2,8,null,"","","Extra over partition 3305mm high for T-intersection","No",3,null,0]
[764,37067,2,8,null,"","","\"Pelican Systems\" or other equal and approved, acoustic drywall system with thickness of 89mm, compromising internal framing formed of 63mm galvanised steel studs fixed at 600mm centres to galvanised steel top and bottom track with 63mm thick fibreglass insulation in cavity of partition, including any additional steel studding necessary at door openings, glazed or other apertures, abutments, ends, corners, etc. and covered with 12mm thick JUMBO Plasterboard in single lengths to suit height, butt jointed and secured to studding with 25mm drywall screws at maximum 220mm centres, the joints taped over and flushed over with jointing compound prepared for painting","H3",null,null,""]
[765,37066,2,8,null,"","","Partitions 3305mm high overall with JUMBO Plasterboard 3225mm high on one side and 3305mm high on the reverse side, additional 80mm high portion fixed to timber spacer and aluminium end trim (elsewhere measured) including all additional jointing and support material as necessary, with bottom track plugged and top track fixed to suspended ceiling tees (Refer drawing no. 600-03)","m",39,null,{"$f":"J437*K437","v":0}]
[766,17473,2,8,null,"","","\"Pelican Systems\" or other equal and approved, 2 hour Fire Rated Jumbo Firewall with thickness of 124mm, with 63x35mm jumbo studs at 600mm centres, friction fitted into head track and floor track and clad on both sides with a double layer of 15mm thick fire resistant jumbo plasterboard fixed at 200mm centres using 25mm jumbo screws on the base layer and 42mm jumbo screws on the face layer, all plasterboard joints must overlap. all exterior joints to be covered with jumbo tape and finished with two layers of jumbo jointing plaster applied and lightly sanded down, leaving wall surface prepared for painting, all in accordance with supplier's recommendations and standards of SANS 10400","H3",null,null,""]
[767,17474,2,8,null,"","","Partitions 3305mm high with bottom and top tracks plugged","m",25,null,{"$f":"J439*K439","v":0}]
[768,17475,2,8,null,"",""," Extra over partition 3305mm high for vertical abutment","No",10,null,0]
[769,17476,2,8,null,"","","Extra over partition 3305mm high for corner","No",5,null,0]
[770,22405,2,8,null,"","","Extra over partitions for 40mm semi-solid flush doors with 3.2mm plain hardboard covering on both sides and hardwood edge strips to vertical edges, hung to and including standard pressed steel door frame including additional studding, trimming, etc. to partitions","H3",null,null,""]
[771,22406,2,8,null,"","","Door 813 x 2032mm (ironmongery elsewhere measured)","No",2,null,{"$f":"J443*K443","v":0}]
[772,37069,2,8,null,"","","Extra over partitions for aluminium end trim fixed to steel channel and aluminium track/timber spacers","H3",null,null,""]
[773,37068,2,8,null,"","","Aluminium end trim (Refer drawing no. 600-03)","m",1100,null,{"$f":"J445*K445","v":0}]
[774,22407,2,8,null,"","","TOILET CUBICLES","H2",null,null,""]
[775,19356,2,8,null,"","","\"Vitraflex\" or other equal and approved toilet cubicles consisting of 20mm thick partitions, doors and stiles of laminated construction with outer skins of vitreous enamelled steel sheets bonded to wood particle board, all framed in natural anodised aluminium channel section beading, top rails and fixing components and fitted with all necessary ironmongery comprising standard indicating bolts, combined coat hooks and door stops, toilet roll holders and rubber buffers","H3",null,null,""]
[776,19357,2,8,null,"","","Partition 4500 x 2200mm high","No",10,null,{"$f":"J448*K448","v":0}]
[777,19358,2,8,null,"","","Partition 1650 x 2200mm high","No",30,null,0]
[778,19359,2,8,null,"","","Partition 900 x 2200mm high","No",2,null,0]
[779,19360,2,8,null,"","","Partition 1800 x 2200mm high","No",6,null,0]
[780,19361,2,8,null,"","","Partition 2600 x 2200mm high","No",2,null,0]
[781,19362,2,8,null,"","","Door PD-01, overall size 910 x 2200mm high","No",47,null,0]
[782,19363,2,8,null,"","","Full stile 210 x 2200mm high","No",41,null,0]
[783,19364,2,8,null,"","","End stile 145 x 2200mm high","No",61,null,0]
[784,19365,2,8,null,"","","Wall stile 105 x 2200mm high","No",33,null,0]
[786,17478,2,9,null,"","","SECTION NO. 2","H1",null,null,""]
[787,17479,2,9,null,"1","","BILL NO. 9: FLOOR COVERINGS, WALL LININGS, ETC","H1",null,null,{"$f":"SUM(L459:L487)","v":0}]
[788,17480,2,9,null,"","","FLOOR COVERINGS, WALL LININGS, ETC (PROVISIONAL) (CPAP WORK GROUP NO. 130 UNLESS OTHERWISE STATED)","H1",null,null,""]
[789,22330,2,9,null,"31","","The Tenderer is referred to the relevant Clauses in the separate document General Preambles for Trades (2017)","",null,null,""]
[790,17482,2,9,null,"","","SUPPLEMENTARY PREAMBLES","H2",null,null,""]
[791,17483,2,9,null,"","","Fixing","H3",null,null,""]
[792,17484,2,9,null,"","","Floor coverings, wall linings, etc shall, where applicable, be fixed with adhesive as recommended by the manufacturers of the flooring, linings, etc","",null,null,""]
[793,17485,2,9,null,"1","","FLOOR COVERINGS","H2",null,null,""]
[794,17487,2,9,null,"","","\"FloorworX\" or other equal and approved superflex fully flexible vinyl floor tiles colour Charcoal (Colour code: MS113), size 300 x 300 x 2.0mm thick, manufactured in accordance with SANS 786:2000, laid in FloorworX No. 62 acrylic adhesive spread with a trowel fitted with an A2 notched blade at a rate of between 5.5m² and 6.5m² per litre on suitably prepared subfloor (elsewhere specified) in accordance with SANS 10070, using FloorworX Self Leveller when required and rolled with 68kg three section metal roller on completion","H3",null,null,""]
[795,17488,2,9,null,"","","On floors","m2",109,null,{"$f":"J466*K466","v":0}]
[796,17491,2,9,null,"","","\"Bervik\" or other equal and approved  fully adjustable raised access flooring tiles colour Granite (Colour code: M335), size 600 x 600mm x 38mm thick","H3",null,null,""]
[797,17492,2,9,null,"","","On floors","m2",43,null,{"$f":"J468*K468","v":0}]
[798,17489,2,9,null,"","","\"FloorworX\" or other equal and approved primo SD non-directional static dissipative vinyl sheeting colour Dark Cool Grey (Colour code: FSD563), size  2m wide x  2.0mm thick, manufactured in accordance with EN 649 laid in  FloorworX No. 27 antistatic/conductive adhesive spread with a trowel fitted with an A2 notched blade at a rate of between 5.5m² and 6.5m² per litre on suitably prepared subfloor (elsewhere specified) in accordance with SANS 10070, using FloorworX Self Leveller when required, rolled with 68kg three section metal roller, with joints welded with a fully flexible coloured `FloorworX Welding Rod` to provide a smooth, hygienic sealed finish","H3",null,null,""]
[799,17490,2,9,null,"","","On floors","m2",121,null,{"$f":"J470*K470","v":0}]
[800,17493,2,9,null,"","","\"Belgotex\" or other equal and approved floors Atlantis colour Cyclone Mist Stainproof SDX (solution dyed nylon) Tufted Multi-Scroll Loop Pile Nexbac SABS Class 2 fire rating grade heavy commercial carpet tiles, size 500 x 500 x 8mm thick, all installed by approved installer in accordance with SANS 10186:2010, the code of practice for textile floor coverings","H3",null,null,""]
[801,17494,2,9,null,"3.1","","On floors ","m2",2430,null,{"$f":"J472*K472","v":0}]
[802,17495,2,9,null,"","","\"Belgotex\" or other equal and approved floors Berber Point 920 colour Charcoal Stainproof Miracle Fibre (Polypropylene) structured needlepunch Nexbac SABS Class 3 fire rating grade heavy commercial carpet tiles, size 500 x 500 x 8,5mm thick, all installed by approved installer in accordance with SANS 10186:2010, the code of practice for textile floor coverings","H3",null,null,""]
[803,17496,2,9,null,"3.1","","On floors ","m2",2186,null,{"$f":"J474*K474","v":0}]
[804,17497,2,9,null,"","","\"Belgotex\" or other equal and approved floors Westminster colour Zimmer, heavy commercial (SABS location grade: 5) Stainproof SDX (solution dyed nylon), plain cut pile FusionBac SABS Class 2 fire rating broadloom carpet sheeting laid on and including Orange under cushion","H3",null,null,""]
[805,17498,2,9,null,"3.1","","On floors ","m2",350,null,{"$f":"J476*K476","v":0}]
[806,36999,2,9,null,"","","SKIRTINGS, NOSINGS, ETC","H2",null,null,""]
[807,37000,2,9,null,"","","Skirtings, nosings, etc","H3",null,null,""]
[808,37005,2,9,null,"","","9.72mm Aluminium carpet trim colour Matt Black fixed to existing concrete with an approved adhesive","m",835,null,{"$f":"J479*K479","v":0}]
[809,37001,2,9,null,"","","60 x 32mm Heavy duty aluminium natural anodised aluminium nosings, colour Red, with plastic external infill colour White, on resin stair covering, fixed with contact adhesive, plugged and screwed to tread","m",364,null,0]
[810,18484,2,9,null,"","","POLISH, SEALERS, ETC","H2",null,null,""]
[811,18485,2,9,null,"","","3 coats silk matt finished sealer on vinyl flooring","m2",230,null,{"$f":"J482*K482","v":0}]
[812,17499,2,9,null,"1","","SCREEDS","H2",null,null,""]
[813,17500,2,9,null,"","","\"Tal Screedmaster\" or other equal and approved","H3",null,null,""]
[814,17501,2,9,null,"3.1","","5mm thick self levelling screed on floors and landings","m2",5719,null,{"$f":"J485*K485","v":0}]
[815,18401,2,9,null,"1","","CLEANING OF EXISTING SURFACES, ETC..","H2",null,null,""]
[816,18402,2,9,null,"","","Strip and seal existing vinyl floor tiles in accordance with the 3 step process:  Step 1 - Dilute \"FloorworX\" or other equal and approved stripper 1:5 parts clean water and spread onto floor surface, leave for few minutes and scrub floor by manual or mechanical means. Rinse well and remove residue with a wet/dry vacuum cleaner, all in accordance with the manufacturers recommendations.  Step 2 - Dilute \"FloorworX\" or other equal and approved, rinse 1:10 parts clean water and spray onto floor surface and rinse with water, all in accordance with the manufacturers recommendations.  Step 3 - \"FloorworX Silk Matt Sealer\" or other equal and approved, remove all polishes, oil, dirt and marks Apply three coats Silk Matt Sealer onto floor surface and allow to dry between applications, all in accordance with the manufacturers recommendations.","m2",245,null,{"$f":"J487*K487","v":0}]
[818,17507,2,10,null,"","","SECTION NO. 2","H1",null,null,""]
[819,17508,2,10,null,"","","BILL NO. 10: IRONMONGERY","H1",null,null,{"$f":"SUM(L490:L603)","v":0}]
[820,17509,2,10,null,"","","IRONMONGERY (PROVISIONAL) (CPAP WORK GROUP NO. 132 UNLESS OTHERWISE STATED)","H1",null,null,""]
[821,22331,2,10,null,"31","","The Tenderer is referred to the relevant Clauses in the separate document General Preambles for Trades (2017)","",null,null,""]
[822,19384,2,10,null,"","","SUPPLEMENTARY PREAMBLES","H2",null,null,""]
[823,17510,2,10,null,"","","Proprietary items","H3",null,null,""]
[824,17511,2,10,null,"","","Where applicable the manufacturers' names or product catalogue titles are given in sub-headings preceding the items  Prices are to be based on the specific products/articles specified.  If tenderers wish to offer alternative products/articles for certain items, these items are to be clearly marked and the alternative specification given with supporting brochures etc clarifying the features of the products/articles offered  On request returnable samples are to be provided to the principal agent for consideration","",null,null,""]
[825,22412,2,10,null,"","","IRONMONGERY TO TIMBER DOORS","H2",null,null,""]
[826,17516,2,10,null,"92","","HINGES, BOLTS, ETC","H2",null,null,""]
[827,17517,2,10,null,"93","","\"Dormakaba\" or other equal and approved","H3",null,null,""]
[828,36996,2,10,null,"30","","Two Ball Bearing Butt hinge (Code: DBB-SS-009) with Stainless Steel finish","No",145,null,{"$f":"J498*K498","v":0}]
[829,17519,2,10,null,"","","Flush bolt with heel (Code: DFB-SC-180), size 48 x 19 x 153mm with Satin Chrome finish","No",78,null,0]
[830,17520,2,10,null,"","","Adjustable roller bolt (Code: DBC-SS-022), size 40 x 22 x 76mm with Stainless Steel finish","No",2,null,0]
[831,17521,2,10,null,"","","Square bathroom WC indicator set (Code: DWC-005) with Stainless Steel finish","No",2,null,0]
[832,17522,2,10,null,"","","Square bathroom WC bolt set (Code: DWC-006), overal size 52 x 52mm with Stainless Steel finish","No",1,null,0]
[833,17523,2,10,null,"","","CATCHES, CABIN HOOKS, ETC","H2",null,null,""]
[834,17524,2,10,null,"93","","\"Dormakaba\" or other equal and approved","H3",null,null,""]
[835,17525,2,10,null,"","","Cabin hooks","No",1,null,{"$f":"J505*K505","v":0}]
[836,17526,2,10,null,"","","LOCKS","H2",null,null,""]
[837,17527,2,10,null,"93","","\"Dormakaba\" or other equal and approved","H3",null,null,""]
[838,17528,2,10,null,"","","Cylinder deadlock (Code: D037D) with 57mm backset with Stainless Steel finish","No",86,null,{"$f":"J508*K508","v":0}]
[839,17530,2,10,null,"","","Cylinder sash lock (Code: D036S) with 57mm backset with Stainless Steel finish","No",25,null,0]
[840,17529,2,10,null,"","","Bathroom deadlock (Code: D032D) with 55mm backset with Stainless Steel finish","No",3,null,0]
[841,17531,2,10,null,"","","Bathroom sash lock (Code: D035S) with 57mm backset with Stainless Steel finish","No",1,null,0]
[842,17536,2,10,null,"","","43mm keyed to differ single cylinder (Code: DSC054201) with Satin Nickel finish","No",36,null,0]
[843,37180,2,10,null,"","","45mm keyed alike single cylinder (Code: DSC054501-KA) with Satin Nickel finish","No",5,null,0]
[844,17538,2,10,null,"","","66mm keyed to differ double cylinder (Code: DDC056601) with Satin Nickel finish","No",6,null,0]
[845,36992,2,10,null,"","","65mm keyed to differ double cylinder (Code: DDC056501) with Satin Nickel finish","No",32,null,0]
[846,17540,2,10,null,"","","66mm privacy cylinder (Code: DBC006601) with Satin Nickel finish","No",1,null,0]
[847,17533,2,10,null,"","","80mm keyed to differ double cylinder (Code: DDC058001) with Satin Nickel finish","No",10,null,0]
[848,17535,2,10,null,"","","80mm keyed alike knob cylinder (Code: DKCO580001) with Satin Nickel finish","No",3,null,0]
[849,17539,2,10,null,"","","80mm keyed to differ knob cylinder (Code: DKC058001) with Nickel finish","No",12,null,0]
[850,17541,2,10,null,"","","52mm diameter cylinder escutcheon set (Code: DCE-002) with Stainless Steel finish","No",89,null,0]
[851,36993,2,10,null,"","","52mm diameter cylinder escutcheon set (Code: DCE-002) with Stainless Steel finish","Pairs",74,null,0]
[852,17542,2,10,null,"","","Rebate conversion kit (Code: D038R NP) ","No",31,null,0]
[853,17543,2,10,null,"","","HANDLES","H2",null,null,""]
[854,17544,2,10,null,"93","","\"Dormakaba\" or other equal and approved","H3",null,null,""]
[855,17545,2,10,null,"","","Ring flush pull handle (Code: DRP-SS-023), size 44mm x 62mm with Stainless Steel finish","No",48,null,{"$f":"J525*K525","v":0}]
[856,17546,2,10,null,"","","139mm long spring loaded lever handle in Stainless Steel finish (Code: SH815 cylinder) with Stainless Steel finish","No",25,null,0]
[857,17550,2,10,null,"","","139mm long spring loaded lever handle in Stainless Steel finish (Code: SH815 bathroom WC) with Stainless Steel finish","No",1,null,0]
[858,17547,2,10,null,"","","Tubular straight bolt through pull handle (Code: DPH205BT), size 30mm diameter x 400mm long with Stainless Steel finish","No",43,null,0]
[859,36994,2,10,null,"","","Tubular straight bolt through pull handle (Code: DPH205BTB), size 30mm diameter x 400mm long with Stainless Steel finish","Pairs",14,null,0]
[860,17549,2,10,null,"","","Tubular straight bolt through pull handle (Code: DPH301BBT), size 25mm diameter x 325mm long with Stainless Steel finish","No",2,null,0]
[861,37179,2,10,null,"","","Exterior access lock with lever handle (cylinder not included) (Code: PHT3901)","No",5,null,0]
[862,17551,2,10,null,"","","PUSH PLATES AND KICK PLATES","H2",null,null,""]
[863,17559,2,10,null,"","","3mm Thick anodised aluminium plates countersunk screwed along edges not exceeding 200mm centres","H3",null,null,""]
[864,17560,2,10,null,"","","400 x 150mm Push plate ","No",57,null,{"$f":"J534*K534","v":0}]
[865,17561,2,10,null,"","","3mm Thick anodised aluminium plates countersunk screwed along edges not exceeding 200mm centres","H3",null,null,""]
[866,17562,2,10,null,"","","800 x 250mm Kick plate","No",30,null,{"$f":"J536*K536","v":0}]
[867,17557,2,10,null,"","","3mm Thick anodised aluminium plates countersunk screwed along edges not exceeding 200mm centres","H3",null,null,""]
[868,17558,2,10,null,"","","400 x 75mm Back plate ","No",68,null,{"$f":"J538*K538","v":0}]
[869,17563,2,10,null,"","","DOOR CLOSERS","H2",null,null,""]
[870,17564,2,10,null,"93","","\"Dormakaba\" or other equal and approved","H3",null,null,""]
[871,17566,2,10,null,"","","Non hold open G-SR slide channel door coordinator (Code: TS92B G-SR) with a closing force of EN 2-4 for maximum 1100mm wide door","No",49,null,{"$f":"J541*K541","v":0}]
[872,17568,2,10,null,"","","Non hold open G-SR slide channel door coordinator (Code: TS93B G-SR) with a closing force of EN 2-5 for maximum 1250mm wide door","No",8,null,0]
[873,17569,2,10,null,"","","Non hold open G-SR slide channel door coordinator (Code: TS93G) with a closing force of EN 2-5 for maximum 1250mm wide door","No",4,null,0]
[874,17567,2,10,null,"","","Mechanical hold open G-SR slide channel door coordinator (Code: TS93B G-SR RF 1) with a closing force of EN 2-5 for maximum 1250mm wide door","No",3,null,0]
[875,17572,2,10,null,"","","LETTERS, NAMEPLATES, ETC","H2",null,null,""]
[876,17573,2,10,null,"93","","\"Dormakaba\" or other equal and approved","H3",null,null,""]
[877,17574,2,10,null,"","","Electrical engraved grade 304 Stainless Steel sign (Code: DSS-136), size 150 x 150 x 1,2mm with counter-sunk fixing holes plugged and screwed with aluminium screws","No",23,null,{"$f":"J547*K547","v":0}]
[878,17575,2,10,null,"","","Fire hose reel engraved grade 304 Stainless Steel sign (Code: DSS-145), size 150 x 150 x 1,2mm with counter-sunk fixing holes plugged and screwed with aluminium screws","No",1,null,0]
[879,17576,2,10,null,"","","Fire extinguisher engraved grade 304 Stainless Steel sign (Code: DSS-146), size 150 x 150 x 1,2mm with counter-sunk fixing holes plugged and screwed with aluminium screws","No",1,null,0]
[880,17577,2,10,null,"","","Female engraved grade 304 Stainless Steel sign (Code: DSS-131), size 150 x 150 x 1,2mm with counter-sunk fixing holes plugged and screwed with aluminium screws","No",8,null,0]
[881,17578,2,10,null,"","","Male engraved grade 304 Stainless Steel sign (Code: DSS-130), size 150 x 150 x 1,2mm with counter-sunk fixing holes plugged and screwed with aluminium screws","No",8,null,0]
[882,17579,2,10,null,"","","Disabled engraved grade 304 Stainless Steel sign (Code: DSS-133), size 150 x 150 x 1,2mm with counter-sunk fixing holes plugged and screwed with aluminium screws","No",1,null,0]
[883,17580,2,10,null,"","","SUNDRIES","H2",null,null,""]
[884,17581,2,10,null,"93","","\"Dormakaba\" or other equal and approved","H3",null,null,""]
[885,17582,2,10,null,"","","Floor mounted door stop with rubber buffer (Code: DDS-SS-021), size 40 x 38mm with Stainless Steel finish","No",84,null,{"$f":"J555*K555","v":0}]
[886,17583,2,10,null,"","","Hat and coat hook with rubber buffer (Code: DHC-SS-031), size 70 x 25 x 80mm with Stainless Steel finish","No",3,null,0]
[887,17586,2,10,null,"","","Dust proof strike (Code: DPS-SS-032), size 38 x 19mm with Stainless Steel finish","No",8,null,0]
[888,17584,2,10,null,"","","Touch bar panic hardware components for single door with one point locking (Code: PHB1/S)","No",6,null,0]
[889,17585,2,10,null,"","","Touch bar panic hardware components for single door with two point locking (Code: PHB2/W)","No",1,null,0]
[890,17587,2,10,null,"","","BATHROOM FITTINGS","H2",null,null,""]
[891,17588,2,10,null,"93","","\"Vaal\" or other equal and approved","H3",null,null,""]
[892,17589,2,10,null,"","","Flush valve back rail (Code: 8940Z000), size 750 x 250 x 32mm with Stainless Steel finish, plugged and screwed to wall with stainless steel screws","No",1,null,{"$f":"J562*K562","v":0}]
[893,17590,2,10,null,"","","Side grab rail (Code: 8939Z000), size 300 x 300 x 32mm with Stainless Steel finish, plugged and screwed to wall with stainless steel screws","No",1,null,0]
[894,36921,2,10,null,"","","Urinal division (Code: 705228), size 140 x 310 x 610mm high complete with fixing screws and hanger brackets","No",14,null,0]
[895,22413,2,10,null,"","","IRONMONGERY TO ALUMINIUM DOORS","H2",null,null,""]
[896,18496,2,10,null,"92","","HINGES, BOLTS, ETC","H2",null,null,""]
[897,18497,2,10,null,"93","","\"Dormakaba\" or other equal and approved","H3",null,null,""]
[898,37173,2,10,null,"30","","Heavy duty continuous geared hinge 2400mm (Code: DCH-AL-H24) with natural anodized finish","No",1,null,{"$f":"J568*K568","v":0}]
[899,18498,2,10,null,"30","","Two Ball Bearing Butt hinge (Code: DBB-SS-009) with Stainless Steel finish","No",18,null,0]
[900,37169,2,10,null,"","","Adjustable roller bolt (Code: DBC-SS-022), size 40 x 22 x 76mm with Stainless Steel finish","No",15,null,0]
[901,18569,2,10,null,"","","\"Dormakaba\" or other equal and approved stainless steel automatic flush bolt (Code: HZ 43-F22 R), size 55 x 20 x 147mm fixed in accordance with the manufacturer`s recommendations","No",2,null,0]
[902,18570,2,10,null,"","","\"Dormakaba\" or other equal and approved stainless steel automatic flush bolt (Code: HZ 43-F22 L), size 55 x 20 x 147mm fixed in accordance with the manufacturer`s recommendations","No",2,null,0]
[903,18571,2,10,null,"","","\"Dormakaba\" or other equal and approved stainless steel floor keep (Code: PHA 2122-0)","No",2,null,0]
[904,18506,2,10,null,"","","LOCKS","H2",null,null,""]
[905,18507,2,10,null,"93","","\"Dormakaba\" or other equal and approved","H3",null,null,""]
[906,18572,2,10,null,"","","Narrow stile heavy duty roller deadlock (Code: D07735) with 35mm backset with Stainless Steel finish","No",18,null,{"$f":"J576*K576","v":0}]
[907,18510,2,10,null,"","","Cylinder sash lock (Code: D036S) with 57mm backset with Stainless Steel finish","No",129,null,0]
[908,18516,2,10,null,"","","65mm keyed to differ double cylinder (Code: DDC056501) with Satin Nickel finish","No",147,null,0]
[909,36997,2,10,null,"","","30 x 64mm Stainless Steel narrow style cylinder escutcheon set (Code: DCE-105).","Pairs",18,null,0]
[910,18522,2,10,null,"","","HANDLES","H2",null,null,""]
[911,18523,2,10,null,"93","","\"Dormakaba\" or other equal and approved","H3",null,null,""]
[912,37170,2,10,null,"","","Ring flush pull handle (Code: DRP-SS-023), size 44mm x 62mm with Stainless Steel finish","No",5,null,{"$f":"J582*K582","v":0}]
[913,18525,2,10,null,"","","139mm long spring loaded lever handle in Stainless Steel finish (Code: SH815 cylinder) with Stainless Steel finish","No",129,null,0]
[914,37172,2,10,null,"","","Rectangular straight flush pull handle (Code: DFP-SS-025), size 40mm x 120mm long with Stainless Steel finish","No",12,null,0]
[915,18568,2,10,null,"","","Tubular offset Stainless Steel back-to-back pull handle (Code: DPH206BTB), size 30mm diameter x 400mm long.","No",69,null,0]
[916,18537,2,10,null,"","","DOOR CLOSERS","H2",null,null,""]
[917,18538,2,10,null,"93","","\"Dormakaba\" or other equal and approved","H3",null,null,""]
[918,37168,2,10,null,"","","Non hold open TS 93G EN5-7-AB-SL cam action slide channel door closer (Code: TS 93G EN5-7-AB-SL) with a closing force of EN 5-7V for maximum 1600mm wide door","No",1,null,{"$f":"J588*K588","v":0}]
[919,18539,2,10,null,"","","Non hold open G-SR slide channel door coordinator (Code: TS92B G-SR) with a closing force of EN 2-4 for maximum 1100mm wide door","No",11,null,0]
[920,18567,2,10,null,"","","Non hold open concealed cam-action door closer system (Code: ITS96 2-4) with a closing force of EN 2-4V for maximum 1100mm wide door","No",42,null,0]
[921,18576,2,10,null,"","","Hold open concealed cam-action door closer system (Code: ITS96 2-4) with a closing force of EN 2-4V for maximum 1100mm wide door","No",16,null,0]
[922,37167,2,10,null,"","","Non hold open TS 93G-AB-SL cam action slide channel door closer (Code: TS 93G-AB-SL) with a closing force of EN 2-5V for maximum 1250mm wide door","No",1,null,0]
[923,18575,2,10,null,"","","Mechanical hold open TS 92B cam action slide channel door closer (Code: TS 92B HO) with a closing force of EN 2-4V for maximum 1100mm wide door","No",2,null,0]
[924,37171,2,10,null,"","","Mechanical hold open TS 93B HO-SL cam action slide channel door closer (Code: TS 93B HO-SL) with a closing force of EN 2-5V for maximum 1250mm wide door","No",1,null,0]
[925,18543,2,10,null,"",""," LETTERS, NAMEPLATES, ETC","H2",null,null,""]
[926,18544,2,10,null,"93","","\"Dormakaba\" or other equal and approved","H3",null,null,""]
[927,18574,2,10,null,"","","\"Tea Cup\" engraved grade 304 Stainless Steel sign (Code: DSS-135), size 150 x 150 x 1,2mm with counter-sunk fixing holes plugged and screwed with aluminium screws","No",2,null,{"$f":"J597*K597","v":0}]
[928,18551,2,10,null,"","","SUNDRIES","H2",null,null,""]
[929,18552,2,10,null,"93","","\"Dormakaba\" or other equal and approved","H3",null,null,""]
[930,18553,2,10,null,"","","Floor mounted door stop with rubber buffer (Code: DDS-SS-021), size 40 x 38mm with Stainless Steel finish","No",207,null,{"$f":"J600*K600","v":0}]
[931,18557,2,10,null,"","","Dust proof strike (Code: DPS-SS-032), size 38 x 19mm with Stainless Steel finish","No",8,null,0]
[932,37174,2,10,null,"","","Touch bar panic hardware components for double door with three point locking (Code: PHB3 WL DD)","No",1,null,0]
[933,37178,2,10,null,"","","ES200 Heavy duty sliding door operator complete for automatic double sliding door size 1828 x 2570mm high (Code: EN200)","Sets",{"v":3,"d":"3.0"},null,0]
[935,37048,2,11,null,"","","SECTION NO. 2","H1",null,null,""]
[936,37049,2,11,null,"","","BILL NO. 11: STRUCTURAL STEELWORK","H1",null,null,{"$f":"SUM(L606:L618)","v":0}]
[937,37050,2,11,null,"","","STRUCTURAL STEELWORK (PROVISIONAL) (CPAP WORK GROUP NO. 134 UNLESS OTHERWISE STATED)","H1",null,null,""]
[938,37051,2,11,null,"31","","The Tenderer is referred to the relevant Clauses in the separate document General Preambles for Trades (2017)","",null,null,""]
[939,37052,2,11,null,"","","SUPPLEMENTARY PREAMBLES","H2",null,null,""]
[940,37011,2,11,null,"","","All work to be in accordance with SANS 1200 H  All Structural steelwork to be Grade S355JR galvanised in accordance with SANS 4998/ISO 4998:1996 for 'Structural Quality'.  All bolts to be Grade 8.8 bolts and to be hot dipped galvanised to SANS 121:2011 (ISO 1461:2009(E)).  Contractor is to refer to Engineer's notes for details of all fixing, welding, etc","",null,null,""]
[941,37053,2,11,null,"","","Descriptions","H3",null,null,""]
[942,37054,2,11,null,"","","Descriptions of bolts shall be deemed to include nuts and washers ","",null,null,""]
[943,37055,2,11,null,"","","Descriptions of L-shaped and U-shaped anchor bolts shall be deemed to include bending, threading, nuts and washers and embedding in concrete","",null,null,""]
[944,37056,2,11,null,"","","Descriptions of expansion anchors and bolts and chemical anchors and bolts shall be deemed to include nuts, washers and mortices in brickwork or concrete","",null,null,""]
[945,37057,2,11,null,"","","GALVANISED STEEL PURLINS, GIRTS, BRACING, ETC","H2",null,null,""]
[946,37058,2,11,null,"","","Purlins, girts, channels, etc., bolted to concrete","H3",null,null,""]
[947,37059,2,11,null,"","","178 x 54mm U-channel securely fastened to concrete slab","t",9.12,null,{"$f":"J616*K616","v":0}]
[948,37060,2,11,null,"","","100 x 50 x 20 x 2.5mm Thick cold-formed lipped channel","t",2.03,null,0]
[949,37061,2,11,null,"","","M12 Chemical anchor bolts","No",250,null,0]
[951,17595,2,12,null,"","","SECTION NO. 2","H1",null,null,""]
[952,17596,2,12,null,"","","BILL NO. 12: METALWORK","H1",null,null,{"$f":"SUM(L621:L739)","v":0}]
[953,17597,2,12,null,"","","METALWORK (PROVISIONAL) (CPAP WORK GROUP NO. 136 UNLESS OTHERWISE STATED)","H1",null,null,""]
[954,22333,2,12,null,"31","","The Tenderer is referred to the relevant Clauses in the separate document General Preambles for Trades (2017)","",null,null,""]
[955,18601,2,12,null,"","","SUPPLEMENTARY PREAMBLES","H2",null,null,""]
[956,17598,2,12,null,"","","Descriptions of bolts, anchors, etc","H3",null,null,""]
[957,17599,2,12,null,"","","Descriptions of bolts shall be deemed to include nuts and washers","",null,null,""]
[958,17600,2,12,null,"","","Descriptions of expansion anchors and bolts and chemical anchors and bolts shall be deemed to include nuts, washers and mortices in brickwork or concrete","",null,null,""]
[959,17601,2,12,null,"","","Items described as \"holed for bolt(s)\" shall be deemed to exclude the bolts unless otherwise described","",null,null,""]
[960,17602,2,12,null,"","","Items described as \"plugged\" shall be deemed to include screwing to fibre, plastic or metal plugs at not exceeding 600mm centres","",null,null,""]
[961,17603,2,12,null,"","","Aluminium doors, windows, etc","H3",null,null,""]
[962,17604,2,12,null,"55","","Doors and windows shall comply with AAAMSA design criteria","",null,null,""]
[963,17605,2,12,null,"55","","Glazing shall comply with SAGGA regulations. Glass shall be laminated performance glass as shown on the window schedules/drawings appended to these bills of quantities. Glass thickness shall comply with SAGGA regulations irrespective of thicknesses shown on the schedules /drawings","",null,null,""]
[964,17606,2,12,null,"55","","Doors and windows shall be supplied with protective tape and plastic and shall be removed only once surrounding trades have been completed","",null,null,""]
[965,17607,2,12,null,"55","","Tenderers are to note that should there be any doubt or obscurity as to the meaning and intent of any descriptions, the Contractor must have the same rectified and allow for same accordingly in his tender.  The Contractor is to include in his rates for all that he considers necessary for the proper construction of the windows and doors.  No claims whatsoever will be afterwards admitted due to the Contractor having failed to comply with these conditions","",null,null,""]
[966,17608,2,12,null,"55","","The following certificates shall be provided prior to commencement of site work:","",null,null,""]
[967,17609,2,12,null,"55","","1. A copy of the relevant AAAMSA Performance Test Certificate from the manufacturer/contractor supplying the architectural aluminium product","",null,null,""]
[968,17610,2,12,null,"55","","2. A Certificate of Conformance confirming that anodising or powder coating has been processed in accordance with SANS 999 and SANS 1796 respectively","",null,null,""]
[969,17611,2,12,null,"55","","3. A powder guarantee of not less than 15 years issued by the powder manufacturer. The specific conditions contained in this guarantee shall form part of the powder coating process","",null,null,""]
[970,17612,2,12,null,"55","","4. A Certificate of Conformance confirming that glazing has been installed in accordance with SANS 0137, ensuring that safety glazing materials have been installed in the mandatory areas and that each individual pane of safety glazing materials has been permanently marked","",null,null,""]
[971,17613,2,12,null,"55","","5. A warranty from the manufacturer of the laminated safety glass and/or hermetically sealed glazing units guaranteeing the products against delamination and colour degredation for a period of not less than five years","",null,null,""]
[972,17614,2,12,null,"55","","Rates shall include for the following:","",null,null,""]
[973,17615,2,12,null,"56","","1. All opening and fixed lights, coupling mullions and transoms, support steelwork, fittings, ironmongery, etc., as required and specified.","",null,null,""]
[974,17616,2,12,null,"56","","2. Complete glazing as described, with and including matching aluminium glazing beads and gaskets and glazed in accordance with the manufacturer's written instructions","",null,null,""]
[975,18602,2,12,null,"","","3. Building in and fixing into preformed openings.  Window opening sizes to be verified on site before windows can be manufactured. Shop drawings to be submitted for approval","",null,null,""]
[976,17618,2,12,null,"56","","4. Silicone pointing with a silicone sealant recommended by AAAMSA on all door / window and structure junctions","",null,null,""]
[977,37135,2,12,null,"","","GALVANISED STEEL GATES, SCREENS, ETC","H2",null,null,""]
[978,37136,2,12,null,"","","Welded screens and gates to brickwork as per Architect's drawing number 500-44","H3",null,null,""]
[979,37137,2,12,null,"","","Steel motorized sliding gate overall size 8000 x 2100mm high as per door type AG-01-Option 2","No",1,null,{"$f":"J647*K647","v":0}]
[980,36972,2,12,null,"","","GALVANISED PRESSED STEEL DOOR FRAMES","H2",null,null,""]
[981,36973,2,12,null,"","","1,6mm Double rebated frames suitable for one brick walls","H3",null,null,""]
[982,36976,2,12,null,"","","Frame for door 813 x 2032mm high","No",29,null,{"$f":"J650*K650","v":0}]
[983,36974,2,12,null,"","","Frame for door 813 x 2053mm high","No",14,null,0]
[984,36975,2,12,null,"","","Frame for double door 1511 x 2400mm high","No",8,null,0]
[985,36977,2,12,null,"","","Frame for double door 1830 x 2440mm high","No",2,null,0]
[986,17705,2,12,null,"","","GALVANISED PRESSED STEEL TRANSFORMER ROOM DOORS AND FRAMES","H2",null,null,""]
[987,17700,2,12,null,"","","\"Bitcon\" or equally approved steel door (Refer to 500 Door Schedules)","H3",null,null,""]
[988,17701,2,12,null,"","","Door overall size 813 x 2032mm high (Type SD-01)","No",5,null,{"$f":"J656*K656","v":0}]
[989,17702,2,12,null,"","","Double door overall size 1830 x 2440mm high (Type SD-02)","No",2,null,0]
[990,17711,2,12,null,"","","STEEL ROLLER SHUTTERS ETC","H2",null,null,""]
[991,17712,2,12,null,"","","\"Xpanda\" or equally approved galvanised steel roller shutters with 76mm slats (18kg/m²), fixed to brickwork or concrete","H3",null,null,""]
[992,17713,2,12,null,"","","Chain operated slatted roller shutter for 3600 x 2600mm high opening","No",2,null,{"$f":"J660*K660","v":0}]
[993,17691,2,12,null,"","","ALUMINIUM WORK (CPAP WORK GROUP NO. 140 UNLESS OTHERWISE STATED)","H2",null,null,""]
[994,22417,2,12,null,"","","ALUMINIUM WINDOWS","H2",null,null,""]
[995,18579,2,12,null,"","","Refer to attached window schedules for details of windows  (Refer to 520 Window Schedules)","H4",null,null,""]
[996,17692,2,12,null,"","","Powder coated casement window units complete with subframes, ironmongery, glass, sealing, etc and fixing to brickwork or concrete","H3",null,null,""]
[997,17693,2,12,null,"","","Window overall size 1000mm wide x 1250mm high extreme including all framing, glazing beads, glazing, and necessary glass fins, etc., complete (Type W01)","No",12,null,{"$f":"J665*K665","v":0}]
[998,17695,2,12,null,"","","Window overall size 1200mm wide x 680mm high extreme including all framing, glazing beads, glazing, and necessary glass fins, etc., complete (Type W02)","No",2,null,0]
[999,17698,2,12,null,"","","Window overall size 1320mm wide x 2220mm high extreme including all framing, glazing beads, glazing, and necessary glass fins, etc., complete (Type W05)","No",8,null,0]
[1000,17697,2,12,null,"","","Window overall size 1445mm wide x 1020mm high extreme including all framing, glazing beads, glazing, and necessary glass fins, etc., complete (Type W04)","No",1,null,0]
[1001,17696,2,12,null,"","","Window overall size 2200mm wide x 1200mm high extreme including all framing, glazing beads, glazing, and necessary glass fins, etc., complete (Type W03)","No",1,null,0]
[1002,37138,2,12,null,"","","ALUMINIUM SLIDING DOORS ","H2",null,null,""]
[1003,37139,2,12,null,"","","Automatic powder coated sliding doors complete with subframes, ironmongery, glass, sealing, etc and fixing to brickwork as per Architect's drawing number 500-47","H3",null,null,""]
[1004,37140,2,12,null,"","","Double door, 1828 x 2570mm high (Type ASD-02)","No",1,null,{"$f":"J672*K672","v":0}]
[1005,17671,2,12,null,"","","ALUMINIUM DOORS","H2",null,null,""]
[1006,17675,2,12,null,"","","Natural anodised doors or equally approved complete with subframes, ironmongery (elsewhere measured), glass, sealing, etc and fixing to brickwork or concrete (Refer to 500 Door Schedules)","H3",null,null,""]
[1007,17676,2,12,null,"","","Door overall size 1450mm wide x 2300mm high aluminium 1.5 door (Type AD-07)","No",1,null,{"$f":"J675*K675","v":0}]
[1008,17679,2,12,null,"","","Powder coated doors, colour AP39005 matt jet black or equally approved, complete with subframes, ironmongery (elsewhere measured), glass, sealing, etc and fixing to brickwork, concrete or partitions (Refer to 500 Door Schedules)","H3",null,null,""]
[1009,17681,2,12,null,"","","Door overall size 900mm wide x 2600mm high aluminium single door (Type AD-04)","No",6,null,{"$f":"J677*K677","v":0}]
[1010,17682,2,12,null,"","","Door overall size 900mm wide x 2600mm high aluminium single door (Type AD-05)","No",1,null,0]
[1011,17680,2,12,null,"","","Door overall size 1600mm wide x 2600mm high aluminium double door (Type AD-02) ","No",17,null,0]
[1012,17688,2,12,null,"","","ALUMINIUM SLIDING FOLDING DOORS","H2",null,null,""]
[1013,17689,2,12,null,"","","Composite panel sliding folding doors complete with subframes, ironmongery, glass, sealing, etc and fixing to brickwork or concrete","H3",null,null,""]
[1014,17690,2,12,null,"","","Sliding door overall size 6194mm wide x 2600mm high","No",1,null,{"$f":"J682*K682","v":0}]
[1015,22414,2,12,null,"","","ALUMINIUM LOUVRE UNITS","H2",null,null,""]
[1016,22415,2,12,null,"","","NATURAL ANODISED HORIZONTAL ALUMINIUM LOUVRE UNITS","H2",null,null,""]
[1017,22355,2,12,null,"","","Fixed louvre units screwed into timber frames","H3",null,null,""]
[1018,22356,2,12,null,"","","Louvre unit 500 x 300mm high","m2",3,null,{"$f":"J686*K686","v":0}]
[1019,17620,2,12,null,"","","ALUMINIUM SHOPFRONTS, DOORS ETC.","H2",null,null,""]
[1020,17621,2,12,null,"","","Powder coated shopfronts, colour AP39005 Matt Jet Black or equally approved complete with subframes, ironmongery (elsewhere measured), glass, vinyl sandblasting, sealing, etc and fixing to brickwork, concrete or partitions (Refer to 510 Shopfront Schedules)","H3",null,null,""]
[1021,17633,2,12,null,"","","Shopfront overall size 1130 x 6013mm high (Shopfront Type SF-11)","No",1,null,{"$f":"J689*K689","v":0}]
[1022,17631,2,12,null,"","","Shopfront overall size 1260 x 6013mm high (Shopfront Type SF-09/10)","No",2,null,0]
[1023,17636,2,12,null,"","","Shopfront overall size 2200 x 2600mm high (Shopfront Type SF-14) with one single door 900 x 2600mm (Door Type: AD05)","No",5,null,0]
[1024,17670,2,12,null,"","","Shopfront overall size 2404 x 2600mm high (Shopfront Type SF-49) with one single door 900 x 2600mm (Door Type: AD05)","No",5,null,0]
[1025,17630,2,12,null,"","","Shopfront overall size 2640 x 6013mm high (Shopfront Type SF-08)","No",1,null,0]
[1026,37126,2,12,null,"","","Shopfront overall size 3104 x 2990mm high (Shopfront Type SF-52) with one single paraplegic door 1200 x 2400mm (Door Type: SF-02)","No",1,null,0]
[1027,37125,2,12,null,"","","Shopfront overall size 4083 x 2300mm high (Shopfront Type SF-50) with one and a half leaf door 1450 x 2300mm (Door Type: AD07)","No",1,null,0]
[1028,17638,2,12,null,"","","Shopfront overall size 4480 x 2600mm high (Shopfront Type SF-16) with one single door 900 x 2600mm (Door Type: AD04)","No",4,null,0]
[1029,17662,2,12,null,"","","Shopfront overall size 4513 x 2600mm high (Shopfront Type SF-41) with one double door 1600 x 2600mm (Door Type: AD03)","No",1,null,0]
[1030,17669,2,12,null,"","","Shopfront overall size 4631 x 2600mm high (Shopfront Type SF-48) with one double door 1600 x 2600mm (Door Type: AD03)","No",1,null,0]
[1031,17637,2,12,null,"","","Shopfront overall size 4715 x 2600mm high (Shopfront Type SF-15) with one single door 900 x 2600mm (Door Type: AD04)","No",4,null,0]
[1032,17655,2,12,null,"","","Shopfront overall size 4715 x 2600mm high (Shopfront Type SF-34) with one double door 1540 x 2560mm (Door Type: AD02)","No",1,null,0]
[1033,17652,2,12,null,"","","Shopfront overall size 4730 x 2600mm high (Shopfront Type SF-30) with one single door 900 x 2600mm (Door Type: AD04)","No",1,null,0]
[1034,17658,2,12,null,"","","Shopfront overall size 5314 x 2600mm high (Shopfront Type SF-37) with one single door 900 x 2600mm (Door Type: AD04)","No",1,null,0]
[1035,17661,2,12,null,"","","Shopfront overall size 5456 x 2600mm high and 6003 x 2600mm high (Shopfront Type SF-40) with two single doors 900 x 2600mm (Door Type: AD04)","No",1,null,0]
[1036,17635,2,12,null,"","","Shopfront overall size 5480 x 2600mm high (Shopfront Type SF-13) with two single doors 900 x 2600mm (Door Type: AD04)","No",5,null,0]
[1037,17657,2,12,null,"","","Shopfront overall size 5624 x 2600mm high (Shopfront Type SF-36) with two single doors 900 x 2600mm (Door Type: AD04)","No",1,null,0]
[1038,17666,2,12,null,"","","Shopfront overall size 5809 x 2600mm high and 14301 x 2600mm high (Shopfront Type SF-45) with five single doors 900 x 2600mm (Door Type: AD04)","No",1,null,0]
[1039,17627,2,12,null,"","","Shopfront overall size 5820 x 2600mm high (Shopfront Type SF-05) with one double door 1540 x 2560mm (Door Type: AD03)","No",1,null,0]
[1040,17629,2,12,null,"","","Shopfront overall size 5070 x 3305mm high with side panels at 45 degrees (Shopfront Type SF-07) with one double automatic sliding door 1828 x 2570mm (Door Type: ASD01)","No",1,null,0]
[1041,17644,2,12,null,"","","Shopfront overall size 6510 x 2600mm high (Shopfront Type SF-22) with two double doors 1600 x 2600mm (Door Type: AD03)","No",1,null,0]
[1042,17643,2,12,null,"","","Shopfront overall size 6560 x 2600mm high (Shopfront Type SF-21) with two single doors 900 x 2600mm (Door Type: AD04)","No",1,null,0]
[1043,17648,2,12,null,"","","Shopfront overall size 7810 x 2600mm high (Shopfront Type SF-26) with three single doors 900 x 2600mm (Door Type: AD04)","No",1,null,0]
[1044,17649,2,12,null,"","","Shopfront overall size 10230 x 2600mm high (Shopfront Type SF-27) with two single doors 900 x 2600mm (Door Type: AD04)","No",1,null,0]
[1045,17650,2,12,null,"","","Shopfront overall size 10280 x 2600mm high (Shopfront Type SF-28) with three single doors 900 x 2600mm (Door Type: AD04)","No",1,null,0]
[1046,17656,2,12,null,"","","Shopfront overall size 10282 x 2600mm high (Shopfront Type SF-35) with four single doors 900 x 2600mm (Door Type: AD04)","No",1,null,0]
[1047,17628,2,12,null,"","","Shopfront overall size 10290 x 2600mm high (Shopfront Type SF-06) with one single door 900 x 2600mm (Door Type: AD04) and one double door 1600 x 2600 (Door Type AD03)","No",1,null,0]
[1048,17641,2,12,null,"","","Shopfront overall size 10300 x 2600mm high (Shopfront Type SF-19) with three single doors 900 x 2600mm (Door Type: AD04)","No",1,null,0]
[1049,17640,2,12,null,"","","Shopfront overall size 10785 x 2600mm high (Shopfront Type SF-18) with two single doors 900 x 2600mm (Door Type: AD04 and AD05)","No",1,null,0]
[1050,17667,2,12,null,"","","Shopfront overall size 10900 x 2600mm high (Shopfront Type SF-46) with two single doors 900 x 2600mm (Door Type: AD04)","No",1,null,0]
[1051,17664,2,12,null,"","","Shopfront overall size 11076 x 2600mm high (Shopfront Type SF-43) with two double doors 1600 x 2600mm (Door Type: AD03)","No",1,null,0]
[1052,17668,2,12,null,"","","Shopfront overall size 11170 x 2600mm high (Shopfront Type SF-47) with two single doors 900 x 2600mm (Door Type: AD04)","No",1,null,0]
[1053,17645,2,12,null,"","","Shopfront overall size 11935 x 2600mm high (Shopfront Type SF-23) with two single doors 900 x 2600mm (Door Type: AD04)","No",1,null,0]
[1054,17626,2,12,null,"","","Shopfront overall size 12050 x 2600mm high (Shopfront Type SF-04) with three single doors 900 x 2600mm (Door Type: AD04)","No",1,null,0]
[1055,37123,2,12,null,"","","Shopfront overall size 12641 x 2600mm high (Shopfront Type SF-32) with three single doors 900 x 2600mm (Door Type: AD04)","No",1,null,0]
[1056,37124,2,12,null,"","","Shopfront overall size 11750 x 2990mm high (Shopfront Type SF-51) with one double automatic sliding door 1828 x 2570mm (Door Type: ASD01)","No",1,null,0]
[1057,17651,2,12,null,"","","Shopfront overall size 13010 x 2600mm high (Shopfront Type SF-29) with two single doors 900 x 2600mm (Door Type: AD04)","No",1,null,0]
[1058,17665,2,12,null,"","","Shopfront overall size 13841 x 2600mm high (Shopfront Type SF-44) with four single doors 900 x 2600mm (Door Type: AD04)","No",1,null,0]
[1059,17623,2,12,null,"","","Shopfront overall size 13860 x 2600mm high (Shopfront Type SF-01) with four single doors 900 x 2600mm (Door Type: AD04)","No",1,null,0]
[1060,17625,2,12,null,"","","Shopfront overall size 14930 x 2600mm high (Shopfront Type SF-03) with four single doors 900 x 2600mm (Door Type: AD04)","No",1,null,0]
[1061,17642,2,12,null,"","","Shopfront overall size 15530 x 2600mm high (Shopfront Type SF-20) with two single doors 900 x 2600mm (Door Type: AD04)","No",1,null,0]
[1062,17654,2,12,null,"","","Shopfront overall size 18182 x 2600mm high (Shopfront Type SF-33) with five single doors 900 x 2600mm (Door Type: AD04)","No",1,null,0]
[1063,17639,2,12,null,"","","Shopfront overall size 20915 x 2600mm high (Shopfront Type SF-17) with six single doors 900 x 2600mm (Door Type: AD04)","No",1,null,0]
[1064,17660,2,12,null,"","","Shopfront overall size 20930 x 2600mm high (Shopfront Type SF-39) with six single doors 900 x 2600mm (Door Type: AD04)","No",1,null,0]
[1065,17653,2,12,null,"","","Shopfront overall size 21924 x 2600mm high (Shopfront Type SF-31) with six single doors 900 x 2600mm (Door Type: AD04)","No",1,null,0]
[1066,17659,2,12,null,"","","Shopfront overall size 22200 x 2600mm high (Shopfront Type SF-38) with six single doors 900 x 2600mm (Door Type: AD04)","No",1,null,0]
[1067,17634,2,12,null,"","","Shopfront overall size 22260 x 2600mm high (Shopfront Type SF-12) with seven single doors 900 x 2600mm (Door Type: AD04)","No",1,null,0]
[1068,17647,2,12,null,"","","Shopfront overall size 22315 x 2600mm high (Shopfront Type SF-25) with six single doors 900 x 2600mm (Door Type: AD04)","No",1,null,0]
[1069,17646,2,12,null,"","","Shopfront overall size 22320 x 2600mm high (Shopfront Type SF-24) with six single doors 900 x 2600mm (Door Type: AD04)","No",1,null,0]
[1070,17663,2,12,null,"","","Shopfront overall size 22356 x 2600mm high (Shopfront Type SF-42) with six single doors 900 x 2600mm (Door Type: AD04)","No",1,null,0]
[1071,17624,2,12,null,"","","Shopfront overall size 25102 x 2600mm high (Shopfront Type SF-02) with seven single doors 900 x 2600mm (Door Type: AD04)","No",1,null,0]
[1073,17718,2,13,null,"","","SECTION NO. 2","H1",null,null,""]
[1074,17719,2,13,null,"","","BILL NO. 13: PLASTERING ","H1",null,null,{"$f":"SUM(L742:L767)","v":0}]
[1075,17720,2,13,null,"","","PLASTERING (PROVISIONAL) (CPAP WORK GROUP NO. 142 UNLESS OTHERWISE STATED)","H1",null,null,""]
[1076,22334,2,13,null,"31","","The Tenderer is referred to the relevant Clauses in the separate document General Preambles for Trades (2017)","",null,null,""]
[1077,17722,2,13,null,"29","","SCREEDS","H2",null,null,""]
[1078,17723,2,13,null,"","","Screeds wood floated, on concrete","H3",null,null,""]
[1079,17724,2,13,null,"36.49","","25mm Thick on floors and landings","m2",6586,null,{"$f":"J746*K746","v":0}]
[1080,37145,2,13,null,"36.49","","25mm Thick on ramps","m2",21,null,0]
[1083,36978,2,13,null,"","","Apply \"Isocrete K-Screed\" or other equal and approved to a minimum 20mm thickness.  Applied in accordance with approved manufacturer's specifications by approved applicators","H3",null,null,""]
[1084,36980,2,13,null,"","","Minimum 20mm thick on treads and risers of stairs","m2",382,null,{"$f":"J749*K749","v":0}]
[1085,37185,2,13,null,"","","Minimum 20mm thick on walls","m2",275,null,0]
[1086,36981,2,13,null,"","","Apply one coat \"Flowscreed Industrial Top\" or other equal and approved (spread rate - 17kg/m²) to a minimum 5mm thickness with a maximum overcoating time of 48 hours. Applied in accordance with manufacturer's specifications by approved applicators","H3",null,null,""]
[1087,36982,2,13,null,"","","Minimum 5mm thick on treads and risers of stairs","m2",382,null,{"$f":"J752*K752","v":0}]
[1088,37186,2,13,null,"","","Minimum 5mm thick on walls","m2",275,null,0]
[1091,17725,2,13,null,"29","","INTERNAL PLASTER","H2",null,null,""]
[1092,17727,2,13,null,"","","Cement plaster steel trowelled, on brickwork","H3",null,null,""]
[1093,17729,2,13,null,"","","On walls","m2",7199,null,{"$f":"J756*K756","v":0}]
[1094,17730,2,13,null,"60.5","","On narrow widths","m2",59,null,0]
[1095,18328,2,13,null,"","","Cement plaster rendering coat with gypsum skim plaster finishing coat, on brickwork","H3",null,null,""]
[1096,18329,2,13,null,"","","On walls","m2",112,null,{"$f":"J759*K759","v":0}]
[1097,17734,2,13,null,"29","","EXTERNAL PLASTER","H2",null,null,""]
[1098,17735,2,13,null,"","","Cement plaster steel trowelled, on brickwork","H3",null,null,""]
[1099,18582,2,13,null,"","","On walls","m2",100,null,{"$f":"J762*K762","v":0}]
[1100,17737,2,13,null,"60.5","","On narrow widths","m2",42,null,0]
[1101,18321,2,13,null,"","","CORNER PROTECTORS, DIVIDING STRIPS, ETC (CPAP WORK GROUP NO. 140 UNLESS OTHERWISE STATED)","H2",null,null,""]
[1102,18323,2,13,null,"","","\"Genesis\" or other equal and approved, interior aluminium formable shopfront trim fixed to substrate with general-purpose metal adhesive","m",460,null,{"$f":"J765*K765","v":0}]
[1103,18326,2,13,null,"","","\"Genesis\" or other equal and approved, interior aluminium formable transition colour Bright Silver (Code: TAF106.91), size 17 x 10mm x 2,5m long on laminate floor covering, fixed to substrate with general-purpose metal adhesive","m",200,null,0]
[1104,18327,2,13,null,"","","\"Genesis\" or other equal and approved, interior tile-in ramp colour Matt Silver (Code: RSA104.81), size 20 x 9mm x 2,5m long on tile floor covering, fixed to substrate with tile adhesive","m",55,null,0]
[1106,17739,2,14,null,"","","SECTION NO. 2","H1",null,null,""]
[1107,17740,2,14,null,"","","BILL NO. 14: TILING","H1",null,null,{"$f":"SUM(L770:L790)","v":0}]
[1108,17741,2,14,null,"","","TILING (PROVISIONAL) (CPAP WORK GROUP NO. 144 UNLESS OTHERWISE STATED)","H1",null,null,""]
[1109,22335,2,14,null,"31","","The Tenderer is referred to the relevant Clauses in the separate document General Preambles for Trades (2017)","",null,null,""]
[1110,17743,2,14,null,"","","SUPPLEMENTARY PREAMBLES","H2",null,null,""]
[1111,19398,2,14,null,"","","Prime Cost amounts for tiles are NET  Rates for tiling, in addition to the PC amount, must include for fixing, adhesive, grout, wastage, profit, etc","",null,null,""]
[1112,17744,2,14,null,"","","Fixing","H3",null,null,""]
[1113,17745,2,14,null,"","","Unless described as \"fixed with adhesive to plaster (plaster elsewhere)\" descriptions of tiling on brick or concrete walls, columns, etc shall be deemed to include 1:4 cement plaster backing and descriptions of tiling on concrete floors etc shall be deemed to include 1:3 plaster bedding  Tiling described as \"fixed with adhesive on power floated concrete\" shall be deemed to include for approved tiling key-coat","",null,null,""]
[1114,17746,2,14,null,"","","Ceramic, porcelain, marble and granite tiles are to be fixed and grouted with suitable adhesives and grouts from the \"Tal Professional\" range of products as recommended by the manufacturer of the tiles","",null,null,""]
[1115,17747,2,14,null,"","","WALL TILING","H2",null,null,""]
[1116,17750,2,14,null,"","","Supply and install 150 x 600mm Porcelain wall tiles (P.C. Amount R350 /m2) fixed with adhesive to plaster (plastered elsewhere) and flush pointed with tinted grout","H3",null,null,""]
[1117,17751,2,14,null,"","","On walls","m2",938,null,{"$f":"J779*K779","v":0}]
[1118,17748,2,14,null,"","","Supply and install 600 x 600mm Porcelain wall tiles (P.C. Amount R350 /m2) fixed with adhesive to plaster (plastered elsewhere) and flush pointed with tinted grout","H3",null,null,""]
[1119,17749,2,14,null,"","","On walls","m2",798,null,{"$f":"J781*K781","v":0}]
[1120,17758,2,14,null,"","","FLOOR TILING","H2",null,null,""]
[1121,17759,2,14,null,"","","Supply and install 600 x 600mm Porcelain floor tiles (P.C. Amount R350 /m2) fixed with adhesive to screed (screed elsewhere) and flush pointed with 2mm tinted grouting","H3",null,null,""]
[1122,17760,2,14,null,"","","On floors and landings ","m2",824,null,{"$f":"J784*K784","v":0}]
[1123,17761,2,14,null,"","","Skirting 100mm high","m",860,null,0]
[1124,17774,2,14,null,"","","SUNDRIES","H2",null,null,""]
[1125,17775,2,14,null,"","","Aluminium corner protectors, stair nosings, edge trims, division strips etc.","H3",null,null,""]
[1126,17776,2,14,null,"","","\"Genesis\" or other equal and approved, interior aluminium straight edge trim in Bright Silver (Code: ESA080.91), size 21 x 8mm on tile surfaces, securely bedded in adhesive","m",675,null,{"$f":"J788*K788","v":0}]
[1127,17777,2,14,null,"","","\"Genesis\" or other equal and approved, interior tile-in ramp colour Matt Silver (Code: RSA104.81), size 20 x 9mm on tile floor covering, fixed to substrate with tile adhesive","m",15,null,0]
[1128,17778,2,14,null,"","","\"Genesis\" or other equal and approved, edge strip Matt Silver fixed to substrate with tile adhesive","m",125,null,0]
[1130,18040,2,15,null,"","","SECTION NO. 2","H1",null,null,""]
[1131,18041,2,15,null,"234","","BILL NO. 15: PLUMBING AND DRAINAGE","H1",null,null,{"$f":"SUM(L793:L998)","v":0}]
[1132,18042,2,15,null,"234","","PLUMBING AND DRAINAGE (PROVISIONAL) (CPAP WORK GROUP NO. 148 UNLESS OTHERWISE STATED)","H1",null,null,""]
[1133,22336,2,15,null,"31","","The Tenderer is referred to the relevant Clauses in the separate document General Preambles for Trades (2017)","",null,null,""]
[1134,18044,2,15,null,"","","SUPPLEMENTARY PREAMBLES","H2",null,null,""]
[1135,18045,2,15,null,"158","","Stainless steel basins, sinks, wash troughs, urinals, etc","H3",null,null,""]
[1136,18046,2,15,null,"158","","Stainless steel for economy basins, domestic sinks and worktops shall be Type 430 (17/0)","",null,null,""]
[1137,18047,2,15,null,"158","","Stainless steel for urinals, basins, quality sinks, wash troughs, institutional equipment, etc shall be Type 304 (18/8)","",null,null,""]
[1138,18048,2,15,null,"158","","Stainless steel for laboratory sinks, photographic equipment, etc shall be Type 316 (18/8)","",null,null,""]
[1139,18049,2,15,null,"158","","Units shall have standard aprons on all exposed edges and tiling keys against walls where applicable","",null,null,""]
[1140,18050,2,15,null,"158","","Sealing of edges","H3",null,null,""]
[1141,18051,2,15,null,"158","","Outer edges of sinks, basins, baths, urinals, etc are to be sealed against adjacent surfaces with approved silicone","",null,null,""]
[1142,18052,2,15,null,"","","uPVC pipes and fittings","H3",null,null,""]
[1143,18053,2,15,null,"","","Sewer and drainage pipes and fittings shall be jointed and sealed with butyl rubber rings","",null,null,""]
[1144,18054,2,15,null,"","","Soil, waste and vent pipes and fittings shall be solvent weld jointed or sealed with butyl rubber rings","",null,null,""]
[1145,18055,2,15,null,"","","uPVC pressure pipes and fittings","H3",null,null,""]
[1146,18056,2,15,null,"","","Pipes of 50mm diameter and smaller shall be plain ended with solvent welded uPVC loose sockets and fittings","",null,null,""]
[1147,18057,2,15,null,"","","Pipes of 63mm diameter and greater shall have sockets and spigots with push-in type integral rubber ring joints.  Bends shall be uPVC and all other fittings shall be cast iron, all with similar push-in type joints","",null,null,""]
[1148,18058,2,15,null,"","","High density polyethylene (HDPe) pipes and fittings","H3",null,null,""]
[1149,18059,2,15,null,"","","Pipes shall be type IV and of the class specified with \"Plasson\" or \"Alprene\" compression fittings","",null,null,""]
[1150,18060,2,15,null,"159","","\"Polycop\" polypropylene pipes","H3",null,null,""]
[1151,18061,2,15,null,"159","","Polypropylene pipes 54mm diameter and smaller shall be seamless copper coloured Class 16 pipes jointed with \"Fast-fuse\" heat welded thermoplastic or where so described \"Polylock\" compression fittings","",null,null,""]
[1152,18062,2,15,null,"160","","Pipes shall be firmly fixed to walls, etc with coloured nylon snap-in pipe clips with provision for accommodating thermal movement and jointed and fixed strictly in accordance with the manufacturer's instructions","",null,null,""]
[1153,18063,2,15,null,"159","","Copper pipes","H3",null,null,""]
[1154,18064,2,15,null,"159","","Pipes shall be hard drawn and half hard \"Maksal\" pipes of the class described. Class 0 (thin walled hard drawn) pipes shall not be bent. Class 1 (thin walled half hard), Class 2 (half hard) and Class 3 (heavy walled half-hard) pipes shall only be bent with benders with inner and outer formers. Fittings to copper waste, vent and anti syphon pipes, capillary solder fittings and compression fittings shall be \"Cobra Watertech\" or other equally and aproved type. Capillary solder fittings shall comply with ISO 2016","",null,null,""]
[1155,18065,2,15,null,"160","","Copper pipes are to be installed in accordance with the latest revision of the Code of Practice for Copper Plumbing soldering techniques. Flux, solder, etc to be strictly in accordance with the manufacturer's requirements with special attention to copper flux composition","",null,null,""]
[1156,18066,2,15,null,"160","","Reducing fittings","H3",null,null,""]
[1157,18067,2,15,null,"160","","Where fittings have reducing ends or branches they are described as \"reducing\" and only the largest end or branch size is given","",null,null,""]
[1158,18068,2,15,null,"160","","Fixing of pipes","H3",null,null,""]
[1159,18069,2,15,null,"160","","Unless specifically otherwise stated, descriptions of pipes shall be deemed to include fixing to walls, etc, casting in, building in or suspending not exceeding 1m below suspension level","",null,null,""]
[1160,18070,2,15,null,"","","Paper wrapping to pipes","H3",null,null,""]
[1161,18071,2,15,null,"","","Pipes chased into brickwork must be wrapped with two layers of stout brown paper tied with wire. Rates are to include for wrapping around joints and fittings","",null,null,""]
[1162,18072,2,15,null,"","","Disinfection of water pipework","H3",null,null,""]
[1163,18073,2,15,null,"","","Water pipework is to be disinfected at completion in accordance with SABS 1200L (provision for disinfection elsewhere)","",null,null,""]
[1164,18074,2,15,null,"","","General","H3",null,null,""]
[1165,18075,2,15,null,"","","Descriptions of cast iron roof outlets shall be deemed to include joints to pipes and casting into concrete (adaptors for joints to PVC pipes, etc are given separately)","",null,null,""]
[1166,18076,2,15,null,"","","Descriptions of overflow pipes where measured in number, shall be deemed to include joints to cisterns and splay cut ends","",null,null,""]
[1167,18077,2,15,null,"","","Descriptions of pipes laid in and including trenches and of inspection chambers, catchpits, etc shall be deemed to include excavation, bedding, backfilling, compaction to a minimum of 98% Mod AASHTO density and disposal of surplus material on site","",null,null,""]
[1168,18078,2,15,null,"","","Descriptions of service pipes and flexible connecting pipes shall be deemed to include connections to taps, cisterns, etc and to steel pipes (adaptors for connections to copper pipes, etc are given separately)","",null,null,""]
[1169,18079,2,15,null,"","","Descriptions of WC pans, slop hoppers, etc shall be deemed to include for joints to soil pipes (pan connectors are separately measured)","",null,null,""]
[1170,18080,2,15,null,"","","Prices for installation of all taps, valves, etc, shall in all cases be deemed to include for the necessary couplings required for connecting to pipework whether specifically described or not","",null,null,""]
[1171,18081,2,15,null,"162","","As built drawings","H3",null,null,""]
[1172,18082,2,15,null,"162","","Where required, the contractor shall prepare an updated set of as built drawings.  At completion of the contract the contractor shall hand these drawings to the Principal Agent for reproducing onto the originals for handing over to the employer (provision for allowance of as-built drawings elsewhere)","",null,null,""]
[1173,18083,2,15,null,"","","SANITARY FITTINGS","H2",null,null,""]
[1174,18084,2,15,null,"","","\"Franke\" or other equal and approved","H3",null,null,""]
[1175,18085,2,15,null,"","","Projectline Model PLN611 Grade 304 18/10 polished stainless steel single end bowl inset sink (Code: 1990030), overall size 800 x 460mm with one 340 x 370 x 140mm deep bowl, fitted onto cupboard (elsewhere specified) including PVC trap (trap elsewhere specified) with 38mm waste fitting","No",11,null,{"$f":"J836*K836","v":0}]
[1176,18086,2,15,null,"","","Rondo Model RDX610-45 Grade 304 18/10 polished stainless steel single prep bowl (Code: 1990012), overall size 450mm diameter with one 380mm diameter x 161mm deep bowl, fitted onto cupboard (elsewhere specified) including PVC trap (trap elsewhere specified) with 90mm waste fitting without overflow","No",5,null,0]
[1177,18087,2,15,null,"","","\"Vaal\" or other equal and approved","H3",null,null,""]
[1178,18088,2,15,null,"","","Amber Classic vitreous china wall hung basin colour White (Code: 700303WH), overall size 510 x 440 x 195mm with three tapholes including integrated overflow and chainstay hole, bolted to wall with 2No.10mm bolts (Code: 8448Z000) and sealed with silicone sealant where basin meets wall","No",4,null,{"$f":"J839*K839","v":0}]
[1179,18089,2,15,null,"","","Azalea 510 vitreous china semi-recessed basin colour White (Code: 705800WH), overall size 510 x 500 x 160mm with one taphole with integrated overflow, fitted onto vanity top (elsewhere specified)","No",37,null,0]
[1180,18090,2,15,null,"","","Midi Weaver vitreous china countertop vanity basin colour White (Code: 706601WH), overall size 450 x 350 x 130 mm without tapholes with integrated overflow, fitted onto vanity top (elsewhere specified) including 2No.10mm bolts (Code: 8448Z000) and sealed with silicone sealant where basin meets wall and vanity top","No",1,null,0]
[1181,36920,2,15,null,"","","Urban Life 90° outlet back inlet closed rim wall hung pan, with quality soft-close seat (Code: 439300WH)","No",4,null,0]
[1182,18091,2,15,null,"","","Urban Compact CC vitreous china close coupled suite colour White (Code: 772562WH), oversll size 608 x 358 x 806mm high with Thermoset Soft-Close seat (Code: 8535Z0), comprising 90° outlet closed rim washdown pan (Code: 772500WH) with matching 6 litre cistern top dual flush cistern including fitments","No",3,null,0]
[1183,18092,2,15,null,"","","Entice vitreous china 90° outlet back inlet wall hung closed rim pan colour White (Code: 439600WH), oversll size 568 x 363 x 435mm high with Entice Thermoset seat (Code: 8854Z000), fixed on and including bolt-through-the-wall bracket (Code: 8084Z0) with concealed back inlet flushvalve (elsewhere specified)","No",48,null,0]
[1184,18093,2,15,null,"","","Pearl Paraplegic vitreous china floor mounted paraplegic washdown suite colour White (Code: 7300SCWH), comprising semi close couple 90° outlet open rim washdown pan and matching 9 litre cistern complete with lid, fitments and purpose made side-flush lever","No",1,null,0]
[1185,18094,2,15,null,"","","565 x 275 x 310mm Sweetpea back inlet white vitreous china wall mounted urinal (Code: 705127WH) including 38mm chromium plated domical grating (Code:8787Z0) and chromium plated back inlet spreader (Code: 7054Z2), flush valve, flush pipe and fittings (by others), fixed on and including two hanger brackets (Code: 8127Z0) and urinal division (Code: 705200WH) fixed with and including fixing screws and hanger bracket","No",19,null,0]
[1186,18095,2,15,null,"167","","WASTE UNIONS, ETC.","H2",null,null,""]
[1187,18096,2,15,null,"167","","\"Cobra Watertech\" or other equal and approved","H3",null,null,""]
[1188,18097,2,15,null,"168.32","","32mm Chrome plated basin waste (Code: 308) with 62mm diameter flange, 80mm long shank and plug","No",3,null,{"$f":"J849*K849","v":0}]
[1189,18098,2,15,null,"168.32","","32mm Chrome plated Aqua slotted basin click waste (Code: 302-32) with 62mm diameter flange and 80mm long shank","No",1,null,0]
[1190,18099,2,15,null,"","","40mm Chrome plated slotted basin waste (Code: P-303) with plug, includes 62mm diameter flange, 77mm long shank, and 1¼\" BSP male outlet connection","No",38,null,0]
[1191,18100,2,15,null,"168","","TRAPS, ETC.","H2",null,null,""]
[1192,18101,2,15,null,"167","","\"Cobra Watertech\" or other equal and approved","H3",null,null,""]
[1193,18102,2,15,null,"168.36","","40mm Chrome plated bottle trap (Code: 345/40) with 75mm deep re-seal, adjustable telescopic pipe, and 1 ¼\" female inlet 40mm outlet","No",5,null,{"$f":"J854*K854","v":0}]
[1194,18103,2,15,null,"","","\"Franke\" or other equal and approved","H3",null,null,""]
[1195,18104,2,15,null,"","","Spazi F/1  plumbing kit (Code: 1120008)","No",16,null,{"$f":"J856*K856","v":0}]
[1196,18105,2,15,null,"167","","\"Isca\" or other equal and approved","H3",null,null,""]
[1197,18106,2,15,null,"","","Chrome Plated bottle trap (Code: 618CH), overall size 32 x 32mm, connected to 40mm waste outlet","No",37,null,{"$f":"J858*K858","v":0}]
[1198,18107,2,15,null,"169","","TAPS, ETC.","H2",null,null,""]
[1199,18108,2,15,null,"169","","\"Cobra Watertech\" or other equal and approved","H3",null,null,""]
[1200,18109,2,15,null,"","","15mm Chrome Noka deck mounted basin mixer with 6L/min flow rate (Code: NA-951), installed in accordance with the manufacturers recommendations","No",7,null,{"$f":"J861*K861","v":0}]
[1201,18110,2,15,null,"","","15mm Chrome Medical Elbow Action wall mountedbasin mixer (Code: 503-21B), manufactured in accordance with SANS 226 Type 2, installed in accordance with the manufacturers recommendations Medical elbow-action wall-type basin mixer chrome Includes ¼\" turn ceramic disc ½\" BSP male inlet re-inforcing back plate and aerated fixed straight outlet<br>• SANS 226 Type 2","No",1,null,0]
[1202,18112,2,15,null,"","","15mm Chrome Metering deck mounted metering tap (Code: KM2-301), manufactured in accordance with SANS 1808-9, installed in accordance with the manufacturers recommendations. Metering stop tap chrome. Includes self-closing non-hold open flow controller with a flow cycle of 1-20 seconds ½\" male inlet and stainless steel flange. Excellent water-saving product and can be easily installed. SANS 1808-9","No",19,null,0]
[1203,18113,2,15,null,"167","","\"Isca\" or other equal and approved","H3",null,null,""]
[1204,18111,2,15,null,"","","15mm Chrome Chloe sink mixer (Code: EX7003CH), manufactured in accordance with SANS 1480:2005 and SANS 226:2004","No",16,null,{"$f":"J865*K865","v":0}]
[1205,18114,2,15,null,"168.32","","15mm Chrome Bordo Square basin mixer (Code: 5919CH), manufactured in accordance with SANS 1480:2005 and SANS 226:2004","No",34,null,0]
[1206,18115,2,15,null,"169","","VALVES, ETC.","H2",null,null,""]
[1207,18116,2,15,null,"169","","\"Cobra Watertech\" or other equal and approved","H3",null,null,""]
[1208,18117,2,15,null,"170.51","","15mm Chrome ball type angle valve (Code: 832/350F)","No",180,null,{"$f":"J869*K869","v":0}]
[1209,18118,2,15,null,"170.51","","25mm Nickle plated brass isolating lever ball valve","No",25,null,0]
[1210,18119,2,15,null,"170.51","","32mm Nickle plated brass isolating lever ball valve","No",10,null,0]
[1211,18120,2,15,null,"170.51","","40mm Nickle plated brass isolating lever ball valve","No",12,null,0]
[1212,18121,2,15,null,"170.51","","50mm Nickle plated brass isolating lever ball valve","No",22,null,0]
[1213,36893,2,15,null,"170.51","","63mm Nickle plated brass isolating lever ball valve","No",2,null,0]
[1214,36878,2,15,null,"170.51","","76mm Nickle plated brass isolating lever ball valve","No",8,null,0]
[1215,36888,2,15,null,"170.51","","80mm Nickle plated brass isolating lever ball valve","No",7,null,0]
[1216,18123,2,15,null,"170.51","","40mm Brass spring type check valve","No",5,null,0]
[1217,18124,2,15,null,"170.51","","50mm Brass spring type check valve","No",5,null,0]
[1218,18125,2,15,null,"170.51","","80mm Brass spring type check valve ","No",5,null,0]
[1219,36890,2,15,null,"170.51","","20mm Brass F x F line strainer","No",1,null,0]
[1220,18126,2,15,null,"170.51","","25mm Brass F x F line strainer","No",9,null,0]
[1221,36892,2,15,null,"170.51","","40mm Brass F x F line strainer","No",1,null,0]
[1222,36891,2,15,null,"170.51","","50mm Brass F x F line strainer","No",6,null,0]
[1223,36896,2,15,null,"170.51","","63mm Brass F x F line strainer","No",1,null,0]
[1224,36879,2,15,null,"170.51","","76mm Brass F x F line strainer","No",4,null,0]
[1225,36887,2,15,null,"170.51","","80mm Brass F x F line strainer","No",2,null,0]
[1226,36820,2,15,null,"170.51","","15mm Non-Return valve","No",12,null,0]
[1227,36821,2,15,null,"170.51","","25mm Non-Return valve","No",17,null,0]
[1228,36822,2,15,null,"170.51","","32mm Non-Return valve","No",10,null,0]
[1229,36823,2,15,null,"170.51","","35mm Non-Return valve","No",10,null,0]
[1230,36824,2,15,null,"170.51","","40mm Non-Return valve","No",11,null,0]
[1231,36825,2,15,null,"170.51","","50mm Non-Return valve","No",16,null,0]
[1232,36894,2,15,null,"170.51","","63mm Non-Return valve","No",1,null,0]
[1233,36826,2,15,null,"170.51","","76mm Non-Return valve","No",14,null,0]
[1234,36881,2,15,null,"170.51","","25mm Pressure reducing valve","No",5,null,0]
[1235,36884,2,15,null,"170.51","","40mm Pressure reducing valve","No",1,null,0]
[1236,36885,2,15,null,"170.51","","50mm Pressure reducing valve","No",6,null,0]
[1237,36895,2,15,null,"170.51","","63mm Pressure reducing valve","No",1,null,0]
[1238,36886,2,15,null,"170.51","","76mm Pressure reducing valve","No",2,null,0]
[1239,36897,2,15,null,"170.51","","Masterflow pressure control valve 400kpa (SKU: PA3-132)","No",1,null,0]
[1240,18127,2,15,null,"167","","\"Grohe\" or other equal and approved","H3",null,null,""]
[1241,18128,2,15,null,"168.32","","Uniset for WC with 1000mm high installation height (Code: 38643001) with Chrome Skate Cosmopolitan dual flush actuator (Code: 38732000) including water supply connection with angle stop valve, protection cover for service opening and protection cover for flush pipe, all in accordance with the manufacturers recommendations","No",48,null,{"$f":"J902*K902","v":0}]
[1242,36932,2,15,null,"167","","\"Kwikot\" or other equal and approved","H3",null,null,""]
[1243,36933,2,15,null,"168.32","","400kPa Multi pressure control valve 22mm CxC with integral isolating and expansion relief valve (Code: KHN3.214)","No",6,null,{"$f":"J904*K904","v":0}]
[1244,18129,2,15,null,"","","SANITARY PLUMBING","H2",null,null,""]
[1245,18130,2,15,null,"","","HDPE soil and vent pipes","H3",null,null,""]
[1246,18131,2,15,null,"","","50mm Pipes","m",103,null,{"$f":"J907*K907","v":0}]
[1247,18132,2,15,null,"","","63mm Pipes","m",16,null,0]
[1248,18133,2,15,null,"","","75mm Pipes","m",78,null,0]
[1249,18134,2,15,null,"","","110mm Pipes","m",619,null,0]
[1250,18135,2,15,null,"","","125mm Pipes","m",110,null,0]
[1251,18136,2,15,null,"","","Extra over HDPE soil and vent pipes for fittings","H3",null,null,""]
[1252,36923,2,15,null,"","","50mm Adaptor coupling","No",11,null,{"$f":"J913*K913","v":0}]
[1253,36924,2,15,null,"","","63mm Adaptor coupling","No",1,null,0]
[1254,36925,2,15,null,"","","75mm Adaptor coupling","No",8,null,0]
[1255,36926,2,15,null,"","","110mm Adaptor coupling","No",61,null,0]
[1256,36927,2,15,null,"","","125mm Adaptor coupling","No",11,null,0]
[1257,36929,2,15,null,"","","75mm Expansion coupling with double flange including ring seals, etc","No",8,null,0]
[1258,36930,2,15,null,"","","110mm Expansion coupling with double flange including ring seals, etc","No",61,null,0]
[1259,36931,2,15,null,"","","125mm Expansion coupling with double flange including ring seals, etc","No",11,null,0]
[1260,18137,2,15,null,"","","50mm Bend","No",107,null,0]
[1261,18138,2,15,null,"","","63mm Bend","No",19,null,0]
[1262,18139,2,15,null,"","","75mm Bend","No",15,null,0]
[1263,18140,2,15,null,"","","110mm Bend","No",106,null,0]
[1264,18141,2,15,null,"","","125mm Bend","No",10,null,0]
[1265,18142,2,15,null,"","","50mm Junction","No",41,null,0]
[1266,36873,2,15,null,"","","63mm Junction","No",1,null,0]
[1267,18143,2,15,null,"","","75mm Junction","No",14,null,0]
[1268,18144,2,15,null,"","","110mm Junction","No",143,null,0]
[1269,18145,2,15,null,"","","125mm Junction","No",18,null,0]
[1270,18146,2,15,null,"","","75 x 50 x 75mm Reducing junction","No",10,null,0]
[1271,18147,2,15,null,"","","110 x 50 x 110mm Reducing junction","No",37,null,0]
[1272,18148,2,15,null,"","","110 x 75 x 110mm Reducing junction","No",10,null,0]
[1273,18149,2,15,null,"","","125 x 50 x 125mm Reducing junction","No",11,null,0]
[1274,18151,2,15,null,"","","125 x 110 x 110mm Reducing junction","No",5,null,0]
[1275,18152,2,15,null,"","","125 x 110 x 125mm Reducing junction","No",10,null,0]
[1276,18153,2,15,null,"","","110mm Pan connector","No",52,null,0]
[1277,18154,2,15,null,"","","75mm Rodding eye","No",9,null,0]
[1278,18155,2,15,null,"","","110mm Rodding eye","No",40,null,0]
[1279,18156,2,15,null,"","","125mm Rodding eye","No",12,null,0]
[1280,18157,2,15,null,"176","","Testing","H3",null,null,""]
[1281,18158,2,15,null,"","","Testing waste pipe system","Item",1,null,{"$f":"J942*K942","v":0}]
[1282,18159,2,15,null,"176","","WATER SUPPLIES","H2",null,null,""]
[1283,18160,2,15,null,"176","","\"Geberit Mepla\" or other equal and approved pipes with capillary couplings","H3",null,null,""]
[1284,18161,2,15,null,"","","16mm Pipes","m",872,null,{"$f":"J945*K945","v":0}]
[1285,18162,2,15,null,"","","20mm Pipes","m",589,null,0]
[1286,36874,2,15,null,"","","22mm Pipes","m",15,null,0]
[1287,18163,2,15,null,"","","26mm Pipes","m",151,null,0]
[1288,18164,2,15,null,"","","32mm Pipes","m",76,null,0]
[1289,18165,2,15,null,"","","40mm Pipes","m",80,null,0]
[1290,18166,2,15,null,"","","50mm Pipes","m",85,null,0]
[1291,36876,2,15,null,"","","63mm Pipes","m",5,null,0]
[1292,18167,2,15,null,"","","76mm Pipes","m",167,null,0]
[1293,18168,2,15,null,"","","Extra over \"Geberit Mepla\" or other equal and approved pipes for capillary fittings","H3",null,null,""]
[1294,18169,2,15,null,"","","16mm Fittings","No",337,null,{"$f":"J955*K955","v":0}]
[1295,18170,2,15,null,"","","20mm Fittings","No",242,null,0]
[1296,36875,2,15,null,"","","22mm Fittings","No",8,null,0]
[1297,18171,2,15,null,"","","26mm Fittings","No",130,null,0]
[1298,18172,2,15,null,"","","32mm Fittings","No",65,null,0]
[1299,18173,2,15,null,"","","40mm Fittings","No",46,null,0]
[1300,18174,2,15,null,"","","50mm Fittings","No",53,null,0]
[1301,36877,2,15,null,"","","63mm Fittings","No",2,null,0]
[1302,18175,2,15,null,"","","76mm Fittings","No",57,null,0]
[1303,18183,2,15,null,"176","","PUMPS ETC","H2",null,null,""]
[1304,18184,2,15,null,"","","\"Grundfos\" or other equal and approved Pump Set 1 as per specification on drawing no. P-4007 \"Roof Plumbing Layout\"","No",1,null,{"$f":"J965*K965","v":0}]
[1305,18271,2,15,null,"","","\"Grundfos\" or other equal and approved Pump Set 2 as per specification on drawing no. P-4007 \"Roof Plumbing Layout\"","No",1,null,0]
[1306,36928,2,15,null,"","","\"Grundfos\" or other equal and approved Self Contained Waste Water Pump and Station complete as per specification on drawing no. P-4000 \"Lower Ground Floor Plumbing and Drainage Layout\"","No",1,null,0]
[1307,18584,2,15,null,"","","\"Kwikot\" or other equal and approved Heat Pump as per specification on drawing no. P-4007 \"Roof Plumbing Layout\"","No",1,null,0]
[1308,18585,2,15,null,"","","Circulating Pump as per specification on drawing no. P-4007 \"Roof Plumbing Layout\"","No",1,null,0]
[1309,18189,2,15,null,"176","","ELECTRIC WATER HEATERS","H2",null,null,""]
[1310,18190,2,15,null,"","","\"Kwikot\" or other equal and approved 15 litre KwikBoil water boiler colour White Epoxy (Code: KWIKBOIL-15), size 370 x 230 x 513mm high with Stainless Steel tank, steam free boiling water, electronic controls, 15mm overflow, connected to 15mm cold water supply including isolating valve and 230 volt 2400 watt electrical power supply, plugged and screwed to wall and fitted under 1 year warranty","No",17,null,{"$f":"J971*K971","v":0}]
[1311,18191,2,15,null,"176","","DRIP TRAYS, TANKS, ETC","H2",null,null,""]
[1312,18586,2,15,null,"","","\"Grundfos\" or other equal and approved 450L Vertical pressure tank","No",1,null,{"$f":"J973*K973","v":0}]
[1313,18587,2,15,null,"","","\"Kwikot\" or other equal and approved 450L Megaflow tank","No",1,null,0]
[1314,36898,2,15,null,"176","","PIPE INSULATION","H2",null,null,""]
[1315,36899,2,15,null,"176","","20mm Think \"Thermaflex\" or other equal and approved pipe insulation with plain covering","H3",null,null,""]
[1316,36900,2,15,null,"","","Insulation to 16mmø internal diameter pipes including couplings","m",275,null,{"$f":"J977*K977","v":0}]
[1317,36904,2,15,null,"","","Insulation to 20mmø internal diameter pipes including couplings","m",250,null,0]
[1318,36905,2,15,null,"","","Insulation to 22mmø internal diameter pipes including couplings","m",15,null,0]
[1319,36909,2,15,null,"","","Insulation to 26mmø internal diameter pipes including couplings","m",87,null,0]
[1320,36906,2,15,null,"","","Insulation to 32mmø internal diameter pipes including couplings","m",13,null,0]
[1321,36907,2,15,null,"","","Insulation to 40mmø internal diameter pipes including couplings","m",59,null,0]
[1322,36908,2,15,null,"","","Insulation to 50mmø internal diameter pipes including couplings","m",32,null,0]
[1323,36901,2,15,null,"","","Extra over \"Thermaflex\" or other equal and approved pipe insulation for insulation around","H3",null,null,""]
[1324,36910,2,15,null,"","","16mm Fittings, valves, etc","No",83,null,{"$f":"J985*K985","v":0}]
[1325,36911,2,15,null,"","","20mm Fittings, valves, etc","No",75,null,0]
[1326,36912,2,15,null,"","","22mm Fittings, valves, etc","No",8,null,0]
[1327,36913,2,15,null,"","","26mm Fittings, valves, etc","No",26,null,0]
[1328,36914,2,15,null,"","","32mm Fittings, valves, etc","No",4,null,0]
[1329,36915,2,15,null,"","","40mm Fittings, valves, etc","No",18,null,0]
[1330,36916,2,15,null,"","","50mm Fittings, valves, etc","No",10,null,0]
[1331,18194,2,15,null,"","","HOLES ETC","H2",null,null,""]
[1332,18198,2,15,null,"","","Core drilling hole not exceeding 50mm diameter including all fire stopping/sealing material as per Engineer's approval","H3",null,null,""]
[1333,18199,2,15,null,"","","300mm Thick reinforced concrete slab, beam, wall, etc ","No",25,null,{"$f":"J994*K994","v":0}]
[1334,18200,2,15,null,"","","Core drilling hole exceeding 50mm and not exceeding 100mm diameter including all fire stopping/sealing material as per Engineer's approval","H3",null,null,""]
[1335,18201,2,15,null,"","","300mm Thick reinforced concrete slab, beam, wall, etc ","No",17,null,{"$f":"J996*K996","v":0}]
[1336,18202,2,15,null,"","","Core drilling hole exceeding 100mm and not exceeding 150mm diameter including all fire stopping/sealing material as per Engineer's approval","H3",null,null,""]
[1337,18203,2,15,null,"","","300mm Thick reinforced concrete slab, beam, wall, etc ","No",38,null,{"$f":"J998*K998","v":0}]
[1339,17928,2,16,null,"","","SECTION NO. 2","H1",null,null,""]
[1340,17929,2,16,null,"","","BILL NO. 16: PAINTWORK","H1",null,null,{"$f":"SUM(L1001:L1091)","v":0}]
[1341,17930,2,16,null,"","","PAINTWORK (PROVISIONAL) (CPAP WORK GROUP NO. 152 UNLESS OTHERWISE STATED)","H1",null,null,""]
[1342,22340,2,16,null,"31","","The Tenderer is referred to the relevant Clauses in the separate document General Preambles for Trades (2017)","",null,null,""]
[1343,17932,2,16,null,"","","SUPPLEMENTARY PREAMBLES","H2",null,null,""]
[1344,17933,2,16,null,"7","","PREPARATORY WORK TO EXISTING WORK","H2",null,null,""]
[1345,17934,2,16,null,"7","","Previously painted plastered surfaces","H3",null,null,""]
[1346,17935,2,16,null,"7","","Surfaces shall be thoroughly washed down with a \"Sugar Soap Solution\" and allowed to dry completely before any paint is applied. Blistered or peeling paint shall be completely removed and cracks shall be opened, filled with a suitable filler and finished smooth","",null,null,""]
[1347,17936,2,16,null,"7","","Previously painted metal surfaces","H3",null,null,""]
[1348,17937,2,16,null,"7","","Surfaces shall be thoroughly rubbed and cleaned down. Blistered or peeling paint shall be completely removed down to bare metal","",null,null,""]
[1349,17938,2,16,null,"7","","Previously painted wood surfaces","H3",null,null,""]
[1350,17939,2,16,null,"7","","Surfaces shall be thoroughly cleaned down. Blistered or peeling paint shall be completely removed and cracks and crevices shall be primed, filled with suitable filler and finished smooth","",null,null,""]
[1351,17940,2,16,null,"29","","PAINTWORK ETC TO NEW WORK","H2",null,null,""]
[1352,17945,2,16,null,"29","","ON INTERNAL FLOATED PLASTER SURFACES","H2",null,null,""]
[1353,22421,2,16,null,"","","\"DULUX\" or other equal and approved","H3",null,null,""]
[1354,17951,2,16,null,"","","One coat \"Dulux trade\" alkali resistant plaster primer and two coats \"Dulux low sheen wash and ware\" paint for interior use","H3",null,null,""]
[1355,17952,2,16,null,"","","Walls","m2",5447,null,{"$f":"J1015*K1015","v":0}]
[1356,36988,2,16,null,"","","\"FLOWCRETE\" or other equal and approved","H3",null,null,""]
[1357,36989,2,16,null,"","","Prime surface with \"Flowseal EPW\" clear primer (spread rate - 6m²/litre). Apply three coats \"Flowseal EPW\" with a minimum dry film thickness of 60 microns thick per coat with a maximum overcoating time of 12 hours. Applied in accordance with approved manufacturer's specifications by approved applicators","H3",null,null,""]
[1358,36990,2,16,null,"","","Walls","m2",275,null,{"$f":"J1018*K1018","v":0}]
[1359,18588,2,16,null,"","","ON EXTERNAL FLOATED PLASTER","H2",null,null,""]
[1360,22424,2,16,null,"","","\"DULUX\" or other equal and approved","H3",null,null,""]
[1361,18589,2,16,null,"","","One coat \"Dulux trade\" alkali resistant plaster primer and two coats \"Dulux low sheen wash and ware\" paint for exterior use","H3",null,null,""]
[1362,18590,2,16,null,"","","Walls","m2",143,null,{"$f":"J1022*K1022","v":0}]
[1363,17953,2,16,null,"","","ON PLASTERBOARD SURFACES","H2",null,null,""]
[1364,17954,2,16,null,"","","\"DULUX\" or other equal and approved","H3",null,null,""]
[1365,17955,2,16,null,"","","One coat \"Dulux trade\" alkali resistant plaster primer and two coats \"Dulux trade 65\" matt PVA","H3",null,null,""]
[1366,17956,2,16,null,"","","Ceilings","m2",1423,null,{"$f":"J1026*K1026","v":0}]
[1367,17959,2,16,null,"","","One coat \"Dulux trade\" alkali resistant plaster primer and two coats \"Dulux low sheen wash and ware\" paint for interior use","H3",null,null,""]
[1368,17960,2,16,null,"","","Partitions","m2",4632,null,{"$f":"J1028*K1028","v":0}]
[1369,18591,2,16,null,"","","ON SMOOTH CONCRETE SURFACES","H2",null,null,""]
[1370,22422,2,16,null,"","","\"DULUX\" or other equal and approved","H3",null,null,""]
[1371,18592,2,16,null,"","","One coat \"Dulux trade\" alkali resistant plaster primer and two coats \"Dulux low sheen wash and ware\" paint for interior use","H3",null,null,""]
[1372,18593,2,16,null,"","","Walls and columns","m2",10,null,{"$f":"J1032*K1032","v":0}]
[1373,18594,2,16,null,"","","Ceilings and beams","m2",10,null,0]
[1374,17973,2,16,null,"","","ON METAL SURFACES","H2",null,null,""]
[1375,22423,2,16,null,"","","\"DULUX\" or other equal and approved","H3",null,null,""]
[1376,17974,2,16,null,"","","One coat \"Dulux\" primer for steel, one coat trade universal undercoat and two coats \"Dulux Pearlglo\" waterbased enamel","H3",null,null,""]
[1377,17975,2,16,null,"","","Doors ","m2",200,null,{"$f":"J1037*K1037","v":0}]
[1378,18598,2,16,null,"","","Door frames etc","m2",100,null,0]
[1379,17976,2,16,null,"","","Members of lattice columns, beams and roof trusses","m2",1515,null,0]
[1380,17977,2,16,null,"29","","ON WOOD SURFACES","H2",null,null,""]
[1381,17978,2,16,null,"","","Two coats oil wood primer","H3",null,null,""]
[1382,17979,2,16,null,"","","Backs of frames, linings, etc not exceeding 300mm wide","m",2175,null,{"$f":"J1042*K1042","v":0}]
[1383,17980,2,16,null,"","","\"DULUX\"or other equal and approved","H3",null,null,""]
[1384,17981,2,16,null,"","","One coat \"Dulux\" primer for wood, one coat \"Dulux trade\" universal undercoat and two coats \"Dulux Pearlglo\" waterbased enamel","H3",null,null,""]
[1385,17982,2,16,null,"","","Doors","m2",356,null,{"$f":"J1045*K1045","v":0}]
[1386,36971,2,16,null,"","","Door frames etc","m2",54,null,0]
[1387,18596,2,16,null,"","","Skirtings, rails, etc not exceeding 300mm girth","m",1980,null,0]
[1388,17983,2,16,null,"29","","PAINTWORK, ETC TO PREVIOUSLY PAINTED WORK","H2",null,null,""]
[1389,17984,2,16,null,"29","","ON INTERNAL FLOATED PLASTER SURFACES","H2",null,null,""]
[1390,22425,2,16,null,"","","\"DULUX\" or other equal and approved","H3",null,null,""]
[1391,17988,2,16,null,"","","One coat \"Dulux trade\" alkali resistant plaster primer and two coats \"Dulux low sheen wash and ware\" paint for interior use","H3",null,null,""]
[1392,17989,2,16,null,"","","Walls","m2",20,null,{"$f":"J1052*K1052","v":0}]
[1393,17941,2,16,null,"","","ON EXTERNAL FLOATED PLASTER","H2",null,null,""]
[1394,22428,2,16,null,"","","\"DULUX\" or other equal and approved","H3",null,null,""]
[1395,17942,2,16,null,"","","One coat \"Dulux trade\" alkali resistant plaster primer and two coats \"Dulux low sheen wash and ware\" paint for exterior use","H3",null,null,""]
[1396,17943,2,16,null,"","","Walls","m2",949,null,{"$f":"J1056*K1056","v":0}]
[1397,17990,2,16,null,"","","ON SMOOTH CONCRETE SURFACES","H2",null,null,""]
[1398,22426,2,16,null,"","","\"DULUX\" or other equal and approved","H3",null,null,""]
[1399,17991,2,16,null,"","","One coat \"Dulux trade\" alkali resistant plaster primer and two coats \"Dulux low sheen wash and ware\" paint for interior use","H3",null,null,""]
[1400,17992,2,16,null,"","","Walls and columns","m2",594,null,{"$f":"J1060*K1060","v":0}]
[1401,17994,2,16,null,"","","One coat \"Dulux trade\" alkali resistant plaster primer and two coats \"Dulux low sheen wash and ware\" paint for interior use","H3",null,null,""]
[1402,18001,2,16,null,"","","Ceilings and beams ","m2",2,null,{"$f":"J1062*K1062","v":0}]
[1403,18330,2,16,null,"","","Coffered ceilings (total girth measured)","m2",1579,null,0]
[1404,19300,2,16,null,"","","One coat \"Dulux trade\" alkali resistant concrete primer and two coats \"Dulux trade\" hi-chem epoxy enamel paint for interior use","H3",null,null,""]
[1405,19301,2,16,null,"","","Concrete floors","m2",523,null,{"$f":"J1065*K1065","v":0}]
[1406,36985,2,16,null,"","","\"FLOWCRETE\" or other equal and approved","H3",null,null,""]
[1407,36986,2,16,null,"","","Prime surface with \"Flowseal EPW\" clear primer (spread rate - 6m²/litre). Apply three coats \"Flowseal EPW\" with a minimum dry film thickness of 60 microns thick per coat with a maximum overcoating time of 12 hours. Applied in accordance with approved manufacturer's specifications by approved applicators","H3",null,null,""]
[1408,36987,2,16,null,"","","On treads and risers of stairs","m2",382,null,{"$f":"J1068*K1068","v":0}]
[1409,18002,2,16,null,"","","ON METAL SURFACES","H2",null,null,""]
[1410,22427,2,16,null,"","","\"DULUX\" or other equal and approved","H3",null,null,""]
[1411,18003,2,16,null,"","","One coat \"Dulux\" primer for steel, one coat trade universal undercoat and two coats \"Dulux Pearlglo\" waterbased enamel","H3",null,null,""]
[1412,18004,2,16,null,"","","Doors","m2",160,null,{"$f":"J1072*K1072","v":0}]
[1413,19306,2,16,null,"","","Louvres","m2",200,null,0]
[1414,18600,2,16,null,"","","Door frames etc","m2",20,null,0]
[1415,18599,2,16,null,"","","Recordroom and strongroom doors and frames","m2",28,null,0]
[1416,18005,2,16,null,"",""," Rails, bars, pipes, etc not exceeding 300mm girth ","m",930,null,0]
[1417,18006,2,16,null,"","","ON WOOD SURFACES","H2",null,null,""]
[1418,18007,2,16,null,"","","\"DULUX\" or other equal and approved","H3",null,null,""]
[1419,18008,2,16,null,"","","One coat \"Dulux\" primer for wood, one coat \"Dulux trade\" universal undercoat and two coats \"Dulux Pearlglo\" waterbased enamel","H3",null,null,""]
[1420,18009,2,16,null,"","","Doors ","m2",287,null,{"$f":"J1080*K1080","v":0}]
[1421,18597,2,16,null,"","","Door frames etc","m2",57,null,0]
[1422,18010,2,16,null,"","","Timber panels","m2",400,null,0]
[1423,18011,2,16,null,"","","Timber panels under windows","m2",275,null,0]
[1424,18603,2,16,null,"","","SIGNWRITING","H2",null,null,""]
[1425,22429,2,16,null,"","","Etching primer and two coats reflective road marking paint on concrete","H3",null,null,""]
[1426,18604,2,16,null,"","","Line 100mm wide","m",315,null,{"$f":"J1086*K1086","v":0}]
[1427,18609,2,16,null,"","","Numeral or letter 70mm high ","No",60,null,0]
[1428,18605,2,16,null,"","","Traffic arrow 160 x 70mm wide extreme","No",9,null,0]
[1429,18606,2,16,null,"","","Traffic arrow 120 x 80mm wide extreme","No",2,null,0]
[1430,18607,2,16,null,"","","Traffic arrow 160 x 120mm wide extreme","No",1,null,0]
[1431,18608,2,16,null,"","","Paraplegic parking motif 3000 x 1500mm extreme","No",2,null,0]
[{"$nulls":7},"Brick dressing to external Façade","m2",1300,null,0]
[1433,18015,2,17,null,"","","SECTION NO. 2","H1",null,null,""]
[1434,18016,2,17,null,"","","BILL NO. 17: PAPERHANGING","H1",null,null,{"$f":"SUM(L1095:L1100)","v":0}]
[1435,18017,2,17,null,"","","PAPERHANGING (PROVISIONAL) (CPAP WORK GROUP NO. 152 UNLESS OTHERWISE STATED)","H1",null,null,""]
[1436,22346,2,17,null,"31","","The Tenderer is referred to the relevant Clauses in the separate document General Preambles for Trades (2017)","",null,null,""]
[1437,18018,2,17,null,"","","PAPERHANGING TO NEW WORK","H2",null,null,""]
[1438,18020,2,17,null,"","","Textured and paintable paper backed vinyl wallpaper (PC R595 per roll 520mm wide x 10m long), including one coat preparatory emulsion paint","H3",null,null,""]
[1439,18021,2,17,null,"","","On one coat plastered walls and columns including narrow widths","m2",112,null,{"$f":"J1099*K1099","v":0}]
[1440,18022,2,17,null,"","","On drywall partitions including narrow widths","m2",210,null,0]
[1442,18370,2,18,null,"","","SECTION NO. 2","H1",null,null,""]
[1443,18371,2,18,null,"","","BILL NO. 18: EXTERNAL WORKS","H1",null,null,{"$f":"SUM(L1103:L1132)","v":0}]
[1444,18372,2,18,null,"","","EXTERNAL WORKS (PROVISIONAL) (CPAP WORK GROUP NO. 104 UNLESS OTHERWISE STATED)","H1",null,null,""]
[1445,22352,2,18,null,"31","","The Tenderer is referred to the relevant Clauses in the separate document General Preambles for Trades (2017)","",null,null,""]
[1446,19307,2,18,null,"","","ROADWORK, PARKING AREAS AND PAVING","H2",null,null,""]
[1447,19308,2,18,null,"","","Testing of material and filling","H3",null,null,""]
[1448,19309,2,18,null,"","","Descriptions of earth filling, compaction, etc shall be deemed to include for all necessary testing required in accordance with the SABS 1200 series","",null,null,""]
[1449,19310,2,18,null,"","","Site clearance","H3",null,null,""]
[1450,19311,2,18,null,"","","Digging up and removing rubbish, debris, vegetation, hedges, shrubs and trees not exceeding 85mm girth, bush, etc","m2",300,null,{"$f":"J1109*K1109","v":0}]
[1451,19312,2,18,null,"","","Excavation in earth","H3",null,null,""]
[1452,19313,2,18,null,"","","Not exceeding 2m deep to reduce levels and dispose in prescribed stock piles on site","m3",60,null,{"$f":"J1111*K1111","v":0}]
[1453,19314,2,18,null,"","","Extra over bulk excavation in earth for excavation in","H3",null,null,""]
[1454,19315,2,18,null,"","","Soft rock","m3",6,null,{"$f":"J1113*K1113","v":0}]
[1455,19316,2,18,null,"","","Hard rock","m3",6,null,0]
[1456,19317,2,18,null,"","","Extra over all excavations for carting away","H3",null,null,""]
[1457,19318,2,18,null,"","","Surplus material from excavations and/or stock piles on site to a dumping site to be located by the contractor","m3",60,null,{"$f":"J1116*K1116","v":0}]
[1458,19319,2,18,null,"","","Keeping excavations free of water","H3",null,null,""]
[1459,19320,2,18,null,"","","Keeping excavations free of water other than subterranean water","Item",{"v":1,"d":"1.00"},null,{"$f":"J1118*K1118","v":0}]
[1460,19321,2,18,null,"9","","Compaction of surfaces","H3",null,null,""]
[1461,19322,2,18,null,"9.13","","Compaction of ground surfaces under floors etc including scarifying for a depth of 150mm, breaking down oversize material, adding suitable material where necessary and compacting to 95% Mod. AASHTO density","m2",300,null,{"$f":"J1120*K1120","v":0}]
[1462,19323,2,18,null,"","","Soil insecticide in accordance with SANS 5859","H3",null,null,""]
[1463,19324,2,18,null,"9.21","","Under floors, etc. including forming and poisoning shallow furrows against foundation walls, etc., filling in furrows and ramming","m2",300,null,{"$f":"J1122*K1122","v":0}]
[1464,19325,2,18,null,"","","LAYER WORKS","H3",null,null,""]
[1465,19326,2,18,null,"","","Filling supplied by the contractor under parking areas, roadways, etc","H3",null,null,""]
[1466,19327,2,18,null,"","","150mm high Base course of G2 natural gravel material, compacted to 98% Mod AASHTO density","m2",300,null,{"$f":"J1125*K1125","v":0}]
[1467,19328,2,18,null,"","","Extra over subbase or base course of natural gravel material for stabilisation with cement at the rate of 3% per m3","m2",300,null,0]
[1468,19329,2,18,null,"","","Prescribed density tests on filling","H3",null,null,""]
[1469,19330,2,18,null,"9.21","","\"Modified AASHTO Density\" test","No",6,null,{"$f":"J1128*K1128","v":0}]
[1470,19331,2,18,null,"","","Corobrik 52MPa Burgundy clay paving bricks, size 200 x 98.5 x 65mm thick laid in Herringbone Bond pattern with a Cedarberg Boarder and a minimum longitudinal fall of 1% on a transverse fall of at least 2% on 25mm compacted sand bed with fine jointing sand swept and vibrated into joints, all laid on subgrade conforming to SANS 1200 D Degree Of Accuracy I.  Paving to be inspected and re-sanded after three months","H3",null,null,""]
[1471,19332,2,18,null,"","","Paving to sidewalks etc to falls, including necessary straight edge blocks","m2",300,null,{"$f":"J1130*K1130","v":0}]
[1472,19333,2,18,null,"","","Precast concrete finished smooth on exposed surfaces, including bedding, jointing and pointing","H3",null,null,""]
[1473,19334,2,18,null,"","","75 x 110mm High mini kerbs continuous unreinforced concrete haunching at back of each joint, laid on 15MPa concrete, including excavation backfilling, etc","m",144,null,{"$f":"J1132*K1132","v":0}]
[1475,22359,2,19,null,"","","SECTION NO. 2","H1",null,null,""]
[1476,22360,2,19,null,"","","BILL NO. 19: BUDGETARY ALLOWANCES","H1",null,null,{"$f":"SUM(L1135:L1184)","v":0}]
[1477,22361,2,19,null,"","","BUDGETARY ALLOWANCES (PROVISIONAL)","H1",null,null,""]
[1478,22362,2,19,null,"31","","The Tenderer is referred to the relevant Clauses in the separate document General Preambles for Trades (2017)","",null,null,""]
[1479,22488,2,19,null,"30","","The following budgetary allowances are for work to be executed either by a nominated / selected sub-contractor as instructed by the principal agent. Tenderers are to allow in their overall Preliminaries costs for this scope of work as no additional Preliminaries will be entertained should this work proceed. The Employer reserves the right to execute this work in part or in whole or omit the entire scope.","H3",null,null,""]
[1480,22364,2,19,null,"92","","BUDGETARY ALLOWANCES","H2",null,null,""]
[1481,22398,2,19,null,"","","Furniture and Fittings","H3",null,null,""]
[1482,22399,2,19,null,"","","Provide the amount of R10 000 000.00 (Ten Million Rand) for Furniture and Fittings","Item",{"v":1,"d":"1.00"},null,{"$f":"J1140*K1140","v":0}]
[1483,22400,2,19,null,"","","Profit","Item",{"v":1,"d":"1.00"},null,0]
[1484,22401,2,19,null,"","","Attendance","Item",{"v":1,"d":"1.00"},null,0]
[1485,18338,2,19,null,"","","Sanitary Accessories Including Vanity Tops, etc","H3",null,null,""]
[1486,18339,2,19,null,"","","Provide the amount of R600 000.00 (Six Hundred Thousand Rand) for Sanitary Accessories Including Vanity Tops, etc","Item",{"v":1,"d":"1.00"},null,{"$f":"J1144*K1144","v":0}]
[1487,18340,2,19,null,"","","Profit","Item",{"v":1,"d":"1.00"},null,0]
[1488,18341,2,19,null,"","","Attendance","Item",{"v":1,"d":"1.00"},null,0]
[1489,37163,2,19,null,"","","Purpose Made Security Fencing","H3",null,null,""]
[1490,37164,2,19,null,"","","Provide the amount of R600 000.00 (Six Hundred Thousand Rand) for Purpose Made Security Fencing","Item",{"v":1,"d":"1.00"},null,{"$f":"J1148*K1148","v":0}]
[1491,37165,2,19,null,"","","Profit","Item",{"v":1,"d":"1.00"},null,0]
[1492,37166,2,19,null,"","","Attendance","Item",{"v":1,"d":"1.00"},null,0]
[1493,22408,2,19,null,"","","Window Blinds","H3",null,null,""]
[1494,22409,2,19,null,"","","Provide the amount of R500 000.00 (Five Hundred Thousand Rand) for Window Blinds","Item",{"v":1,"d":"1.00"},null,{"$f":"J1152*K1152","v":0}]
[1495,22410,2,19,null,"","","Profit","Item",{"v":1,"d":"1.00"},null,0]
[1496,22411,2,19,null,"","","Attendance","Item",{"v":1,"d":"1.00"},null,0]
[1497,18376,2,19,null,"","","Landscaping","H3",null,null,""]
[1498,18377,2,19,null,"","","Provide the amount of R350 000.00 (Three Hundred and Fifty Thousand Rand) for Landscaping","Item",{"v":1,"d":"1.00"},null,{"$f":"J1156*K1156","v":0}]
[1499,18378,2,19,null,"","","Profit","Item",{"v":1,"d":"1.00"},null,0]
[1500,18379,2,19,null,"","","Attendance","Item",{"v":1,"d":"1.00"},null,0]
[1501,18357,2,19,null,"","","Signage","H3",null,null,""]
[1502,18358,2,19,null,"","","Provide the amount of R300 000.00 (Three Hundred Thousand Rand) for Signage ","Item",{"v":1,"d":"1.00"},null,{"$f":"J1160*K1160","v":0}]
[1503,18359,2,19,null,"","","Profit","Item",{"v":1,"d":"1.00"},null,0]
[1504,18360,2,19,null,"","","Attendance","Item",{"v":1,"d":"1.00"},null,0]
[1505,22446,2,19,null,"","","Repairs to the Existing Façade","H3",null,null,""]
[1506,18298,2,19,null,"93.60","","Provide the amount of R300,000.00 (Three Hundred Thousand Rand) for Repairs to the Existing Façade","Item",{"v":1,"d":"1.00"},null,{"$f":"J1164*K1164","v":0}]
[1507,22448,2,19,null,"","","Profit","Item",{"v":1,"d":"1.00"},null,0]
[1508,22449,2,19,null,"","","Attendance","Item",{"v":1,"d":"1.00"},null,0]
[1509,22442,2,19,null,"","","Roof Feature","H3",null,null,""]
[1510,18301,2,19,null,"93.60","","Provide the amount of R300 000.00 (Three Hundred Thousand Rands) for the Roof Feature","Item",{"v":1,"d":"1.00"},null,{"$f":"J1168*K1168","v":0}]
[1511,22444,2,19,null,"","","Profit","Item",{"v":1,"d":"1.00"},null,0]
[1512,22445,2,19,null,"","","Attendance","Item",{"v":1,"d":"1.00"},null,0]
[1513,22438,2,19,null,"","","Servicing Roller Shutter Doors, Gate Motors, Vault Doors, Aluminium Doors and Windows, including Ironmongery","H3",null,null,""]
[1514,18297,2,19,null,"93.60","","Provide the amount of R200,000.00 (Two Hundred Thousand Rand) for Servicing Roller Shutter Doors, Gate Motors, Vault Doors, Aluminium Doors and Windows, including Ironmongery","Item",{"v":1,"d":"1.00"},null,{"$f":"J1172*K1172","v":0}]
[1515,22440,2,19,null,"","","Profit","Item",{"v":1,"d":"1.00"},null,0]
[1516,22441,2,19,null,"","","Attendance","Item",{"v":1,"d":"1.00"},null,0]
[1517,22467,2,19,null,"","","Salary of Client Liaison Officer (CLO)","H3",null,null,""]
[1518,22468,2,19,null,"93.60","","Provide the amount of R200,000.00 (Two Hundred Thousand Rand) for the Salary of Client Liaison Officer (CLO)","Item",{"v":1,"d":"1.00"},null,{"$f":"J1176*K1176","v":0}]
[1519,22469,2,19,null,"","","Profit","Item",{"v":1,"d":"1.00"},null,0]
[1520,22470,2,19,null,"","","Attendance","Item",{"v":1,"d":"1.00"},null,0]
[1521,36934,2,19,null,"","","Servicing and Sanitising of Break Pressure Tank and Roof Water Storage Tank Including Refurbishment of all Seals, etc","H3",null,null,""]
[1522,36935,2,19,null,"93.60","","Provide the amount of R50,000.00 (Fifty Thousand Rand) for the Servicing and Sanitising of Break Pressure Tank and Roof Water Storage Tank Including Refurbishment of all Seals, etc","Item",{"v":1,"d":"1.00"},null,{"$f":"J1180*K1180","v":0}]
[1523,36936,2,19,null,"","","Profit","Item",{"v":1,"d":"1.00"},null,0]
[1524,36937,2,19,null,"","","Attendance","Item",{"v":1,"d":"1.00"},null,0]
[1525,22450,2,19,null,"","","Sundry Builders Work","H3",null,null,""]
[1526,10970,2,19,null,"93.60","","Provide the amount of R750,000.00 (Seven Hundred and Fifty Thousand Rand) for Sundry Builders Work","Item",{"v":1,"d":"1.00"},null,{"$f":"J1184*K1184","v":0}]
[1547,36830,3,1,null,"","","SECTION NO. 3 : FIRE PROTECTION","H1",null,null,{"$f":"L1186+L1198","v":0}]
[1548,36831,3,1,null,"","","BILL NO. 1 PRELIMINARIES","H1",null,null,{"$f":"SUM(L1187:L1196)","v":0}]
[1549,36832,3,1,null,"1","","PRELIMINARIES (CPAP WORK GROUP NO. 190 UNLESS OTHERWISE STATED)","H1",null,null,""]
[1550,36833,3,1,null,"31","","The Tenderer is referred to the relevant Clauses in the separate document General Preambles for Trades (2017)","",null,null,""]
[1551,36835,3,1,null,"","","PRELIMINARIES","H2",null,null,""]
[1552,36836,3,1,null,"","","The costs for the following items shall not be included in the cost rates for work listed in the rest of the Bill of Quantities.","",null,null,""]
[1553,36837,3,1,null,"","","Preliminaries including compliance with the occupational health and safety, transport and equipment rigging","Item",{"v":1,"d":"1.00"},null,{"$f":"J1191*K1191","v":0}]
[1554,36838,3,1,null,"","","Maintenance and guarantee of the complete installation for a period of twelve (12) months from the date of completion and handover","Item",{"v":1,"d":"1.00"},null,0]
[1555,36839,3,1,null,"","","4No. sets of as-built drawings and O&M manuals c/w CD's including certificates issued on completion, such as electrical compliance, etc","Item",{"v":1,"d":"1.00"},null,0]
[1556,36840,3,1,null,"","","Shop and builder's work drawings as specified (Contractor to do detailed site measurements to produce drawings)","Item",{"v":1,"d":"1.00"},null,0]
[1557,36841,3,1,null,"","","Testing, commissioning, training and hand over of the entire fire system, in accordance with the specifications","Item",{"v":1,"d":"1.00"},null,0]
[1558,36843,3,1,null,"","","Other items not included in the foregoing and required by the Tenderer. Full detailed schedule to be attached","Item",{"v":1,"d":"1.00"}]
[1560,36844,3,2,null,"","","SECTION NO. 3","H1",null,null,""]
[1561,36845,3,2,null,"","","BILL NO. 2 FIRE PROTECTION","H1",null,null,{"$f":"SUM(L1199:L1223)","v":0}]
[1562,36847,3,2,null,"234","","FIRE PROTECTION (PROVISIONAL) (CPAP WORK GROUP NO. 148 UNLESS OTHERWISE STATED)","H1",null,null,""]
[1563,36848,3,2,null,"31","","The Tenderer is referred to the relevant Clauses in the separate document General Preambles for Trades (2017)","",null,null,""]
[1564,36849,3,2,null,"","","FIRE PROTECTION (FIRE HYDRANTS, FIRE HOSE REELS, FIRE EXTINGUISHERS AND SPRINKLERS) AND FIRE DOORS","H2",null,null,""]
[1565,36851,3,2,null,"","","Pumps and pumphouse pipework","H3",null,null,""]
[1566,36855,3,2,null,"","","Supply, install and commission:","H3",null,null,""]
[1567,36852,3,2,null,"","","Jockey pump","SUM",1,null,{"$f":"J1204*K1204","v":0}]
[1568,36853,3,2,null,"","","Pump test start arrangement","SUM",1,null,{"$f":"J1205*K1205","v":0}]
[1569,36854,3,2,null,"","","Pump interconnecting piping and valves","SUM",1,null,0]
[1570,36856,3,2,null,"","","Fire extinguishers","H3",null,null,""]
[1571,36857,3,2,null,"","","Supply and install new fire extinguishers (4.5Kg) (works to ensure compliance)","No",42,null,{"$f":"J1208*K1208","v":0}]
[1572,36858,3,2,null,"","","Fire hose reels","H3",null,null,""]
[1573,36859,3,2,null,"","","Service existing fire hose reels","No",18,null,{"$f":"J1210*K1210","v":0}]
[1574,36864,3,2,null,"","","Fire hydrants","H3",null,null,""]
[1575,36865,3,2,null,"","","Service existing fire hydrants","No",16,null,{"$f":"J1212*K1212","v":0}]
[1576,36860,3,2,null,"","","Automatic sprinkler installation","H3",null,null,""]
[1577,36861,3,2,null,"","","De-commission sprinkler system","SUM",1,null,{"$f":"J1214*K1214","v":0}]
[1578,36862,3,2,null,"","","Remove existing sprinkler heads and install new sprinkler heads","No",140,null,{"$f":"J1215*K1215","v":0}]
[1579,36863,3,2,null,"","","Re-commission sprinkler system","SUM",1,null,{"$f":"J1216*K1216","v":0}]
[1580,36866,3,2,null,"","","General","H3",null,null,""]
[1581,36867,3,2,null,"","","Allow for new life safety valve arrangement per floor (schematic to comply with statutory requirements)","SUM",1,null,{"$f":"J1218*K1218","v":0}]
[1582,36868,3,2,null,"","","Inspect existing valve station and allow for full service (works to ensure compliance)","SUM",1,null,0]
[1583,36869,3,2,null,"","","Provisional sums","H3",null,null,""]
[1584,36870,3,2,null,"","","Fire signage allowance (photo luminescent)","Item",{"v":1,"d":"1.00"},null,{"$f":"J1221*K1221","v":0}]
[1585,36871,3,2,null,"","","Repair rusted damaged pipes","Item",{"v":1,"d":"1.00"},null,0]
[1586,36872,3,2,null,"","","Contingency","Item",{"v":1,"d":"1.00"},null,0]
[1590,22581,4,1,null,"","","SECTION NO. 4 : ELECTRICAL INSTALLATION","H1",null,null,{"$f":"L1225+L1267+L1294+L1344+L1457+L1514+L1614+L1726+L1767+L1792+L1824+L1833+L1843+L1865","v":0}]
[1591,22582,4,1,null,"","","BILL NO. 1 PRELIMINARIES","H1",null,null,{"$f":"SUM(L1226:L1265)","v":0}]
[1592,31904,4,1,null,"1","","PRELIMINARIES (CPAP WORK GROUP NO. 190 UNLESS OTHERWISE STATED)","H1",null,null,""]
[1593,22584,4,1,null,"31","","The Tenderer is referred to the relevant Clauses in the separate document General Preambles for Trades (2017)","",null,null,""]
[1594,22626,4,1,null,"","","SUPPLEMENTARY PREAMBLES","H2",null,null,""]
[1595,22628,4,1,null,"","","This Bill of Quantities must be read together with the specification.","",null,null,""]
[1596,22629,4,1,null,"","","Tenderers must complete the Bill of Quantities and detail the unit rate and total amount of each item.  The \"Total\" shall constitute the tender price for adjudication.  Tenderers are advised to check their item extension and total additions as arithmetical errors occurring in the priced Bill of Quantities cannot be considered as having an effect on the tender amount.","",null,null,""]
[1597,22630,4,1,null,"","","No alteration, erasure or addition is to be made in the text of the Bill of Quantities.  Should any alteration, erasure or addition be made it will not be recognised but the original wording of the Bill of Quantities will be adhered to.  The Engineer will check the completed Bill of Quantities and reserves the right to adjust any individual price and to rectify any discrepancy whilst the total tender price as quoted remains unaltered.","",null,null,""]
[1598,22631,4,1,null,"","","The quantities given in the Bill for cable, cable markers, earth wire laid with cable, overhead conductors, overhead earth wire and excavations cannot be regarded as exact and are subject to measurement on site after completion of the service and adjustments will be made according to the unit rates given in the Bill.","",null,null,""]
[1599,22632,4,1,null,"","","The Bill of Quantities is to be used for pricing and financial purposes only.  The drawings take precedence over the particular (project) specification but should be used in conjunction with these specifications. The project specification takes precedence over quality specifications and the Bill of Quantities.","",null,null,""]
[1600,22633,4,1,null,"","","Checking of Cable and Overhead Conductor Lengths. Notwithstanding the fact that lengths of cables and overhead conductors, as given in the Bill of Quantities, have been measured from scaled drawings, the Contractor shall check such lengths on site before ordering the cable as he will not be paid for excess cable after the completion of the service.  Any allowance for off-cuts shall be made in the unit rates. The final measurements shall be based on the nett route length of the cables and overhead lines concerned, installed in accordance with the specification. However, the onus is on the Contractor to prove compliance with the specification.","",null,null,""]
[1601,22634,4,1,null,"","","The unit prices quoted in the Bill of Quantities shall include for such small materials as are required for the complete installation in accordance with the specification.","",null,null,""]
[1602,22635,4,1,null,"","","Bill No. 1 is to be regarded as fixed and will not be adjusted for variations in the final contract value or contract period.","",null,null,""]
[1603,22636,4,1,null,"","","NOTE: Tenderers may not include the costs of the items of Bill No. 1 in the unit rates for items in the remainder of the Bill of Quantities.  Bill No. 1 is to be completed as indicated.Failure to comply will result in the Engineer arbitrarily adjusting rates to exclude Preliminary and General costs.","",null,null,""]
[1604,22637,4,1,null,"","","Unit prices for the same items in different Bills shall in all cases be the same, and in the case of differences, the Engineer reserves the right to change such unit prices when the completed list is checked, without adjusting the tender price.","",null,null,""]
[1605,22638,4,1,null,"","","The total for each page of each Bill is to be carried forward to the collection page at the end of each Bill.","",null,null,""]
[1606,22639,4,1,null,"","","P.C., Provisional and Contingency allowances, items and sums shall be expended as directed by the Engineer, and any balance remaining shall be deducted from the amount of the contract sum. Tenderers may not regard any unspent moneys as forming part of the final contract value.  Variation Instruction No. 1 will be issued after award of the contract to omit all P.C., Provisional and Contingency sums/allowances from the contract and authorized contract value.","",null,null,""]
[1607,22640,4,1,null,"","","Variation work, as well as the items described above, shall be measured as executed, and paid for according to unit prices in the Bill of Quantities.  Where unit prices are not available, the work shall be priced, in conjunction with the Engineer, at current rates.","",null,null,""]
[1608,22641,4,1,null,"","","Unless otherwise specified in the Bill of Quantities, all items are to be priced on the basis of supply, delivery, offload, installation, connection, testing and commissioning.  All prices are to be EXCLUSIVE OF V.A.T but inclusive of import duties,  surcharges, commissions to third parties, etc., where applicable.  The  foregoing items, as well as the Contractor's handling, financing and profit mark-up, is not to be separately detailed, and must be included in  the cost rates.","",null,null,""]
[1609,22642,4,1,null,"","","Unless otherwise stated, all measurements are net, in accordance with the drawings, and no allowance has been made for wastage.","",null,null,""]
[1610,22643,4,1,null,"","","The Employer reserves the right to increase or decrease the extent of the contract works, without restraint, on total value of variations issued relevant to any particular item in the Bill of Quantities, by  issuing written variation instructions to omit or add, as may be  required, the supply and/or installation of any item of equipment or  work, whether listed in the Bill of Quantities or not, and without affecting the unit cost rates indicated in the Bill of Quantities or Preliminary and General items.","",null,null,""]
[1611,22644,4,1,null,"","","In the event that tenderers disagree with the measured quantities the tender should be qualified accordingly, listing the items and quantities in question.","",null,null,""]
[1612,22645,4,1,null,"","","The unit prices quoted in the Bill of Quantities must include for small installation materials such as nuts, bolts, nails, saddles, screws etc., as are required for the satisfactory complete installation in accordance with the specification.","",null,null,""]
[1613,22647,4,1,null,"","","Unless otherwise stated in the Bill, the unit cost rates shall be based on the following:  The rate for conduit boxes and for outlet boxes up to and including 100 x 100mm shall be the same regardless of the number of entries.  The rate for conduit and outlet boxes shall include for fixing to the conduit with lock and bushnuts as may be required and for fixing to the building structure.  The rate for outlet boxes shall be without covers and draw boxes shall be complete with covers and screws.  The rate for industrial switch and plug units shall include for the relevant enclosure and fixing to conduit and building structure.  The rate for light switches, switch plugs, dimmer units, etc., shall include for screws, cover plates and fuses/breakers where applicable and for connection of wiring thereto.  The rate for conduit up to and including 25 mm diameter shall include all couplings, bends, boxes etc. as may be required.  The rate for luminaires and accessories shall include for connection of the wiring thereto.","",null,null,""]
[1614,22648,4,1,null,"","","All measurements are based on the most economical route lengths without any allowance for wastage, threading, jointing or slack.","",null,null,""]
[1615,22649,4,1,null,"","","In the case of wiring in conduit, an allowance of 300mm per wire outlet box position has been made and in the case of cables and wiring entering switchboards, an allowance of 1000 and 2000mm has been made for termination purposes in sub-distribution and main distribution boards respectively.","",null,null,""]
[1616,22650,4,1,null,"","","It should be noted that, notwithstanding anything to the contrary, any items completed or listed in the Bill of Quantities by the Tenderer will not be taken into account, will not be subject to re-measurement, and will not be regarded as a Bill of Quantities item.","",null,null,""]
[1617,22651,4,1,null,"","","Where equipment is specified by name, the tenderer must price on this basis.  Alternatives may be offered by tenderers but the use of which is subject to written approval by the Engineer.","",null,null,""]
[1618,22653,4,1,null,"","","PRELIMINARIES","H2",null,null,""]
[1619,22654,4,1,null,"","","The costs for the following items shall not be included in the cost rates for work listed in the rest of the Bill of Quantities.","",null,null,""]
[1620,22655,4,1,null,"","","Cost for compliance with Main Contractor's preliminary and  general items not covered below.","Item",{"v":1,"d":"1.00"},null,{"$f":"J1254*K1254","v":0}]
[1621,22656,4,1,null,"","","Contractual requirements as specified, i.e guarantees, insurance, sureties, company's overheads administration etc.","Item",null,null,""]
[1622,22657,4,1,null,"","","Contract engineer, administration, supervision, programming and management.","Item",null,null,""]
[1623,22658,4,1,null,"","","Establish site accommodation, storage etc.","Item",null,null,""]
[1624,22659,4,1,null,"","","Maintain and operate site establishment.","Item",null,null,""]
[1625,22660,4,1,null,"","","Remove site establishment on  completion and remove all rubbish, foundations, concrete bases, dirt  oil spillage, etc, and leave site  in condition as found.","Item",null,null,""]
[1626,22661,4,1,null,"","","Tools, equipment, plant hire and testing gear/meters as necessary.","Item",null,null,""]
[1627,22662,4,1,null,"","","Guarantee and maintainance for the complete Electrical Installation including fittings, materials and workmanship for a period of TWELVE MONTHS after date of completion and handover","Item",null,null,""]
[1628,22663,4,1,null,"","","Allow for testing and commissioning the whole of the electrical installation as laid down in the specification and for re-testing as may be required after the making good of all defective work to the satisfaction of the Engineer","Item",null,null,""]
[1629,22664,4,1,null,"","","As built drawings showing all conduit routes, draw boxes and positions of outlets etc","Item",null,null,""]
[1630,22665,4,1,null,"","","Provision for final testing and Certificate of Compliance to be issued on completion of the project in addition to the detailed testing specified.","Item",null,null,""]
[1631,22666,4,1,null,"","","4 Sets of as built drawings and manuals","Item",null,null,""]
[1633,25245,4,2,null,"","","SECTION NO. 4","H1",null,null,""]
[1634,25246,4,2,null,"","","BILL NO. 2 GENERAL","H1",null,null,{"$f":"SUM(L1268:L1292)","v":0}]
[1635,25247,4,2,null,"","","GENERAL (PROVISIONAL) (CPAP WORK GROUP NO. 160 UNLESS OTHERWISE STATED)","H1",null,null,""]
[1636,25248,4,2,null,"31","","The Tenderer is referred to the relevant Clauses in the separate document General Preambles for Trades (2017)","",null,null,""]
[1637,25332,4,2,null,"","","GENERAL","H2",null,null,""]
[1638,25334,4,2,null,"","","Budgetary allowance for City of Tshwane electrical department requirements","Item",{"v":1,"d":"1.00"},null,{"$f":"J1271*K1271","v":0}]
[1639,25335,4,2,null,"","","Contractor's attendance and mark up","%",0.17,null,0]
[1640,25340,4,2,null,"","","Provide the necessary shop drawings, marked up as built drawings and 4 no. plastic covered A4 files complete with all as built drawings etc. in plastic envelopes as specified","Item",{"v":1,"d":"1.00"},null,0]
[1641,25341,4,2,null,"","","Carry out loop impedance test on every cable prior to terminating ends","Item",{"v":1,"d":"1.00"},null,0]
[1642,25342,4,2,null,"","","Testing and commissioning inclusive of completing 1 No. Ibuya Consulting Engineer's test sheet and certificate of compliance for every new DB and for portion of works carried out on existing DB's","Item",{"v":1,"d":"1.00"},null,0]
[1643,25343,4,2,null,"","","Testing by Lightning Protection and Earthing Specialist on building and report on findings","Item",{"v":1,"d":"1.00"},null,0]
[1644,25345,4,2,null,"","","Budgetary Allowance for modification to Main LV Panel","Item",{"v":1,"d":"1.00"},null,0]
[1645,25346,4,2,null,"","","Contractor's attendance and mark up","%",{"v":0.1,"d":"0.10"},null,0]
[1646,25347,4,2,null,"","","Allowance to liase with security personal to establish what existing services can be stripped out","Item",{"v":1,"d":"1.00"},null,0]
[1647,25348,4,2,null,"","","Liaise with Council to submit power reinstatement, arrange outages, and the  submission of the relevant completion forms and certificate of compliance to ensure energisation of the new 11 kV Substations and acceptance thereof.","Item",{"v":1,"d":"1.00"},null,0]
[1648,25350,4,2,null,"","","Core 300mm dia. 250mm thick concrete slab and allow to make good","No",5,null,0]
[1649,25351,4,2,null,"","","Core 200mm dia. 230mm thick concrete slab and allow to make good","No",5,null,0]
[1650,25352,4,2,null,"","","Earthing and bonding of cable ladders and galvanised trunking etc","Item",{"v":1,"d":"1.00"},null,0]
[1651,25353,4,2,null,"","","75mm wide by 40mm deep chasing in slab with making good by others for floor conduits","m",30,null,0]
[1652,25354,4,2,null,"","","Chase 205 x 287 x 79mm deep in slab for floor boxes","No",10,null,0]
[1653,25355,4,2,null,"","","LABOUR RATES","H2",null,null,""]
[1654,25356,4,2,null,"","","Supervisor/Foreman","Hrs",{"v":5,"d":"5.00"},null,{"$f":"J1287*K1287","v":0}]
[1655,25357,4,2,null,"","","Electrician","Hrs",{"v":10,"d":"10.00"},null,0]
[1656,25358,4,2,null,"","","Apprentice","Hrs",{"v":10,"d":"10.00"},null,0]
[1657,25359,4,2,null,"","","Cable Jointer","Hrs",{"v":10,"d":"10.00"},null,0]
[1658,25360,4,2,null,"","","Labourer","Hrs",{"v":15,"d":"15.00"},null,0]
[1659,25361,4,2,null,"","","Watchman","Hrs",{"v":10,"d":"10.00"},null,0]
[1661,25911,4,3,null,"","","SECTION NO. 4","H1",null,null,""]
[1662,25912,4,3,null,"","","BILL NO. 3 LV CABLING","H1",null,null,{"$f":"SUM(L1295:L1342)","v":0}]
[1663,25913,4,3,null,"","","LV CABLING (PROVISIONAL) (CPAP WORK GROUP NO. 160 UNLESS OTHERWISE STATED)","H1",null,null,""]
[1664,25914,4,3,null,"31","","The Tenderer is referred to the relevant Clauses in the separate document General Preambles for Trades (2017)","",null,null,""]
[1665,26028,4,3,null,"","","L.V. CABLING","H2",null,null,""]
[1666,26029,4,3,null,"","","Supply the following 600 / 1 000 Volt Cu PVC SWA PVC SWA ECC  cable;","H3",null,null,""]
[1667,26030,4,3,null,"","","185mm² 4 core","m",312,null,{"$f":"J1299*K1299","v":0}]
[1668,26031,4,3,null,"","","150mm² 4 core","m",180,null,0]
[1669,26032,4,3,null,"","","120mm²  4 core","m",14,null,0]
[1670,26033,4,3,null,"","","95mm²  4 core","m",112,null,0]
[1671,26034,4,3,null,"","","70mm²  4 core","m",31,null,0]
[1672,26035,4,3,null,"","","50mm²  4 core","m",78,null,0]
[1673,26036,4,3,null,"","","35mm² 4 core","m",194,null,0]
[1674,26037,4,3,null,"","","25mm² 4 core","m",432,null,0]
[1675,26038,4,3,null,"","","16mm² 4 core","m",246,null,0]
[1676,26039,4,3,null,"","","10mm² 4 core","m",631,null,0]
[1677,26040,4,3,null,"","","10mm² 2 core","m",97,null,0]
[1678,26041,4,3,null,"","","6mm² 4 core","m",86,null,0]
[1679,26042,4,3,null,"","","25mm² earth wire","m",212,null,0]
[1680,26043,4,3,null,"","","10mm² earth wire","m",113,null,0]
[1681,26044,4,3,null,"","","Extra on last to install on cable ladder or trench","H3",null,null,""]
[1682,26045,4,3,null,"","","185mm² 4 core","m",312,null,{"$f":"J1314*K1314","v":0}]
[1683,26046,4,3,null,"","","150mm² 4 core","m",180,null,0]
[1684,26047,4,3,null,"","","120mm²  4 core","m",14,null,0]
[1685,26048,4,3,null,"","","95mm²  4 core","m",112,null,0]
[1686,26049,4,3,null,"","","70mm²  4 core","m",31,null,0]
[1687,26050,4,3,null,"","","50mm²  4 core","m",78,null,0]
[1688,26051,4,3,null,"","","35mm² 4 core","m",194,null,0]
[1689,26052,4,3,null,"","","25mm² 4 core","m",432,null,0]
[1690,26053,4,3,null,"","","16mm² 4 core","m",246,null,0]
[1691,26054,4,3,null,"","","10mm² 4 core","m",631,null,0]
[1692,26055,4,3,null,"","","10mm² 2 core","m",97,null,0]
[1693,26056,4,3,null,"","","6mm² 4 core","m",86,null,0]
[1694,26057,4,3,null,"","","25mm² earth wire","m",212,null,0]
[1695,26058,4,3,null,"","","10mm² earth wire","m",113,null,0]
[1696,26059,4,3,null,"","","Termination inclusive of cable glands, lugs etc.","H3",null,null,""]
[1697,26060,4,3,null,"","","185mm² 4 core","No",10,null,{"$f":"J1329*K1329","v":0}]
[1698,26061,4,3,null,"","","150mm² 4 core","No",6,null,0]
[1699,26062,4,3,null,"","","120mm²  4 core","No",8,null,0]
[1700,26063,4,3,null,"","","95mm²  4 core","No",6,null,0]
[1701,26064,4,3,null,"","","70mm²  4 core","No",4,null,0]
[1702,26065,4,3,null,"","","50mm²  4 core","No",12,null,0]
[1703,26066,4,3,null,"","","35mm² 4 core","No",16,null,0]
[1704,26067,4,3,null,"","","25mm² 4 core","No",24,null,0]
[1705,26068,4,3,null,"","","16mm² 4 core","No",14,null,0]
[1706,26069,4,3,null,"","","10mm² 4 core","No",28,null,0]
[1707,26070,4,3,null,"","","10mm² 2 core","No",8,null,0]
[1708,26071,4,3,null,"","","6mm² 4 core","No",8,null,0]
[1709,26072,4,3,null,"","","AIR CONDITIONING INSTALLATION","H2",null,null,""]
[1710,26073,4,3,null,"","","Supply and Install 4mm² 3 core surfix cable on existing AC cable tray from internal AC units to DBs ","m",2114,null,{"$f":"J1342*K1342","v":0}]
[1712,26577,4,4,null,"","","SECTION NO. 4","H1",null,null,""]
[1713,26578,4,4,null,"","","BILL NO. 4 WIRE-WAYS","H1",null,null,{"$f":"SUM(L1345:L1455)","v":0}]
[1714,26579,4,4,null,"","","WIRE-WAYS (PROVISIONAL) (CPAP WORK GROUP NO. 160 UNLESS OTHERWISE STATED)","H1",null,null,""]
[1715,26580,4,4,null,"31","","The Tenderer is referred to the relevant Clauses in the separate document General Preambles for Trades (2017)","",null,null,""]
[1716,26740,4,4,null,"","","WIRE-WAYS","H2",null,null,""]
[1717,26741,4,4,null,"","","CABLE LADDERS","H2",null,null,""]
[1718,26742,4,4,null,"","","The complete supply, transport to site, and storage of hot dipped galvanised heavy duty cable ladder and offsets as required below:","H3",null,null,""]
[1719,26743,4,4,null,"","","150mm wide","m",44,null,{"$f":"J1350*K1350","v":0}]
[1720,26744,4,4,null,"","","150mm 90 degree bend","No",3,null,0]
[1721,26745,4,4,null,"","","150mm Tee piece","No",2,null,0]
[1722,26746,4,4,null,"","","150mm 4-way piece","No",1,null,0]
[1723,26747,4,4,null,"","","150mm riser piece","No",1,null,0]
[1724,26748,4,4,null,"","","300mm wide","m",25,null,0]
[1725,26749,4,4,null,"","","300mm 90 degree bend","No",1,null,0]
[1726,26750,4,4,null,"","","300mm Tee piece","No",2,null,0]
[1727,26751,4,4,null,"","","300mm 4-way piece","No",1,null,0]
[1728,26752,4,4,null,"","","300mm riser piece ","No",1,null,0]
[1729,26753,4,4,null,"","","500mm wide","m",59,null,0]
[1730,26754,4,4,null,"","","500mm 90 degree bend","No",2,null,0]
[1731,26755,4,4,null,"","","500mm Tee piece","No",2,null,0]
[1732,26756,4,4,null,"","","500mm 4-way piece","No",1,null,0]
[1733,26757,4,4,null,"","","500mm riser piece ","No",1,null,0]
[1734,26758,4,4,null,"","","Extra on last to install horizontally (trapeeze) or vertically (P1000 unistrut). Fixings at 1000mm. Installation is to include for all joiner splices, raw bolts and fixing cable ladder to unistrut with bolt fasteners complete with spring washer, fixing bolts etc.","H3",null,null,""]
[1735,26759,4,4,null,"","","150mm wide","m",44,null,{"$f":"J1366*K1366","v":0}]
[1736,26760,4,4,null,"","","150mm 90 degree bend","No",3,null,0]
[1737,26761,4,4,null,"","","150mm Tee piece","No",2,null,0]
[1738,26762,4,4,null,"","","150mm 4-way piece","No",1,null,0]
[1739,26763,4,4,null,"","","150mm riser piece","No",1,null,0]
[1740,26764,4,4,null,"","","300mm wide","m",25,null,0]
[1741,26765,4,4,null,"","","300mm 90 degree bend","No",1,null,0]
[1742,26766,4,4,null,"","","300mm Tee piece","No",2,null,0]
[1743,26767,4,4,null,"","","300mm 4-way piece","No",1,null,0]
[1744,26768,4,4,null,"","","300mm riser piece ","No",1,null,0]
[1745,26769,4,4,null,"","","500mm wide","m",59,null,0]
[1746,26770,4,4,null,"","","500mm 90 degree bend","No",2,null,0]
[1747,26771,4,4,null,"","","500mm Tee piece","No",1,null,0]
[1748,26772,4,4,null,"","","500mm 4-way piece","No",1,null,0]
[1749,26773,4,4,null,"","","500mm riser piece ","No",1,null,0]
[1750,26774,4,4,null,"","","CABLE TRAYS","H2",null,null,""]
[1751,26775,4,4,null,"","","The complete supply, transport to site, and storage of hot dipped galvanised heavy duty cable tray and offsets as required below:","H3",null,null,""]
[1752,26776,4,4,null,"","","150mm wide","m",258,null,{"$f":"J1383*K1383","v":0}]
[1753,26777,4,4,null,"","","150mm 90 degree bend","No",19,null,0]
[1754,26778,4,4,null,"","","150mm Tee piece","No",14,null,0]
[1755,26779,4,4,null,"","","150mm 4-way piece","No",3,null,0]
[1756,26780,4,4,null,"","","150mm riser piece","No",2,null,0]
[1757,26781,4,4,null,"","","300mm wide","m",54,null,0]
[1758,26782,4,4,null,"","","300mm 90 degree bend","No",6,null,0]
[1759,26783,4,4,null,"","","300mm Tee piece","No",4,null,0]
[1760,26784,4,4,null,"","","300mm 4-way piece","No",1,null,0]
[1761,26785,4,4,null,"","","300mm riser piece ","No",1,null,0]
[1762,26786,4,4,null,"","","500mm wide","m",21,null,0]
[1763,26787,4,4,null,"","","500mm 90 degree bend","No",4,null,0]
[1764,26788,4,4,null,"","","500mm Tee piece","No",2,null,0]
[1765,26789,4,4,null,"","","500mm 4-way piece","No",2,null,0]
[1766,26790,4,4,null,"","","500mm riser piece ","No",2,null,0]
[1767,26791,4,4,null,"","","Extra on last to install horizontally (trapeeze) or vertically (P1000 unistrut). Fixings at 1000mm. Installation is to include for all joiner splices, raw bolts and fixing cable tray to unistrut with bolt fasteners complete with spring washer, fixing bolts etc.","H3",null,null,""]
[1768,26792,4,4,null,"","","150mm wide","m",258,null,{"$f":"J1399*K1399","v":0}]
[1769,26793,4,4,null,"","","150mm 90 degree bend","No",19,null,0]
[1770,26794,4,4,null,"","","150mm Tee piece","No",14,null,0]
[1771,26795,4,4,null,"","","150mm 4-way piece","No",3,null,0]
[1772,26796,4,4,null,"","","150mm riser piece","No",2,null,0]
[1773,26797,4,4,null,"","","300mm wide","m",54,null,0]
[1774,26798,4,4,null,"","","300mm 90 degree bend","No",6,null,0]
[1775,26799,4,4,null,"","","300mm Tee piece","No",4,null,0]
[1776,26800,4,4,null,"","","300mm 4-way piece","No",1,null,0]
[1777,26801,4,4,null,"","","300mm riser piece ","No",1,null,0]
[1778,26802,4,4,null,"","","500mm wide","m",21,null,0]
[1779,26803,4,4,null,"","","500mm 90 degree bend","No",4,null,0]
[1780,26804,4,4,null,"","","500mm Tee piece","No",2,null,0]
[1781,26805,4,4,null,"","","500mm 4-way piece","No",2,null,0]
[1782,26806,4,4,null,"","","500mm riser piece ","No",2,null,0]
[1783,26807,4,4,null,"","","CABLE BASKETS","H2",null,null,""]
[1784,26808,4,4,null,"","","The complete supply, transport to site, and storage of hot dipped galvanised medium duty cable basket and offsets as required below:","H3",null,null,""]
[1785,26809,4,4,null,"","","150mm wide","m",54,null,{"$f":"J1416*K1416","v":0}]
[1786,26810,4,4,null,"","","150mm 90 degree bend","No",3,null,0]
[1787,26811,4,4,null,"","","150mm Tee piece","No",2,null,0]
[1788,26812,4,4,null,"","","150mm 4-way piece","No",1,null,0]
[1789,26813,4,4,null,"","","150mm riser piece","No",1,null,0]
[1790,26814,4,4,null,"","","300mm wide","m",726,null,0]
[1791,26815,4,4,null,"","","300mm 90 degree bend","No",48,null,0]
[1792,26816,4,4,null,"","","300mm Tee piece","No",30,null,0]
[1793,26817,4,4,null,"","","300mm 4-way piece","No",4,null,0]
[1794,26818,4,4,null,"","","300mm riser piece ","No",4,null,0]
[1795,26819,4,4,null,"","","Extra on last to install horizontally (trapeeze) or vertically (P1000 unistrut). Fixings at 1000mm. Installation is to include for all joiner splices, raw bolts and fixing cable basket to unistrut with bolt fasteners complete with spring washer, fixing bolts etc.","H3",null,null,""]
[1796,26820,4,4,null,"","","150mm wide","m",54,null,{"$f":"J1427*K1427","v":0}]
[1797,26821,4,4,null,"","","150mm 90 degree bend","No",3,null,0]
[1798,26822,4,4,null,"","","150mm Tee piece","No",2,null,0]
[1799,26823,4,4,null,"","","150mm 4-way piece","No",1,null,0]
[1800,26824,4,4,null,"","","150mm riser piece","No",1,null,0]
[1801,26825,4,4,null,"","","300mm wide","m",726,null,0]
[1802,26826,4,4,null,"","","300mm 90 degree bend","No",48,null,0]
[1803,26827,4,4,null,"","","300mm Tee piece","No",30,null,0]
[1804,26828,4,4,null,"","","300mm 4-way piece","No",4,null,0]
[1805,26829,4,4,null,"","","300mm riser piece ","No",4,null,0]
[1806,26830,4,4,null,"","","SLEEVES","H2",null,null,""]
[1807,26831,4,4,null,"","","Supply the following cable sleeves:","H3",null,null,""]
[1808,26832,4,4,null,"","","160mm hard PVC sleeves","m",14,null,{"$f":"J1439*K1439","v":0}]
[1809,26833,4,4,null,"","","110mm hard PVC sleeves","m",17,null,0]
[1810,26834,4,4,null,"","","75mm hard PVC sleeves","m",12,null,0]
[1811,26835,4,4,null,"","","50mm hard PVC sleeves","m",13,null,0]
[1812,26836,4,4,null,"","","Slow radius bend for 160mm PVC sleeve","No",2,null,0]
[1813,26837,4,4,null,"","","Slow radius bend for 110mm PVC sleeve","No",3,null,0]
[1814,26838,4,4,null,"","","Slow radius bend for 75mm PVC sleeve","No",2,null,0]
[1815,26839,4,4,null,"","","Slow radius bend for 50mm PVC sleeve","No",4,null,0]
[1816,26840,4,4,null,"","","Extra on last to install the following in trech (trenching measured elsewhere) ","H3",null,null,""]
[1817,26841,4,4,null,"","","160mm hard PVC sleeves","m",14,null,{"$f":"J1448*K1448","v":0}]
[1818,26842,4,4,null,"","","110mm hard PVC sleeves","m",17,null,0]
[1819,26843,4,4,null,"","","75mm hard PVC sleeves","m",12,null,0]
[1820,26844,4,4,null,"","","50mm hard PVC sleeves","m",13,null,0]
[1821,26845,4,4,null,"","","Slow radius bend for 160mm PVC sleeve","No",2,null,0]
[1822,26846,4,4,null,"","","Slow radius bend for 110mm PVC sleeve","No",3,null,0]
[1823,26847,4,4,null,"","","Slow radius bend for 75mm PVC sleeve","No",2,null,0]
[1824,26848,4,4,null,"","","Slow radius bend for 50mm PVC sleeve","No",4,null,0]
[1826,27243,4,5,null,"","","SECTION NO. 4","H1",null,null,""]
[1827,27244,4,5,null,"","","BILL NO. 5 MV INSTALLATION","H1",null,null,{"$f":"SUM(L1458:L1512)","v":0}]
[1828,27245,4,5,null,"","","MV INSTALLATION (PROVISIONAL) (CPAP WORK GROUP NO. 160 UNLESS OTHERWISE STATED)","H1",null,null,""]
[1829,27246,4,5,null,"31","","The Tenderer is referred to the relevant Clauses in the separate document General Preambles for Trades (2017)","",null,null,""]
[1830,27515,4,5,null,"","","MV INSTALLATION","H2",null,null,""]
[1831,27516,4,5,null,"","","The complete supply, transport to site, storage,installation, testing and commissioning in accordance with the specification ","H3",null,null,""]
[1832,27517,4,5,null,"","","RING MAIN UNITS","H2",null,null,""]
[1833,27518,4,5,null,"","","11 kV RM6 non extensible 3 way ring main unit complete as specified in drawing No. 17052_605_A","No",1,null,{"$f":"J1463*K1463","v":0}]
[1834,27519,4,5,null,"","","Mild steel box stand for 3 way RM6 complete with raised box to accommodate floor cable entry","No",1,null,0]
[1835,27520,4,5,null,"","","Disconnect and remove from site and deliver within 50 km of site the existing ring main unit","No",1,null,0]
[1836,27521,4,5,null,"","","Credit / scrap value for the existing ring main unit (rate only)","No",1,null,0]
[1837,27522,4,5,null,"","","TRANSFORMER","H2",null,null,""]
[1838,27523,4,5,null,"","","1250 kVA 11kV/400V Dyn11 complete as specified in scheduleNo. 17052_604_A","No",1,null,{"$f":"J1468*K1468","v":0}]
[1839,27524,4,5,null,"","","Disconnect and remove from site and deliver within 50 km of Site the existing 1000 KVA Transformer ","No",1,null,0]
[1840,27525,4,5,null,"","","Credit / scrap value for the existing transformer (rate only)","Item",{"v":1,"d":"1.00"},null,0]
[1841,27526,4,5,null,"","","TESTING OF EXISTING TRANSFORMER","H2",null,null,""]
[1842,27528,4,5,null,"","","Budgetary allowance for on site testing of the existing transformer by specialist including quote to refurbish","Item",{"v":1,"d":"1.00"},null,{"$f":"J1472*K1472","v":0}]
[1843,27529,4,5,null,"","","Mark up and attendance on the above item","%",{"v":0.1,"d":"0.10"},null,0]
[1844,27530,4,5,null,"","","MV CABLING - 6.35/11 kV","H2",null,null,""]
[1845,27531,4,5,null,"","","Supply the following continuous lengths (i.e. no joints) of 6.35/11 kV 95 mm 3 core XLPE cable to SABS Table A, manufactured in South Africa","H3",null,null,""]
[1846,27532,4,5,null,"","","95mm² 3 core ","m",97,null,{"$f":"J1476*K1476","v":0}]
[1847,27533,4,5,null,"","","Extra on last to install","H3",null,null,""]
[1848,27534,4,5,null,"","","On cable ladder","m",97,null,{"$f":"J1478*K1478","v":0}]
[1849,27535,4,5,null,"","","95mm² 3 core 11 kV termination","No",4,null,0]
[1850,27536,4,5,null,"","","95mm² 3 core Cu straight through 11 kV joint complete","No",2,null,0]
[1851,27537,4,5,null,"","","70mm² copper PVC insulated earth wire","m",120,null,0]
[1852,27538,4,5,null,"","","70mm² earth wire termination","No",6,null,0]
[1853,27539,4,5,null,"","","LV BUSBARS","H2",null,null,""]
[1854,27540,4,5,null,"","","The supply and complete installation, testing, commissioning of resin encapsulated  1000 Volts 70 kA, IP54, 3 phase and full neutral Cu busbar with external earth unit","H3",null,null,""]
[1855,27541,4,5,null,"","","1800 A straight section","m",15,null,{"$f":"J1485*K1485","v":0}]
[1856,27542,4,5,null,"","","1800 A elbow (over and above cost)","No",4,null,0]
[1857,27543,4,5,null,"","","1800 A panel/transformer flange","No",2,null,0]
[1858,27544,4,5,null,"","","1800 A set of flexibles","No",4,null,0]
[1859,27545,4,5,null,"","","SUPPLY UPGRADE","H2",null,null,""]
[1860,27547,4,5,null,"","","Budgetary Allowance for council requirements for supply reinstatement","Item",{"v":1,"d":"1.00"},null,{"$f":"J1490*K1490","v":0}]
[1861,27548,4,5,null,"","","Mark up and attendance on the above item","%",{"v":0.1,"d":"0.10"},null,0]
[1862,27549,4,5,null,"","","Supply and install WW28 chromodeck black writing on  yellow background (450mm x 450mm) \"UNAUTHORISED ENTRANCE PROHIBITED\" with brass wood screws to outside of substation doors","No",4,null,0]
[1863,27550,4,5,null,"","","Supply and install '11 000 VOLTS\" danger stickers '(50mm x 100mm) to equipment as indicated by the Engineer on site","No",20,null,0]
[1864,27551,4,5,null,"","","Supply and install 400 VOLT danger sticker Supply and install 400 VOLT danger sticker Engineer on site","No",15,null,0]
[1865,27552,4,5,null,"","","Supply and install noise level danger signs in generator rooms","No",4,null,0]
[1866,27553,4,5,null,"","","Allow for laminating and framing AO drawing for wall mounting in substations","No",4,null,0]
[1867,27555,4,5,null,"","","Budgetary allowance sum for substations mimic panel","Item",{"v":1,"d":"1.00"},null,0]
[1868,27556,4,5,null,"","","Supply steel tool cabinet 1 200mm wide x 2 100 high x 600 deep with 4 No. adjustable shelves and two lockable swing doors","No",2,null,0]
[1869,27557,4,5,null,"","","Supply a 900mm high, 1 000 wide x 800 deep painted supawood desk on castors","No",2,null,0]
[1870,27558,4,5,null,"","","Supply 1 200mm x 800mm x 5mm thick rubber mat","No",2,null,0]
[1871,27562,4,5,null,"","","Budgetary allowance for substation temperature and door status monitoring","Item",{"v":1,"d":"1.00"},null,0]
[1872,27563,4,5,null,"","","Budgetary allowance for penetration flanges","Item",{"v":1,"d":"1.00"},null,0]
[1873,27564,4,5,null,"","","Budgetary allowance for MV cable protection","Item",{"v":1,"d":"1.00"},null,0]
[1874,27565,4,5,null,"","","TICO PADS  (High density rubber)","H2",null,null,""]
[1875,27566,4,5,null,"","","Supply 150mm x 1200mm x 12.5mm thick Tico pads installation as an insulator between the equipment and floor as shown on layout drawings (High density rubber)","No",16,null,{"$f":"J1505*K1505","v":0}]
[1876,27567,4,5,null,"","","PADLOCKS","H2",null,null,""]
[1877,27568,4,5,null,"","","Supply and install a painted supawood wooden key cabinet 400 x 400 x 100 deep with 50 hooks and hinged door fixed to brick wall in Main Substation","No",1,null,{"$f":"J1507*K1507","v":0}]
[1878,27569,4,5,null,"","","Supply 30mm Viro padlock complete with 3 keys with (correctly labelled) keyed alike keys","No",12,null,0]
[1879,27570,4,5,null,"","","PAINTING","H2",null,null,""]
[1880,27571,4,5,null,"","","Arrange for builder to touch up substations damaged floor paint once all equipment is installed","Item",{"v":1,"d":"1.00"},null,{"$f":"J1510*K1510","v":0}]
[1881,27572,4,5,null,"","","SIGNAGE","H2",null,null,""]
[1882,27573,4,5,null,"","","Supply and install FB36 5 in 1 chromodeck black writing on yellow background sign (925mm x 925mm) fixed to brick wall in substations","Item",{"v":1,"d":"1.00"},null,{"$f":"J1512*K1512","v":0}]
[1884,23913,4,6,null,"","","SECTION NO. 4","H1",null,null,""]
[1885,23914,4,6,null,"","","BILL NO. 6 BASEMENT AND ROOF LEVEL","H1",null,null,{"$f":"SUM(L1515:L1612)","v":0}]
[1886,23915,4,6,null,"","","BASEMENT AND ROOF LEVEL (PROVISIONAL) (CPAP WORK GROUP NO. 160 UNLESS OTHERWISE STATED)","H1",null,null,""]
[1887,23916,4,6,null,"31","","The Tenderer is referred to the relevant Clauses in the separate document General Preambles for Trades (2017)","",null,null,""]
[1888,24244,4,6,null,"","","BASEMENT AND ROOF LEVEL","H2",null,null,""]
[1889,24245,4,6,null,"","","SMALL POWER","H2",null,null,""]
[1890,24246,4,6,null,"","","25mm PVC conduit surface or chased into brickwork (patching by others)","m",164,null,{"$f":"J1519*K1519","v":0}]
[1891,24247,4,6,null,"","","Extra on last to install","m",164,null,0]
[1892,24248,4,6,null,"","","Supply the following Crabtree outlets complete with cover, clips mounting brackets on power skirting:","H3",null,null,""]
[1893,24249,4,6,null,"","","1 x Normal S.S.O (SANS 164-1)","No",12,null,{"$f":"J1522*K1522","v":0}]
[1894,24250,4,6,null,"","","Extra on last to install","No",12,null,0]
[1895,24251,4,6,null,"","","1 x Euro S.S.O (SANS 164-2)","No",12,null,0]
[1896,24252,4,6,null,"","","Extra on last to install","No",12,null,0]
[1897,24253,4,6,null,"","","1 x Dedicated S.S.O (SANS 164-4)","No",10,null,0]
[1898,24254,4,6,null,"","","Extra on last to install","No",10,null,0]
[1899,24255,4,6,null,"","","1 x RJ45 Blank","No",6,null,0]
[1900,24256,4,6,null,"","","Extra on last to install","No",6,null,0]
[1901,24257,4,6,null,"","","16 amp UPS (BLUE) Crabtree S.S.O. complete with cover, clips and mounting brackets on power skirting","No",5,null,0]
[1902,24258,4,6,null,"","","Extra on last to install","No",5,null,0]
[1903,24259,4,6,null,"","","PVC insulated 1 000 V grade hard drawn copper wire drawn into trunking and conduit and coloured as required","H3",null,null,""]
[1904,24260,4,6,null,"","","4mm²","m",3911,null,{"$f":"J1533*K1533","v":0}]
[1905,24261,4,6,null,"","","Extra on last to install","m",3911,null,0]
[1906,24262,4,6,null,"","","100 x 100 galvanised box flush in dry walling ","No",11,null,0]
[1907,24263,4,6,null,"","","Extra on last to install","No",11,null,0]
[1908,24264,4,6,null,"","","16 amp UPS (Blue) S.S.O. in 100 x 100 box including cover plate and electrical connections","No",5,null,0]
[1909,24265,4,6,null,"","","Extra on last to install","No",5,null,0]
[1910,24266,4,6,null,"","","16 amp 3 pin Sans 164 - 1 and Sans 164-2 combination SSO in 100x100 box complete with coverplate","No",25,null,0]
[1911,24267,4,6,null,"","","Extra on last to install","No",25,null,0]
[1912,24268,4,6,null,"","","BASEMENT AND ROOF LEVEL","H2",null,null,""]
[1913,24269,4,6,null,"","","20A single phase surface mounted isolator for AC / roller shutter doors / extraction","No",8,null,{"$f":"J1542*K1542","v":0}]
[1914,24270,4,6,null,"","","Extra on last to install","No",8,null,0]
[1915,24271,4,6,null,"","","20A single phase flush mounted isolator for hand dryer","No",1,null,0]
[1916,24272,4,6,null,"","","Extra on last to install","No",1,null,0]
[1917,24273,4,6,null,"","","30A single phase flush mounted isolator","No",1,null,0]
[1918,24274,4,6,null,"","","Extra on last to install","No",1,null,0]
[1919,24275,4,6,null,"","","10A three phase weather proof isolator","No",2,null,0]
[1920,24276,4,6,null,"","","Extra on last to install","No",2,null,0]
[1921,24277,4,6,null,"","","20A three phase weather proof isolator","No",1,null,0]
[1922,24278,4,6,null,"","","Extra on last to install","No",1,null,0]
[1923,24279,4,6,null,"","","30A three phase weather proof isolator","No",2,null,0]
[1924,24280,4,6,null,"","","Extra on last to install","No",2,null,0]
[1925,24281,4,6,null,"","","800A three phase weather proof isolator for HVAC equipment","No",1,null,0]
[1926,24282,4,6,null,"","","Extra on last to install","No",1,null,0]
[1927,24283,4,6,null,"","","Install 3 compartment 2 cover epoxy powder coated power skirting complete with covers and support brackets every 1 m spacing","m",21,null,0]
[1928,24284,4,6,null,"","","Extra on last to install 90º bends for 3 compartment bends","No",5,null,0]
[1929,24285,4,6,null,"","","Extra on last to install end caps for 3 compartment power skirting","No",5,null,0]
[1930,24286,4,6,null,"","","LIGHTING","H2",null,null,""]
[1931,24287,4,6,null,"","","25mm PVC conduit fixed to soffit and or hangers","m",891,null,{"$f":"J1560*K1560","v":0}]
[1932,24288,4,6,null,"","","Extra on last to install","m",891,null,0]
[1933,24289,4,6,null,"","","25mm Bosal conduit ","m",95,null,0]
[1934,24290,4,6,null,"","","Extra on last to install","m",95,null,0]
[1935,24291,4,6,null,"","","PVC insulated 1 000 V grade hard drawn copper wire drawn into trunking and conduit and coloured as required","H3",null,null,""]
[1936,24292,4,6,null,"","","2.5mm²","m",4542,null,{"$f":"J1565*K1565","v":0}]
[1937,24293,4,6,null,"","","Extra on last to install","m",4542,null,0]
[1938,24294,4,6,null,"","","2,5mm² PVC insulated twin and earth cable lay in ceiling","m",212,null,0]
[1939,24295,4,6,null,"","","Extra on last to install","m",212,null,0]
[1940,24296,4,6,null,"","","Extra on last for glands, termination and connection","No",60,null,0]
[1941,24297,4,6,null,"","","P9000 trunking suspended from soffit complete with cover","m",114,null,0]
[1942,24298,4,6,null,"","","Extra on last to install","m",114,null,0]
[1943,24299,4,6,null,"","","1 lever 1 way 16 amp light switch Crabtree or other approved in 100 x 50 galvanised box inclusive of cover","No",18,null,0]
[1944,24300,4,6,null,"","","Extra on last to install","No",18,null,0]
[1945,24301,4,6,null,"","","65mm dia. round conduit box ","No",74,null,0]
[1946,24302,4,6,null,"","","Extra on last to install","No",74,null,0]
[1947,24303,4,6,null,"","","3 way PVC round draw box","No",23,null,0]
[1948,24304,4,6,null,"","","Extra on last to install","No",23,null,0]
[1949,24305,4,6,null,"","","6 amp unswitched socket outlet","No",81,null,0]
[1950,24306,4,6,null,"","","Extra on last to install","No",81,null,0]
[1951,24307,4,6,null,"","","2 way 1 lever light switch","No",4,null,0]
[1952,24308,4,6,null,"","","Extra on last to install","No",4,null,0]
[1953,24309,4,6,null,"","","Extra on last to install the following luminaires","H3",null,null,""]
[1954,24310,4,6,null,"","","Type A1  ","No",30,null,{"$f":"J1583*K1583","v":0}]
[1955,24311,4,6,null,"","","Type A1e","No",11,null,0]
[1956,24312,4,6,null,"","","Type A2","No",4,null,0]
[1957,24313,4,6,null,"","","Type A2e","No",1,null,0]
[1958,24314,4,6,null,"","","Type E1","No",6,null,0]
[1959,24315,4,6,null,"","","Type E1e","No",5,null,0]
[1960,24316,4,6,null,"","","Type E2","No",8,null,0]
[1961,24317,4,6,null,"","","Type E2e","No",3,null,0]
[1962,24318,4,6,null,"","","Type F1e","No",4,null,0]
[1963,24319,4,6,null,"","","Type Je","No",4,null,0]
[1964,24320,4,6,null,"","","Type H","No",4,null,0]
[1965,24321,4,6,null,"","","TELEPHONE/DATA","H2",null,null,""]
[1966,24322,4,6,null,"","","Telephone/data cover complete with RJ 45 data socket and grommets in power skirting","No",55,null,{"$f":"J1595*K1595","v":0}]
[1967,24323,4,6,null,"","","Extra on last to install","No",55,null,0]
[1968,24324,4,6,null,"","","P9000 trunking suspended from soffit complete with cover","m",30,null,0]
[1969,24325,4,6,null,"","","Extra on last to install","m",30,null,0]
[1970,24326,4,6,null,"","","FIRE AND SECURITY","H2",null,null,""]
[1971,24327,4,6,null,"","","25mm PVC conduit fixed on surface to concrete or brickwork","m",342,null,{"$f":"J1600*K1600","v":0}]
[1972,24328,4,6,null,"","","Extra on last to install","m",342,null,0]
[1973,24329,4,6,null,"","","25mm two entry round conduit box in ceiling void mounted surface to concrete","No",44,null,0]
[1974,24330,4,6,null,"","","Extra on last to install","No",44,null,0]
[1975,24331,4,6,null,"","","P9000 trunking suspended from soffit complete with cover","m",118,null,0]
[1976,24332,4,6,null,"","","Extra on last to install","m",118,null,0]
[1977,24333,4,6,null,"","","25mm flexible conduit","m",30,null,0]
[1978,24334,4,6,null,"","","Extra on last to install","m",30,null,0]
[1979,24335,4,6,null,"","","65mm round boxes","No",20,null,0]
[1980,24336,4,6,null,"","","Extra on last to install","No",20,null,0]
[1981,24337,4,6,null,"","","GENERAL ITEMS","H2",null,null,""]
[1982,24338,4,6,null,"","","Earthing and bonding","Item",{"v":1,"d":"1.00"},null,{"$f":"J1611*K1611","v":0}]
[1983,24339,4,6,null,"","","Testing and commissioning inclusive of completing Ibuya Consulting Engineers test sheets, compliance certificate and circuit cards as specified ","Item",{"v":1,"d":"1.00"},null,0]
[1985,24579,4,7,null,"","","SECTION NO. 4","H1",null,null,""]
[1986,24580,4,7,null,"","","BILL NO. 7 TYPICAL FLOORS GROUND TO FIFTH","H1",null,null,{"$f":"SUM(L1615:L1724)","v":0}]
[1987,24581,4,7,null,"","","TYPICAL FLOORS GROUND TO FIFTH - 6NO. FLOORS (PROVISIONAL) (CPAP WORK GROUP NO. 160 UNLESS OTHERWISE STATED)","H1",null,null,""]
[1988,24582,4,7,null,"31","","The Tenderer is referred to the relevant Clauses in the separate document General Preambles for Trades (2017)","",null,null,""]
[1989,25006,4,7,null,"","","TYPICAL FLOORS GROUND TO FIFTH - 6NO. FLOORS","H2",null,null,""]
[1990,25007,4,7,null,"","","SMALL POWER","H2",null,null,""]
[1991,25008,4,7,null,"","","25mm PVC conduit surface or chased into brickwork (patching by others)","m",1884,null,{"$f":"J1619*K1619","v":0}]
[1992,25009,4,7,null,"","","Extra on last to install","m",1884,null,0]
[1993,25010,4,7,null,"","","Supply the following Crabtree outlets complete with cover, clips mounting brackets on power skirting","H3",null,null,""]
[1994,25011,4,7,null,"","","1 x Normal S.S.O (SANS 164-1)","No",270,null,{"$f":"J1622*K1622","v":0}]
[1995,25012,4,7,null,"","","Extra on last to install","No",270,null,0]
[1996,25013,4,7,null,"","","1 x Euro S.S.O (SANS 164-2)","No",270,null,0]
[1997,25014,4,7,null,"","","Extra on last to install","No",270,null,0]
[1998,25015,4,7,null,"","","1 x Dedicated S.S.O (SANS 164-4)","No",270,null,0]
[1999,25016,4,7,null,"","","Extra on last to install","No",270,null,0]
[2000,25017,4,7,null,"","","1 x RJ45 Blank","No",270,null,0]
[2001,25018,4,7,null,"","","Extra on last to install","No",270,null,0]
[2002,25019,4,7,null,"","","16 amp UPS (BLUE) Crabtree S.S.O. complete with cover, clips and mounting brackets on power skirting","No",48,null,0]
[2003,25020,4,7,null,"","","Extra on last to install","No",48,null,0]
[2004,25021,4,7,null,"","","PVC insulated 1 000 V grade hard drawn copper wire drawn into trunking and conduit and coloured as required","H3",null,null,""]
[2005,25022,4,7,null,"","","4mm²","m",28890,null,{"$f":"J1633*K1633","v":0}]
[2006,25023,4,7,null,"","","Extra on last to install","m",28890,null,0]
[2007,25024,4,7,null,"","","100 x 100 galvanised box flush in dry walling ","No",162,null,0]
[2008,25025,4,7,null,"","","Extra on last to install","No",162,null,0]
[2009,25026,4,7,null,"","","60A three phase weather proof isolator","No",30,null,0]
[2010,25027,4,7,null,"","","Extra on last to install","No",30,null,0]
[2011,25028,4,7,null,"","","30A three phase weather proof isolator","No",12,null,0]
[2012,25029,4,7,null,"","","Extra on last to install","No",12,null,0]
[2013,25030,4,7,null,"","","20A three phase weather proof isolator","No",24,null,0]
[2014,25031,4,7,null,"","","Extra on last to install","No",24,null,0]
[2015,25032,4,7,null,"","","60A single phase surface mounted isolator","No",12,null,0]
[2016,25033,4,7,null,"","","Extra on last to install","No",12,null,0]
[2017,25034,4,7,null,"","","30A single phase surface mounted isolator","No",12,null,0]
[2018,25035,4,7,null,"","","Extra on last to install","No",12,null,0]
[2019,25036,4,7,null,"","","20A single phase surface mounted isolator","No",24,null,0]
[2020,25037,4,7,null,"","","Extra on last to install","No",24,null,0]
[2021,25038,4,7,null,"","","Install 3 compartment 2 cover power skirting complete with covers and support brackets every 1 m spacing","m",1404,null,0]
[2022,25039,4,7,null,"","","Extra on last to install 90º bends for 3 compartment power skirting","No",132,null,0]
[2023,25040,4,7,null,"","","Extra on last to install end caps for 3 compartment power skirting","No",312,null,0]
[2024,25041,4,7,null,"","","Supply corporate connection (Alpha 4) unit comprising of: 2 x end caps 1 x Normal S.S.O (SANS 164-1) 1 x Euro S.S.O (SANS 164-2) 1 x Dedicated S.S.O (SANS 164-4) 2 x Blank RJ45 outlets Input power cable - 3 M SA dedicated connection Input power cable - 3 M SA normal Interconnecting power cable - 3 M - dedicated Interconnecting power cable - 3 M - SA normal","No",144,null,0]
[2025,25042,4,7,null,"","","Extra on last to install","No",144,null,0]
[2026,25043,4,7,null,"","","20mm Flexible PVC Conduit","m",570,null,0]
[2027,25044,4,7,null,"","","Extra on last to install saddled at 250mm under desk top","m",570,null,0]
[2028,25045,4,7,null,"","","Supply Crabtree Powercomm 9 way cluster box complete with: 1 x Normal S.S.O (SANS 164-1) 1 x Euro S.S.O (SANS 164-2) 1 x Dedicated S.S.O (SANS 164-4) 2 x Blank RJ45 outlets","No",72,null,0]
[2029,25046,4,7,null,"","","Extra on last to install","No",72,null,0]
[2030,25047,4,7,null,"","","Supply 9 way flush plastic divider box","No",72,null,0]
[2031,25048,4,7,null,"","","Extra on last to install","No",72,null,0]
[2032,25049,4,7,null,"","","Supply Cabstrut Access floor conduit box system (205 x 287 x 79) complete with: 1 x Normal S.S.O (SANS 164-1) 1 x Euro S.S.O (SANS 164-2) 1 x Dedicated S.S.O (SANS 164-4) 2 x Blank RJ45 outlets","No",18,null,0]
[2033,25050,4,7,null,"","","Extra on last to install","No",18,null,0]
[2034,25051,4,7,null,"","","16 amp 3 pin Sans 164 - 1 and Sans 164-2 combination  SSO in 100 x 100 box complete with cover plate","No",252,null,0]
[2035,25052,4,7,null,"","","Extra on last to install","No",252,null,0]
[2036,25053,4,7,null,"","","250 x 250 PVC junction box","No",12,null,0]
[2037,25054,4,7,null,"","","Extra on last to install","No",12,null,0]
[2038,25055,4,7,null,"","","4m Pole compromising of the following: 2 x Normal S.S.O (SANS 164-1) 2 x Euro S.S.O (SANS 164-2) 2 x Dedicated S.S.O (SANS 164-4) 4 x Blank RJ45 outlets","No",42,null,0]
[2039,25056,4,7,null,"","","Extra on last to install","No",42,null,0]
[2040,25057,4,7,null,"","","LIGHTING","H2",null,null,""]
[2041,25058,4,7,null,"","","25mm PVC conduit fixed to soffit and or hangers","m",5886,null,{"$f":"J1669*K1669","v":0}]
[2042,25059,4,7,null,"","","Extra on last to install","m",5886,null,0]
[2043,25060,4,7,null,"","","PVC insulated 1 000 V grade hard drawn copper wire drawn into trunking and conduit and coloured as required","H3",null,null,""]
[2044,25061,4,7,null,"","","2.5mm²","m",30726,null,{"$f":"J1672*K1672","v":0}]
[2045,25062,4,7,null,"","","Extra on last to install","m",30726,null,0]
[2046,25063,4,7,null,"","","2.5mm² PVC insulated twin and earth cable lay in ceiling","m",1914,null,0]
[2047,25064,4,7,null,"","","Extra on last to install","m",1914,null,0]
[2048,25065,4,7,null,"","","Extra on last for glands, termination and connection","No",210,null,0]
[2049,25066,4,7,null,"","","P9000 trunking suspended from soffit complete with cover","m",1506,null,0]
[2050,25067,4,7,null,"","","Extra on last to install","m",1506,null,0]
[2051,25068,4,7,null,"","","1 lever 1 way 16 amp light switch Crabtree or other approved in 100 x 50 galvanised box inclusive of cover","No",228,null,0]
[2052,25069,4,7,null,"","","Extra on last to install","No",228,null,0]
[2053,25070,4,7,null,"","","65mm Dia. round conduit box ","No",1242,null,0]
[2054,25071,4,7,null,"","","Extra on last to install","No",1242,null,0]
[2055,25072,4,7,null,"","","3 way PVC round draw box","No",246,null,0]
[2056,25073,4,7,null,"","","Extra on last to install","No",246,null,0]
[2057,25074,4,7,null,"","","6 amp unswitched socket outlet","No",1446,null,0]
[2058,25075,4,7,null,"","","Extra on last to install","No",1446,null,0]
[2059,25076,4,7,null,"","","2 way 1 lever light switch","No",36,null,0]
[2060,25077,4,7,null,"","","Extra on last to install","No",36,null,0]
[2061,25078,4,7,null,"","","1000 W dimmer","No",12,null,0]
[2062,25079,4,7,null,"","","Extra on last to install","No",12,null,0]
[2063,25080,4,7,null,"","","Occupancy senor - Provnice Lighting (PS-PIR3) flush mounted, white with 360 degree detection angle","No",132,null,0]
[2064,25081,4,7,null,"","","Extra on last to install","No",132,null,0]
[2065,25082,4,7,null,"","","Extra on last to install the following luminaries","H3",null,null,""]
[2066,25083,4,7,null,"","","Type A1","No",36,null,{"$f":"J1694*K1694","v":0}]
[2067,25084,4,7,null,"","","Type A1e","No",18,null,0]
[2068,25085,4,7,null,"","","Type B1","No",984,null,0]
[2069,25086,4,7,null,"","","Type B1e","No",126,null,0]
[2070,25087,4,7,null,"","","Type E1 ","No",168,null,0]
[2071,25088,4,7,null,"","","Type E1e","No",36,null,0]
[2072,25089,4,7,null,"","","Type E2 ","No",30,null,0]
[2073,25090,4,7,null,"","","Type E2e","No",6,null,0]
[2074,25091,4,7,null,"","","Type C","No",18,null,0]
[2075,25092,4,7,null,"","","Type D","No",18,null,0]
[2076,25093,4,7,null,"","","Type F1 ","No",12,null,0]
[2077,25094,4,7,null,"","","Type F1e","No",12,null,0]
[2078,25095,4,7,null,"","","Type G","No",60,null,0]
[2079,25096,4,7,null,"","","Type Je","No",24,null,0]
[2080,25097,4,7,null,"","","Type T1","No",12,null,0]
[2081,25098,4,7,null,"","","Type T2 ","No",12,null,0]
[2082,25099,4,7,null,"","","TELEPHONE/DATA","H2",null,null,""]
[2083,25100,4,7,null,"","","Telephone/data cover complete with RJ 45 data socket and grommets in power skirting","No",252,null,{"$f":"J1711*K1711","v":0}]
[2084,25101,4,7,null,"","","Extra on last to install","No",252,null,0]
[2085,25102,4,7,null,"","","FIRE AND SECURITY","H2",null,null,""]
[2086,25103,4,7,null,"","","25mm PVC conduit fixed on surface to concrete or brickwork","m",2052,null,{"$f":"J1714*K1714","v":0}]
[2087,25104,4,7,null,"","","Extra on last to install","m",2052,null,0]
[2088,25105,4,7,null,"","","25mm two entry round conduit box in ceiling void mounted surface to concrete","No",264,null,0]
[2089,25106,4,7,null,"","","Extra on last to install","No",264,null,0]
[2090,25107,4,7,null,"","","25mm flexible conduit","m",180,null,0]
[2091,25108,4,7,null,"","","Extra on last to install","m",180,null,0]
[2092,25109,4,7,null,"","","65mm round boxes","No",240,null,0]
[2093,25110,4,7,null,"","","Extra on last to install","No",240,null,0]
[2094,25111,4,7,null,"","","GENERAL ITEMS","H2",null,null,""]
[2095,25112,4,7,null,"","","Earthing and bonding","Item",{"v":6,"d":"6.00"},null,{"$f":"J1723*K1723","v":0}]
[2096,25113,4,7,null,"","","Testing and commissioning inclusive of completing Ibuya Consulting Engineers test sheets, compliance certificate and circuit cards as specified","Item",{"v":6,"d":"6.00"},null,0]
[2098,23247,4,8,null,"","","SECTION NO. 4","H1",null,null,""]
[2099,23248,4,8,null,"","","BILL NO. 8 EARTHING AND LIGHTNING PROTECTION","H1",null,null,{"$f":"SUM(L1727:L1765)","v":0}]
[2100,23249,4,8,null,"","","EARTHING AND LIGHTNING PROTECTION (PROVISIONAL) (CPAP WORK GROUP NO. 160 UNLESS OTHERWISE STATED)","H1",null,null,""]
[2101,23250,4,8,null,"31","","The Tenderer is referred to the relevant Clauses in the separate document General Preambles for Trades (2017)","",null,null,""]
[2102,23782,4,8,null,"","","EARTHING AND LIGHTNING PROTECTION","H2",null,null,""]
[2103,23783,4,8,null,"","","SOIL RESISTIVITY SURVEY","H2",null,null,""]
[2104,23784,4,8,null,"","","Allow to survey the site to establish any prevailing conditions and carry out soil resistivity testing in the locations adjacent to each Sub Station. A detailed report indicating test results and requirements to achieve the necessary earth resistance for each area is to be submitted to the Electrical Engineer","",null,null,""]
[2105,23785,4,8,null,"","","Resistivity Test survey in earth","No",1,null,{"$f":"J1732*K1732","v":0}]
[2106,23786,4,8,null,"","","Test report indicating electrode requirements etc. to achieve 1 ohm or less","No",1,null,0]
[2107,23787,4,8,null,"","","TRENCHING","H2",null,null,""]
[2108,23788,4,8,null,"","","Excavate by hand for cable trench or earth mats including backfill with sifted sand, cable trench 350 mm wide x 600 mm deep x 1 500 mm long","H3",null,null,""]
[2109,23789,4,8,null,"","","In earth","No",20,null,{"$f":"J1736*K1736","v":0}]
[2110,23790,4,8,null,"","","In shale","No",1,null,0]
[2111,23791,4,8,null,"","","In hard rock","No",1,null,0]
[2112,23792,4,8,null,"","","BONDING TO EARTH ELECTRODES","H2",null,null,""]
[2113,23793,4,8,null,"","","Supply and install 20mm lengths of 95mm² Green PVC insulated copper conductors fitted into sleeves and trench complete with lugs, ferrules and termination clamps between substation earth bar and earth electrode","No",2,null,{"$f":"J1740*K1740","v":0}]
[2114,23794,4,8,null,"","","EARTH MATS","H2",null,null,""]
[2115,23795,4,8,null,"","","Supply and install 1,600mm copper clad Earth Electrodes driven into ground at 1,500mm by 1,500 mm spacing including brass termination clamps and 50mm² bare copper conductor interlinking to 2 No. earth grid adjacent earth spike to form an earth grid  ","No",20,null,{"$f":"J1742*K1742","v":0}]
[2116,23796,4,8,null,"","","EARTH ELECTRODES","H2",null,null,""]
[2117,23797,4,8,null,"","","Supply and install additional 1,600 mm copper clad earth electrode driven into the ground including the ferrel","No",8,null,{"$f":"J1744*K1744","v":0}]
[2118,23798,4,8,null,"","","Supply and install 450mm long x 50mm high x 6mm thick copper earth bar with test link predrilled with 10mm diameter holes and secured to wall concrete on PVC insulated spacers including all necessary material to form substation earth bar","No",1,null,0]
[2119,23799,4,8,null,"","","TESTING AND CERTIFICATE OF COMPLIANCE","H2",null,null,""]
[2120,23800,4,8,null,"","","Allow for testing of the complete substation installation to be witnessed by the Electrical Engineer, including the issue of SABS Certificate of Compliance of Earthing Systems, Annexures of recorded test results and \"As Built\" drawings as specified","No",1,null,{"$f":"J1747*K1747","v":0}]
[2121,23801,4,8,null,"","","MV RING EARTHS","H2",null,null,""]
[2122,23802,4,8,null,"","","The complete supply and installation of 120mm² Cu PVC (Black) earth wire (SANS 1507-3) in continuous lengths as follows","H3",null,null,""]
[2123,23803,4,8,null,"","","Sub 1 to RMU","m",80,null,{"$f":"J1750*K1750","v":0}]
[2124,23804,4,8,null,"","","Extra on last to terminate","No",2,null,0]
[2125,23805,4,8,null,"","","Extra on last to supply and install 100 mm green heat shrink over end of each earth wire","No",2,null,0]
[2126,23806,4,8,null,"","","SUBSTATION EARTHING INSTALLATION","H2",null,null,""]
[2127,23807,4,8,null,"","","Substation bonding and earthing system as per earthing diagram and the specification, including earth wire, terminal connectors up to the main earth bar (As per drawing 17052_607_0)","H3",null,null,""]
[2128,23808,4,8,null,"","","Substation 1 bonding and earthing (as per drawing 17052_607_0)","Item",{"v":1,"d":"1.00"},null,{"$f":"J1755*K1755","v":0}]
[2129,23809,4,8,null,"","","EARTHING INSTALLATION TESTS","H2",null,null,""]
[2130,23810,4,8,null,"","","The testing and recoding in suitable format of the following;","",null,null,""]
[2131,23811,4,8,null,"","","Substation earth resistance test immediately upon completion of the earthing installation before substation equipment is installed","H3",null,null,""]
[2132,23812,4,8,null,"","","Substation  1","Item",{"v":1,"d":"1.00"},null,{"$f":"J1759*K1759","v":0}]
[2133,23813,4,8,null,"","","Final earth resistance reading with substation equipment installed, but M.V. supply cables/earth disconnected","H3",null,null,""]
[2134,23814,4,8,null,"","","Substation  1","Item",{"v":1,"d":"1.00"},null,{"$f":"J1761*K1761","v":0}]
[2135,23815,4,8,null,"","","LIGHTNING PROTECTION BY SPECIALIST CONTRACTOR","H2",null,null,""]
[2136,23816,4,8,null,"","","Undertake survey of existing lightning protection and provide comprehensive report on statue","Item",{"v":1,"d":"1.00"},null,{"$f":"J1763*K1763","v":0}]
[2137,23818,4,8,null,"","","Budgetary amount for repairs to existing installation","Item",{"v":1,"d":"1.00"},null,0]
[2138,23819,4,8,null,"","","Contractor's attendance and mark up ","%",{"v":0.1,"d":"0.10"},null,0]
[2140,27909,4,9,null,"","","SECTION NO. 4","H1",null,null,""]
[2141,27910,4,9,null,"","","BILL NO. 9 LUMINAIRES","H1",null,null,{"$f":"SUM(L1768:L1790)","v":0}]
[2142,27911,4,9,null,"","","LUMINAIRES (PROVISIONAL) (CPAP WORK GROUP NO. 160 UNLESS OTHERWISE STATED)","H1",null,null,""]
[2143,27912,4,9,null,"31","","The Tenderer is referred to the relevant Clauses in the separate document General Preambles for Trades (2017)","",null,null,""]
[2144,28482,4,9,null,"","","LUMINAIRES","H2",null,null,""]
[2145,28483,4,9,null,"","","Supply the following luminaires: As per drawing No. 17052_601_A","H3",null,null,""]
[2146,28484,4,9,null,"","","Type A1","No",84,null,{"$f":"J1772*K1772","v":0}]
[2147,28485,4,9,null,"","","Type A1e","No",38,null,0]
[2148,28486,4,9,null,"","","Type A2","No",12,null,0]
[2149,28487,4,9,null,"","","Type A2e","No",8,null,0]
[2150,28488,4,9,null,"","","Type B1","No",982,null,0]
[2151,28489,4,9,null,"","","Type B1e","No",131,null,0]
[2152,28490,4,9,null,"","","Type C","No",27,null,0]
[2153,28491,4,9,null,"","","Type D","No",14,null,0]
[2154,28492,4,9,null,"","","Type E1","No",184,null,0]
[2155,28493,4,9,null,"","","Type E1e","No",48,null,0]
[2156,28494,4,9,null,"","","Type E2","No",51,null,0]
[2157,28495,4,9,null,"","","Type E2e","No",14,null,0]
[2158,28496,4,9,null,"","","Type F1","No",18,null,0]
[2159,28497,4,9,null,"","","Type F1e","No",16,null,0]
[2160,28498,4,9,null,"","","Type G","No",81,null,0]
[2161,28499,4,9,null,"","","Type H","No",8,null,0]
[2162,28500,4,9,null,"","","Type Je","No",28,null,0]
[2163,28501,4,9,null,"","","Type T1","No",12,null,0]
[2164,28502,4,9,null,"","","Type T2","No",12,null,0]
[2166,28575,4,10,null,"","","SECTION NO. 4","H1",null,null,""]
[2167,28576,4,10,null,"","","BILL NO. 10 DISTRIBUTION BOARDS","H1",null,null,{"$f":"SUM(L1793:L1822)","v":0}]
[2168,28577,4,10,null,"","","DISTRIBUTION BOARDS (PROVISIONAL) (CPAP WORK GROUP NO. 160 UNLESS OTHERWISE STATED)","H1",null,null,""]
[2169,28578,4,10,null,"31","","The Tenderer is referred to the relevant Clauses in the separate document General Preambles for Trades (2017)","",null,null,""]
[2170,29169,4,10,null,"","","DISTRIBUTION BOARDS","H2",null,null,""]
[2171,29170,4,10,null,"","","Supply / deliver the following distribution boards;","H3",null,null,""]
[2172,29171,4,10,null,"","","Main LV Panel as per single line diagram drawing No. 17052_401_A","No",1,null,{"$f":"J1797*K1797","v":0}]
[2173,29172,4,10,null,"","","Install and connect the above DB","No",1,null,0]
[2174,29173,4,10,null,"","","Basement DB-B1E as per single line diagram drawing No. 17052_402_A ","No",1,null,0]
[2175,29174,4,10,null,"","","Install and connect the above DB","No",1,null,0]
[2176,29175,4,10,null,"","","Office DB-G1/G1E as per single line diagram drawing No. 17052_403_A   ","No",1,null,0]
[2177,29176,4,10,null,"","","Install and connect the above DB","No",1,null,0]
[2178,29177,4,10,null,"","","Office UPS DB - UPS-G1 and UPS-02 as per single line diagram drawing No. 17052_404_A","No",1,null,0]
[2179,29178,4,10,null,"","","Install and connect the above DB","No",1,null,0]
[2180,29179,4,10,null,"","","Main UPS Panel - UPS-DB as per single line diagram drawing No. 17052_405_A","No",1,null,0]
[2181,29180,4,10,null,"","","Install and connect the above DB","No",1,null,0]
[2182,29181,4,10,null,"","","Roof DB as per single line diagram drawing No. 17052_406_A","No",1,null,0]
[2183,29182,4,10,null,"","","Install and connect the above DB","No",1,null,0]
[2184,29183,4,10,null,"","","Basement  DB - AC as per single line diagram drawing No. 17052_407_0","No",1,null,0]
[2185,29184,4,10,null,"","","Install and connect the above DB","No",1,null,0]
[2186,29185,4,10,null,"","","Typical Office UPS as per single line diagram drawing No. 17052_408_0","No",4,null,0]
[2187,29186,4,10,null,"","","Install and connect the above DB","No",4,null,0]
[2188,29187,4,10,null,"","","Office DB - DB-01/01E as per single line diagram drawing No. 17052_409_0","No",1,null,0]
[2189,29188,4,10,null,"","","Install and connect the above DB ","No",1,null,0]
[2190,29189,4,10,null,"","","Office DB - DB-02/02E as per single line diagram drawing No. 17052_410_0","No",1,null,0]
[2191,29190,4,10,null,"","","Install and connect the above DB","No",1,null,0]
[2192,29191,4,10,null,"","","Office DB - DB-03/03E as per single line diagram drawing No. 17052_411_0","No",1,null,0]
[2193,29192,4,10,null,"","","Install and connect the above DB","No",1,null,0]
[2194,29193,4,10,null,"","","Office DB - DB-04/04E as per single line diagram drawing No. 17052_412_0","No",1,null,0]
[2195,29194,4,10,null,"","","Install and connect the above DB","No",1,null,0]
[2196,29195,4,10,null,"","","Office DB - DB-05/05E as per single line diagram drawing No. 17052_413_0","No",1,null,0]
[2197,29196,4,10,null,"","","Install and connect the above DB","No",1,null,0]
[2199,29241,4,11,null,"","","SECTION NO. 4","H1",null,null,""]
[2200,29242,4,11,null,"","","BILL NO. 11 POWER SKIRTING","H1",null,null,{"$f":"SUM(L1825:L1831)","v":0}]
[2201,29243,4,11,null,"","","POWER SKIRTING (PROVISIONAL) (CPAP WORK GROUP NO. 160 UNLESS OTHERWISE STATED)","H1",null,null,""]
[2202,29244,4,11,null,"31","","The Tenderer is referred to the relevant Clauses in the separate document General Preambles for Trades (2017)","",null,null,""]
[2203,29863,4,11,null,"","","POWER SKIRTING","H2",null,null,""]
[2204,29864,4,11,null,"","","Supply the following","H3",null,null,""]
[2205,29865,4,11,null,"","","Cabstrut P801 Expony powder coated 3 compartment 2 cover power skirting inclusive of cover","m",1404,null,{"$f":"J1829*K1829","v":0}]
[2206,29866,4,11,null,"","","90º power skirting bends","No",132,null,0]
[2207,29867,4,11,null,"","","End caps for power skirting","No",348,null,0]
[2209,29907,4,12,null,"","","SECTION NO. 4","H1",null,null,""]
[2210,29908,4,12,null,"","","BILL NO. 12 UPS","H1",null,null,{"$f":"SUM(L1834:L1841)","v":0}]
[2211,29909,4,12,null,"","","UPS (PROVISIONAL) (CPAP WORK GROUP NO. 160 UNLESS OTHERWISE STATED)","H1",null,null,""]
[2212,29910,4,12,null,"31","","The Tenderer is referred to the relevant Clauses in the separate document General Preambles for Trades (2017)","",null,null,""]
[2213,30534,4,12,null,"","","UPS","H2",null,null,""]
[2214,30535,4,12,null,"","","Supply, deliver, install, test and commission UPS System as per drawing no. 17052_602_A","No",1,null,{"$f":"J1837*K1837","v":0}]
[2215,36816,4,12,null,"","","Allowance to supply and install remote UPS's alarm panel ","Item",{"v":1,"d":"1.00"},null,0]
[2216,30537,4,12,null,"","","Contractor's attendance and mark up","%",{"v":0.1,"d":"0.10"},null,0]
[2217,30538,4,12,null,"","","Supply 80A Bypass switch","No",1,null,0]
[2218,30539,4,12,null,"","","1 No. UPS full service within the 1st year of UPS handover at 6 months and 12 months","Item",{"v":1,"d":"1.00"},null,0]
[2220,30573,4,13,null,"","","SECTION NO. 4","H1",null,null,""]
[2221,30574,4,13,null,"","","BILL NO. 13 EXISTING INSTALLATION","H1",null,null,{"$f":"SUM(L1844:L1863)","v":0}]
[2222,30575,4,13,null,"","","EXISTING INSTALLATION (PROVISIONAL) (CPAP WORK GROUP NO. 160 UNLESS OTHERWISE STATED)","H1",null,null,""]
[2223,30576,4,13,null,"31","","The Tenderer is referred to the relevant Clauses in the separate document General Preambles for Trades (2017)","",null,null,""]
[2224,31206,4,13,null,"","","EXISTING INSTALLATION","H2",null,null,""]
[2225,31207,4,13,null,"","","TYPICAL FLOOR","H2",null,null,""]
[2226,31208,4,13,null,"","","Disconnect, make safe and remove the following equipment from site (Not undertaken by main contractor)","H3",null,null,""]
[2227,31209,4,13,null,"","","2 x 58 Watt surface mounted light fitting","No",140,null,{"$f":"J1849*K1849","v":0}]
[2228,31210,4,13,null,"","","2 x 28 Watt recess mounted light fitting","No",500,null,0]
[2229,31211,4,13,null,"","","Bulkhead light fitting","No",10,null,0]
[2230,31212,4,13,null,"","","2 x 58 Watt open tube light fitting","No",4,null,0]
[2231,31213,4,13,null,"","","Allow to disconnect, make safe and remove existing distribution board","No",1,null,0]
[2232,31214,4,13,null,"","","Allow to remove surface mounted conduit","m",262,null,0]
[2233,31215,4,13,null,"","","Allow to remove wiring","m",8000,null,0]
[2234,31216,4,13,null,"","","Allow to remove surface mounted switch socket outlets","No",20,null,0]
[2235,31217,4,13,null,"","","Allow to remove recess mounted switch socket outlets and install blank cover plates","No",20,null,0]
[2236,31218,4,13,null,"","","Allow to remove light switches outlets and install cover plates","No",20,null,0]
[2237,31219,4,13,null,"","","Allow to remove power skirting","m",30,null,0]
[2238,31220,4,13,null,"","","Allow to remove 25mm conduit ","m",250,null,0]
[2239,31221,4,13,null,"","","Allow to remove telephone conduiting","m",250,null,0]
[2240,31222,4,13,null,"","","Allow to remove telephone jack point and install cover plate","No",60,null,0]
[2241,31223,4,13,null,"","","Allow to strip out telephone and IT cabling after consultation with client","m",3000,null,0]
[2243,31239,4,14,null,"","","SECTION NO. 4","H1",null,null,""]
[2244,31240,4,14,null,"","","BILL NO. 14 STANDBY GENERATOR","H1",null,null,{"$f":"SUM(L1866:L1879)","v":0}]
[2245,31241,4,14,null,"","","STANDBY GENERATOR (PROVISIONAL) (CPAP WORK GROUP NO. 160 UNLESS OTHERWISE STATED)","H1",null,null,""]
[2246,31242,4,14,null,"31","","The Tenderer is referred to the relevant Clauses in the separate document General Preambles for Trades (2017)","",null,null,""]
[2247,31890,4,14,null,"","","STANDBY GENERATOR","H2",null,null,""]
[2248,31891,4,14,null,"","","The complete supply, transport to site, install, test and commission","H3",null,null,""]
[2249,31892,4,14,null,"","","Standby generator as per drawing no. 17052_603_A","No",1,null,{"$f":"J1870*K1870","v":0}]
[2250,31893,4,14,null,"","","Connection of all generator control and protection, AMF and communication information wired to terminals within the Main LV Panel for changeover requirements","Item",{"v":1,"d":"1.00"},null,0]
[2251,31894,4,14,null,"","","The complete supply and installation of Generator Earthing as specified, including testing and commissioning the entire earthing installation as per I.E.C.standards, including re- testing as may be required after making good, and typed test certificates, ","Item",{"v":1,"d":"1.00"},null,0]
[2252,31895,4,14,null,"","","Ear muffs","No",5,null,0]
[2253,31896,4,14,null,"","","Allowance to fill/re-fill diesel tanks after testing - Low sulphur diesel to manufacturers specification. ","ltr",2000,null,0]
[2254,31898,4,14,null,"","","Provisional Sum for Allowance for additional Diesel Tank","Item",{"v":1,"d":"1.00"},null,0]
[2255,31899,4,14,null,"","","4 No. generator services to be conducted at 6, 12, 18 and 24 months from hand over. ","Item",{"v":1,"d":"1.00"},null,0]
[2256,31900,4,14,null,"","","Disconnect and remove from site and deliver within 50 km of Site the existing 150 kVA standby generator ","No",1,null,0]
[2257,31901,4,14,null,"","","Credit / scrap value for the existing standby generator (rate only) ","Item",{"v":1,"d":"1.00"},null,0]
[2258,31903,4,14,null,"","","Budgetary allowance for special rigging if required","Item",{"v":1,"d":"1.00"},null,0]
[2274,31907,5,1,null,"","","SECTION NO. 5 : ELECTRONIC INSTALLATION","H1",null,null,{"$f":"L1881+L1923+L1944+L1988+L2013+L2034+L2059","v":0}]
[2275,31908,5,1,null,"","","BILL NO. 1 PRELIMINARIES","H1",null,null,{"$f":"SUM(L1882:L1921)","v":0}]
[2276,33313,5,1,null,"1","","PRELIMINARIES (CPAP WORK GROUP NO. 190 UNLESS OTHERWISE STATED)","H1",null,null,""]
[2277,31911,5,1,null,"31","","The Tenderer is referred to the relevant Clauses in the separate document General Preambles for Trades (2017)","",null,null,""]
[2278,31912,5,1,null,"","","SUPPLEMENTARY PREAMBLES","H2",null,null,""]
[2279,33314,5,1,null,"","","This Bill of Quantities must be read together with the specification.","",null,null,""]
[2280,33315,5,1,null,"","","Tenderers must complete the Bill of Quantities and detail the unit rate and total amount of each item.  The \"Total\" shall constitute the tender price for adjudication.  Tenderers are advised to check their item extension and total additions as arithmetical errors occurring in the priced Bill of Quantities cannot be considered as having an effect on the tender amount.","",null,null,""]
[2281,33316,5,1,null,"","","No alteration, erasure or addition is to be made in the text of the Bill of Quantities.  Should any alteration, erasure or addition be made it will not be recognised but the original wording of the Bill of Quantities will be adhered to.  The Engineer will check the completed Bill of Quantities and reserves the right to adjust any individual price and to rectify any discrepancy whilst the total tender price as quoted remains unaltered.","",null,null,""]
[2282,33317,5,1,null,"","","The quantities given in the Bill for cable, cable markers, earth wire laid with cable, overhead conductors, overhead earth wire and excavations cannot be regarded as exact and are subject to measurement on site after completion of the service and adjustments will be made according to the unit rates given in the Bill.","",null,null,""]
[2283,33318,5,1,null,"","","The Bill of Quantities is to be used for pricing and financial purposes only.  The drawings take precedence over the particular (project) specification but should be used in conjunction with these specifications. The project specification takes precedence over quality specifications and the Bill of Quantities.","",null,null,""]
[2284,33319,5,1,null,"","","Checking of Cable and Overhead Conductor Lengths. Notwithstanding the fact that lengths of cables and overhead conductors, as given in the Bill of Quantities, have been measured from scaled drawings, the Contractor shall check such lengths on site before ordering the cable as he will not be paid for excess cable after the completion of the service.  Any allowance for off-cuts shall be made in the unit rates. The final measurements shall be based on the nett route length of the cables and overhead lines concerned, installed in accordance with the specification. However, the onus is on the Contractor to prove compliance with the specification.","",null,null,""]
[2285,33320,5,1,null,"","","The unit prices quoted in the Bill of Quantities shall include for such small materials as are required for the complete installation in accordance with the specification.","",null,null,""]
[2286,33321,5,1,null,"","","Bill No. 1 is to be regarded as fixed and will not be adjusted for variations in the final contract value or contract period.","",null,null,""]
[2287,33322,5,1,null,"","","NOTE: Tenderers may not include the costs of the items of Bill No. 1 in the unit rates for items in the remainder of the Bill of Quantities.  Bill No. 1 is to be completed as indicated.Failure to comply will result in the Engineer arbitrarily adjusting rates to exclude Preliminary and General costs.","",null,null,""]
[2288,33323,5,1,null,"","","Unit prices for the same items in different Bills shall in all cases be the same, and in the case of differences, the Engineer reserves the right to change such unit prices when the completed list is checked, without adjusting the tender price.","",null,null,""]
[2289,33324,5,1,null,"","","The total for each page of each Bill is to be carried forward to the collection page at the end of each Bill.","",null,null,""]
[2290,33325,5,1,null,"","","P.C., Provisional and Contingency allowances, items and sums shall be expended as directed by the Engineer, and any balance remaining shall be deducted from the amount of the contract sum. Tenderers may not regard any unspent moneys as forming part of the final contract value.  Variation Instruction No. 1 will be issued after award of the contract to omit all P.C., Provisional and Contingency sums/allowances from the contract and authorized contract value.","",null,null,""]
[2291,33326,5,1,null,"","","Variation work, as well as the items described above, shall be measured as executed, and paid for according to unit prices in the Bill of Quantities.  Where unit prices are not available, the work shall be priced, in conjunction with the Engineer, at current rates.","",null,null,""]
[2292,33327,5,1,null,"","","Unless otherwise specified in the Bill of Quantities, all items are to be priced on the basis of supply, delivery, offload, installation, connection, testing and commissioning.  All prices are to be EXCLUSIVE OF V.A.T but inclusive of import duties,  surcharges, commissions to third parties, etc., where applicable.  The  foregoing items, as well as the Contractor's handling, financing and profit mark-up, is not to be separately detailed, and must be included in  the cost rates.","",null,null,""]
[2293,33328,5,1,null,"","","Unless otherwise stated, all measurements are net, in accordance with the drawings, and no allowance has been made for wastage.","",null,null,""]
[2294,33329,5,1,null,"","","The Employer reserves the right to increase or decrease the extent of the contract works, without restraint, on total value of variations issued relevant to any particular item in the Bill of Quantities, by  issuing written variation instructions to omit or add, as may be  required, the supply and/or installation of any item of equipment or  work, whether listed in the Bill of Quantities or not, and without affecting the unit cost rates indicated in the Bill of Quantities or Preliminary and General items.","",null,null,""]
[2295,33330,5,1,null,"","","In the event that tenderers disagree with the measured quantities the tender should be qualified accordingly, listing the items and quantities in question.","",null,null,""]
[2296,33331,5,1,null,"","","The unit prices quoted in the Bill of Quantities must include for small installation materials such as nuts, bolts, nails, saddles, screws etc., as are required for the satisfactory complete installation in accordance with the specification.","",null,null,""]
[2297,33332,5,1,null,"","","Unless otherwise stated in the Bill, the unit cost rates shall be based on the following:  The rate for conduit boxes and for outlet boxes up to and including 100 x 100mm shall be the same regardless of the number of entries.  The rate for conduit and outlet boxes shall include for fixing to the conduit with lock and bushnuts as may be required and for fixing to the building structure.  The rate for outlet boxes shall be without covers and draw boxes shall be complete with covers and screws.  The rate for industrial switch and plug units shall include for the relevant enclosure and fixing to conduit and building structure.  The rate for light switches, switch plugs, dimmer units, etc., shall include for screws, cover plates and fuses/breakers where applicable and for connection of wiring thereto.  The rate for conduit up to and including 25 mm diameter shall include all couplings, bends, boxes etc. as may be required.  The rate for luminaires and accessories shall include for connection of the wiring thereto.","",null,null,""]
[2298,33333,5,1,null,"","","All measurements are based on the most economical route lengths without any allowance for wastage, threading, jointing or slack.","",null,null,""]
[2299,33334,5,1,null,"","","In the case of wiring in conduit, an allowance of 300mm per wire outlet box position has been made and in the case of cables and wiring entering switchboards, an allowance of 1000 and 2000mm has been made for termination purposes in sub-distribution and main distribution boards respectively.","",null,null,""]
[2300,33335,5,1,null,"","","It should be noted that, notwithstanding anything to the contrary, any items completed or listed in the Bill of Quantities by the Tenderer will not be taken into account, will not be subject to re-measurement, and will not be regarded as a Bill of Quantities item.","",null,null,""]
[2301,33336,5,1,null,"","","Where equipment is specified by name, the tenderer must price on this basis.  Alternatives may be offered by tenderers but the use of which is subject to written approval by the Engineer.","",null,null,""]
[2302,31947,5,1,null,"","","PRELIMINARIES","H2",null,null,""]
[2303,31948,5,1,null,"","","The costs for the following items shall not be included in the cost rates for work listed in the rest of the Bill of Quantities.","H3",null,null,""]
[2304,31949,5,1,null,"","","Cost for compliance with Main Contractor's preliminary and general items not covered below.","Item",{"v":1,"d":"1.00"},null,{"$f":"J1910*K1910","v":0}]
[2305,31950,5,1,null,"","","Contractual requirements as specified, i.e guarantees, insurance, sureties, company's overheads administration etc.","Item",null,null,""]
[2306,31951,5,1,null,"","","Contract engineer, administration, supervision, programming and management.","Item",null,null,""]
[2307,31952,5,1,null,"","","Establish site accommodation, storage etc.","Item",null,null,""]
[2308,31953,5,1,null,"","","Maintain and operate site establishment.","Item",null,null,""]
[2309,31954,5,1,null,"","","Remove site establishment on completion and remove all rubbish, dirt, off-cuts, etc, and leave site in condition as found. Allow to touch up paintwork if required.","Item",null,null,""]
[2310,31955,5,1,null,"","","Tools, equipment, plant hire and testing equip/meters as necessary.","Item",null,null,""]
[2311,31956,5,1,null,"","","Maintenance and guarantee of the complete installation including fitting, material and workmanship for a period of twelve months from date of practical completion as specified.","Item",null,null,""]
[2312,31957,5,1,null,"","","Extension of maintenance and guarantee for above complete installation by an additional 12 months, to a total of 24 months. Note, this includes all equipment, hardware, firmware, software and cabling.","Item",null,null,""]
[2313,31958,5,1,null,"","","4 Sets of as-built drawings, maintenance manuals and wiring diagrams.","Item",null,null,""]
[2314,31959,5,1,null,"","","Other items not included in the foregoing and required by the Contractor are to be listed and priced below.","Item",null,null,""]
[2315,31960,5,1,null,"","","Allowance to outsource 30% of the work to Local Contractors.","Item",null,null,""]
[2317,32711,5,2,null,"","","SECTION NO. 5","H1",null,null,""]
[2318,32712,5,2,null,"","","BILL NO. 2 GENERAL","H1",null,null,{"$f":"SUM(L1924:L1942)","v":0}]
[2319,32713,5,2,null,"","","GENERAL (PROVISIONAL) (CPAP WORK GROUP NO. 160 UNLESS OTHERWISE STATED)","H1",null,null,""]
[2320,32715,5,2,null,"31","","The Tenderer is referred to the relevant Clauses in the separate document General Preambles for Trades (2017)","",null,null,""]
[2321,32765,5,2,null,"","","GENERAL","H2",null,null,""]
[2322,32766,5,2,null,"","","System programming during 12 month guarantee period - for technician / programmer (ie. Post practical completion)","Hrs",{"v":40,"d":"40.00"},null,{"$f":"J1927*K1927","v":0}]
[2323,32767,5,2,null,"","","Client Training during 12 month guarantee period - for technician / programmer (ie. Post practical completion)","Hrs",{"v":10,"d":"10.00"},null,0]
[2324,32768,5,2,null,"","","Allowance to provide samples for Engineers / Architects /client approval","Item",{"v":1,"d":"1.00"},null,0]
[2325,32769,5,2,null,"","","Allowance for liason with various sub-contractors in regard to final installation requirements, equipment connection etc.","Item",{"v":1,"d":"1.00"},null,0]
[2326,32770,5,2,null,"","","Supervise / Liaise with builder during construction of cores, recesses and penetrations in concrete and brickwork to ensure they are formed in the correct positions","Item",{"v":1,"d":"1.00"},null,0]
[2327,32771,5,2,null,"","","General labeling of equipment and cables not covered elsewhere","Item",{"v":1,"d":"1.00"},null,0]
[2328,32772,5,2,null,"","","Allow for after hours (outside trading hours) work as required","Item",{"v":1,"d":"1.00"},null,0]
[2329,32773,5,2,null,"","","TESTING & COMMISSIONING","H2",null,null,""]
[2330,32774,5,2,null,"","","Testing, commissioning and documentation of complete installation.","Item",{"v":1,"d":"1.00"},null,{"$f":"J1935*K1935","v":0}]
[2331,32775,5,2,null,"","","Test complete installation in conjunction with the other services, viz., Electrical, air-conditioning security system, fire protection, domestic water pumps, lifts smoke extract fans etc. as specified","Item",{"v":1,"d":"1.00"},null,0]
[2332,32776,5,2,null,"","","HANDOVER","H2",null,null,""]
[2333,32777,5,2,null,"","","Provide As Built drawings, Operation and Maintenance Manuals and wiring diagrams (3 sets hardcopy, 1 electronic)","Item",{"v":1,"d":"1.00"},null,{"$f":"J1938*K1938","v":0}]
[2334,32778,5,2,null,"","","BUDGETARY ALLOWANCE","H2",null,null,""]
[2335,32779,5,2,null,"","","Budgetary allowance for X-RAY machines and metal detectors","Item",{"v":1,"d":"1.00"},null,{"$f":"J1940*K1940","v":0}]
[2336,32780,5,2,null,"","","EXISTING INSTALLATIONS","H2",null,null,""]
[2337,32781,5,2,null,"","","Strip out existing smoke detection and PA installation ","Item",{"v":1,"d":"1.00"},null,{"$f":"J1942*K1942","v":0}]
[2339,32912,5,3,null,"","","SECTION NO. 5","H1",null,null,""]
[2340,32913,5,3,null,"","","BILL NO. 3 SMOKE DETECTION AND ALARM","H1",null,null,{"$f":"SUM(L1945:L1986)","v":0}]
[2341,32914,5,3,null,"","","SMOKE DETECTION AND ALARM (PROVISIONAL) (CPAP WORK GROUP NO. 160 UNLESS OTHERWISE STATED)","H1",null,null,""]
[2342,32916,5,3,null,"31","","The Tenderer is referred to the relevant Clauses in the separate document General Preambles for Trades (2017)","",null,null,""]
[2343,32983,5,3,null,"","","SMOKE DETECTION AND ALARM","H2",null,null,""]
[2344,32984,5,3,null,"","","Supply, install, test and commission smoke detection and fire alarm system complete with all hardware, software, terminations, fixings etc.","H3",null,null,""]
[2345,32985,5,3,null,"","","Ziton zp2 or equal approved smoke detection system","H3",null,null,""]
[2346,32986,5,3,null,"","","CENTRAL EQUIPMENT","H2",null,null,""]
[2347,32987,5,3,null,"","","Addressable analogue fire panel complete with batteries  (4 - loop)","No",2,null,{"$f":"J1951*K1951","v":0}]
[2348,32988,5,3,null,"","","Additional Proprietory Comms Network cards for above panels","No",2,null,0]
[2349,32989,5,3,null,"","","Additional Internet Protocol (RJ45) communication cards for above panels","No",1,null,0]
[2350,32990,5,3,null,"","","Programming of fire panels as specified including graphics, to include all devices, zoning, loops and fire condition sequencing, based on 700 devices","Item",{"v":1,"d":"1.00"},null,0]
[2351,32991,5,3,null,"","","Allowance to upload Autocad (dwg) drawings as backgrounds for the graphic displays.  This includes \"cleaning up\" of the drawings ","No",10,null,0]
[2352,32992,5,3,null,"","","FIELD EQUIPMENT","H2",null,null,""]
[2353,32993,5,3,null,"","","Addressable optical detector complete with base on ceiling (white)","No",270,null,{"$f":"J1957*K1957","v":0}]
[2354,32994,5,3,null,"","","Addressable optical detector complete with base in ceiling void (white)","No",170,null,0]
[2355,32995,5,3,null,"","","Addressable heat detector complete with base on concrete soffit below 4 m (white)","No",45,null,0]
[2356,32996,5,3,null,"","","Addressable rate of rise heat detector complete with base mounted under raised floor","No",5,null,0]
[2357,32997,5,3,null,"","","Addressable combination smoke and thermal detector complete with base on ceiling (white)","No",2,null,0]
[2358,32998,5,3,null,"","","Addressable pre-set heat detector complete with base on ceiling","No",2,null,0]
[2359,32999,5,3,null,"","","Addressable line isolator","No",30,null,0]
[2360,33000,5,3,null,"","","Addressable line I/O relay complete in junction box","No",91,null,0]
[2361,33001,5,3,null,"","","Allowance to connect line relays to override access control mag locks on escape doors, air handling units, elevators, smoke extraction fans etc.","No",91,null,0]
[2362,33002,5,3,null,"","","Addressable surface mounted call point with resettable element (red)","No",36,null,0]
[2363,33003,5,3,null,"","","Addressable sounder base complete with cap ceiling (white)","No",20,null,0]
[2364,33004,5,3,null,"","","Addressable sounder with visual indicator complete with base on ceiling (white/red)","No",20,null,0]
[2365,33005,5,3,null,"","","Addressable sounder with visual indicator complete with base on concrete soffit (white/red)","No",1,null,0]
[2366,33006,5,3,null,"","","Door hold-open surface mount magnet complete with stainless steel wall mount universable adjustable brackets and emergency release button and door anchor plate (400 N)","No",4,null,0]
[2367,33007,5,3,null,"","","24 V AC/DC 250 mA power supply unit connected to main and door magnet located in ceiling void","No",4,null,0]
[2368,33008,5,3,null,"","","Addressable beam detector mounted at 12 000 m AFFL complete with reflector","No",1,null,0]
[2369,33009,5,3,null,"","","Beam detector/reflector bracket made of 300 mm long and 50 mm wide and 8 mm thick 304 stainless steel bar sheeting rails by means of clamps","No",1,null,0]
[2370,33011,5,3,null,"","","Budgetary allowance for stainless steel conduit box cover plates as per Architect's detail ","Item",{"v":1,"d":"1.00"},null,0]
[2371,33013,5,3,null,"","","FIRE INTERCOM SYSTEM (SUPPLY AND INSTALL)","H2",null,null,""]
[2372,33014,5,3,null,"","","Master Station installed at reception","No",1,null,{"$f":"J1976*K1976","v":0}]
[2373,33015,5,3,null,"","","2 hours fire rated phones installed in refuge area","No",12,null,0]
[2374,33016,5,3,null,"","","CABLING","H2",null,null,""]
[2375,33017,5,3,null,"","","Loop cable 1.5 mm² 2 core fire resistant (red) cable (PH 120)","m",150,null,{"$f":"J1979*K1979","v":0}]
[2376,33018,5,3,null,"","","Terminate the above cable ","No",20,null,0]
[2377,33019,5,3,null,"","","Loop cable 2.5 mm² 2 core fire resistant cable (PH 120)","m",4500,null,0]
[2378,33020,5,3,null,"","","Terminate the above cable","No",200,null,0]
[2379,33021,5,3,null,"","","Networking cable (fire resistant) Master Controller to sub controllers and remote display panels (PH 120)","m",250,null,0]
[2380,33022,5,3,null,"","","Terminate the above cable","No",5,null,0]
[2381,33023,5,3,null,"","","Connectors, adapters, power sockets, cables, consumables and other material to complete the installation as required.","Item",{"v":1,"d":"1.00"}]
[2382,33024,5,3,null,"","","System training with staff ","Item",{"v":1,"d":"1.00"},null,0]
[2384,33113,5,4,null,"","","SECTION NO. 5","H1",null,null,""]
[2385,33114,5,4,null,"","","BILL NO. 4 PUBLIC ADDRESS AND VOICE EVACUATION","H1",null,null,{"$f":"SUM(L1989:L2011)","v":0}]
[2386,33115,5,4,null,"","","PUBLIC ADDRESS AND VOICE EVACUATION (PROVISIONAL) (CPAP WORK GROUP NO. 160 UNLESS OTHERWISE STATED)","H1",null,null,""]
[2387,33117,5,4,null,"31","","The Tenderer is referred to the relevant Clauses in the separate document General Preambles for Trades (2017)","",null,null,""]
[2388,33226,5,4,null,"","","PUBLIC ADDRESS AND VOICE EVACUATION","H2",null,null,""]
[2389,33227,5,4,null,"","","Supply, install, test and commission Bosch Paviro (or equal and approved) public address and voice evacuation system complete with connectors, adapters, fixings, power sockets, cables, consumables and all material to complete the installation as required.","H3",null,null,""]
[2390,33228,5,4,null,"","","Control Room equipment, complete with power supplies and mounting equipment ","H3",null,null,""]
[2391,33229,5,4,null,"","","PVA-4CR12 controller (12 zone)","No",1,null,{"$f":"J1994*K1994","v":0}]
[2392,33230,5,4,null,"","","PVA-2P500 power amplifier (500W)","No",3,null,0]
[2393,33231,5,4,null,"","","PVA-4R24 Router (24 zone)","No",2,null,0]
[2394,33232,5,4,null,"","","PVA-15CST call station","No",2,null,0]
[2395,33233,5,4,null,"","","PLN-24CH12 power management / battery charger","No",1,null,0]
[2396,33234,5,4,null,"","","Batteries for complete system above","Item",{"v":1,"d":"1.00"},null,0]
[2397,33235,5,4,null,"","","Loudspeakers, complete with fixings for ceiling, soffit/structure or wall mounting, and terminations.","H3",null,null,""]
[2398,33236,5,4,null,"","","LC3-UC06E Ceiling Loudspeaker (6W).","No",85,null,{"$f":"J2001*K2001","v":0}]
[2399,33237,5,4,null,"","","LC3-CBB back box for above","No",85,null,0]
[2400,33238,5,4,null,"","","LC3-UC06E Box Loudspeaker (6W).","No",10,null,0]
[2401,33239,5,4,null,"","","LH1-10M10E Horn Loudspeaker (10W).","No",10,null,0]
[2402,33240,5,4,null,"","","Tuner BGM source - PLE-SDT","No",1,null,0]
[2403,33241,5,4,null,"","","Call station extension ","No",1,null,0]
[2404,33242,5,4,null,"","","Supply and installation of cable (red) on cable basket in ceiling void or drawn into conduit as specified, including all lables and terminations at both ends.","H3",null,null,""]
[2405,33243,5,4,null,"","","PH120 2 core, 2.5mm² stranded fire rated cable (red)","m",3815,null,{"$f":"J2008*K2008","v":0}]
[2406,33244,5,4,null,"","","Connectors, adapters, power sockets, cables, consumables and other material to complete the installation as required.","Item",{"v":1,"d":"1.00"},null,0]
[2407,33245,5,4,null,"","","Configure and document the complete system.","Item",{"v":1,"d":"1.00"},null,0]
[2408,33246,5,4,null,"","","2 way intercom system from Control room to Securty room at parking entrance  including 100m of wiring (Wireway by others)","Item",{"v":1,"d":"1.00"},null,0]
[2410,32309,5,5,null,"","","SECTION NO. 5","H1",null,null,""]
[2411,32310,5,5,null,"","","BILL NO. 5 CCTV","H1",null,null,{"$f":"SUM(L2014:L2032)","v":0}]
[2412,32311,5,5,null,"","","CCTV (PROVISIONAL) (CPAP WORK GROUP NO. 160 UNLESS OTHERWISE STATED)","H1",null,null,""]
[2413,32313,5,5,null,"31","","The Tenderer is referred to the relevant Clauses in the separate document General Preambles for Trades (2017)","",null,null,""]
[2414,32443,5,5,null,"","","CCTV","H2",null,null,""]
[2415,32444,5,5,null,"","","Supply, install, test and commission cctv system (HIK Vision or equal and approved) complete with all hardware, software, connectors, adapters, fixings, power supplier, cables, consumables and all materials to complete the installation:","H3",null,null,""]
[2416,32445,5,5,null,"","","Network Video Recorder (128 channel) - DS-96128NI-I24","No",1,null,{"$f":"J2018*K2018","v":0}]
[2417,32446,5,5,null,"","","8TB SATA 6Gb/s hard drive - WD4NPURX","No",8,null,0]
[2418,32447,5,5,null,"","","Video Management System Software and licences for 128 cameras ","No",1,null,0]
[2419,32448,5,5,null,"","","Video and audio decoder for up to 4 monitors - 6904UDI","No",1,null,0]
[2420,32449,5,5,null,"","","46'' control room monitor suitable for 24 hour, 7 days a week operation complete with universal wall brackets","No",4,null,0]
[2421,32450,5,5,null,"","","Desktop PC with i7 processor, 16GB RAM, 1TB SSD storage, 4TB SATA storage, GTX 1070 graphics card, 24'' monitor, wireless mouse and keyboard, complete with Windows 10 ect","No",2,null,0]
[2422,32451,5,5,null,"","","CAT 6 - HDMI to RJ45 and R45 to HDMI network extender converter","No",10,null,0]
[2423,32452,5,5,null,"","","Cameras complete with all mounting equipment etc.","H3",null,null,""]
[2424,32453,5,5,null,"","","Camera Type A - 4 MP PTZ - DS-2DE5225IW-AE","No",7,null,{"$f":"J2026*K2026","v":0}]
[2425,32454,5,5,null,"","","Camera Type B - 4 MP Bullet - DS-2CD2645FWD-IZS","No",5,null,0]
[2426,32455,5,5,null,"","","'Camera Type C - 4 MP surface dome - DS-2CD2754FWD-IZS","No",88,null,0]
[2427,32456,5,5,null,"","","Supply and installation of cable and wiring on cable  basket/trunking in ceiling void or drawn into conduit as  specified, including labels at both ends. Cabling from switch to field devices","H3",null,null,""]
[2428,32457,5,5,null,"","","Krone Category 6 UTP - Blue in colour","m",3558,null,{"$f":"J2030*K2030","v":0}]
[2429,32458,5,5,null,"","","Termination of Krone UTP CAT 6 onto patch panels","No",99,null,0]
[2430,32459,5,5,null,"","","Termination of Krone UTP CAT 6 onto RJ45 at camera end","No",99,null,0]
[2432,32510,5,6,null,"","","SECTION NO. 5","H1",null,null,""]
[2433,32511,5,6,null,"","","BILL NO. 6 IT NETWORK","H1",null,null,{"$f":"SUM(L2035:L2057)","v":0}]
[2434,32512,5,6,null,"","","IT NETWORK (PROVISIONAL) (CPAP WORK GROUP NO. 160 UNLESS OTHERWISE STATED)","H1",null,null,""]
[2435,32514,5,6,null,"31","","The Tenderer is referred to the relevant Clauses in the separate document General Preambles for Trades (2017)","",null,null,""]
[2436,32661,5,6,null,"","","IT NETWORK","H2",null,null,""]
[2437,32662,5,6,null,"","","Supply, install, test and commission CCTV IT Network complete with all hardware, software, connectors, adapters, fixings, power supplies, cables, consumables and all material to complete the installation as intended","H3",null,null,""]
[2438,32663,5,6,null,"","","19 inch 42 U  Cabinet - 1000mm deep -  painted mild steel floor standing cabinet with glass front door, steel rear door, rear ventilation, adjustable feet, bottom and top cable entry, fixed shelf, 12 No. 1U blanking panels, 9 No. 1U brush panels, 2 No. 10 way power adaptors, 2 No. vertical cable management trays, fan tray 'with 4 fans, ground bonding kit and door locks. ","No",6,null,{"$f":"J2039*K2039","v":0}]
[2439,32664,5,6,null,"","","Cisco Catalyst 9300 24 Port 10/100/1000 POE  Switch, 2 x SFP Gbps uplink ports. 56GBps","No",1,null,0]
[2440,32665,5,6,null,"","","24 Way modular (populated) UTP Cat 6 patch panel. Complete with mimic labels","No",6,null,0]
[2441,32666,5,6,null,"","","Universal 1U filler panels","No",20,null,0]
[2442,32667,5,6,null,"","","Universal 1U short base brush panel","No",15,null,0]
[2443,32668,5,6,null,"","","Krone Cat 6 UTP cable (Blue) jumpers up to 2m, complete with terminations both ends (RJ45 - RJ45)","No",220,null,0]
[2444,32669,5,6,null,"","","Fibre splice panel sliding tray (empty)","No",16,null,0]
[2445,32670,5,6,null,"","","Cisco IE 1000 10 Port 10/100/1000 POE  Switch, 2 x SFP Gbps uplink ports. 20 Gbps","No",2,null,0]
[2446,32671,5,6,null,"","","Aruba 2530 24G POE switch","No",12,null,0]
[2447,32672,5,6,null,"","","1Gig SM SFP (<500m)","No",28,null,0]
[2448,32673,5,6,null,"","","Rack mounted server with SQL database similar to Dell poweredge R430","No",1,null,0]
[2449,32674,5,6,null,"","","Supply and Install the following complete with terminations, fixings etc","H3",null,null,""]
[2450,32675,5,6,null,"","","Single mode Optic Fibre Communication Cable 9/125nm in-door installation type LSZH outer sheath, gel filled tubes, non metallic strength member 6 pair (12 core)","m",321,null,{"$f":"J2051*K2051","v":0}]
[2451,32676,5,6,null,"","","Single mode fibre termination - Per pair: Termination of fibres at both ends using LC connectors","No",42,null,0]
[2452,32677,5,6,null,"","","Single mode fibre splicing - Per pair: ","No",42,null,0]
[2453,32678,5,6,null,"","","Midcoupler module - LC DX 6 port - OM3 10 APPL","No",42,null,0]
[2454,32679,5,6,null,"","","Unjacked pigtails - Duplex LC - Single Mode","No",42,null,0]
[2455,32682,5,6,null,"","","OTDR Test & Certificate","SUM",1,null,0]
[2456,32683,5,6,null,"","","Label backbone cable (heat shrink lables on each end)","SUM",1,null,0]
[2458,32108,5,7,null,"","","SECTION NO. 5","H1",null,null,""]
[2459,32109,5,7,null,"","","BILL NO. 7 ACCESS CONTROL","H1",null,null,{"$f":"SUM(L2060:L2085)","v":0}]
[2460,32110,5,7,null,"","","ACCESS CONTROL (PROVISIONAL) (CPAP WORK GROUP NO. 160 UNLESS OTHERWISE STATED)","H1",null,null,""]
[2461,32112,5,7,null,"31","","The Tenderer is referred to the relevant Clauses in the separate document General Preambles for Trades (2017)","",null,null,""]
[2462,32282,5,7,null,"",""," ACCESS CONTROL ","H2",null,null,""]
[2463,32283,5,7,null,"","","Supply, install, test and commission Impro Access Portal Pro (or equal and approved) access control and intercom system complete with connectors, adapters, fixings, power sockets, cables, consumables and all material to complete required","H3",null,null,""]
[2464,32284,5,7,null,"","","Control room equipment complete with all power supplies and mounting equipment","H3",null,null,""]
[2465,32285,5,7,null,"","","Programming and enrolment station, PC (I7 processor,  8 Gb RAM 500 Gb SSD storage, Windows 10, Office and Acrobat) with  21\" monitor, mouse, keyboard etc. ","No",1,null,{"$f":"J2065*K2065","v":0}]
[2466,37148,5,7,null,"","","Setup and program access control software for 500 users and 57 No. doors (Impro Portal Pro Software)","Item",{"v":1,"d":"1.00"},null,0]
[2467,32289,5,7,null,"","","Door / cluster controller complete with all mounting equipment to be located in the IT Riser , inclusive of junction boxes","H3",null,null,""]
[2468,32290,5,7,null,"","","Cluster Controller with 4 No. Wiegand reader modules connected on the cluster bus, complete with battery backup power supply","No",15,null,{"$f":"J2068*K2068","v":0}]
[2469,32291,5,7,null,"","","Cluster Controller with 2 No. Wiegand reader modules connected on the cluster bus, complete with battery backup power supply ","No",10,null,0]
[2470,32292,5,7,null,"","","Wiegand reader module for use in IPS housing","No",15,null,0]
[2471,32293,5,7,null,"","","IDEMIA Vision Pass Facial Recognition Reader","No",73,null,0]
[2472,32294,5,7,null,"","","600kg surface mounted monitored maglock with LED ","No",59,null,0]
[2473,32295,5,7,null,"","","ZL bracket for  maglock","No",59,null,0]
[2474,32296,5,7,null,"","","No touch exit sensor","No",34,null,0]
[2475,32297,5,7,null,"","","Green breakglass unit (re-settable), connected to mag lock","No",59,null,0]
[2476,32298,5,7,null,"","","Supply and installation of cable and wiring on cable basket in ceiling void or drawn into conduit as specified, including all labels and terminations at both ends","H3",null,null,""]
[2477,32299,5,7,null,"","","Krone Category 6 UTP - green in colour","m",3554,null,{"$f":"J2077*K2077","v":0}]
[2478,32300,5,7,null,"","","Krone termination of UTP Cat 6","No",150,null,0]
[2479,32301,5,7,null,"","","8 Twisted pair PVC insulated mylar cable. 0.22mm² stranded tinned copper cores. Aluminium polyester shield and drain","m",2994,null,0]
[2480,32302,5,7,null,"","","Termination of above cable ","No",150,null,0]
[2481,32303,5,7,null,"","","2 Core PVC insulated cable. 1mm² stranded copper cores","m",504,null,0]
[2482,32304,5,7,null,"","","Termination of above cable ","No",45,null,0]
[2483,32305,5,7,null,"","","24V power supply complete complete with 2 hour battery back up","No",59,null,0]
[2484,32307,5,7,null,"","","Budgetary allowance for time and attendance software and setup","Item",{"v":1,"d":"1.00"},null,0]
[2485,37149,5,7,null,"","","Budgery allowance for custom mounting brackets at turnstiles","Item",{"v":1,"d":"1.00"},null,0]
[2494,33339,6,1,null,"","","SECTION NO. 6 : MECHANICAL INSTALLATION","H1",null,null,{"$f":"L2087+L2109+L3186","v":0}]
[2495,33340,6,1,null,"","","BILL NO. 1 PRELIMINARIES","H1",null,null,{"$f":"SUM(L2088:L2107)","v":0}]
[2496,36812,6,1,null,"1","","PRELIMINARIES (CPAP WORK GROUP NO. 190 UNLESS OTHERWISE STATED)","H1",null,null,""]
[2497,33342,6,1,null,"31","","The Tenderer is referred to the relevant Clauses in the separate document General Preambles for Trades (2017)","",null,null,""]
[2498,33359,6,1,null,"","","PRELIMINARIES","H2",null,null,""]
[2499,33368,6,1,null,"","","The costs for the following items shall not be included in the cost rates for work listed in the rest of the Bill of Quantities.","",null,null,""]
[2500,33369,6,1,null,"","","Contractual requirements as specified, i.e. guarantees, insurance, sureties, company's overheads administration etc","Item",{"v":1,"d":"1.00"},null,{"$f":"J2092*K2092","v":0}]
[2501,33370,6,1,null,"","","Contract engineer, administration, supervision, programming and management","Item",{"v":1,"d":"1.00"},null,0]
[2502,33371,6,1,null,"","","Establish site accommodation, storage etc","Item",{"v":1,"d":"1.00"},null,0]
[2503,33372,6,1,null,"","","Maintain and operate site establishment","Item",{"v":1,"d":"1.00"},null,0]
[2504,33373,6,1,null,"","","Remove site establishment on completion and remove all rubbish, foundations, concrete bases, dirt oil spillage, etc., and leave site in condition as found","Item",{"v":1,"d":"1.00"},null,0]
[2505,33374,6,1,null,"","","Tools, equipment, plant hire and testing gear/meters as necessary","Item",{"v":1,"d":"1.00"},null,0]
[2506,33375,6,1,null,"","","Maintenance and guarantee of the complete installation for a period of twelve months from date of completion and handover","Item",{"v":1,"d":"1.00"},null,0]
[2507,33376,6,1,null,"","","Certificate to be issued on completion of the project in addition to detailed testing as specified - electrical compliances etc","Item",{"v":1,"d":"1.00"},null,0]
[2508,33377,6,1,null,"","","Shop drawings","Item",{"v":1,"d":"1.00"},null,0]
[2509,33378,6,1,null,"","","4 Sets of as-built drawings and manuals","Item",{"v":1,"d":"1.00"},null,0]
[2510,33379,6,1,null,"","","Compliance with the OHS Act","Item",{"v":1,"d":"1.00"},null,0]
[2511,33380,6,1,null,"","","Craneage and rigging equipment to put ac plant in place - including roof","Item",{"v":1,"d":"1.00"},null,0]
[2512,36813,6,1,null,"","","Budgetary Allowance","Item",{"v":1,"d":"1.00"},null,0]
[2513,36817,6,1,null,"","","Removal of all ducting, diffusers and controls on all levels","SUM",1,null,0]
[2514,36818,6,1,null,"","","Removal of all AC Equipment and piping on all floors including roof","SUM",1,null,0]
[2515,33387,6,1,null,"","","Other items not included in the foregoing and required by the Contractor are to be listed and priced below","Item",{"v":1,"d":"1.00"}]
[2517,35655,6,2,null,"","","SECTION NO. 6","H1",null,null,""]
[2518,35656,6,2,null,"","","BILL NO. 2 AIR CONDITIONING AND VENTILATION","H1",null,null,{"$f":"SUM(L2110:L3184)","v":0}]
[2519,35657,6,2,null,"","","AIR CONDITIONING AND VENTILATION INSTALLATION (PROVISIONAL) (CPAP WORK GROUP NO. 170 UNLESS OTHERWISE STATED)","H1",null,null,""]
[2520,35658,6,2,null,"31","","The Tenderer is referred to the relevant Clauses in the separate document General Preambles for Trades (2017)","",null,null,""]
[2521,35674,6,2,null,"","","AIR CONDITIONING AND VENTILATION INSTALLATION","H2",null,null,""]
[2522,35705,6,2,null,"","","CHILLED WATER PIPING","H2",null,null,""]
[2523,35706,6,2,null,"","","Piping including all valves & fittings etc. as per specification. Connections to units including control valves, valves fittings, etc.","H3",null,null,""]
[2524,35707,6,2,null,"","","ø200 Pipe","m",{"v":44,"d":"44.00"},null,{"$f":"J2115*K2115","v":0}]
[2525,35708,6,2,null,"","","ø200 Flanges (blank)","No",4,null,0]
[2526,35709,6,2,null,"","","ø200 Flanges","No",20,null,0]
[2527,35710,6,2,null,"","","ø200 Equal Tees","No",11,null,0]
[2528,35711,6,2,null,"","","ø200 90deg Elbows","No",14,null,0]
[2529,35712,6,2,null,"","","ø200 - ø100 Reducers","No",2,null,0]
[2530,35713,6,2,null,"","","ø200 - ø125 Reducers","No",10,null,0]
[2531,35714,6,2,null,"","","ø125 Pipe","m",115,null,0]
[2532,35715,6,2,null,"","","ø125 Flanges","No",40,null,0]
[2533,35716,6,2,null,"","","ø125 Equal Tees","No",8,null,0]
[2534,35717,6,2,null,"","","ø125 90deg Elbows","No",22,null,0]
[2535,35718,6,2,null,"","","ø125 - ø100 Reducers","No",4,null,0]
[2536,35719,6,2,null,"","","ø100 Pipe","m",48,null,0]
[2537,35720,6,2,null,"","","ø100 Flanges","No",8,null,0]
[2538,35721,6,2,null,"","","ø100 90deg Elbows","No",2,null,0]
[2539,35722,6,2,null,"","","ø100 - ø80 Reducers","No",4,null,0]
[2540,35723,6,2,null,"","","ø80 Piping","m",36,null,0]
[2541,35724,6,2,null,"","","ø80 Equal Tees","No",4,null,0]
[2542,35725,6,2,null,"","","ø80 90deg Elbows","No",8,null,0]
[2543,35726,6,2,null,"","","ø80 - ø65 Reducers","No",8,null,0]
[2544,35727,6,2,null,"","","ø65 Piping","m",170,null,0]
[2545,35728,6,2,null,"","","ø65 90deg Elbows","No",90,null,0]
[2546,35729,6,2,null,"","","ø200 Butterfly Shut-off Valves","No",4,null,0]
[2547,35730,6,2,null,"","","ø200 Strainers with ø 32 drain","No",1,null,0]
[2548,35731,6,2,null,"","","ø200 Flexible Coupling","No",2,null,0]
[2549,35732,6,2,null,"","","ø125 Butterfly Shut-off Valves","No",6,null,0]
[2550,35733,6,2,null,"","","ø125 Non- Return Valves","No",3,null,0]
[2551,35734,6,2,null,"","","ø125 Strainers with ø 32 drain","No",3,null,0]
[2552,35735,6,2,null,"","","ø125 Flexible Coupling","No",6,null,0]
[2553,35736,6,2,null,"","","ø100 Flow Control Meter","No",1,null,0]
[2554,35737,6,2,null,"","","ø100 Butterfly Shut-off Valves","No",2,null,0]
[2555,35738,6,2,null,"","","ø80 Shut-off Valves","No",2,null,0]
[2556,35739,6,2,null,"","","ø65 Shut-off Valves","No",20,null,0]
[2557,35740,6,2,null,"","","ø20 Drain Valves","No",24,null,0]
[2558,35741,6,2,null,"","","ø15 BMS Test Point","No",1,null,0]
[2559,35742,6,2,null,"","","ø10 Binder Test Point","No",54,null,0]
[2560,35743,6,2,null,"","","Pressure Gauge with shut off valve","No",6,null,0]
[2561,35744,6,2,null,"","","ø40 Galv Drain Piping","No",4,null,0]
[2562,35745,6,2,null,"","","Flowcon Valve _ 4,75 l/s","No",1,null,0]
[2563,35746,6,2,null,"","","Flowcon Valve _ 3,45 l/s","No",10,null,0]
[2564,35747,6,2,null,"","","Two Way Control Valve _ 4,75 l/s","No",1,null,0]
[2565,35748,6,2,null,"","","Two Way Control Valve _ 3,45 l/s","No",10,null,0]
[2566,35749,6,2,null,"","","Feed and Expansion Tank c/w Shut-off valves","Item",{"v":1,"d":"1.00"},null,0]
[2567,35750,6,2,null,"","","Buffer Tank - Complete ","No",1,null,0]
[2568,35751,6,2,null,"","","CHILLED WATER PIPE INSULATION as per specification","H2",null,null,""]
[2569,35752,6,2,null,"","","ø200 Pipe","m",44,null,{"$f":"J2160*K2160","v":0}]
[2570,35753,6,2,null,"","","ø200 Flanges (blank)","No",4,null,0]
[2571,35754,6,2,null,"","","ø200 Flanges","No",20,null,0]
[2572,35755,6,2,null,"","","ø200 Equal Tees","No",11,null,0]
[2573,35756,6,2,null,"","","ø200 90deg Elbows","No",12,null,0]
[2574,35757,6,2,null,"","","ø200 - ø100 Reducers","No",2,null,0]
[2575,35758,6,2,null,"","","ø200 - ø125 Reducers","No",10,null,0]
[2576,35759,6,2,null,"","","ø125 Pipe","m",115,null,0]
[2577,35760,6,2,null,"","","ø125 Flanges","No",40,null,0]
[2578,35761,6,2,null,"","","ø125 Equal Tees","No",8,null,0]
[2579,35762,6,2,null,"","","ø125 90deg Elbows","No",22,null,0]
[2580,35763,6,2,null,"","","ø125 - ø100 Reducers","No",4,null,0]
[2581,35764,6,2,null,"","","ø100 Pipe","m",48,null,0]
[2582,35765,6,2,null,"","","ø100 Flanges","No",8,null,0]
[2583,35766,6,2,null,"","","ø100 90deg Elbows","No",2,null,0]
[2584,35767,6,2,null,"","","ø100 - ø80 Reducers","No",4,null,0]
[2585,35768,6,2,null,"","","ø80 Piping","m",36,null,0]
[2586,35769,6,2,null,"","","ø80 Equal Tees","No",4,null,0]
[2587,35770,6,2,null,"","","ø80 90deg Elbows","No",8,null,0]
[2588,35771,6,2,null,"","","ø80 - ø65 Reducers","No",8,null,0]
[2589,35772,6,2,null,"","","ø65 Piping","m",170,null,0]
[2590,35773,6,2,null,"","","ø65 90deg Elbows","No",90,null,0]
[2591,35774,6,2,null,"","","ø200 Butterfly Shut-off Valves","No",4,null,0]
[2592,35775,6,2,null,"","","ø200 Strainers with ø 32 drain","No",1,null,0]
[2593,35776,6,2,null,"","","ø200 Flexible Coupling","No",2,null,0]
[2594,35777,6,2,null,"","","ø125 Butterfly Shut-off Valves","No",6,null,0]
[2595,35778,6,2,null,"","","ø125 Non- Return Valves","No",3,null,0]
[2596,35779,6,2,null,"","","ø125 Strainers with ø 32 drain","No",3,null,0]
[2597,35780,6,2,null,"","","ø125 Flexible Coupling","No",6,null,0]
[2598,35781,6,2,null,"","","ø100 Flow Control Meter","No",1,null,0]
[2599,35782,6,2,null,"","","ø100 Butterfly Shut-off Valves","No",2,null,0]
[2600,35783,6,2,null,"","","ø80 Shut-off Valves","No",2,null,0]
[2601,35784,6,2,null,"","","ø65 Shut-off Valves","No",20,null,0]
[2602,35785,6,2,null,"","","ø20 Drain Valves","m",24,null,0]
[2603,35786,6,2,null,"","","ø15 BMS Test Point","No",1,null,0]
[2604,35787,6,2,null,"","","ø10 Binder Test Point","No",54,null,0]
[2605,35788,6,2,null,"","","Pressure Gauge with shut off valve","No",6,null,0]
[2606,35789,6,2,null,"","","Flowcon Valve _ 4,75 l/s","No",1,null,0]
[2607,35790,6,2,null,"","","Flowcon Valve _ 3,45 l/s","No",10,null,0]
[2608,35791,6,2,null,"","","Two Way Control Valve _ 4,75 l/s","No",1,null,0]
[2609,35792,6,2,null,"","","Two Way Control Valve _ 3,45 l/s","No",10,null,0]
[2610,35793,6,2,null,"","","Buffer Tank","No",1,null,0]
[2611,35795,6,2,null,"","","HOT WATER PIPING","H2",null,null,""]
[2612,35796,6,2,null,"","","Piping excluding all valves & fittings etc. as per specification. Connections to Units including control valves, valves fittings, etc.","H3",null,null,""]
[2613,35797,6,2,null,"","","ø150 Pipe","m",44,null,{"$f":"J2204*K2204","v":0}]
[2614,35798,6,2,null,"","","ø150 90deg Elbows","No",14,null,0]
[2615,35799,6,2,null,"","","ø150 Equal Tees","No",10,null,0]
[2616,35800,6,2,null,"","","ø150 Flanges","No",20,null,0]
[2617,35801,6,2,null,"","","ø150 Flanges (blank)","No",2,null,0]
[2618,35802,6,2,null,"","","ø150 - ø125 Reducers","No",8,null,0]
[2619,35803,6,2,null,"","","ø150 - ø100 Reducers","No",4,null,0]
[2620,35804,6,2,null,"","","ø125 Pipe","m",74,null,0]
[2621,35805,6,2,null,"","","ø125 90deg Elbows","No",10,null,0]
[2622,35806,6,2,null,"","","ø125 Flanges","No",44,null,0]
[2623,35807,6,2,null,"","","ø125 - ø100 Reducers","No",2,null,0]
[2624,35808,6,2,null,"","","ø100 Pipe","m",72,null,0]
[2625,35809,6,2,null,"","","ø100 90deg Elbows","No",12,null,0]
[2626,35810,6,2,null,"","","ø100 Equal Tees","No",8,null,0]
[2627,35811,6,2,null,"","","ø100 - ø80 Reducers","No",4,null,0]
[2628,35812,6,2,null,"","","ø80 Piping","m",36,null,0]
[2629,35813,6,2,null,"","","ø80 - ø65 Reducers","No",2,null,0]
[2630,35814,6,2,null,"","","ø80 - ø50 Reducers","No",2,null,0]
[2631,35815,6,2,null,"","","ø65 Piping","No",24,null,0]
[2632,35816,6,2,null,"","","ø65 90deg Elbows","m",8,null,0]
[2633,35817,6,2,null,"","","ø50 Piping","No",160,null,0]
[2634,35818,6,2,null,"","","ø50 90deg Elbows","No",86,null,0]
[2635,35819,6,2,null,"","","ø150 Butterfly Shut-off Valves","No",4,null,0]
[2636,35820,6,2,null,"","","ø150 Strainers with ø 32 drain","No",1,null,0]
[2637,35821,6,2,null,"","","ø150 Flexible Coupling","No",2,null,0]
[2638,35822,6,2,null,"","","ø125 Butterfly Shut-off Valves","No",6,null,0]
[2639,35823,6,2,null,"","","ø125 Non-Return Valves","No",3,null,0]
[2640,35824,6,2,null,"","","ø125 Strainers with ø 32 drain","No",3,null,0]
[2641,35825,6,2,null,"","","ø125 Flexible Coupling","No",6,null,0]
[2642,35826,6,2,null,"","","ø100 Flow Control Meter","No",1,null,0]
[2643,35827,6,2,null,"","","ø100 Butterfly Shut-off Valves","No",2,null,0]
[2644,35828,6,2,null,"","","ø65 Shut-off Valves","No",2,null,0]
[2645,35829,6,2,null,"","","ø50 Shut-off Valves","No",20,null,0]
[2646,35830,6,2,null,"","","ø20 Drain Valves","No",24,null,0]
[2647,35831,6,2,null,"","","ø15 BMS Test Point","No",1,null,0]
[2648,35832,6,2,null,"","","ø10 Binder Test Point","No",52,null,0]
[2649,35833,6,2,null,"","","Pressure Gauge with shut off valve","No",6,null,0]
[2650,35834,6,2,null,"","","ø40 Galv Drain Piping","No",4,null,0]
[2651,35835,6,2,null,"","","Flowcon Valve _ 3,86 l/s","No",1,null,0]
[2652,35836,6,2,null,"","","Flowcon Valve _ 2,89 l/s","No",10,null,0]
[2653,35837,6,2,null,"","","Two Way Control Valve _ 3.86 l/s","No",1,null,0]
[2654,35838,6,2,null,"","","Two Way Control Valve _ 2,89 l/s","No",10,null,0]
[2655,35839,6,2,null,"","","Feed and Expansion Tank c/w Shut-off valves","Item",{"v":1,"d":"1.00"},null,0]
[2656,35840,6,2,null,"","","Buffer Tank - complete","Item",{"v":1,"d":"1.00"},null,0]
[2657,35842,6,2,null,"","","Budgetary Allowance","Item",{"v":1,"d":"1.00"},null,0]
[2658,35843,6,2,null,"","","HOT WATER PIPE INSULATION as per specification","H2",null,null,""]
[2659,35844,6,2,null,"","","ø150 Pipe","m",44,null,{"$f":"J2250*K2250","v":0}]
[2660,35845,6,2,null,"","","ø150 90deg Elbows","No",14,null,0]
[2661,35846,6,2,null,"","","ø150 Equal Tees","No",10,null,0]
[2662,35847,6,2,null,"","","ø150 Flanges","No",20,null,0]
[2663,35848,6,2,null,"","","ø150 Flanges (blank)","No",2,null,0]
[2664,35849,6,2,null,"","","ø150 - ø125 Reducers","No",8,null,0]
[2665,35850,6,2,null,"","","ø150 - ø100 Reducers","No",4,null,0]
[2666,35851,6,2,null,"","","ø125 Pipe","m",74,null,0]
[2667,35852,6,2,null,"","","ø125 90deg Elbows","No",10,null,0]
[2668,35853,6,2,null,"","","ø125 Flanges","No",44,null,0]
[2669,35854,6,2,null,"","","ø125 - ø100 Reducers","No",2,null,0]
[2670,35855,6,2,null,"","","ø100 Pipe","m",72,null,0]
[2671,35856,6,2,null,"","","ø100 90deg Elbows","No",12,null,0]
[2672,35857,6,2,null,"","","ø100 Equal Tees","No",8,null,0]
[2673,35858,6,2,null,"","","ø100 - ø80 Reducers","No",4,null,0]
[2674,35859,6,2,null,"","","ø80 Piping","m",36,null,0]
[2675,35860,6,2,null,"","","ø80 - ø65 Reducers","No",2,null,0]
[2676,35861,6,2,null,"","","ø80 - ø50 Reducers","No",2,null,0]
[2677,35862,6,2,null,"","","ø65 Piping","No",24,null,0]
[2678,35863,6,2,null,"","","ø65 90deg Elbows","m",8,null,0]
[2679,35864,6,2,null,"","","ø50 Piping","No",160,null,0]
[2680,35865,6,2,null,"","","ø50 90deg Elbows","No",86,null,0]
[2681,35866,6,2,null,"","","ø150 Butterfly Shut-off Valves","No",4,null,0]
[2682,35867,6,2,null,"","","ø150 Strainers with ø 32 drain","No",1,null,0]
[2683,35868,6,2,null,"","","ø150 Flexible Coupling","No",2,null,0]
[2684,35869,6,2,null,"","","ø125 Butterfly Shut-off Valves","No",6,null,0]
[2685,35870,6,2,null,"","","ø125 Non- Return Valves","No",3,null,0]
[2686,35871,6,2,null,"","","ø125 Strainers with ø 32 drain","No",3,null,0]
[2687,35872,6,2,null,"","","ø125 Flexible Coupling","No",6,null,0]
[2688,35873,6,2,null,"","","ø100 Flow Control Meter","No",1,null,0]
[2689,35874,6,2,null,"","","ø100 Butterfly Shut-off Valves","No",2,null,0]
[2690,35875,6,2,null,"","","ø65 Shut-off Valves","No",2,null,0]
[2691,35876,6,2,null,"","","ø50 Shut-off Valves","No",20,null,0]
[2692,35877,6,2,null,"","","ø20 Drain Valves","No",24,null,0]
[2693,35878,6,2,null,"","","ø15 BMS Test Point","No",1,null,0]
[2694,35879,6,2,null,"","","ø10 Binder Test Point","No",52,null,0]
[2695,35880,6,2,null,"","","Pressure Gauge with shut off valve","No",6,null,0]
[2696,35881,6,2,null,"","","Flowcon Valve _ 3,86 l/s","No",1,null,0]
[2697,35882,6,2,null,"","","Flowcon Valve _ 2,89 l/s","No",10,null,0]
[2698,35883,6,2,null,"","","Two Way Control Valve _ 3.86 l/s","No",1,null,0]
[2699,35884,6,2,null,"","","Two Way Control Valve _ 2,89 l/s","No",10,null,0]
[2700,35885,6,2,null,"","","Buffer Tank - complete","Item",{"v":1,"d":"1.00"},null,0]
[2701,35887,6,2,null,"","","CHILLED AND HEATING WATER GENERATION PLANT","H2",null,null,""]
[2702,35888,6,2,null,"","","CHILLERS","H2",null,null,""]
[2703,35889,6,2,null,"","","Air cooled complete with building primary pumps, etc., including anti-vibration mountings, plinth formers, etc.","H3",null,null,""]
[2704,35890,6,2,null,"","","CWG 1 (Energy Raiser)","No",1,null,{"$f":"J2295*K2295","v":0}]
[2705,35891,6,2,null,"","","PUMPS","H2",null,null,""]
[2706,35892,6,2,null,"","","Secondary chilled/heating water circulating pumps complete with coupling, seals,mountings, etc., as per the specification (drains elsewhere measured) complete with premium efficiency motors, anti-vibration mounts and plinth formers","H3",null,null,""]
[2707,35893,6,2,null,"","","SCHWP 1 Secondary Chilled Water","No",1,null,{"$f":"J2298*K2298","v":0}]
[2708,35894,6,2,null,"","","SCHWP 2 Secondary Chilled Water","No",1,null,0]
[2709,35895,6,2,null,"","","SCHWP 3 Secondary Chilled Water","No",1,null,0]
[2710,35896,6,2,null,"","","SHWP 1 Heating Water","No",1,null,0]
[2711,35897,6,2,null,"","","SHWP 2 Heating Water","No",1,null,0]
[2712,35898,6,2,null,"","","SHWP 3 Heating Water","No",1,null,0]
[2713,35900,6,2,null,"","","Budgetary Allowance","Item",{"v":1,"d":"1.00"},null,0]
[2714,35901,6,2,null,"","","Lower Ground Floor Drawing No. M-1000:","",null,null,""]
[2715,35902,6,2,null,"","","SYSTEM - EAF - 15 (Basement extract)","H2",null,null,""]
[2716,35903,6,2,null,"","","Fan system - EAF - 15 duty: 8,00m3/s","H3",null,null,""]
[2717,35904,6,2,null,"","","Fan","No",1,null,{"$f":"J2308*K2308","v":0}]
[2718,35905,6,2,null,"","","Attenuators","No",1,null,0]
[2719,35906,6,2,null,"","","Supports","Sets",{"v":1,"d":"1.0"},null,0]
[2720,35907,6,2,null,"","","AVM's","Sets",{"v":1,"d":"1.0"},null,0]
[2721,35908,6,2,null,"","","Flexible Canvas Collars","Sets",{"v":1,"d":"1.0"},null,0]
[2722,35909,6,2,null,"","","SYSTEM - EAF - 16 (Transformer and LV Room Extract)","H2",null,null,""]
[2723,35910,6,2,null,"","","Fan system - EAF - 16 duty: 1,6m3/s","H3",null,null,""]
[2724,35911,6,2,null,"","","Fan","No",1,null,{"$f":"J2315*K2315","v":0}]
[2725,35912,6,2,null,"","","Attenuators","No",2,null,0]
[2726,35913,6,2,null,"","","Supports","Sets",{"v":1,"d":"1.0"},null,0]
[2727,35914,6,2,null,"","","AVM's","Sets",{"v":1,"d":"1.0"},null,0]
[2728,35915,6,2,null,"","","Flexible Canvas Collars","Sets",{"v":1,"d":"1.0"},null,0]
[2729,35916,6,2,null,"","","Exhaust Cowl ","No",1,null,0]
[2730,35917,6,2,null,"","","CIRCULAR DUCTING","H2",null,null,""]
[2731,35918,6,2,null,"","","Dia 500","m",1,null,{"$f":"J2322*K2322","v":0}]
[2732,35919,6,2,null,"","","Dia 450","m",8,null,0]
[2733,35920,6,2,null,"","","CIRCULAR SPIGOTS","H2",null,null,""]
[2734,35921,6,2,null,"","","Dia 450","No",2,null,{"$f":"J2325*K2325","v":0}]
[2735,35922,6,2,null,"","","EXHAUST AIR GRILLES - FIXED BLADE with OBD","H2",null,null,""]
[2736,35923,6,2,null,"","","700 x 300","No",4,null,{"$f":"J2327*K2327","v":0}]
[2737,35924,6,2,null,"","","EXTRACT AIR WEATHER LOUVRES","H2",null,null,""]
[2738,35925,6,2,null,"","","800 x 800","No",1,null,{"$f":"J2329*K2329","v":0}]
[2739,35926,6,2,null,"","","FAN SYSTEM - EAF - 17 DUTY: 0,0150m3/s","H2",null,null,""]
[2740,35927,6,2,null,"","","Fan ","No",1,null,{"$f":"J2331*K2331","v":0}]
[2741,35928,6,2,null,"","","FAN SYSTEM - EAF - 18 DUTY: 0,82m3/s","H2",null,null,""]
[2742,35929,6,2,null,"","","Fan","No",1,null,{"$f":"J2333*K2333","v":0}]
[2743,35930,6,2,null,"","","SPLIT AIR CONDITIONING UNITS","H2",null,null,""]
[2744,35931,6,2,null,"","","MWSU.13 & 14 - Lower Ground Floor UPS Room","H3",null,null,""]
[2745,35932,6,2,null,"","","Wall Mounted inverter unit - 7 kW","No",2,null,{"$f":"J2336*K2336","v":0}]
[2746,35933,6,2,null,"","","Insulated drip tray","No",2,null,0]
[2747,35934,6,2,null,"","","Refrig. Piping - including insulation and cable tray support","m",6,null,0]
[2748,35935,6,2,null,"","","Drain Piping","Sets",{"v":2,"d":"2.0"},null,0]
[2749,37079,6,2,null,"","","CWU-01 - Lower Ground Floor Security Green Room","H3",null,null,""]
[2750,37080,6,2,null,"","","Through wall console unit c/w aluminium external louvers - 4.1kw","No",1,null,{"$f":"J2341*K2341","v":0}]
[2751,37081,6,2,null,"","","CDU.01  - Lower Ground Floor Security Lobby","H3",null,null,""]
[2752,37082,6,2,null,"","","In-inceiling Ducted inverter unit - 10 kW, c/w hardwired controller","No",1,null,{"$f":"J2343*K2343","v":0}]
[2753,37083,6,2,null,"","","Refrig. Piping - including insulation and cable tray support / trunking","m",12,null,0]
[2754,37084,6,2,null,"","","Drain Piping","Sets",{"v":1,"d":"1.0"},null,0]
[2755,37085,6,2,null,"","","CIRCULAR DUCTING","H2",null,null,""]
[2756,37086,6,2,null,"","","Dia 200","m",3,null,{"$f":"J2347*K2347","v":0}]
[2757,37087,6,2,null,"","","CIRCULAR 90° BENDS","H2",null,null,""]
[2758,37088,6,2,null,"","","Dia 200","No",1,null,{"$f":"J2349*K2349","v":0}]
[2759,37089,6,2,null,"","","CIRCULAR SPIGOTS","H2",null,null,""]
[2760,37090,6,2,null,"","","Dia 200","No",6,null,{"$f":"J2351*K2351","v":0}]
[2761,37091,6,2,null,"","","RECTANGULAR DUCTING","H2",null,null,""]
[2762,37092,6,2,null,"","","Complete with hangers, clamps etc","H3",null,null,""]
[2763,37093,6,2,null,"","","0.60mm sheetmetal","m2",15,null,{"$f":"J2354*K2354","v":0}]
[2764,37094,6,2,null,"","","RECTANGULAR DUCT FITTINGS","H2",null,null,""]
[2765,37095,6,2,null,"","","Complete with hangers, clamps etc","H3",null,null,""]
[2766,37096,6,2,null,"","","0.60mm sheetmetal","No",3,null,{"$f":"J2357*K2357","v":0}]
[2767,37097,6,2,null,"","","DUCT INSULATION","H2",null,null,""]
[2768,37098,6,2,null,"","","FRK 25mm thick","m2",16,null,{"$f":"J2359*K2359","v":0}]
[2769,37099,6,2,null,"","","595 x 595 DCV DIFFUSERS","H2",null,null,""]
[2770,37100,6,2,null,"","","Dia 200","No",3,null,{"$f":"J2361*K2361","v":0}]
[2771,37101,6,2,null,"","","INSULATED FLEXIBLE DUCTING 1.5 M LONG COMPLETE WITH JUBILEE CLAMPS","H2",null,null,""]
[2772,37102,6,2,null,"","","Dia 200","No",5,null,{"$f":"J2363*K2363","v":0}]
[2773,37103,6,2,null,"","","R/A GRILLES - FIXED BLADE","H2",null,null,""]
[2774,37104,6,2,null,"","","600 x 600 c/w plenum and 200 dia spigot","No",2,null,{"$f":"J2365*K2365","v":0}]
[2775,37105,6,2,null,"","","Balancing  Dampers","H3",null,null,""]
[2776,37106,6,2,null,"","","200 Dia","No",1,null,{"$f":"J2367*K2367","v":0}]
[2777,37107,6,2,null,"","","Filters","H3",null,null,""]
[2778,37108,6,2,null,"","","Removable slide type filter - 300 x 250 x 100 thick","No",1,null,{"$f":"J2369*K2369","v":0}]
[2779,37109,6,2,null,"","","F/A GRILLES - FIXED BLADE","H2",null,null,""]
[2780,37110,6,2,null,"","","300 x 250 fresh air grille","No",1,null,{"$f":"J2371*K2371","v":0}]
[2781,35937,6,2,null,"","","Budgetary Allowance","Item",{"v":1,"d":"1.00"},null,0]
[2782,35938,6,2,null,"","","Ground Floor Drawing No. M-1001:","",null,null,""]
[2783,35939,6,2,null,"","","SYSTEM - AHU-1 - TOTAL COOLING 120kw, 6000 l/s","H2",null,null,""]
[2784,35940,6,2,null,"","","Chilled Water Unit complete with fan, coil, filters, etc. - to be assembled on site in plantroom","No",1,null,{"$f":"J2375*K2375","v":0}]
[2785,35941,6,2,null,"","","Sheetmetal Plinthformer","No",1,null,0]
[2786,37111,6,2,null,"","","Tico Pads","Sets",{"v":1,"d":"1.0"},null,0]
[2787,37112,6,2,null,"","","Drain Piping","Sets",{"v":1,"d":"1.0"},null,0]
[2788,35944,6,2,null,"","","SOUND ATTENUATORS","H2",null,null,""]
[2789,35945,6,2,null,"","","Complete as per specification","H3",null,null,""]
[2790,35946,6,2,null,"","","Supply Air 1500 W x 500 D x 1200 L","No",1,null,{"$f":"J2381*K2381","v":0}]
[2791,35948,6,2,null,"","","Return Air 1500 W x 500 D x 1200 L","No",1,null,0]
[2792,35949,6,2,null,"","","CIRCULAR DUCTING","H2",null,null,""]
[2793,35950,6,2,null,"","","Dia 250","m",11,null,{"$f":"J2384*K2384","v":0}]
[2794,35951,6,2,null,"","","CIRCULAR 90° BENDS","H2",null,null,""]
[2795,35952,6,2,null,"","","Dia 250","No",4,null,{"$f":"J2386*K2386","v":0}]
[2796,35953,6,2,null,"","","CIRCULAR SPIGOTS","H2",null,null,""]
[2797,35954,6,2,null,"","","Dia 250","No",35,null,{"$f":"J2388*K2388","v":0}]
[2798,35955,6,2,null,"","","RECTANGULAR DUCTING","H2",null,null,""]
[2799,35956,6,2,null,"","","Complete with hangers, clamps etc","H3",null,null,""]
[2800,35957,6,2,null,"","","1.00mm sheetmetal","m2",60,null,{"$f":"J2391*K2391","v":0}]
[2801,35958,6,2,null,"","","0.80mm sheetmetal","m2",32,null,0]
[2802,35959,6,2,null,"","","0.60mm sheetmetal","m2",201,null,0]
[2803,35960,6,2,null,"","","RECTANGULAR DUCT FITTINGS","H2",null,null,""]
[2804,35961,6,2,null,"","","Complete with hangers, clamps etc","H3",null,null,""]
[2805,35962,6,2,null,"","","1.00mm sheetmetal","No",6,null,{"$f":"J2396*K2396","v":0}]
[2806,35963,6,2,null,"","","0.80mm sheetmetal","No",2,null,0]
[2807,35964,6,2,null,"","","0.60mm sheetmetal","No",15,null,0]
[2808,35965,6,2,null,"","","DUCT INSULATION","H2",null,null,""]
[2809,35966,6,2,null,"","","FRK 25mm thick","m2",293,null,{"$f":"J2400*K2400","v":0}]
[2810,35967,6,2,null,"","","595 x 595 DCV DIFFUSERS","H2",null,null,""]
[2811,35968,6,2,null,"","","Dia 250","No",7,null,{"$f":"J2402*K2402","v":0}]
[2812,35969,6,2,null,"","","595 x 595 DVV DIFFUSERS  c/w 1kW REHEATERS","H2",null,null,""]
[2813,35970,6,2,null,"","","Dia 250 Master c/w Wall Mounted Controller ","No",18,null,{"$f":"J2404*K2404","v":0}]
[2814,35971,6,2,null,"","","Dia 250 Slaves","No",3,null,0]
[2815,35972,6,2,null,"","","RCV DIFFUSERS","H2",null,null,""]
[2816,35973,6,2,null,"","","Dia 250","No",7,null,{"$f":"J2407*K2407","v":0}]
[2817,35974,6,2,null,"","","INSULATED FLEXIBLE DUCTING 1.5 M LONG COMPLETE WITH JUBILEE CLAMPS","H2",null,null,""]
[2818,35975,6,2,null,"","","Dia 250","No",35,null,{"$f":"J2409*K2409","v":0}]
[2819,35976,6,2,null,"","","WIRE MESH SCREENS","H2",null,null,""]
[2820,35977,6,2,null,"","","1500 x 500","No",1,null,{"$f":"J2411*K2411","v":0}]
[2821,35978,6,2,null,"","","R/A GRILLES - FIXED BLADE","H2",null,null,""]
[2822,35979,6,2,null,"","","600 x 600","No",9,null,{"$f":"J2413*K2413","v":0}]
[2823,35980,6,2,null,"","","300 x 300","No",4,null,0]
[2824,35981,6,2,null,"","","SYSTEM - EAF - 2  (GROUND FLOOR TOILETS)","H2",null,null,""]
[2825,35982,6,2,null,"","","Fan System - EAF - 2 Duty: 1,00m3/s","H3",null,null,""]
[2826,35983,6,2,null,"","","Fan","No",1,null,{"$f":"J2417*K2417","v":0}]
[2827,35984,6,2,null,"","","Attenuators","No",1,null,0]
[2828,35985,6,2,null,"","","Supports","Sets",{"v":1,"d":"1.0"},null,0]
[2829,35986,6,2,null,"","","AVM's","Sets",{"v":1,"d":"1.0"},null,0]
[2830,35987,6,2,null,"","","Flexible Canvas Collars","Sets",{"v":1,"d":"1.0"},null,0]
[2831,35988,6,2,null,"","","Exhaust Cowl ","No",1,null,0]
[2832,35989,6,2,null,"","","CIRCULAR DUCTING","H2",null,null,""]
[2833,35990,6,2,null,"","","Dia 450","m",3,null,{"$f":"J2424*K2424","v":0}]
[2834,35991,6,2,null,"","","Dia 350","m",2,null,0]
[2835,35992,6,2,null,"","","Dia 200","m",5,null,0]
[2836,35993,6,2,null,"","","Dia 150","m",21,null,0]
[2837,35994,6,2,null,"","","CIRCULAR 45° BENDS","H2",null,null,""]
[2838,35995,6,2,null,"","","Dia 200","No",2,null,{"$f":"J2429*K2429","v":0}]
[2839,35996,6,2,null,"","","Dia 150","No",6,null,0]
[2840,35997,6,2,null,"","","CIRCULAR SPIGOTS","H2",null,null,""]
[2841,35998,6,2,null,"","","Dia 200","No",1,null,{"$f":"J2432*K2432","v":0}]
[2842,35999,6,2,null,"","","Dia 150","No",14,null,0]
[2843,36000,6,2,null,"","","RECTANGULAR DUCTING","H2",null,null,""]
[2844,36001,6,2,null,"","","Complete with hangers, clamps etc","H3",null,null,""]
[2845,36002,6,2,null,"","","0.6mm Sheetmetal","m2",50,null,{"$f":"J2436*K2436","v":0}]
[2846,36003,6,2,null,"","","DISC VALVES","H2",null,null,""]
[2847,36004,6,2,null,"","","Dia 200","No",1,null,{"$f":"J2438*K2438","v":0}]
[2848,36005,6,2,null,"","","Dia 150","No",14,null,0]
[2849,36006,6,2,null,"","","UNINSULATED FLEXIBLE DUCTING 1.5 M LONG COMPLETE WITH JUBILEE CLAMPS.","H2",null,null,""]
[2850,36007,6,2,null,"","","Dia 200","No",1,null,{"$f":"J2441*K2441","v":0}]
[2851,36008,6,2,null,"","","Dia 150","No",14,null,0]
[2852,36009,6,2,null,"","","Fan System - EAF - 9 Duty: 0,150m3/s","H3",null,null,""]
[2853,36010,6,2,null,"","","Fan ","No",1,null,{"$f":"J2444*K2444","v":0}]
[2854,36011,6,2,null,"","","Fan System - EAF - 10 Duty: 0,0150m3/s","H3",null,null,""]
[2855,36012,6,2,null,"","","Fan ","No",1,null,{"$f":"J2446*K2446","v":0}]
[2856,36013,6,2,null,"","","Fan System - EAF - 11 Duty: 0,0150m3/s","H3",null,null,""]
[2857,36014,6,2,null,"","","Fan ","No",1,null,{"$f":"J2448*K2448","v":0}]
[2858,36015,6,2,null,"","","Fan System - EAF - 12 Duty: 0,0150m3/s","H3",null,null,""]
[2859,36016,6,2,null,"","","Fan ","No",1,null,{"$f":"J2450*K2450","v":0}]
[2860,36017,6,2,null,"","","Fan System - EAF - 13 Duty: 0,0150m3/s","H3",null,null,""]
[2861,36018,6,2,null,"","","Fan ","No",1,null,{"$f":"J2452*K2452","v":0}]
[2862,36019,6,2,null,"","","TRANSFER AIR GRILLES - with expanded mesh behind","H2",null,null,""]
[2863,36020,6,2,null,"","","600 x 200","No",10,null,{"$f":"J2454*K2454","v":0}]
[2864,36021,6,2,null,"","","SPLIT AIR CONDITIONING UNITS","H2",null,null,""]
[2865,36022,6,2,null,"","","MWSU.1 & 2 - Ground Floor Patch Room","H3",null,null,""]
[2866,36023,6,2,null,"","","Wall Mounted inverter unit - 5,2 kW","No",2,null,{"$f":"J2457*K2457","v":0}]
[2867,36024,6,2,null,"","","Insulated drip tray","No",2,null,0]
[2868,36025,6,2,null,"","","Refrig. Piping - including insulation and cable tray support","m",18,null,0]
[2869,36026,6,2,null,"","","Drain Piping","Sets",{"v":2,"d":"2.0"},null,0]
[2870,36027,6,2,null,"","","CCU.1 - Ground Floor Security Monitoring Room","H3",null,null,""]
[2871,36028,6,2,null,"","","Ceiling Cassette inverter unit - 7 kW","No",1,null,{"$f":"J2462*K2462","v":0}]
[2872,36029,6,2,null,"","","Refrig. Piping - including insulting and cable tray support","m",12,null,0]
[2873,36030,6,2,null,"","","Drain Piping","Sets",{"v":1,"d":"1.0"},null,0]
[2874,36031,6,2,null,"","","FIRE DAMPERS","H2",null,null,""]
[2875,36032,6,2,null,"","","500 x 300","No",3,null,{"$f":"J2466*K2466","v":0}]
[2876,36033,6,2,null,"","","Dia 250","No",1,null,0]
[2877,37113,6,2,null,"","","Volume Control Dampers","H3",null,null,""]
[2878,37114,6,2,null,"","","Manual balancing damper - 250 Dia","No",35,null,{"$f":"J2469*K2469","v":0}]
[2879,37115,6,2,null,"","","Manual balancing damper - 150 Dia","No",1,null,0]
[2880,36035,6,2,null,"","","Budgetary Allowance","Item",{"v":1,"d":"1.00"},null,0]
[2881,36036,6,2,null,"","","First Floor Drawing No. M-1002:","",null,null,""]
[2882,36037,6,2,null,"","","SYSTEM - AHU-2 - TOTAL COOLING 80kw, 4000 l/s","H2",null,null,""]
[2883,36038,6,2,null,"","","Chilled Water Unit complete with fan, coil, filters, etc. - to be assembled on site in plantroom","No",1,null,{"$f":"J2474*K2474","v":0}]
[2884,36039,6,2,null,"","","Sheetmetal Plinthformer","No",1,null,0]
[2885,36040,6,2,null,"","","Tico Pads","Sets",{"v":1,"d":"1.0"},null,0]
[2886,36041,6,2,null,"","","Drain Piping","Sets",{"v":1,"d":"1.0"},null,0]
[2887,36042,6,2,null,"","","SOUND ATTENUATORS","H2",null,null,""]
[2888,36043,6,2,null,"","","Complete as per specification","H3",null,null,""]
[2889,36044,6,2,null,"","","Supply Air 1100 W x 450 D x 1200 L","No",1,null,{"$f":"J2480*K2480","v":0}]
[2890,36045,6,2,null,"","","Return Air 1100 W x 450 D x 1200 L","No",1,null,0]
[2891,36046,6,2,null,"","","CIRCULAR DUCTING","H2",null,null,""]
[2892,36047,6,2,null,"","","Dia 250","m",18,null,{"$f":"J2483*K2483","v":0}]
[2893,36048,6,2,null,"","","CIRCULAR 90° BENDS","H2",null,null,""]
[2894,36049,6,2,null,"","","Dia 250","No",16,null,{"$f":"J2485*K2485","v":0}]
[2895,36050,6,2,null,"","","CIRCULAR SPIGOTS","H2",null,null,""]
[2896,36051,6,2,null,"","","Dia 250","No",22,null,{"$f":"J2487*K2487","v":0}]
[2897,36052,6,2,null,"","","RECTANGULAR DUCTING","H2",null,null,""]
[2898,36053,6,2,null,"","","Complete with hangers, clamps etc","H3",null,null,""]
[2899,36054,6,2,null,"","","0.80mm sheetmetal","m2",92,null,{"$f":"J2490*K2490","v":0}]
[2900,36055,6,2,null,"","","0.60mm sheetmetal","m2",80,null,0]
[2901,36056,6,2,null,"","","RECTANGULAR DUCT FITTINGS","H2",null,null,""]
[2902,36057,6,2,null,"","","Complete with hangers, clamps etc","H3",null,null,""]
[2903,36058,6,2,null,"","","0.80mm sheetmetal","No",9,null,{"$f":"J2494*K2494","v":0}]
[2904,36059,6,2,null,"","","0.60mm sheetmetal","No",6,null,0]
[2905,36060,6,2,null,"","","DUCT INSULATION","H2",null,null,""]
[2906,36061,6,2,null,"","","FRK 25mm thick","m2",172,null,{"$f":"J2497*K2497","v":0}]
[2907,36062,6,2,null,"","","595 x 595 DCV DIFFUSERS","H2",null,null,""]
[2908,36063,6,2,null,"","","Dia 250","No",7,null,{"$f":"J2499*K2499","v":0}]
[2909,36064,6,2,null,"","","595 x 595 DVV DIFFUSERS  c/w 1kW REHEATERS","H2",null,null,""]
[2910,36065,6,2,null,"","","Dia 250 Master c/w Wall Mounted Controller ","No",11,null,{"$f":"J2501*K2501","v":0}]
[2911,36066,6,2,null,"","","Dia 250 Slaves","No",2,null,0]
[2912,36067,6,2,null,"","","RCV DIFFUSERS","H2",null,null,""]
[2913,36068,6,2,null,"","","Dia 250","No",2,null,{"$f":"J2504*K2504","v":0}]
[2914,36069,6,2,null,"","","INSULATED FLEXIBLE DUCTING 1.5 M LONG COMPLETE WITH JUBILEE CLAMPS","H2",null,null,""]
[2915,36070,6,2,null,"","","Dia 250","No",22,null,{"$f":"J2506*K2506","v":0}]
[2916,36071,6,2,null,"","","WIRE MESH SCREENS","H2",null,null,""]
[2917,36072,6,2,null,"","","1100 x 450","No",1,null,{"$f":"J2508*K2508","v":0}]
[2918,36073,6,2,null,"","","R/A GRILLES - FIXED BLADE","H2",null,null,""]
[2919,36074,6,2,null,"","","600 x 600","No",6,null,{"$f":"J2510*K2510","v":0}]
[2920,36075,6,2,null,"","","SYSTEM - AHU-3 - TOTAL COOLING 80kw, 4000 l/s","H2",null,null,""]
[2921,36076,6,2,null,"","","Chilled Water Unit complete with fan, coil, filters, etc. - to be assembled on site in plantroom","No",1,null,{"$f":"J2512*K2512","v":0}]
[2922,36077,6,2,null,"","","Sheetmetal Plinthformer","No",1,null,0]
[2923,36078,6,2,null,"","","Tico Pads","Sets",{"v":1,"d":"1.0"},null,0]
[2924,36079,6,2,null,"","","Drain Piping","Sets",{"v":1,"d":"1.0"},null,0]
[2925,36080,6,2,null,"","","SOUND ATTENUATORS","H2",null,null,""]
[2926,36081,6,2,null,"","","Complete as per specification","H3",null,null,""]
[2927,36082,6,2,null,"","","Supply Air 1100 W x 450 D x 1200 L","No",1,null,{"$f":"J2518*K2518","v":0}]
[2928,36083,6,2,null,"","","Return Air 1100 W x 450 D x 1200 L","No",1,null,0]
[2929,36084,6,2,null,"","","CIRCULAR DUCTING","H2",null,null,""]
[2930,36085,6,2,null,"","","Dia 250","m",9,null,{"$f":"J2521*K2521","v":0}]
[2931,36086,6,2,null,"","","CIRCULAR 90° BENDS","H2",null,null,""]
[2932,36087,6,2,null,"","","Dia 250","No",14,null,{"$f":"J2523*K2523","v":0}]
[2933,36088,6,2,null,"","","CIRCULAR SPIGOTS","H2",null,null,""]
[2934,36089,6,2,null,"","","Dia 250","No",24,null,{"$f":"J2525*K2525","v":0}]
[2935,36090,6,2,null,"","","RECTANGULAR DUCTING","H2",null,null,""]
[2936,36091,6,2,null,"","","Complete with hangers, clamps etc","H3",null,null,""]
[2937,36092,6,2,null,"","","0.80mm sheetmetal","m2",61,null,{"$f":"J2528*K2528","v":0}]
[2938,36093,6,2,null,"","","0.60mm sheetmetal","m2",115,null,0]
[2939,36094,6,2,null,"","","RECTANGULAR DUCT FITTINGS","H2",null,null,""]
[2940,36095,6,2,null,"","","Complete with hangers, clamps etc","H3",null,null,""]
[2941,36096,6,2,null,"","","0.80mm sheetmetal","No",5,null,{"$f":"J2532*K2532","v":0}]
[2942,36097,6,2,null,"","","0.60mm sheetmetal","No",10,null,0]
[2943,36098,6,2,null,"","","DUCT INSULATION","H2",null,null,""]
[2944,36099,6,2,null,"","","FRK 25mm thick","m2",176,null,{"$f":"J2535*K2535","v":0}]
[2945,36100,6,2,null,"","","595 x 595 DCV DIFFUSERS","H2",null,null,""]
[2946,36101,6,2,null,"","","Dia 250","No",1,null,{"$f":"J2537*K2537","v":0}]
[2947,36102,6,2,null,"","","595 x 595 DVV DIFFUSERS  c/w 1kW REHEATERS","H2",null,null,""]
[2948,36103,6,2,null,"","","Dia 250 Master c/w Wall Mounted Controller ","No",14,null,{"$f":"J2539*K2539","v":0}]
[2949,36104,6,2,null,"","","Dia 250 Slaves","No",2,null,0]
[2950,36105,6,2,null,"","","595 x 595 DVV DIFFUSERS  c/w 0,5kW REHEATERS","H2",null,null,""]
[2951,36106,6,2,null,"","","Dia 250 Master c/w Wall Mounted Controller ","No",5,null,{"$f":"J2542*K2542","v":0}]
[2952,36107,6,2,null,"","","RCV DIFFUSERS","H2",null,null,""]
[2953,36108,6,2,null,"","","Dia 250","No",2,null,{"$f":"J2544*K2544","v":0}]
[2954,36109,6,2,null,"","","INSULATED FLEXIBLE DUCTING 1.5 M LONG COMPLETE WITH JUBILEE CLAMPS","H2",null,null,""]
[2955,36110,6,2,null,"","","Dia 250","No",24,null,{"$f":"J2546*K2546","v":0}]
[2956,36111,6,2,null,"","","WIRE MESH SCREENS","H2",null,null,""]
[2957,36112,6,2,null,"","","1100 x 450","No",1,null,{"$f":"J2548*K2548","v":0}]
[2958,36113,6,2,null,"","","R/A GRILLES - FIXED BLADE","H2",null,null,""]
[2959,36114,6,2,null,"","","600 x 600","No",6,null,{"$f":"J2550*K2550","v":0}]
[2960,36115,6,2,null,"","","SYSTEM - EAF - 1  (FLOORS 1-5 TOILETS)","H2",null,null,""]
[2961,36116,6,2,null,"","","Fan measured elsewhere","H3",null,null,""]
[2962,36117,6,2,null,"","","CIRCULAR DUCTING","H2",null,null,""]
[2963,36118,6,2,null,"","","Dia 450","m",4,null,{"$f":"J2554*K2554","v":0}]
[2964,36119,6,2,null,"","","Dia 300","m",7,null,0]
[2965,36120,6,2,null,"","","Dia 250","m",5,null,0]
[2966,36121,6,2,null,"","","Dia 150","m",5,null,0]
[2967,36122,6,2,null,"","","CIRCULAR 45° BENDS","H2",null,null,""]
[2968,36123,6,2,null,"","","Dia 150","No",1,null,{"$f":"J2559*K2559","v":0}]
[2969,36124,6,2,null,"","","CIRCULAR SPIGOTS","H2",null,null,""]
[2970,36125,6,2,null,"","","Dia 300","No",1,null,{"$f":"J2561*K2561","v":0}]
[2971,36126,6,2,null,"","","Dia 250","No",1,null,0]
[2972,36127,6,2,null,"","","Dia 200","No",1,null,0]
[2973,36128,6,2,null,"","","Dia 150","No",13,null,0]
[2974,36129,6,2,null,"","","DISC VALVES","H2",null,null,""]
[2975,36130,6,2,null,"","","Dia 200","No",1,null,{"$f":"J2566*K2566","v":0}]
[2976,36131,6,2,null,"","","Dia 150","No",13,null,0]
[2977,36132,6,2,null,"","","UNINSULATED FLEXIBLE DUCTING 1.5 M LONG COMPLETE WITH JUBILEE CLAMPS","H2",null,null,""]
[2978,36133,6,2,null,"","","Dia 200","No",1,null,{"$f":"J2569*K2569","v":0}]
[2979,36134,6,2,null,"","","Dia 150","No",13,null,0]
[2980,36135,6,2,null,"","","Fan System - EAF - 8 Duty: 0,0150m3/s","H3",null,null,""]
[2981,36136,6,2,null,"","","Fan ","No",1,null,{"$f":"J2572*K2572","v":0}]
[2982,36137,6,2,null,"","","SPLIT AIR CONDITIONING UNITS","H2",null,null,""]
[2983,36138,6,2,null,"","","MWSU.3 & 4 - First Floor Patch Room","H3",null,null,""]
[2984,36139,6,2,null,"","","Wall Mounted inverter unit - 5,2 kW","No",2,null,{"$f":"J2575*K2575","v":0}]
[2985,36140,6,2,null,"","","Insulated drip tray","No",2,null,0]
[2986,36141,6,2,null,"","","Refrig. Piping - including insulation and cable tray support","m",12,null,0]
[2987,36142,6,2,null,"","","Drain Piping","Sets",{"v":2,"d":"2.0"},null,0]
[2988,37116,6,2,null,"","","Manual balancing damper - 250 Dia","No",46,null,0]
[2989,36144,6,2,null,"","","Budgetary Allowance","Item",{"v":1,"d":"1.00"},null,0]
[2990,36145,6,2,null,"","","Second Floor Drawing No. M-1003","",null,null,""]
[2991,36146,6,2,null,"","","SYSTEM - AHU-4 - TOTAL COOLING 80kw, 4000 l/s","H2",null,null,""]
[2992,36147,6,2,null,"","","Chilled Water Unit complete with fan, coil, filters, etc. - to be assembled on site in plantroom.","No",1,null,{"$f":"J2583*K2583","v":0}]
[2993,36148,6,2,null,"","","Sheetmetal Plinthformer","No",1,null,0]
[2994,36149,6,2,null,"","","Tico Pads","Sets",{"v":1,"d":"1.0"},null,0]
[2995,36150,6,2,null,"","","Drain Piping","Sets",{"v":1,"d":"1.0"},null,0]
[2996,36151,6,2,null,"","","SOUND ATTENUATORS","H2",null,null,""]
[2997,36152,6,2,null,"","","Complete as per specification","H3",null,null,""]
[2998,36153,6,2,null,"","","Supply Air 1100 W x 450 D x 1200 L","No",1,null,{"$f":"J2589*K2589","v":0}]
[2999,36154,6,2,null,"","","Return Air 1100 W x 450 D x 1200 L","No",1,null,0]
[3000,36155,6,2,null,"","","CIRCULAR DUCTING","H2",null,null,""]
[3001,36156,6,2,null,"","","Dia 250","m",17,null,{"$f":"J2592*K2592","v":0}]
[3002,36157,6,2,null,"","","CIRCULAR 90° BENDS","H2",null,null,""]
[3003,36158,6,2,null,"","","Dia 250","No",10,null,{"$f":"J2594*K2594","v":0}]
[3004,36159,6,2,null,"","","CIRCULAR SPIGOTS","H2",null,null,""]
[3005,36160,6,2,null,"","","Dia 250","No",22,null,{"$f":"J2596*K2596","v":0}]
[3006,36161,6,2,null,"","","RECTANGULAR DUCTING","H2",null,null,""]
[3007,36162,6,2,null,"","","Complete with hangers, clamps etc","H3",null,null,""]
[3008,36163,6,2,null,"","","0.80mm sheetmetal","m2",81,null,{"$f":"J2599*K2599","v":0}]
[3009,36164,6,2,null,"","","0.60mm sheetmetal","m2",66,null,0]
[3010,36165,6,2,null,"","","RECTANGULAR DUCT FITTINGS","H2",null,null,""]
[3011,36166,6,2,null,"","","Complete with hangers, clamps etc","H3",null,null,""]
[3012,36167,6,2,null,"","","0.80mm sheetmetal","No",8,null,{"$f":"J2603*K2603","v":0}]
[3013,36168,6,2,null,"","","0.60mm sheetmetal","No",5,null,0]
[3014,36169,6,2,null,"","","DUCT INSULATION","H2",null,null,""]
[3015,36170,6,2,null,"","","FRK 25mm thick","m2",147,null,{"$f":"J2606*K2606","v":0}]
[3016,36171,6,2,null,"","","595 x 595 DCV DIFFUSERS","H2",null,null,""]
[3017,36172,6,2,null,"","","Dia 250","No",6,null,{"$f":"J2608*K2608","v":0}]
[3018,36173,6,2,null,"","","595 x 595 DVV DIFFUSERS  c/w 1kW REHEATERS","H2",null,null,""]
[3019,36174,6,2,null,"","","Dia 250 Master c/w Wall Mounted Controller ","No",12,null,{"$f":"J2610*K2610","v":0}]
[3020,36175,6,2,null,"","","Dia 250 Slaves","No",2,null,0]
[3021,36176,6,2,null,"","","RCV DIFFUSERS","H2",null,null,""]
[3022,36177,6,2,null,"","","Dia 250","No",2,null,{"$f":"J2613*K2613","v":0}]
[3023,36178,6,2,null,"","","INSULATED FLEXIBLE DUCTING 1.5 M LONG COMPLETE WITH JUBILEE CLAMPS","H2",null,null,""]
[3024,36179,6,2,null,"","","Dia 250","No",22,null,{"$f":"J2615*K2615","v":0}]
[3025,36180,6,2,null,"","","WIRE MESH SCREENS","H2",null,null,""]
[3026,36181,6,2,null,"","","1100 x 450","No",1,null,{"$f":"J2617*K2617","v":0}]
[3027,36182,6,2,null,"","","R/A GRILLES - FIXED BLADE ","H2",null,null,""]
[3028,36183,6,2,null,"","","600 x 600","No",7,null,{"$f":"J2619*K2619","v":0}]
[3029,36184,6,2,null,"","","SYSTEM - AHU-5 - TOTAL COOLING 80kw, 4000 l/s","H2",null,null,""]
[3030,36185,6,2,null,"","","Chilled Water Unit complete with fan, coil, filters, etc. - to be assembled on site in plantroom","No",1,null,{"$f":"J2621*K2621","v":0}]
[3031,36186,6,2,null,"","","Sheetmetal Plinthformer","No",1,null,0]
[3032,36187,6,2,null,"","","Tico Pads","Sets",{"v":1,"d":"1.0"},null,0]
[3033,36188,6,2,null,"","","Drain Piping","Sets",{"v":1,"d":"1.0"},null,0]
[3034,36189,6,2,null,"","","SOUND ATTENUATORS","H2",null,null,""]
[3035,36190,6,2,null,"","","Complete as per specification","H3",null,null,""]
[3036,36191,6,2,null,"","","Supply Air 1100 W x 450 D x 1200 L","No",1,null,{"$f":"J2627*K2627","v":0}]
[3037,36192,6,2,null,"","","Return Air 1100 W x 450 D x 1200 L","No",1,null,0]
[3038,36193,6,2,null,"","","CIRCULAR DUCTING","H2",null,null,""]
[3039,36194,6,2,null,"","","Dia 250","m",18,null,{"$f":"J2630*K2630","v":0}]
[3040,36195,6,2,null,"","","CIRCULAR 90° BENDS","H2",null,null,""]
[3041,36196,6,2,null,"","","Dia 250","No",11,null,{"$f":"J2632*K2632","v":0}]
[3042,36197,6,2,null,"","","CIRCULAR SPIGOTS","H2",null,null,""]
[3043,36198,6,2,null,"","","Dia 250","No",23,null,{"$f":"J2634*K2634","v":0}]
[3044,36199,6,2,null,"","","RECTANGULAR DUCTING","H2",null,null,""]
[3045,36200,6,2,null,"","","Complete with hangers, clamps etc","H3",null,null,""]
[3046,36201,6,2,null,"","","0.80mm sheetmetal","m2",59,null,{"$f":"J2637*K2637","v":0}]
[3047,36202,6,2,null,"","","0.60mm sheetmetal","m2",115,null,0]
[3048,36203,6,2,null,"","","RECTANGULAR DUCT FITTINGS","H2",null,null,""]
[3049,36204,6,2,null,"","","Complete with hangers, clamps etc","H3",null,null,""]
[3050,36205,6,2,null,"","","0.80mm sheetmetal","No",5,null,{"$f":"J2641*K2641","v":0}]
[3051,36206,6,2,null,"","","0.60mm sheetmetal","No",10,null,0]
[3052,36207,6,2,null,"","","DUCT INSULATION","H2",null,null,""]
[3053,36208,6,2,null,"","","FRK 25mm thick","m2",174,null,{"$f":"J2644*K2644","v":0}]
[3054,36209,6,2,null,"","","595 x 595 DCV DIFFUSERS","H2",null,null,""]
[3055,36210,6,2,null,"","","Dia 250","No",5,null,{"$f":"J2646*K2646","v":0}]
[3056,36211,6,2,null,"","","595 x 595 DVV DIFFUSERS  c/w 1kW REHEATERS","H2",null,null,""]
[3057,36212,6,2,null,"","","Dia 250 Master c/w Wall Mounted Controller ","No",14,null,{"$f":"J2648*K2648","v":0}]
[3058,36213,6,2,null,"","","RVV DIFFUSERS  c/w 1kW REHEATERS","H2",null,null,""]
[3059,36214,6,2,null,"","","Dia 250 Master c/w Wall Mounted Controller ","No",1,null,{"$f":"J2650*K2650","v":0}]
[3060,36215,6,2,null,"","","Dia 250 Slaves","No",1,null,0]
[3061,36216,6,2,null,"","","RCV DIFFUSERS","H2",null,null,""]
[3062,36217,6,2,null,"","","Dia 250","No",2,null,{"$f":"J2653*K2653","v":0}]
[3063,36218,6,2,null,"","","INSULATED FLEXIBLE DUCTING 1.5 M LONG COMPLETE WITH JUBILEE CLAMPS","H2",null,null,""]
[3064,36219,6,2,null,"","","Dia 250","No",23,null,{"$f":"J2655*K2655","v":0}]
[3065,36220,6,2,null,"","","WIRE MESH SCREENS","H2",null,null,""]
[3066,36221,6,2,null,"","","1100 x 450","No",1,null,{"$f":"J2657*K2657","v":0}]
[3067,36222,6,2,null,"","","R/A GRILLES - FIXED BLADE","H2",null,null,""]
[3068,36223,6,2,null,"","","600 x 600","No",5,null,{"$f":"J2659*K2659","v":0}]
[3069,36224,6,2,null,"","","FIRE DAMPERS","H2",null,null,""]
[3070,36225,6,2,null,"","","1000 x 400","No",2,null,{"$f":"J2661*K2661","v":0}]
[3071,36226,6,2,null,"","","750 x 350","No",1,null,0]
[3072,36227,6,2,null,"","","SYSTEM - EAF - 1  (FLOORS 1-5 TOILETS)","H2",null,null,""]
[3073,36228,6,2,null,"","","Fan measured elsewhere","H3",null,null,""]
[3074,36229,6,2,null,"","","CIRCULAR DUCTING","H2",null,null,""]
[3075,36230,6,2,null,"","","Dia 450","m",4,null,{"$f":"J2666*K2666","v":0}]
[3076,36231,6,2,null,"","","Dia 300","m",7,null,0]
[3077,36232,6,2,null,"","","Dia 250","m",5,null,0]
[3078,36233,6,2,null,"","","Dia 150","m",5,null,0]
[3079,36234,6,2,null,"","","CIRCULAR 45° BENDS","H2",null,null,""]
[3080,36235,6,2,null,"","","Dia 150","No",1,null,{"$f":"J2671*K2671","v":0}]
[3081,36236,6,2,null,"","","CIRCULAR SPIGOTS","H2",null,null,""]
[3082,36237,6,2,null,"","","Dia 300","No",1,null,{"$f":"J2673*K2673","v":0}]
[3083,36238,6,2,null,"","","Dia 250","No",1,null,0]
[3084,36239,6,2,null,"","","Dia 200","No",1,null,0]
[3085,36240,6,2,null,"","","Dia 150","No",13,null,0]
[3086,36241,6,2,null,"","","DISC VALVES","H2",null,null,""]
[3087,36242,6,2,null,"","","Dia 200","No",1,null,{"$f":"J2678*K2678","v":0}]
[3088,36243,6,2,null,"","","Dia 150","No",13,null,0]
[3089,36244,6,2,null,"","","UNINSULATED FLEXIBLE DUCTING 1.5 M LONG COMPLETE WITH JUBILEE CLAMPS.","H2",null,null,""]
[3090,36245,6,2,null,"","","Dia 200","No",1,null,{"$f":"J2681*K2681","v":0}]
[3091,36246,6,2,null,"","","Dia 150","No",13,null,0]
[3092,36247,6,2,null,"","","SPLIT AIR CONDITIONING UNITS","H2",null,null,""]
[3093,36248,6,2,null,"","","MWSU.5 & 6 - Second Floor Patch Room","H3",null,null,""]
[3094,36249,6,2,null,"","","Wall Mounted inverter unit - 5,2 kW","No",2,null,{"$f":"J2685*K2685","v":0}]
[3095,36250,6,2,null,"","","Insulated drip tray","No",2,null,0]
[3096,36251,6,2,null,"","","Refrig. Piping - including insulation and cable tray support","m",12,null,0]
[3097,36252,6,2,null,"","","Drain Piping","Sets",{"v":2,"d":"2.0"},null,0]
[3098,37117,6,2,null,"","","Manual balancing damper - 250 Dia","No",46,null,0]
[3099,36254,6,2,null,"","","Budgetary Allowance","Item",{"v":1,"d":"1.00"},null,0]
[3100,36255,6,2,null,"","","Third Floor Drawing No. M-1004","",null,null,""]
[3101,36256,6,2,null,"","","SYSTEM - AHU-6 - TOTAL COOLING 80kw, 4000 l/s","H2",null,null,""]
[3102,36257,6,2,null,"","","Chilled Water Unit complete with fan, coil, filters, etc. - to be assembled on site in plantroom","No",1,null,{"$f":"J2693*K2693","v":0}]
[3103,36258,6,2,null,"","","Sheetmetal Plinthformer","No",1,null,0]
[3104,36259,6,2,null,"","","Tico Pads","Sets",{"v":1,"d":"1.0"},null,0]
[3105,36260,6,2,null,"","","Drain Piping","Sets",{"v":1,"d":"1.0"},null,0]
[3106,36261,6,2,null,"","","SOUND ATTENUATORS","H2",null,null,""]
[3107,36262,6,2,null,"","","Complete as per specification","H3",null,null,""]
[3108,36263,6,2,null,"","","Supply Air 1100 W x 450 D x 1200 L","No",1,null,{"$f":"J2699*K2699","v":0}]
[3109,36264,6,2,null,"","","Return Air 1100 W x 450 D x 1200 L","No",1,null,0]
[3110,36265,6,2,null,"","","CIRCULAR DUCTING","H2",null,null,""]
[3111,36266,6,2,null,"","","Dia 250","m",18,null,{"$f":"J2702*K2702","v":0}]
[3112,36267,6,2,null,"","","CIRCULAR 90° BENDS","H2",null,null,""]
[3113,36268,6,2,null,"","","Dia 250","No",6,null,{"$f":"J2704*K2704","v":0}]
[3114,36269,6,2,null,"","","CIRCULAR SPIGOTS","H2",null,null,""]
[3115,36270,6,2,null,"","","Dia 250","No",23,null,{"$f":"J2706*K2706","v":0}]
[3116,36271,6,2,null,"","","RECTANGULAR DUCTING","H2",null,null,""]
[3117,36272,6,2,null,"","","Complete with hangers, clamps etc","H3",null,null,""]
[3118,36273,6,2,null,"","","0.80mm sheetmetal","m2",81,null,{"$f":"J2709*K2709","v":0}]
[3119,36274,6,2,null,"","","0.60mm sheetmetal","m2",68,null,0]
[3120,36275,6,2,null,"","","RECTANGULAR DUCT FITTINGS","H2",null,null,""]
[3121,36276,6,2,null,"","","Complete with hangers, clamps etc","H3",null,null,""]
[3122,36277,6,2,null,"","","0.80mm sheetmetal","No",8,null,{"$f":"J2713*K2713","v":0}]
[3123,36278,6,2,null,"","","0.60mm sheetmetal","No",6,null,0]
[3124,36279,6,2,null,"","","DUCT INSULATION","H2",null,null,""]
[3125,36280,6,2,null,"","","FRK 25 mm thick","m2",150,null,{"$f":"J2716*K2716","v":0}]
[3126,36281,6,2,null,"","","595 x 595 DCV DIFFUSERS","H2",null,null,""]
[3127,36282,6,2,null,"","","Dia 250","No",7,null,{"$f":"J2718*K2718","v":0}]
[3128,36283,6,2,null,"","","595 x 595 DVV DIFFUSERS  c/w 1kW REHEATERS","H2",null,null,""]
[3129,36284,6,2,null,"","","Dia 250 Master c/w Wall Mounted Controller ","No",10,null,{"$f":"J2720*K2720","v":0}]
[3130,36285,6,2,null,"","","Dia 250 Slaves","No",4,null,0]
[3131,36286,6,2,null,"","","RCV DIFFUSERS","H2",null,null,""]
[3132,36287,6,2,null,"","","Dia 250","No",2,null,{"$f":"J2723*K2723","v":0}]
[3133,36288,6,2,null,"","","INSULATED FLEXIBLE DUCTING 1.5 M LONG COMPLETE WITH JUBILEE CLAMPS","H2",null,null,""]
[3134,36289,6,2,null,"","","Dia 250","No",23,null,{"$f":"J2725*K2725","v":0}]
[3135,36290,6,2,null,"","","WIRE MESH SCREENS","H2",null,null,""]
[3136,36291,6,2,null,"","","1100 x 450","No",1,null,{"$f":"J2727*K2727","v":0}]
[3137,36292,6,2,null,"","","R/A GRILLES - FIXED BLADE","H2",null,null,""]
[3138,36293,6,2,null,"","","600 x 600","No",6,null,{"$f":"J2729*K2729","v":0}]
[3139,36294,6,2,null,"","","SYSTEM - AHU-7 - TOTAL COOLING 80kw, 4000 l/s","H2",null,null,""]
[3140,36295,6,2,null,"","","Chilled Water Unit complete with fan, coil, filters, etc. - to be assembled on site in plantroom","No",1,null,{"$f":"J2731*K2731","v":0}]
[3141,36296,6,2,null,"","","Sheetmetal Plinthformer","No",1,null,0]
[3142,36297,6,2,null,"","","Tico Pads","Sets",{"v":1,"d":"1.0"},null,0]
[3143,36298,6,2,null,"","","Drain Piping","Sets",{"v":1,"d":"1.0"},null,0]
[3144,36299,6,2,null,"","","SOUND ATTENUATORS","H2",null,null,""]
[3145,36300,6,2,null,"","","Complete as per specification","H3",null,null,""]
[3146,36301,6,2,null,"","","Supply Air 1100 W x 450 D x 1200 L","No",1,null,{"$f":"J2737*K2737","v":0}]
[3147,36302,6,2,null,"","","Return Air 1100 W x 450 D x 1200 L","No",1,null,0]
[3148,36303,6,2,null,"","","CIRCULAR DUCTING","H2",null,null,""]
[3149,36304,6,2,null,"","","Dia 250","m",18,null,{"$f":"J2740*K2740","v":0}]
[3150,36305,6,2,null,"","","CIRCULAR 90° BENDS","H2",null,null,""]
[3151,36306,6,2,null,"","","Dia 250","No",8,null,{"$f":"J2742*K2742","v":0}]
[3152,36307,6,2,null,"","","CIRCULAR SPIGOTS","H2",null,null,""]
[3153,36308,6,2,null,"","","Dia 250","No",23,null,{"$f":"J2744*K2744","v":0}]
[3154,36309,6,2,null,"","","RECTANGULAR DUCTING","H2",null,null,""]
[3155,36310,6,2,null,"","","Complete with hangers, clamps etc","H3",null,null,""]
[3156,36311,6,2,null,"","","0.80mm sheetmetal","m2",59,null,{"$f":"J2747*K2747","v":0}]
[3157,36312,6,2,null,"","","0.60mm sheetmetal","m2",114,null,0]
[3158,36313,6,2,null,"","","RECTANGULAR DUCT FITTINGS","H2",null,null,""]
[3159,36314,6,2,null,"","","Complete with hangers, clamps etc","H3",null,null,""]
[3160,36315,6,2,null,"","","0.80mm sheetmetal","No",5,null,{"$f":"J2751*K2751","v":0}]
[3161,36316,6,2,null,"","","0.60mm sheetmetal","No",11,null,0]
[3162,36317,6,2,null,"","","DUCT INSULATION","H2",null,null,""]
[3163,36318,6,2,null,"","","FRK 25mm thick","m2",173,null,{"$f":"J2754*K2754","v":0}]
[3164,36319,6,2,null,"","","595 x 595 DCV DIFFUSERS","H2",null,null,""]
[3165,36320,6,2,null,"","","Dia 250","No",6,null,{"$f":"J2756*K2756","v":0}]
[3166,36321,6,2,null,"","","595 x 595 DVV DIFFUSERS  c/w 1kW REHEATERS","H2",null,null,""]
[3167,36322,6,2,null,"","","Dia 250 Master c/w Wall Mounted Controller ","No",14,null,{"$f":"J2758*K2758","v":0}]
[3168,36323,6,2,null,"","","Dia 250 Slaves","No",1,null,0]
[3169,36324,6,2,null,"","","RCV DIFFUSERS","H2",null,null,""]
[3170,36325,6,2,null,"","","Dia 250","No",2,null,{"$f":"J2761*K2761","v":0}]
[3171,36326,6,2,null,"","","INSULATED FLEXIBLE DUCTING 1.5 M LONG COMPLETE WITH JUBILEE CLAMPS","H2",null,null,""]
[3172,36327,6,2,null,"","","Dia 250","No",23,null,{"$f":"J2763*K2763","v":0}]
[3173,36328,6,2,null,"","","WIRE MESH SCREENS","H2",null,null,""]
[3174,36329,6,2,null,"","","1100 x 450","No",1,null,{"$f":"J2765*K2765","v":0}]
[3175,36330,6,2,null,"","","R/A GRILLES - FIXED BLADE","H2",null,null,""]
[3176,36331,6,2,null,"","","600 x 600","No",6,null,{"$f":"J2767*K2767","v":0}]
[3177,36332,6,2,null,"","","SYSTEM - EAF - 1  (FLOORS 1-5 TOILETS)","H2",null,null,""]
[3178,36333,6,2,null,"","","Fan measured elsewhere","H3",null,null,""]
[3179,36334,6,2,null,"","","CIRCULAR DUCTING","H2",null,null,""]
[3180,36335,6,2,null,"","","Dia 450","m",4,null,{"$f":"J2771*K2771","v":0}]
[3181,36336,6,2,null,"","","Dia 300","m",7,null,0]
[3182,36337,6,2,null,"","","Dia 250","m",5,null,0]
[3183,36338,6,2,null,"","","Dia 150","m",5,null,0]
[3184,36339,6,2,null,"","","CIRCULAR 45° BENDS","H2",null,null,""]
[3185,36340,6,2,null,"","","Dia 150","No",1,null,{"$f":"J2776*K2776","v":0}]
[3186,36341,6,2,null,"","","CIRCULAR SPIGOTS","H2",null,null,""]
[3187,36342,6,2,null,"","","Dia 300","No",1,null,{"$f":"J2778*K2778","v":0}]
[3188,36343,6,2,null,"","","Dia 250","No",1,null,0]
[3189,36344,6,2,null,"","","Dia 200","No",1,null,0]
[3190,36345,6,2,null,"","","Dia 150","No",13,null,0]
[3191,36346,6,2,null,"","","DISC VALVES","H2",null,null,""]
[3192,36347,6,2,null,"","","Dia 200","No",1,null,{"$f":"J2783*K2783","v":0}]
[3193,36348,6,2,null,"","","Dia 150","No",13,null,0]
[3194,36349,6,2,null,"","","UNINSULATED FLEXIBLE DUCTING 1.5 M LONG COMPLETE WITH JUBILEE CLAMPS","H2",null,null,""]
[3195,36350,6,2,null,"","","Dia 200","No",1,null,{"$f":"J2786*K2786","v":0}]
[3196,36351,6,2,null,"","","Dia 150","No",13,null,0]
[3197,36352,6,2,null,"","","Fan System - EAF - 6 Duty: 0,0150m3/s","H3",null,null,""]
[3198,36353,6,2,null,"","","Fan ","No",1,null,{"$f":"J2789*K2789","v":0}]
[3199,36354,6,2,null,"","","Fan System - EAF - 7 Duty: 0,0150m3/s","H3",null,null,""]
[3200,36355,6,2,null,"","","Fan","No",1,null,{"$f":"J2791*K2791","v":0}]
[3201,36356,6,2,null,"","","SPLIT AIR CONDITIONING UNITS","H2",null,null,""]
[3202,36357,6,2,null,"","","MWSU.7 & 8 - Third Floor Patch Room","H3",null,null,""]
[3203,36358,6,2,null,"","","Wall Mounted inverter unit - 5,2 kW","No",2,null,{"$f":"J2794*K2794","v":0}]
[3204,36359,6,2,null,"","","Insulated drip tray","No",2,null,0]
[3205,36360,6,2,null,"","","Refrig. Piping - including insulation and cable tray support","m",12,null,0]
[3206,36361,6,2,null,"","","Drain Piping","Sets",{"v":2,"d":"2.0"},null,0]
[3207,37118,6,2,null,"","","Manual balancing damper - 250 Dia","No",46,null,0]
[3208,36363,6,2,null,"","","Budgetary Allowance","Item",{"v":1,"d":"1.00"},null,0]
[3209,36364,6,2,null,"","","Fourth Floor Drawing No. M-1005","",null,null,""]
[3210,36365,6,2,null,"","","SYSTEM - AHU-8 - TOTAL COOLING 80kw, 4000 l/s","H2",null,null,""]
[3211,36366,6,2,null,"","","Chilled Water Unit complete with fan, coil, filters, etc. - to be assembled on site in plantroom","No",1,null,{"$f":"J2802*K2802","v":0}]
[3212,36367,6,2,null,"","","Sheetmetal Plinthformer","No",1,null,0]
[3213,36368,6,2,null,"","","Tico Pads","Sets",{"v":1,"d":"1.0"},null,0]
[3214,36369,6,2,null,"","","Drain Piping","Sets",{"v":1,"d":"1.0"},null,0]
[3215,36370,6,2,null,"","","SOUND ATTENUATORS","H2",null,null,""]
[3216,36371,6,2,null,"","","Complete as per specification","H3",null,null,""]
[3217,36372,6,2,null,"","","Supply Air 1100 W x 450 D x 1200 L","No",1,null,{"$f":"J2808*K2808","v":0}]
[3218,36373,6,2,null,"","","Return Air 1100 W x 450 D x 1200 L","No",1,null,0]
[3219,36374,6,2,null,"","","CIRCULAR DUCTING","H2",null,null,""]
[3220,36375,6,2,null,"","","Dia 250","m",18,null,{"$f":"J2811*K2811","v":0}]
[3221,36376,6,2,null,"","","CIRCULAR 90° BENDS","H2",null,null,""]
[3222,36377,6,2,null,"","","Dia 250","No",8,null,{"$f":"J2813*K2813","v":0}]
[3223,36378,6,2,null,"","","CIRCULAR SPIGOTS","H2",null,null,""]
[3224,36379,6,2,null,"","","Dia 250","No",24,null,{"$f":"J2815*K2815","v":0}]
[3225,36380,6,2,null,"","","RECTANGULAR DUCTING","H2",null,null,""]
[3226,36381,6,2,null,"","","Complete with hangers, clamps etc","H3",null,null,""]
[3227,36382,6,2,null,"","","0.80mm sheetmetal","m2",81,null,{"$f":"J2818*K2818","v":0}]
[3228,36383,6,2,null,"","","0.60mm sheetmetal","m2",80,null,0]
[3229,36384,6,2,null,"","","RECTANGULAR DUCT FITTINGS","H2",null,null,""]
[3230,36385,6,2,null,"","","Complete with hangers, clamps etc","H3",null,null,""]
[3231,36386,6,2,null,"","","0.80mm sheetmetal","No",9,null,{"$f":"J2822*K2822","v":0}]
[3232,36387,6,2,null,"","","0.60mm sheetmetal","No",5,null,0]
[3233,36388,6,2,null,"","","DUCT INSULATION","H2",null,null,""]
[3234,36389,6,2,null,"","","FRK 25mm thick","m2",162,null,{"$f":"J2825*K2825","v":0}]
[3235,36390,6,2,null,"","","595 x 595 DCV DIFFUSERS","H2",null,null,""]
[3236,36391,6,2,null,"","","Dia 250","No",11,null,{"$f":"J2827*K2827","v":0}]
[3237,36392,6,2,null,"","","595 x 595 DVV DIFFUSERS  c/w 1kW REHEATERS","H2",null,null,""]
[3238,36393,6,2,null,"","","Dia 250 Master c/w Wall Mounted Controller ","No",9,null,{"$f":"J2829*K2829","v":0}]
[3239,36394,6,2,null,"","","Dia 250 Slaves","No",2,null,0]
[3240,36395,6,2,null,"","","RCV DIFFUSERS","H2",null,null,""]
[3241,36396,6,2,null,"","","Dia 250","No",2,null,{"$f":"J2832*K2832","v":0}]
[3242,36397,6,2,null,"","","INSULATED FLEXIBLE DUCTING 1.5 M LONG COMPLETE WITH JUBILEE CLAMPS","H2",null,null,""]
[3243,36398,6,2,null,"","","Dia 250","No",24,null,{"$f":"J2834*K2834","v":0}]
[3244,36399,6,2,null,"","","WIRE MESH SCREENS","H2",null,null,""]
[3245,36400,6,2,null,"","","1100 x 450","No",1,null,{"$f":"J2836*K2836","v":0}]
[3246,36401,6,2,null,"","","R/A GRILLES - FIXED BLADE","H2",null,null,""]
[3247,36402,6,2,null,"","","600 x 600","No",7,null,{"$f":"J2838*K2838","v":0}]
[3248,36403,6,2,null,"","","System - AHU-9 - Total cooling 80kw, 4000 l/s","H2",null,null,""]
[3249,36404,6,2,null,"","","Chilled Water Unit complete with fan, coil, filters, etc. - to be assembled on site in plantroom","m",1,null,{"$f":"J2840*K2840","v":0}]
[3250,36405,6,2,null,"","","Sheetmetal Plinthformer","No",1,null,0]
[3251,36406,6,2,null,"","","Tico Pads","Sets",{"v":1,"d":"1.0"},null,0]
[3252,36407,6,2,null,"","","Drain Piping","Sets",{"v":1,"d":"1.0"},null,0]
[3253,36408,6,2,null,"","","SOUND ATTENUATORS","H2",null,null,""]
[3254,36409,6,2,null,"","","Complete as per specification","H3",null,null,""]
[3255,36410,6,2,null,"","","Supply Air 1100 W x 450 D x 1200 L","No",1,null,{"$f":"J2846*K2846","v":0}]
[3256,36411,6,2,null,"","","Return Air 1100 W x 450 D x 1200 L","No",1,null,0]
[3257,36412,6,2,null,"","","CIRCULAR DUCTING","H2",null,null,""]
[3258,36413,6,2,null,"","","Dia 250","m",16,null,{"$f":"J2849*K2849","v":0}]
[3259,36414,6,2,null,"","","CIRCULAR 90° BENDS","H2",null,null,""]
[3260,36415,6,2,null,"","","Dia 250","No",7,null,{"$f":"J2851*K2851","v":0}]
[3261,36416,6,2,null,"","","CIRCULAR SPIGOTS","H2",null,null,""]
[3262,36417,6,2,null,"","","Dia 250","No",19,null,{"$f":"J2853*K2853","v":0}]
[3263,36418,6,2,null,"","","RECTANGULAR DUCTING","H2",null,null,""]
[3264,36419,6,2,null,"","","Complete with hangers, clamps etc","H3",null,null,""]
[3265,36420,6,2,null,"","","0.80mm sheetmetal","m2",58,null,{"$f":"J2856*K2856","v":0}]
[3266,36421,6,2,null,"","","0.60mm sheetmetal","m2",114,null,0]
[3267,36422,6,2,null,"","","RECTANGULAR DUCT FITTINGS","H2",null,null,""]
[3268,36423,6,2,null,"","","Complete with hangers, clamps etc","H3",null,null,""]
[3269,36424,6,2,null,"","","0.80mm sheetmetal","No",5,null,{"$f":"J2860*K2860","v":0}]
[3270,36425,6,2,null,"","","0.60mm sheetmetal","No",12,null,0]
[3271,36426,6,2,null,"","","DUCT INSULATION","H2",null,null,""]
[3272,36427,6,2,null,"","","FRK 25mm thick","m2",174,null,{"$f":"J2863*K2863","v":0}]
[3273,36428,6,2,null,"","","595 x 595 DCV DIFFUSERS","H2",null,null,""]
[3274,36429,6,2,null,"","","Dia 250","No",7,null,{"$f":"J2865*K2865","v":0}]
[3275,36430,6,2,null,"","","595 x 595 DVV DIFFUSERS  c/w 1kW REHEATERS","H2",null,null,""]
[3276,36431,6,2,null,"","","Dia 250 Master c/w Wall Mounted Controller ","No",10,null,{"$f":"J2867*K2867","v":0}]
[3277,36432,6,2,null,"","","Dia 250 Slaves","No",null,null,""]
[3278,36433,6,2,null,"","","RCV DIFFUSERS","H2",null,null,""]
[3279,36434,6,2,null,"","","Dia 250","No",2,null,{"$f":"J2870*K2870","v":0}]
[3280,36435,6,2,null,"","","INSULATED FLEXIBLE DUCTING 1.5 M LONG COMPLETE WITH JUBILEE CLAMPS","H2",null,null,""]
[3281,36436,6,2,null,"","","Dia 250","No",19,null,{"$f":"J2872*K2872","v":0}]
[3282,36437,6,2,null,"","","WIRE MESH SCREENS","H2",null,null,""]
[3283,36438,6,2,null,"","","1100 x 450","No",1,null,{"$f":"J2874*K2874","v":0}]
[3284,36439,6,2,null,"","","R/A GRILLES - FIXED BLADE","H2",null,null,""]
[3285,36440,6,2,null,"","","600 x 600","No",5,null,{"$f":"J2876*K2876","v":0}]
[3286,36441,6,2,null,"","","SYSTEM - EAF - 1  (FLOORS 1-5 TOILETS)","H2",null,null,""]
[3287,36442,6,2,null,"","","Fan measured elsewhere","H3",null,null,""]
[3288,36443,6,2,null,"","","CIRCULAR DUCTING","H2",null,null,""]
[3289,36444,6,2,null,"","","Dia 450","m",4,null,{"$f":"J2880*K2880","v":0}]
[3290,36445,6,2,null,"","","Dia 300","m",7,null,0]
[3291,36446,6,2,null,"","","Dia 250","m",5,null,0]
[3292,36447,6,2,null,"","","Dia 150","m",5,null,0]
[3293,36448,6,2,null,"","","CIRCULAR 45° BENDS","H2",null,null,""]
[3294,36449,6,2,null,"","","Dia 150","No",1,null,{"$f":"J2885*K2885","v":0}]
[3295,36450,6,2,null,"","","CIRCULAR SPIGOTS","H2",null,null,""]
[3296,36451,6,2,null,"","","Dia 300","No",1,null,{"$f":"J2887*K2887","v":0}]
[3297,36452,6,2,null,"","","Dia 250","No",1,null,0]
[3298,36453,6,2,null,"","","Dia 200","No",1,null,0]
[3299,36454,6,2,null,"","","Dia 150","No",13,null,0]
[3300,36455,6,2,null,"","","DISC VALVES","H2",null,null,""]
[3301,36456,6,2,null,"","","Dia 200","No",1,null,{"$f":"J2892*K2892","v":0}]
[3302,36457,6,2,null,"","","Dia 150","No",13,null,0]
[3303,36458,6,2,null,"","","UNINSULATED FLEXIBLE DUCTING 1.5 M LONG COMPLETE WITH JUBILEE CLAMPS","H2",null,null,""]
[3304,36459,6,2,null,"","","Dia 200","No",1,null,{"$f":"J2895*K2895","v":0}]
[3305,36460,6,2,null,"","","Dia 150","No",13,null,0]
[3306,36461,6,2,null,"","","Fan System - EAF - 3 Duty: 0,0150m3/s","H3",null,null,""]
[3307,36462,6,2,null,"","","Fan","No",1,null,{"$f":"J2898*K2898","v":0}]
[3308,36463,6,2,null,"","","Fan System - EAF - 4 Duty: 0,0150m3/s","H3",null,null,""]
[3309,36464,6,2,null,"","","Fan","No",1,null,{"$f":"J2900*K2900","v":0}]
[3310,36465,6,2,null,"","","Fan System - EAF - 5 Duty: 0,0150m3/s","H3",null,null,""]
[3311,36466,6,2,null,"","","Fan","No",1,null,{"$f":"J2902*K2902","v":0}]
[3312,36467,6,2,null,"","","SPLIT AIR CONDITIONING UNITS","H2",null,null,""]
[3313,36468,6,2,null,"","","MWSU.9 & 10 - Fourth Floor Patch Room","H3",null,null,""]
[3314,36469,6,2,null,"","","Wall Mounted inverter unit - 5,2 kW","No",2,null,{"$f":"J2905*K2905","v":0}]
[3315,36470,6,2,null,"","","Insulated drip tray","No",2,null,0]
[3316,36471,6,2,null,"","","Refrig. Piping - including insulation and cable tray support","m",12,null,0]
[3317,36472,6,2,null,"","","Drain Piping","Sets",{"v":2,"d":"2.0"},null,0]
[3318,37119,6,2,null,"","","Manual balancing damper - 250 Dia","No",46,null,0]
[3319,36474,6,2,null,"","","Budgetary Allowance","Item",{"v":1,"d":"1.00"},null,0]
[3320,36475,6,2,null,"","","Fifth Floor Drawing No. M-1006","",null,null,""]
[3321,36476,6,2,null,"","","SYSTEM - AHU-10 - TOTAL COOLING 80kw, 4000 l/s","H2",null,null,""]
[3322,36477,6,2,null,"","","Chilled Water Unit complete with fan, coil, filters, etc. - to be assembled on site in plantroom","No",1,null,{"$f":"J2913*K2913","v":0}]
[3323,36478,6,2,null,"","","Sheetmetal Plinthformer","No",1,null,0]
[3324,36479,6,2,null,"","","Tico Pads","Sets",{"v":1,"d":"1.0"},null,0]
[3325,36480,6,2,null,"","","Drain Piping","Sets",{"v":1,"d":"1.0"},null,0]
[3326,36481,6,2,null,"","","SOUND ATTENUATORS","H2",null,null,""]
[3327,36482,6,2,null,"","","Complete as per specification","H3",null,null,""]
[3328,36483,6,2,null,"","","Supply Air 1100 W x 450 D x 1200 L","No",1,null,{"$f":"J2919*K2919","v":0}]
[3329,36484,6,2,null,"","","Return Air 1100 W x 450 D x 1200 L","No",1,null,0]
[3330,36485,6,2,null,"","","CIRCULAR DUCTING","H2",null,null,""]
[3331,36486,6,2,null,"","","Dia 250","m",18,null,{"$f":"J2922*K2922","v":0}]
[3332,36487,6,2,null,"","","CIRCULAR 90° BENDS","H2",null,null,""]
[3333,36488,6,2,null,"","","Dia 250","No",13,null,{"$f":"J2924*K2924","v":0}]
[3334,36489,6,2,null,"","","CIRCULAR SPIGOTS","H2",null,null,""]
[3335,36490,6,2,null,"","","Dia 250","No",24,null,{"$f":"J2926*K2926","v":0}]
[3336,36491,6,2,null,"","","RECTANGULAR DUCTING","H2",null,null,""]
[3337,36492,6,2,null,"","","Complete with hangers, clamps etc","H3",null,null,""]
[3338,36493,6,2,null,"","","0.80mm sheetmetal","m2",92,null,{"$f":"J2929*K2929","v":0}]
[3339,36494,6,2,null,"","","0.60mm sheetmetal","m2",72,null,0]
[3340,36495,6,2,null,"","","RECTANGULAR DUCT FITTING","H2",null,null,""]
[3341,36496,6,2,null,"","","Complete with hangers, clamps etc","H3",null,null,""]
[3342,36497,6,2,null,"","","0.80mm sheetmetal","No",10,null,{"$f":"J2933*K2933","v":0}]
[3343,36498,6,2,null,"","","0.60mm sheetmetal","No",7,null,0]
[3344,36499,6,2,null,"","","DUCT INSULATION","H2",null,null,""]
[3345,36500,6,2,null,"","","FRK 25mm thick","m2",165,null,{"$f":"J2936*K2936","v":0}]
[3346,36501,6,2,null,"","","595 x 595 DCV DIFFUSERS","H2",null,null,""]
[3347,36502,6,2,null,"","","Dia 250","No",7,null,{"$f":"J2938*K2938","v":0}]
[3348,36503,6,2,null,"","","595 x 595 DVV DIFFUSERS  c/w 1kW REHEATERS","H2",null,null,""]
[3349,36504,6,2,null,"","","Dia 250 Master c/w Wall Mounted Controller ","No",9,null,{"$f":"J2940*K2940","v":0}]
[3350,36505,6,2,null,"","","Dia 250 Slaves","No",7,null,0]
[3351,36506,6,2,null,"","","RCV DIFFUSERS","H2",null,null,""]
[3352,36507,6,2,null,"","","Dia 250","No",1,null,{"$f":"J2943*K2943","v":0}]
[3353,36508,6,2,null,"","","INSULATED FLEXIBLE DUCTING 1.5 M LONG COMPLETE WITH JUBILEE CLAMPS ","H2",null,null,""]
[3354,36509,6,2,null,"","","Dia 250","No",24,null,{"$f":"J2945*K2945","v":0}]
[3355,36510,6,2,null,"","","WIRE MESH SCREENS","H2",null,null,""]
[3356,36511,6,2,null,"","","1100 x 450","No",1,null,{"$f":"J2947*K2947","v":0}]
[3357,36512,6,2,null,"","","R/A GRILLES - FIXED BLADE","H2",null,null,""]
[3358,36513,6,2,null,"","","600 x 600","No",7,null,{"$f":"J2949*K2949","v":0}]
[3359,36514,6,2,null,"","","SYSTEM - AHU-11 - TOTAL COOLING 80kw, 4000 l/s","H2",null,null,""]
[3360,36515,6,2,null,"","","Chilled Water Unit complete with fan, coil, filters, etc. - to be assembled on site in plantroom","No",1,null,{"$f":"J2951*K2951","v":0}]
[3361,36516,6,2,null,"","","Sheetmetal Plinthformer","No",1,null,0]
[3362,36517,6,2,null,"","","Tico Pads","Sets",{"v":1,"d":"1.0"},null,0]
[3363,36518,6,2,null,"","","Drain Piping","Sets",{"v":1,"d":"1.0"},null,0]
[3364,36519,6,2,null,"","","SOUND ATTENUATORS","H2",null,null,""]
[3365,36520,6,2,null,"","","Complete as per specification","H3",null,null,""]
[3366,36521,6,2,null,"","","Supply Air 1100 W x 450 D x 1200 L","No",1,null,{"$f":"J2957*K2957","v":0}]
[3367,36522,6,2,null,"","","Return Air 1100 W x 450 D x 1200 L","No",1,null,0]
[3368,36523,6,2,null,"","","CIRCULAR DUCTING","H2",null,null,""]
[3369,36524,6,2,null,"","","Dia 250","m",20,null,{"$f":"J2960*K2960","v":0}]
[3370,36525,6,2,null,"","","CIRCULAR 90° BENDS","H2",null,null,""]
[3371,36526,6,2,null,"","","Dia 250","No",10,null,{"$f":"J2962*K2962","v":0}]
[3372,36527,6,2,null,"","","CIRCULAR SPIGOTS","H2",null,null,""]
[3373,36528,6,2,null,"","","Dia 250","No",25,null,{"$f":"J2964*K2964","v":0}]
[3374,36529,6,2,null,"","","RECTANGULAR DUCTING","H2",null,null,""]
[3375,36530,6,2,null,"","","Complete with hangers, clamps etc","H3",null,null,""]
[3376,36531,6,2,null,"","","0.80mm sheetmetal","m2",61,null,{"$f":"J2967*K2967","v":0}]
[3377,36532,6,2,null,"","","0.60mm sheetmetal","m2",115,null,0]
[3378,36533,6,2,null,"","","RECTANGULAR DUCT FITTINGS","H2",null,null,""]
[3379,36534,6,2,null,"","","Complete with hangers, clamps etc","H3",null,null,""]
[3380,36535,6,2,null,"","","0.80mm sheetmetal","No",6,null,{"$f":"J2971*K2971","v":0}]
[3381,36536,6,2,null,"","","0.60mm sheetmetal","No",14,null,0]
[3382,36537,6,2,null,"","","DUCT INSULATION","H2",null,null,""]
[3383,36538,6,2,null,"","","FRK 25mm thick","m2",178,null,{"$f":"J2974*K2974","v":0}]
[3384,36539,6,2,null,"","","595 x 595 DCV DIFFUSERS","H2",null,null,""]
[3385,36540,6,2,null,"","","Dia 250","No",5,null,{"$f":"J2976*K2976","v":0}]
[3386,36541,6,2,null,"","","595 x 595 DVV DIFFUSERS  c/w 1kW REHEATERS","H2",null,null,""]
[3387,36542,6,2,null,"","","Dia 250 Master c/w Wall Mounted Controller ","No",14,null,{"$f":"J2978*K2978","v":0}]
[3388,36543,6,2,null,"","","Dia 250 Slaves","No",null,null,""]
[3389,36544,6,2,null,"","","595 x 595 DVV DIFFUSERS  c/w 0,5kW  REHEATERS","H2",null,null,""]
[3390,36545,6,2,null,"","","Dia 250 Master c/w Wall Mounted Controller ","No",2,null,{"$f":"J2981*K2981","v":0}]
[3391,36546,6,2,null,"","","Dia 250 Slaves","No",2,null,0]
[3392,36547,6,2,null,"","","RCV DIFFUSERS","H2",null,null,""]
[3393,36548,6,2,null,"","","Dia 250","No",2,null,{"$f":"J2984*K2984","v":0}]
[3394,36549,6,2,null,"","","INSULATED FLEXIBLE DUCTING 1.5 M LONG COMPLETE WITH JUBILEE CLAMPS","H2",null,null,""]
[3395,36550,6,2,null,"","","Dia 250","No",25,null,{"$f":"J2986*K2986","v":0}]
[3396,36551,6,2,null,"","","WIRE MESH SCREENS","H2",null,null,""]
[3397,36552,6,2,null,"","","1100 x 450","No",1,null,{"$f":"J2988*K2988","v":0}]
[3398,36553,6,2,null,"","","R/A GRILLES - FIXED BLADE","H2",null,null,""]
[3399,36554,6,2,null,"","","600 x 600","No",6,null,{"$f":"J2990*K2990","v":0}]
[3400,36555,6,2,null,"","","SYSTEM - EAF - 1  (FLOORS 1-5 TOILETS)","H2",null,null,""]
[3401,36556,6,2,null,"","","Fan System - EAF - 1 Duty: 4,00m3/s","H3",null,null,""]
[3402,36557,6,2,null,"","","Fan","No",1,null,{"$f":"J2993*K2993","v":0}]
[3403,36558,6,2,null,"","","Attenuators","No",2,null,0]
[3404,36559,6,2,null,"","","Supports","No",1,null,0]
[3405,36560,6,2,null,"","","AVM's","Sets",{"v":1,"d":"1.0"},null,0]
[3406,36561,6,2,null,"","","Flexible Canvas Collars","Sets",{"v":1,"d":"1.0"},null,0]
[3407,36562,6,2,null,"","","Exhaust  Cowl","No",1,null,0]
[3408,36563,6,2,null,"","","CIRCULAR DUCTING","H2",null,null,""]
[3409,36564,6,2,null,"","","Dia 450","m",4,null,{"$f":"J3000*K3000","v":0}]
[3410,36565,6,2,null,"","","Dia 300","m",7,null,0]
[3411,36566,6,2,null,"","","Dia 250","m",5,null,0]
[3412,36567,6,2,null,"","","Dia 150","m",5,null,0]
[3413,36568,6,2,null,"","","CIRCULAR 45° BENDS","H2",null,null,""]
[3414,36569,6,2,null,"","","Dia 150","No",1,null,{"$f":"J3005*K3005","v":0}]
[3415,36570,6,2,null,"","","CIRCULAR SPIGOTS","H2",null,null,""]
[3416,36571,6,2,null,"","","Dia 300","No",1,null,{"$f":"J3007*K3007","v":0}]
[3417,36572,6,2,null,"","","Dia 250","No",1,null,0]
[3418,36573,6,2,null,"","","Dia 200","No",1,null,0]
[3419,36574,6,2,null,"","","Dia 150","No",13,null,0]
[3420,36575,6,2,null,"","","RECTANGULAR DUCTING","H2",null,null,""]
[3421,36576,6,2,null,"","","Complete with hangers, clamps etc","H3",null,null,""]
[3422,36577,6,2,null,"","","0.80mm sheetmetal","m2",65,null,{"$f":"J3013*K3013","v":0}]
[3423,36578,6,2,null,"","","0.60mm sheetmetal","m2",40,null,0]
[3424,36579,6,2,null,"","","RECTANGULAR DUCT FITTINGS","H2",null,null,""]
[3425,36580,6,2,null,"","","Complete with hangers, clamps etc","H3",null,null,""]
[3426,36581,6,2,null,"","","0.80mm sheetmetal","No",7,null,{"$f":"J3017*K3017","v":0}]
[3427,36582,6,2,null,"","","0.60mm sheetmetal","No",10,null,0]
[3428,36583,6,2,null,"","","DISC VALVES","H2",null,null,""]
[3429,36584,6,2,null,"","","Dia 200","No",1,null,{"$f":"J3020*K3020","v":0}]
[3430,36585,6,2,null,"","","Dia 150","No",13,null,0]
[3431,36586,6,2,null,"","","UNINSULATED FLEXIBLE DUCTING 1.5 M LONG COMPLETE WITH JUBILEE CLAMPS","H2",null,null,""]
[3432,36587,6,2,null,"","","Dia 200","No",1,null,{"$f":"J3023*K3023","v":0}]
[3433,36588,6,2,null,"","","Dia 150","No",13,null,0]
[3434,36589,6,2,null,"","","Fan System - EAF - 21 Duty: 0,06m3/s","H3",null,null,""]
[3435,36590,6,2,null,"","","Fan","No",1,null,{"$f":"J3026*K3026","v":0}]
[3436,36591,6,2,null,"","","Attenuators","No",2,null,0]
[3437,36592,6,2,null,"","","Supports","Sets",{"v":1,"d":"1.0"},null,0]
[3438,36593,6,2,null,"","","AVM's","Sets",{"v":1,"d":"1.0"},null,0]
[3439,36594,6,2,null,"","","Flexible Canvas Collars","Sets",{"v":1,"d":"1.0"},null,0]
[3440,36595,6,2,null,"","","CIRCULAR DUCTING","H2",null,null,""]
[3441,36596,6,2,null,"","","Dia 150","m",5,null,{"$f":"J3032*K3032","v":0}]
[3442,36597,6,2,null,"","","CIRCULAR 90° BENDS","H2",null,null,""]
[3443,36598,6,2,null,"","","Dia 150","No",1,null,{"$f":"J3034*K3034","v":0}]
[3444,36599,6,2,null,"","","DISC VALVES","H2",null,null,""]
[3445,36600,6,2,null,"","","Dia 150","No",1,null,{"$f":"J3036*K3036","v":0}]
[3446,36601,6,2,null,"","","UNINSULATED FLEXIBLE DUCTING 1.5 M LONG COMPLETE WITH JUBILEE CLAMPS","H2",null,null,""]
[3447,36602,6,2,null,"","","Dia 150","No",1,null,{"$f":"J3038*K3038","v":0}]
[3448,37120,6,2,null,"","","WEATHER LOUVER","H2",null,null,""]
[3449,37121,6,2,null,"","","200 x 200","No",1,null,{"$f":"J3040*K3040","v":0}]
[3450,36603,6,2,null,"","","SPLIT AIR CONDITIONING UNITS","H2",null,null,""]
[3451,36604,6,2,null,"","","MWSU.11 & 12 - Fifth Floor Patch Room","H3",null,null,""]
[3452,36605,6,2,null,"","","Wall Mounted inverter unit - 5,2 kW","No",2,null,{"$f":"J3043*K3043","v":0}]
[3453,36606,6,2,null,"","","Insulated drip tray","No",2,null,0]
[3454,36607,6,2,null,"","","Refrig. Piping - including insulation and cable tray support","m",12,null,0]
[3455,36608,6,2,null,"","","Drain Piping","Sets",{"v":2,"d":"2.0"},null,0]
[3456,36609,6,2,null,"","","FIRE DAMPERS","H2",null,null,""]
[3457,36610,6,2,null,"","","800 x 500","No",1,null,{"$f":"J3048*K3048","v":0}]
[3458,36611,6,2,null,"","","600 x 400","No",1,null,0]
[3459,36612,6,2,null,"","","500 x 300","No",1,null,0]
[3460,37122,6,2,null,"","","Manual balancing damper - 250 Dia","No",46,null,0]
[3461,36614,6,2,null,"","","Budgetary Allowance","Item",{"v":1,"d":"1.00"},null,0]
[3462,36615,6,2,null,"","","ELECTRICAL BOARDS","H2",null,null,""]
[3463,36616,6,2,null,"","","Main DB's:","H3",null,null,""]
[3464,36617,6,2,null,"","","ACDB 1","Item",{"v":1,"d":"1.00"},null,{"$f":"J3055*K3055","v":0}]
[3465,36618,6,2,null,"","","AHU DB's:","H3",null,null,""]
[3466,36619,6,2,null,"","","AHU.1","Item",{"v":1,"d":"1.00"},null,{"$f":"J3057*K3057","v":0}]
[3467,36620,6,2,null,"","","AHU.2","Item",{"v":1,"d":"1.00"},null,0]
[3468,36621,6,2,null,"","","AHU.3","Item",{"v":1,"d":"1.00"},null,0]
[3469,36622,6,2,null,"","","AHU.4","Item",{"v":1,"d":"1.00"},null,0]
[3470,36623,6,2,null,"","","AHU.5","Item",{"v":1,"d":"1.00"},null,0]
[3471,36624,6,2,null,"","","AHU.6","Item",{"v":1,"d":"1.00"},null,0]
[3472,36625,6,2,null,"","","AHU.7","Item",{"v":1,"d":"1.00"},null,0]
[3473,36626,6,2,null,"","","AHU.8","Item",{"v":1,"d":"1.00"},null,0]
[3474,36627,6,2,null,"","","AHU.9","Item",{"v":1,"d":"1.00"},null,0]
[3475,36628,6,2,null,"","","AHU.10","Item",{"v":1,"d":"1.00"},null,0]
[3476,36629,6,2,null,"","","AHU.11","Item",{"v":1,"d":"1.00"},null,0]
[3477,36630,6,2,null,"","","Fan DB's:","H3",null,null,""]
[3478,36631,6,2,null,"","","ACDB 2","Item",{"v":1,"d":"1.00"},null,{"$f":"J3069*K3069","v":0}]
[3479,36632,6,2,null,"","","ACDB 3","Item",{"v":1,"d":"1.00"},null,0]
[3480,36633,6,2,null,"","","ACDB 4","Item",{"v":1,"d":"1.00"},null,0]
[3481,36634,6,2,null,"","","All field wiring, cabling, conduiting from distribution boards to  all individual components of the air-conditioning and ventilation systems associated with the various individual distribution boards. (distribution boards elsewhere measured)","H3",null,null,""]
[3482,36635,6,2,null,"","","Chillers","H3",null,null,""]
[3483,36636,6,2,null,"","","CWG.1 and pumps","Item",{"v":1,"d":"1.00"},null,{"$f":"J3074*K3074","v":0}]
[3484,36637,6,2,null,"","","Chilled Water Air Handling Units","H3",null,null,""]
[3485,36638,6,2,null,"","","AHU.1","Item",{"v":1,"d":"1.00"},null,{"$f":"J3076*K3076","v":0}]
[3486,36639,6,2,null,"","","AHU.2","Item",{"v":1,"d":"1.00"},null,0]
[3487,36640,6,2,null,"","","AHU.3","Item",{"v":1,"d":"1.00"},null,0]
[3488,36641,6,2,null,"","","AHU.4","Item",{"v":1,"d":"1.00"},null,0]
[3489,36642,6,2,null,"","","AHU.5","Item",{"v":1,"d":"1.00"},null,0]
[3490,36643,6,2,null,"","","AHU.6","Item",{"v":1,"d":"1.00"},null,0]
[3491,36644,6,2,null,"","","AHU.7","Item",{"v":1,"d":"1.00"},null,0]
[3492,36645,6,2,null,"","","AHU.8","Item",{"v":1,"d":"1.00"},null,0]
[3493,36646,6,2,null,"","","AHU.9","Item",{"v":1,"d":"1.00"},null,0]
[3494,36647,6,2,null,"","","AHU.10","Item",{"v":1,"d":"1.00"},null,0]
[3495,36648,6,2,null,"","","AHU.11","Item",{"v":1,"d":"1.00"},null,0]
[3496,36649,6,2,null,"","","Mid-wall Split Units","H3",null,null,""]
[3497,36650,6,2,null,"","","MWSU 1","Item",{"v":1,"d":"1.00"},null,{"$f":"J3088*K3088","v":0}]
[3498,36651,6,2,null,"","","MWSU 2","Item",{"v":1,"d":"1.00"},null,0]
[3499,36652,6,2,null,"","","MWSU 3","Item",{"v":1,"d":"1.00"},null,0]
[3500,36653,6,2,null,"","","MWSU 4","Item",{"v":1,"d":"1.00"},null,0]
[3501,36654,6,2,null,"","","MWSU 5","Item",{"v":1,"d":"1.00"},null,0]
[3502,36655,6,2,null,"","","MWSU 6","Item",{"v":1,"d":"1.00"},null,0]
[3503,36656,6,2,null,"","","MWSU 7","Item",{"v":1,"d":"1.00"},null,0]
[3504,36657,6,2,null,"","","MWSU 8","Item",{"v":1,"d":"1.00"},null,0]
[3505,36658,6,2,null,"","","MWSU 9","Item",{"v":1,"d":"1.00"},null,0]
[3506,36659,6,2,null,"","","MWSU 10","Item",{"v":1,"d":"1.00"},null,0]
[3507,36660,6,2,null,"","","MWSU 11","Item",{"v":1,"d":"1.00"},null,0]
[3508,36661,6,2,null,"","","MWSU 12","Item",{"v":1,"d":"1.00"},null,0]
[3509,36662,6,2,null,"","","MWSU 13","Item",{"v":1,"d":"1.00"},null,0]
[3510,36663,6,2,null,"","","MWSU 14","Item",{"v":1,"d":"1.00"},null,0]
[3511,36664,6,2,null,"","","Ceiling Cassette Units","H3",null,null,""]
[3512,36665,6,2,null,"","","CCU.1","Item",{"v":1,"d":"1.00"},null,{"$f":"J3103*K3103","v":0}]
[3513,36666,6,2,null,"","","Ventilation Fans","H3",null,null,""]
[3514,36667,6,2,null,"","","EAF.1","Item",{"v":1,"d":"1.00"},null,{"$f":"J3105*K3105","v":0}]
[3515,36668,6,2,null,"","","EAF.2","Item",{"v":1,"d":"1.00"},null,0]
[3516,36669,6,2,null,"","","EAF.3","Item",{"v":1,"d":"1.00"},null,0]
[3517,36670,6,2,null,"","","EAF.4","Item",{"v":1,"d":"1.00"},null,0]
[3518,36671,6,2,null,"","","EAF.5","Item",{"v":1,"d":"1.00"},null,0]
[3519,36672,6,2,null,"","","EAF.6","Item",{"v":1,"d":"1.00"},null,0]
[3520,36673,6,2,null,"","","EAF.7","Item",{"v":1,"d":"1.00"},null,0]
[3521,36674,6,2,null,"","","EAF.8","Item",{"v":1,"d":"1.00"},null,0]
[3522,36675,6,2,null,"","","EAF.9","Item",{"v":1,"d":"1.00"},null,0]
[3523,36676,6,2,null,"","","EAF.10","Item",{"v":1,"d":"1.00"},null,0]
[3524,36677,6,2,null,"","","EAF.11","Item",{"v":1,"d":"1.00"},null,0]
[3525,36678,6,2,null,"","","EAF.12","Item",{"v":1,"d":"1.00"},null,0]
[3526,36679,6,2,null,"","","EAF.13","Item",{"v":1,"d":"1.00"},null,0]
[3527,36680,6,2,null,"","","EAF.14","Item",{"v":1,"d":"1.00"},null,0]
[3528,36681,6,2,null,"","","EAF.15","Item",{"v":1,"d":"1.00"},null,0]
[3529,36682,6,2,null,"","","EAF.16","Item",{"v":1,"d":"1.00"},null,0]
[3530,36683,6,2,null,"","","EAF.17","Item",{"v":1,"d":"1.00"},null,0]
[3531,36684,6,2,null,"","","EAF.18","Item",{"v":1,"d":"1.00"},null,0]
[3532,36685,6,2,null,"","","EAF.19","Item",{"v":1,"d":"1.00"},null,0]
[3533,36686,6,2,null,"","","EAF.20","Item",{"v":1,"d":"1.00"},null,0]
[3534,36687,6,2,null,"","","EAF.21","Item",{"v":1,"d":"1.00"},null,0]
[3535,36688,6,2,null,"","","Electrical Installation:","H3",null,null,""]
[3536,36689,6,2,null,"","","Any other electrical and control wiring installation and components required to insure full functionality as per the specification","Item",null,null,""]
[3537,36690,6,2,null,"","","AIR CONDITIONING CONTROL SYSTEM","H2",null,null,""]
[3538,36691,6,2,null,"","","BMS Software","H3",null,null,""]
[3539,36692,6,2,null,"","","BMS Programming","H3",null,null,""]
[3540,36693,6,2,null,"","","Development, writing, configuration, documentation, annotation and testing and commissioning of BMS programming (excluding A/C controls) as specified and as required to achieve full system functionality","H3",null,null,""]
[3541,36694,6,2,null,"","","Chiller BMS panel as per Points List","No",1,null,{"$f":"J3132*K3132","v":0}]
[3542,36695,6,2,null,"","","AHU 1 BMS panel as per Ponts List","No",1,null,0]
[3543,36696,6,2,null,"","","AHU 2 BMS panel as per Points List","No",1,null,0]
[3544,36697,6,2,null,"","","AHU 3 BMS panel as per Points List","No",1,null,0]
[3545,36698,6,2,null,"","","AHU 4 BMS panel as per Points List","No",1,null,0]
[3546,36699,6,2,null,"","","AHU 5 BMS panel as per Points List","No",1,null,0]
[3547,36700,6,2,null,"","","AHU 6 BMS panel as per Points List","No",1,null,0]
[3548,36701,6,2,null,"","","AHU 7 BMS panel as per Points List","No",1,null,0]
[3549,36702,6,2,null,"","","AHU 8 BMS panel as per Points List","No",1,null,0]
[3550,36703,6,2,null,"","","AHU 9 BMS panel as per Points List","No",1,null,0]
[3551,36704,6,2,null,"","","AHU 10 BMS panel as per Points List","No",1,null,0]
[3552,36705,6,2,null,"","","AHU 11 BMS panel as per Points List","No",1,null,0]
[3553,36706,6,2,null,"","","EAF.1 BMS panel as per Points List","No",1,null,0]
[3554,36707,6,2,null,"","","EAF.2 BMS panel as per Points List","No",1,null,0]
[3555,36708,6,2,null,"","","EAF.15 BMS panel as per Points List","No",1,null,0]
[3556,36709,6,2,null,"","","EAF.16 BMS panel as per Points List","No",1,null,0]
[3557,36710,6,2,null,"","","EAF.18 BMS panel as per Points List","No",1,null,0]
[3558,36711,6,2,null,"","","BMS Software Modules","H3",null,null,""]
[3559,36712,6,2,null,"","","Supply, licensing, loading, setting up, testing and commissioning of BMS software modules (if required separately)","Item",{"v":1,"d":"1.00"},null,{"$f":"J3150*K3150","v":0}]
[3560,36713,6,2,null,"","","BMS Airconditioning Controls","H3",null,null,""]
[3561,36714,6,2,null,"","","All software programming and hardware for control of airconditioning related plant as specified   ","",null,null,""]
[3562,36715,6,2,null,"","","HVAC Field Equipment","H2",null,null,""]
[3563,36716,6,2,null,"","","Supply, Install, connect, test and commission","H3",null,null,""]
[3564,36717,6,2,null,"","","Remote set point adjuster/sensor","No",12,null,{"$f":"J3155*K3155","v":0}]
[3565,36718,6,2,null,"","","Space temperature probe","No",12,null,0]
[3566,36719,6,2,null,"","","Duct temperature probe","No",22,null,0]
[3567,36720,6,2,null,"","","Air pressure switch","No",15,null,0]
[3568,36721,6,2,null,"","","Filter dirty pressure switch","No",11,null,0]
[3569,36722,6,2,null,"","","Differential pressure switch","No",4,null,0]
[3570,36723,6,2,null,"","","Chilled and Heating water valves","No",null,null,""]
[3571,36724,6,2,null,"","","Chilled water temperature probe","No",30,null,{"$f":"J3162*K3162","v":0}]
[3572,36725,6,2,null,"","","Heating water temperature probe","No",30,null,0]
[3573,36726,6,2,null,"","","Duct static pressure sensor","No",11,null,0]
[3574,36727,6,2,null,"","","Water pressure switch","No",1,null,0]
[3575,36728,6,2,null,"","","Water pressure sensor","No",3,null,0]
[3576,36729,6,2,null,"","","Operator Interface P.C.","H2",null,null,""]
[3577,36730,6,2,null,"","","Supply and install workstation configured as specified","H3",null,null,""]
[3578,36731,6,2,null,"","","Desktop P.C.","No",1,null,{"$f":"J3169*K3169","v":0}]
[3579,36732,6,2,null,"","","Modem","No",1,null,0]
[3580,36733,6,2,null,"","","Software","No",1,null,0]
[3581,36734,6,2,null,"","","UPS","No",1,null,0]
[3582,36735,6,2,null,"","","Printers","No",2,null,0]
[3583,36736,6,2,null,"","","Interface to BMS","No",1,null,0]
[3584,36737,6,2,null,"","","Interface to Chiller Management System","No",1,null,0]
[3585,36738,6,2,null,"","","Interface with Split Units","No",16,null,0]
[3586,36739,6,2,null,"","","CABLING","H2",null,null,""]
[3587,36740,6,2,null,"","","The supply and installation of twisted pair OAS cable pulled through conduit and/or trunking labelling and terminating including all accessories  labelling and terminating including all accessories","H3",null,null,""]
[3588,36741,6,2,null,"","","1 Pair 1.5mm² OAS cable","Sets",{"v":1,"d":"1.0"},null,{"$f":"J3179*K3179","v":0}]
[3589,36742,6,2,null,"","","Terminations","H3",null,null,""]
[3590,36743,6,2,null,"","","1 Pair 1.5mm² OAS cable","Sets",{"v":1,"d":"1.0"},null,{"$f":"J3181*K3181","v":0}]
[3591,36744,6,2,null,"","","Any other hardware, connections, plugs, cables, fittings, brackets, interfaces, drivers, power supplies, labour, etc. required to ensure full functionality as specified","Item",{"v":1,"d":"1.00"}]
[3592,36745,6,2,null,"","","Testing and commissioning of complete HVAC installation and in accordance with specification and CIBSE/ ASHRAE commissioning code","Item",{"v":1,"d":"1.00"},null,0]
[3593,36747,6,2,null,"","","Budgetary Allowance","Item",{"v":1,"d":"1.00"},null,0]
[3595,34497,6,3,null,"","","SECTION NO. 6","H1",null,null,""]
[3596,34498,6,3,null,"","","BILL NO. 3 LIFT INSTALLATION","H1",null,null,{"$f":"SUM(L3187:L3248)","v":0}]
[3597,34499,6,3,null,"","","LIFT INSTALLATION (PROVISIONAL) (CPAP WORK GROUP NO. 170 UNLESS OTHERWISE STATED)","H1",null,null,""]
[3598,34500,6,3,null,"31","","The Tenderer is referred to the relevant Clauses in the separate document General Preambles for Trades (2017)","",null,null,""]
[3599,35590,6,3,null,"","","LIFT INSTALLATION","H2",null,null,""]
[3600,35591,6,3,null,"","","General","H2",null,null,""]
[3601,35592,6,3,null,"","","Cost for signage, hoarding, barricades, scaffolding, protection for 3-off lifts","Item",{"v":1,"d":"1.00"},null,{"$f":"J3191*K3191","v":0}]
[3602,36814,6,3,null,"","","Health and safety","Item",{"v":1,"d":"1.00"},null,0]
[3603,35593,6,3,null,"","","Maintenance manuals as specified – 3 hard copies and 3 CD’s per lift","Item",{"v":1,"d":"1.00"},null,0]
[3604,35594,6,3,null,"","","Purchase of forward cover, etc","Item",{"v":1,"d":"1.00"},null,0]
[3605,36815,6,3,null,"","","Miscellaneous: Lift contractor to detail any additional cost items","Item",{"v":1,"d":"1.00"}]
[3606,35601,6,3,null,"","","New Passenger Lift 1","H2",null,null,""]
[3607,35602,6,3,null,"","","Complete removal and de-commissioning of existing lift (inclusive of all existing structural supports and rails within lift shaft, landing buttons and existing architraves)","Item",{"v":1,"d":"1.00"},null,{"$f":"J3197*K3197","v":0}]
[3608,35603,6,3,null,"","","Total manufacture, supply - c/w Items specified in technical specification","H3",null,null,""]
[3609,35604,6,3,null,"","","Complete manufacturing cost and equipment","Item",{"v":1,"d":"1.00"},null,{"$f":"J3199*K3199","v":0}]
[3610,35605,6,3,null,"","","Transportation to site and rigging as specified","Item",{"v":1,"d":"1.00"},null,0]
[3611,35606,6,3,null,"","","Replace all landing call buttons (7 landings)","Item",{"v":1,"d":"1.00"},null,0]
[3612,35608,6,3,null,"","","Supply and install new s/s architraves (7 landings)","Item",{"v":1,"d":"1.00"},null,0]
[3613,35609,6,3,null,"","","Supply and install new landing doors c/w new tracks, hangers, floor sills, etc. (7 landings)","Item",{"v":1,"d":"1.00"},null,0]
[3614,35610,6,3,null,"","","Canvas protection in lift car (pvc protection drapes to side and rear walls fixed with turn-buckle clips, rear panel to indicate mirror behind protective cover)","Item",{"v":1,"d":"1.00"},null,0]
[3615,35611,6,3,null,"","","Wireless intercom (1-off) as per technical specification","Item",{"v":1,"d":"1.00"},null,0]
[3616,35613,6,3,null,"","","Supply and install battery back-up (A.R.D)","Item",{"v":1,"d":"1.00"},null,0]
[3617,35614,6,3,null,"","","Complete electrics and COC (inclusive of re-routing power supply from existing motor room to lift shaft – thereby eliminating the need for the motor room)","Item",{"v":1,"d":"1.00"},null,0]
[3618,35615,6,3,null,"","","Total cost for energy saving operation (ESO) as specified","Item",{"v":1,"d":"1.00"},null,0]
[3619,35616,6,3,null,"","","12 Months free maintenance","Item",{"v":1,"d":"1.00"},null,0]
[3620,35617,6,3,null,"","","Allow for lift sump pump for drainage","Item",{"v":1,"d":"1.00"},null,0]
[3621,35618,6,3,null,"","","New Passenger Lift 2","H2",null,null,""]
[3622,35619,6,3,null,"","","Complete removal and de-commissioning of existing lift (inclusive of all existing structural supports and rails within lift shaft, landing buttons and existing architraves)","Item",{"v":1,"d":"1.00"},null,{"$f":"J3212*K3212","v":0}]
[3623,35620,6,3,null,"","","Total manufacture, supply - c/w items specified in technical specification","H3",null,null,""]
[3624,35621,6,3,null,"","","Complete manufacturing cost and equipment","Item",{"v":1,"d":"1.00"},null,{"$f":"J3214*K3214","v":0}]
[3625,35622,6,3,null,"","","Transportation to site and rigging as specified","Item",{"v":1,"d":"1.00"},null,0]
[3626,35623,6,3,null,"","","Replace all landing call buttons (7 landings)","Item",{"v":1,"d":"1.00"},null,0]
[3627,35625,6,3,null,"","","Supply and install new s/s architraves (7 landings)","Item",{"v":1,"d":"1.00"},null,0]
[3628,35626,6,3,null,"","","Supply and install new landing doors c/w new tracks, hangers, floor sills, etc. (7 landings)","Item",{"v":1,"d":"1.00"},null,0]
[3629,35627,6,3,null,"","","Canvas protection in lift car (pvc protection drapes to side and rear walls fixed with turn-buckle clips, rear panel to indicate mirror behind protective cover)","Item",{"v":1,"d":"1.00"},null,0]
[3630,35628,6,3,null,"","","Wireless intercom (1-off) as per technical specification","Item",{"v":1,"d":"1.00"},null,0]
[3631,35630,6,3,null,"","","Supply and install battery back-up (A.R.D)","Item",{"v":1,"d":"1.00"},null,0]
[3632,35631,6,3,null,"","","Complete electrics and COC (inclusive of re-routing power supply from existing motor room to lift shaft – thereby eliminating the need for the motor room)","Item",{"v":1,"d":"1.00"},null,0]
[3633,35632,6,3,null,"","","Total cost for energy saving operation (ESO) as specified","Item",{"v":1,"d":"1.00"},null,0]
[3634,35633,6,3,null,"","","12 Months free maintenance","Item",{"v":1,"d":"1.00"},null,0]
[3635,35634,6,3,null,"","","Allow for lift sump pump for drainage","Item",{"v":1,"d":"1.00"},null,0]
[3636,35635,6,3,null,"","","New Goods Lift 3","H2",null,null,""]
[3637,35636,6,3,null,"","","Complete removal and de-commissioning of existing lift (inclusive of all existing structural supports and rails within lift shaft, landing buttons and existing architraves)","Item",{"v":1,"d":"1.00"},null,{"$f":"J3227*K3227","v":0}]
[3638,35637,6,3,null,"","","Total manufacture, supply - c/w items specified in technical specification","H3",null,null,""]
[3639,35638,6,3,null,"","","Complete manufacturing cost and equipment","Item",{"v":1,"d":"1.00"},null,{"$f":"J3229*K3229","v":0}]
[3640,35639,6,3,null,"","","Transportation to site and rigging as specified","Item",{"v":1,"d":"1.00"},null,0]
[3641,35640,6,3,null,"","","Replace all landing call buttons (7 landings) ","Item",{"v":1,"d":"1.00"},null,0]
[3642,35642,6,3,null,"","","Supply and install new s/s architraves (7 landings)","Item",{"v":1,"d":"1.00"},null,0]
[3643,35643,6,3,null,"","","Supply and install new landing doors c/w new tracks, hangers, floor sills, etc. (7 landings)","Item",{"v":1,"d":"1.00"},null,0]
[3644,35644,6,3,null,"","","Canvas protection in lift car (pvc protection drapes to side and rear walls fixed with turn-buckle clips, rear panel to indicate mirror behind protective cover)","Item",{"v":1,"d":"1.00"},null,0]
[3645,35645,6,3,null,"","","Wireless intercom (1-off) as per technical specification","Item",{"v":1,"d":"1.00"},null,0]
[3646,35647,6,3,null,"","","Supply and install battery back-up (A.R.D)","Item",{"v":1,"d":"1.00"},null,0]
[3647,35648,6,3,null,"","","Complete electrics and COC (inclusive of re-routing power supply from existing motor room to lift shaft – thereby eliminating the need for the motor room)","Item",{"v":1,"d":"1.00"},null,0]
[3648,35649,6,3,null,"","","Total cost for energy saving operation (ESO) as specified","Item",{"v":1,"d":"1.00"},null,0]
[3649,35650,6,3,null,"","","12 Months free maintenance","Item",{"v":1,"d":"1.00"},null,0]
[3650,35651,6,3,null,"","","Allow for lift sump pump for drainage","Item",{"v":1,"d":"1.00"},null,0]
[{"$nulls":7},"SECTION NO. 7:  BUDGETARY ALLOWANCES"]
[{"$nulls":7},"Repair to fire escape handrails"]
[{"$nulls":7},"Painting of main staircase handrails","Item",{"v":1,"d":"1.00"}]
[{"$nulls":7},"Repair to fire escape handrails","Item",{"v":1,"d":"1.00"}]
[{"$nulls":7},"Repair to treads & risers of all staircases","Item",{"v":1,"d":"1.00"}]
[{"$nulls":7},"Installation of Bird netting on Northern Façade ","Item",{"v":1,"d":"1.00"}]
[{"$nulls":7},"Installation of structural steel pedestrian link bridge","Item",{"v":1,"d":"1.00"}]
[{"$nulls":7},"Construction of temporary car park at Minnaar street","Item",{"v":1,"d":"1.00"}]
[3661,9604,7,1,null,"137","","SUB-TOTAL","ST",null,"",{"$f":"L27+L1185+L1224+L1880+L2086","v":0}]
[3662,15190,7,1,null,"137","","ADD: PROJECT CONTINGENCIES @10%","Lsum",{"v":1,"d":"1.00"},null,{"$f":"J3250*K3250","v":0}]
[3663,9700,7,1,null,"137","","SUB-TOTAL","ST",null,"",{"$f":"L3250+L3249","v":0}]
[3666,6336,7,1,null,"137","","ADD: VAT @ 15% OF THE SUB-TOTAL ABOVE","TAX",{"v":15,"d":"15.00"},"",{"$f":"L3251*10%","v":0}]
[{"$nulls":7},"TOTAL INCLUSIVE OF VAT",{"$nulls":3},{"$f":"SUM(L3251:L3252)","v":0}]